Workbook

Sheet Cover Sheet
F4: City and Hackney Childhood Immunisations Dashboard
F6: Report designed following the parameters of the Public Health England COVER programme
F8: Contains data on immunisation uptake for children becoming 12m, 24m and 5yrs in the quarter
F12: Patients becoming 12m
F14: DTaP/IPV/Hib/HepB
F15: Men B
F16: PCV
F17: Rotavirus
F18: BCG
F20: Patients becoming 24m
F22: DTaP/IPV/Hib/HepB
F23: MMR
F24: HiB/Men C
F25: PCV (Booster)
F26: Men B (Booster)
F27: Patients becoming 5y
F29: DTaP/IPV/Hib
F30: MMR (Primary)
F31: DTaP/IPV (Booster)
F32: MMR (Booster)
F33: HiB/Men C
F35: N.B. Rotavirus not included in performance target
F37: Version tracking
F38: Version 2.8 | G38: - PCV Schedule updated | M38: December 2020
F40: Version 2.7 | G40: - Removed the 5in1 from Patients becoming 12m, now only 6in1 | M40: April 2019
F42: Version 2.6 | G42: - Men B (Booster) included and 5in1 to have to become 6in1 for patients born after 01/08/2017 | M42: April 2018
F44: Version 2.5 | G44: - Men C removed Men B included | M44: May 2017
F46: Version 2.4 | G46: - DTaP/IPV (Booster) (NO LOWER AGE LIMIT) Removed | M46: May 2016
F48: Version 2.3 | G48: - Lower age limit for MMR, HiB/Men C and PCV adjusted to 1 year in line with NHSE guidance | M48: May 2015
F50: Version 2.2 | G50: - Cluster configuration and practice names updated | M50: April 2015
F52: Version 2.1 | G52: - DTaP/IPV/Hib (No lower age limit) added to 5yr cohort | M52: October 2014
F54: Version 2.0 | G54: - Specification and presentation used from CEG report for Tower Hamlets | M54: September 2014

Sheet Cluster Summary
M2: March 2022
I3: City and Hackney Childhood Immunisations Dashboard: Metric Details
I6: Neighbourhood Summary | U6: 0.96 | V6: 95% and over | Y6: 100% of quarterly performance payment
G8: Coverage | J8: Percentage of target population immunised | U8: 0.94 | V8: 0.94 | Y8: 80% of quarterly performance payment
G9: Activty | J9: Number of patients immunised | U9: 0.92 | V9: 92% or 93% | Y9: 40% of quarterly performance payment
G10: Required | J10: Number of patients requiring immunisation for network to attain 95% coverage | U10: 0.1 | V10: Less than 92%
M11: NW1 | Q11: NW2 | U11: NE1 | Y11: NE2 | AC11: sE1 | AG11: se2 | AK11: SW1 | AO11: sw2 | AS11: city
I12: City and Hackney Total (Not including North East) | L12: Woodberry Wetlands (NW1) | P12: Clissold Park (NW2) | T12: Springfield Park (NE1) | X12: Hackney Downs (NE2) | AB12: Hackney Marshes (SE1) | AF12: Well Street Common (SE2) | AJ12: London Fields (SW1) | AN12: Shoreditch Park & City (SW2) | AR12: City
B15: (01) 12 MONTH COHORT | D15: ="Patients becoming 12m within "&'Control Panel'!$B$1 -> Patients becoming 12m within Q4 | J15: =M15+Q15+AC15+AG15+AK15+AO15+AS15 -> 609 | M15: =SUMIFS(OFFSET(REL_D,,MATCH(B15,IND,0)-1),REL_D,$M$2,IF(LEFT($M$11,1)="N",NwID,OrgID),$M$11) -> 136 | Q15: =SUMIFS(OFFSET(REL_D,,MATCH(B15,IND,0)-1),REL_D,$M$2,IF(LEFT($Q$11,1)="N",NwID,OrgID),$Q$11) -> 79 | U15: =SUMIFS(OFFSET(REL_D,,MATCH(B15,IND,0)-1),REL_D,$M$2,IF(LEFT($U$11,1)="N",NwID,OrgID),$U$11) -> 290 | Y15: =SUMIFS(OFFSET(REL_D,,MATCH(B15,IND,0)-1),REL_D,$M$2,IF(LEFT($Y$11,1)="N",NwID,OrgID),$Y$11) -> 138 | AC15: =SUMIFS(OFFSET(REL_D,,MATCH(B15,IND,0)-1),REL_D,$M$2,IF(LEFT($AC$11,1)="S",NwID,OrgID),$AC$11) -> 99 | AG15: =SUMIFS(OFFSET(REL_D,,MATCH(B15,IND,0)-1),REL_D,$M$2,IF(LEFT($AG$11,1)="s",NwID,OrgID),$AG$11) -> 81 | AK15: =SUMIFS(OFFSET(REL_D,,MATCH(B15,IND,0)-1),REL_D,$M$2,IF(LEFT($AK$11,1)="s",NwID,OrgID),$AK$11) -> 100 | AO15: =SUMIFS(OFFSET(REL_D,,MATCH(B15,IND,0)-1),REL_D,$M$2,IF(LEFT($AO$11,1)="s",NwID,OrgID),$AO$11) -> 100 | AS15: =SUMIFS(OFFSET(REL_D,,MATCH(B15,IND,0)-1),REL_D,$M$2,IF(LEFT($AS$11,1)="c",NwID,OrgID),$AS$11) -> 14
I16: Coverage | J16: Activty | L16: Coverage | M16: Activty | N16: Required | P16: Coverage | Q16: Activty | R16: Required | T16: Coverage | U16: Activty | V16: Required | X16: Coverage | Y16: Activty | Z16: Required | AB16: Coverage | AC16: Activty | AD16: Required | AF16: Coverage | AG16: Activty | AH16: Required | AJ16: Coverage | AK16: Activty | AL16: Required | AN16: Coverage | AO16: Activty | AP16: Required | AR16: Coverage | AS16: Activty | AT16: Required
B17: (01.01) DTaP/IPV/Hib | F17: DTaP/IPV/Hib/HepB | I17: =IFERROR(ROUND(J17/J$15,3),"") -> 0.833 | J17: =M17+Q17+AC17+AG17+AK17+AO17+AS17 -> 507 | L17: =IFERROR(ROUND(M17/M$15,3),"") -> 0.772 | M17: =SUMIFS(OFFSET(REL_D,,MATCH(B17,IND,0)-1),REL_D,$M$2,IF(LEFT($M$11,1)="N",NwID,OrgID),$M$11) -> 105 | N17: =IF(AND(M$15*0.95-M17<1,(M$15*0.95-M17>0)),1,IF(M$15*0.95-M17<=0,"",M$15*0.95-M17)) -> 24.2 | P17: =IFERROR(ROUND(Q17/Q$15,3),"") -> 0.886 | Q17: =SUMIFS(OFFSET(REL_D,,MATCH(B17,IND,0)-1),REL_D,$M$2,IF(LEFT($Q$11,1)="N",NwID,OrgID),$Q$11) -> 70 | R17: =IF(AND(Q$15*0.95-Q17<1,(Q$15*0.95-Q17>0)),1,IF(Q$15*0.95-Q17<=0,"",Q$15*0.95-Q17)) -> 5.05 | T17: =IFERROR(ROUND(U17/U$15,3),"") -> 0.248 | U17: =SUMIFS(OFFSET(REL_D,,MATCH(B17,IND,0)-1),REL_D,$M$2,IF(LEFT($U$11,1)="N",NwID,OrgID),$U$11) -> 72 | V17: =IF(AND(U$15*0.95-U17<1,(U$15*0.95-U17>0)),1,IF(U$15*0.95-U17<=0,"",U$15*0.95-U17)) -> 203.5 | X17: =IFERROR(ROUND(Y17/Y$15,3),"") -> 0.565 | Y17: =SUMIFS(OFFSET(REL_D,,MATCH(B17,IND,0)-1),REL_D,$M$2,IF(LEFT($Y$11,1)="N",NwID,OrgID),$Y$11) -> 78 | Z17: =IF(AND(Y$15*0.95-Y17<1,(Y$15*0.95-Y17>0)),1,IF(Y$15*0.95-Y17<=0,"",Y$15*0.95-Y17)) -> 53.1 | AB17: =IFERROR(ROUND(AC17/AC$15,3),"") -> 0.848 | AC17: =SUMIFS(OFFSET(REL_D,,MATCH(B17,IND,0)-1),REL_D,$M$2,IF(LEFT($AC$11,1)="S",NwID,OrgID),$AC$11) -> 84 | AD17: =IF(AND(AC$15*0.95-AC17<1,(AC$15*0.95-AC17>0)),1,IF(AC$15*0.95-AC17<=0,"",AC$15*0.95-AC17)) -> 10.05 | AF17: =IFERROR(ROUND(AG17/AG$15,3),"") -> 0.765 | AG17: =SUMIFS(OFFSET(REL_D,,MATCH(B17,IND,0)-1),REL_D,$M$2,IF(LEFT($AG$11,1)="s",NwID,OrgID),$AG$11) -> 62 | AH17: =IF(AND(AG$15*0.95-AG17<1,(AG$15*0.95-AG17>0)),1,IF(AG$15*0.95-AG17<=0,"",AG$15*0.95-AG17)) -> 14.95 | AJ17: =IFERROR(ROUND(AK17/AK$15,3),"") -> 0.87 | AK17: =SUMIFS(OFFSET(REL_D,,MATCH(B17,IND,0)-1),REL_D,$M$2,IF(LEFT($AK$11,1)="s",NwID,OrgID),$AK$11) -> 87 | AL17: =IF(AND(AK$15*0.95-AK17<1,(AK$15*0.95-AK17>0)),1,IF(AK$15*0.95-AK17<=0,"",AK$15*0.95-AK17)) -> 8 | AN17: =IFERROR(ROUND(AO17/AO$15,3),"") -> 0.85 | AO17: =SUMIFS(OFFSET(REL_D,,MATCH(B17,IND,0)-1),REL_D,$M$2,IF(LEFT($AO$11,1)="s",NwID,OrgID),$AO$11) -> 85 | AP17: =IF(AND(AO$15*0.95-AO17<1,(AO$15*0.95-AO17>0)),1,IF(AO$15*0.95-AO17<=0,"",AO$15*0.95-AO17)) -> 10 | AR17: =IFERROR(ROUND(AS17/AS$15,3),"") -> 1 | AS17: =SUMIFS(OFFSET(REL_D,,MATCH(B17,IND,0)-1),REL_D,$M$2,IF(LEFT($AS$11,1)="c",NwID,OrgID),$AS$11) -> 14 | AT17: =IF(AND(AS$15*0.95-AS17<1,(AS$15*0.95-AS17>0)),1,IF(AS$15*0.95-AS17<=0,"",AS$15*0.95-AS17)) -> 
B18: (01.02) Men B (1st and 2nd) | F18: Men B | I18: =IFERROR(ROUND(J18/J$15,3),"") -> 0.828 | J18: =M18+Q18+AC18+AG18+AK18+AO18+AS18 -> 504 | L18: =IFERROR(ROUND(M18/M$15,3),"") -> 0.765 | M18: =SUMIFS(OFFSET(REL_D,,MATCH(B18,IND,0)-1),REL_D,$M$2,IF(LEFT($M$11,1)="N",NwID,OrgID),$M$11) -> 104 | N18: =IF(AND(M$15*0.95-M18<1,(M$15*0.95-M18>0)),1,IF(M$15*0.95-M18<=0,"",M$15*0.95-M18)) -> 25.2 | P18: =IFERROR(ROUND(Q18/Q$15,3),"") -> 0.873 | Q18: =SUMIFS(OFFSET(REL_D,,MATCH(B18,IND,0)-1),REL_D,$M$2,IF(LEFT($Q$11,1)="N",NwID,OrgID),$Q$11) -> 69 | R18: =IF(AND(Q$15*0.95-Q18<1,(Q$15*0.95-Q18>0)),1,IF(Q$15*0.95-Q18<=0,"",Q$15*0.95-Q18)) -> 6.05 | T18: 0.252 | U18: =SUMIFS(OFFSET(REL_D,,MATCH(B18,IND,0)-1),REL_D,$M$2,IF(LEFT($U$11,1)="N",NwID,OrgID),$U$11) -> 73 | V18: =IF(AND(U$15*0.95-U18<1,(U$15*0.95-U18>0)),1,IF(U$15*0.95-U18<=0,"",U$15*0.95-U18)) -> 202.5 | X18: 0.572 | Y18: =SUMIFS(OFFSET(REL_D,,MATCH(B18,IND,0)-1),REL_D,$M$2,IF(LEFT($Y$11,1)="N",NwID,OrgID),$Y$11) -> 79 | Z18: =IF(AND(Y$15*0.95-Y18<1,(Y$15*0.95-Y18>0)),1,IF(Y$15*0.95-Y18<=0,"",Y$15*0.95-Y18)) -> 52.1 | AB18: 0.838 | AC18: =SUMIFS(OFFSET(REL_D,,MATCH(B18,IND,0)-1),REL_D,$M$2,IF(LEFT($AC$11,1)="S",NwID,OrgID),$AC$11) -> 83 | AD18: =IF(AND(AC$15*0.95-AC18<1,(AC$15*0.95-AC18>0)),1,IF(AC$15*0.95-AC18<=0,"",AC$15*0.95-AC18)) -> 11.05 | AF18: 0.778 | AG18: =SUMIFS(OFFSET(REL_D,,MATCH(B18,IND,0)-1),REL_D,$M$2,IF(LEFT($AG$11,1)="s",NwID,OrgID),$AG$11) -> 63 | AH18: =IF(AND(AG$15*0.95-AG18<1,(AG$15*0.95-AG18>0)),1,IF(AG$15*0.95-AG18<=0,"",AG$15*0.95-AG18)) -> 13.95 | AJ18: 0.85 | AK18: =SUMIFS(OFFSET(REL_D,,MATCH(B18,IND,0)-1),REL_D,$M$2,IF(LEFT($AK$11,1)="s",NwID,OrgID),$AK$11) -> 85 | AL18: =IF(AND(AK$15*0.95-AK18<1,(AK$15*0.95-AK18>0)),1,IF(AK$15*0.95-AK18<=0,"",AK$15*0.95-AK18)) -> 10 | AN18: 0.86 | AO18: =SUMIFS(OFFSET(REL_D,,MATCH(B18,IND,0)-1),REL_D,$M$2,IF(LEFT($AO$11,1)="s",NwID,OrgID),$AO$11) -> 86 | AP18: =IF(AND(AO$15*0.95-AO18<1,(AO$15*0.95-AO18>0)),1,IF(AO$15*0.95-AO18<=0,"",AO$15*0.95-AO18)) -> 9 | AR18: 1 | AS18: =SUMIFS(OFFSET(REL_D,,MATCH(B18,IND,0)-1),REL_D,$M$2,IF(LEFT($AS$11,1)="c",NwID,OrgID),$AS$11) -> 14 | AT18: =IF(AND(AS$15*0.95-AS18<1,(AS$15*0.95-AS18>0)),1,IF(AS$15*0.95-AS18<=0,"",AS$15*0.95-AS18)) -> 
B19: (01.03) PCV | F19: PCV | I19: 0.874 | J19: =M19+Q19+AC19+AG19+AK19+AO19+AS19 -> 532 | L19: 0.838 | M19: =SUMIFS(OFFSET(REL_D,,MATCH(B19,IND,0)-1),REL_D,$M$2,IF(LEFT($M$11,1)="N",NwID,OrgID),$M$11) -> 114 | N19: 15.2 | P19: 0.899 | Q19: =SUMIFS(OFFSET(REL_D,,MATCH(B19,IND,0)-1),REL_D,$M$2,IF(LEFT($Q$11,1)="N",NwID,OrgID),$Q$11) -> 71 | R19: 4.05 | T19: 0.379 | U19: =SUMIFS(OFFSET(REL_D,,MATCH(B19,IND,0)-1),REL_D,$M$2,IF(LEFT($U$11,1)="N",NwID,OrgID),$U$11) -> 110 | V19: 165.5 | X19: 0.659 | Y19: =SUMIFS(OFFSET(REL_D,,MATCH(B19,IND,0)-1),REL_D,$M$2,IF(LEFT($Y$11,1)="N",NwID,OrgID),$Y$11) -> 91 | Z19: 40.1 | AB19: 0.859 | AC19: =SUMIFS(OFFSET(REL_D,,MATCH(B19,IND,0)-1),REL_D,$M$2,IF(LEFT($AC$11,1)="S",NwID,OrgID),$AC$11) -> 85 | AD19: 9.05 | AF19: 0.84 | AG19: =SUMIFS(OFFSET(REL_D,,MATCH(B19,IND,0)-1),REL_D,$M$2,IF(LEFT($AG$11,1)="s",NwID,OrgID),$AG$11) -> 68 | AH19: 8.95 | AJ19: 0.92 | AK19: =SUMIFS(OFFSET(REL_D,,MATCH(B19,IND,0)-1),REL_D,$M$2,IF(LEFT($AK$11,1)="s",NwID,OrgID),$AK$11) -> 92 | AL19: 3 | AN19: 0.88 | AO19: =SUMIFS(OFFSET(REL_D,,MATCH(B19,IND,0)-1),REL_D,$M$2,IF(LEFT($AO$11,1)="s",NwID,OrgID),$AO$11) -> 88 | AP19: 7 | AR19: 1 | AS19: =SUMIFS(OFFSET(REL_D,,MATCH(B19,IND,0)-1),REL_D,$M$2,IF(LEFT($AS$11,1)="c",NwID,OrgID),$AS$11) -> 14
B20: (01.04) Rotavirus | F20: Rotavirus | I20: 0.828 | J20: =M20+Q20+AC20+AG20+AK20+AO20+AS20 -> 504 | L20: 0.772 | M20: =SUMIFS(OFFSET(REL_D,,MATCH(B20,IND,0)-1),REL_D,$M$2,IF(LEFT($M$11,1)="N",NwID,OrgID),$M$11) -> 105 | N20: 24.2 | P20: 0.873 | Q20: =SUMIFS(OFFSET(REL_D,,MATCH(B20,IND,0)-1),REL_D,$M$2,IF(LEFT($Q$11,1)="N",NwID,OrgID),$Q$11) -> 69 | R20: 6.05 | T20: 0.217 | U20: =SUMIFS(OFFSET(REL_D,,MATCH(B20,IND,0)-1),REL_D,$M$2,IF(LEFT($U$11,1)="N",NwID,OrgID),$U$11) -> 63 | V20: 212.5 | X20: 0.558 | Y20: =SUMIFS(OFFSET(REL_D,,MATCH(B20,IND,0)-1),REL_D,$M$2,IF(LEFT($Y$11,1)="N",NwID,OrgID),$Y$11) -> 77 | Z20: 54.1 | AB20: 0.788 | AC20: =SUMIFS(OFFSET(REL_D,,MATCH(B20,IND,0)-1),REL_D,$M$2,IF(LEFT($AC$11,1)="S",NwID,OrgID),$AC$11) -> 78 | AD20: 16.05 | AF20: 0.802 | AG20: =SUMIFS(OFFSET(REL_D,,MATCH(B20,IND,0)-1),REL_D,$M$2,IF(LEFT($AG$11,1)="s",NwID,OrgID),$AG$11) -> 65 | AH20: 11.95 | AJ20: 0.89 | AK20: =SUMIFS(OFFSET(REL_D,,MATCH(B20,IND,0)-1),REL_D,$M$2,IF(LEFT($AK$11,1)="s",NwID,OrgID),$AK$11) -> 89 | AL20: 6 | AN20: 0.85 | AO20: =SUMIFS(OFFSET(REL_D,,MATCH(B20,IND,0)-1),REL_D,$M$2,IF(LEFT($AO$11,1)="s",NwID,OrgID),$AO$11) -> 85 | AP20: 10 | AR20: 0.929 | AS20: =SUMIFS(OFFSET(REL_D,,MATCH(B20,IND,0)-1),REL_D,$M$2,IF(LEFT($AS$11,1)="c",NwID,OrgID),$AS$11) -> 13 | AT20: 1
B21: (01.05) BCG | F21: BCG | I21: 0.225 | J21: =M21+Q21+U21+Y21+AC21+AG21+AK21+AO21+AS21 -> 137 | L21: 0.213 | M21: =SUMIFS(OFFSET(REL_D,,MATCH(B21,IND,0)-1),REL_D,$M$2,IF(LEFT($M$11,1)="N",NwID,OrgID),$M$11) -> 29 | N21: 100.2 | P21: 0.19 | Q21: =SUMIFS(OFFSET(REL_D,,MATCH(B21,IND,0)-1),REL_D,$M$2,IF(LEFT($Q$11,1)="N",NwID,OrgID),$Q$11) -> 15 | R21: 60.05 | T21: 0.052 | U21: =SUMIFS(OFFSET(REL_D,,MATCH(B21,IND,0)-1),REL_D,$M$2,IF(LEFT($U$11,1)="N",NwID,OrgID),$U$11) -> 15 | V21: 260.5 | X21: 0.072 | Y21: =SUMIFS(OFFSET(REL_D,,MATCH(B21,IND,0)-1),REL_D,$M$2,IF(LEFT($Y$11,1)="N",NwID,OrgID),$Y$11) -> 10 | Z21: 121.1 | AB21: 0.182 | AC21: =SUMIFS(OFFSET(REL_D,,MATCH(B21,IND,0)-1),REL_D,$M$2,IF(LEFT($AC$11,1)="S",NwID,OrgID),$AC$11) -> 18 | AD21: 76.05 | AF21: 0.21 | AG21: =SUMIFS(OFFSET(REL_D,,MATCH(B21,IND,0)-1),REL_D,$M$2,IF(LEFT($AG$11,1)="s",NwID,OrgID),$AG$11) -> 17 | AH21: 59.95 | AJ21: 0.12 | AK21: =SUMIFS(OFFSET(REL_D,,MATCH(B21,IND,0)-1),REL_D,$M$2,IF(LEFT($AK$11,1)="s",NwID,OrgID),$AK$11) -> 12 | AL21: 83 | AN21: 0.19 | AO21: =SUMIFS(OFFSET(REL_D,,MATCH(B21,IND,0)-1),REL_D,$M$2,IF(LEFT($AO$11,1)="s",NwID,OrgID),$AO$11) -> 19 | AP21: 76 | AR21: 0.143 | AS21: =SUMIFS(OFFSET(REL_D,,MATCH(B21,IND,0)-1),REL_D,$M$2,IF(LEFT($AS$11,1)="c",NwID,OrgID),$AS$11) -> 2 | AT21: 11.3
B23: (02) 24 MONTH COHORT | D23: ="Patients becoming 24m within "&'Control Panel'!$B$1 -> Patients becoming 24m within Q4 | J23: =M23+Q23+AC23+AG23+AK23+AO23+AS23 -> 568 | M23: =SUMIFS(OFFSET(REL_D,,MATCH(B23,IND,0)-1),REL_D,$M$2,IF(LEFT($M$11,1)="N",NwID,OrgID),$M$11) -> 110 | Q23: =SUMIFS(OFFSET(REL_D,,MATCH(B23,IND,0)-1),REL_D,$M$2,IF(LEFT($Q$11,1)="N",NwID,OrgID),$Q$11) -> 67 | U23: =SUMIFS(OFFSET(REL_D,,MATCH(B23,IND,0)-1),REL_D,$M$2,IF(LEFT($U$11,1)="N",NwID,OrgID),$U$11) -> 241 | Y23: =SUMIFS(OFFSET(REL_D,,MATCH(B23,IND,0)-1),REL_D,$M$2,IF(LEFT($Y$11,1)="N",NwID,OrgID),$Y$11) -> 117 | AC23: =SUMIFS(OFFSET(REL_D,,MATCH(B23,IND,0)-1),REL_D,$M$2,IF(LEFT($AC$11,1)="S",NwID,OrgID),$AC$11) -> 89 | AG23: =SUMIFS(OFFSET(REL_D,,MATCH(B23,IND,0)-1),REL_D,$M$2,IF(LEFT($AG$11,1)="s",NwID,OrgID),$AG$11) -> 79 | AK23: =SUMIFS(OFFSET(REL_D,,MATCH(B23,IND,0)-1),REL_D,$M$2,IF(LEFT($AK$11,1)="s",NwID,OrgID),$AK$11) -> 120 | AO23: =SUMIFS(OFFSET(REL_D,,MATCH(B23,IND,0)-1),REL_D,$M$2,IF(LEFT($AO$11,1)="s",NwID,OrgID),$AO$11) -> 89 | AS23: =SUMIFS(OFFSET(REL_D,,MATCH(B23,IND,0)-1),REL_D,$M$2,IF(LEFT($AS$11,1)="c",NwID,OrgID),$AS$11) -> 14
I24: Coverage | J24: Activty | L24: Coverage | M24: Activty | N24: Required | P24: Coverage | Q24: Activty | R24: Required | T24: Coverage | U24: Activty | V24: Required | X24: Coverage | Y24: Activty | Z24: Required | AB24: Coverage | AC24: Activty | AD24: Required | AF24: Coverage | AG24: Activty | AH24: Required | AJ24: Coverage | AK24: Activty | AL24: Required | AN24: Coverage | AO24: Activty | AP24: Required | AR24: Coverage | AS24: Activty | AT24: Required
B25: (02.01) DTaP/IPV/Hib | F25: DTaP/IPV/Hib/HepB | I25: =IFERROR(ROUND(J25/J$23,3),"") -> 0.877 | J25: =M25+Q25+AC25+AG25+AK25+AO25+AS25 -> 498 | L25: =IFERROR(ROUND(M25/M$23,3),"") -> 0.755 | M25: =SUMIFS(OFFSET(REL_D,,MATCH(B25,IND,0)-1),REL_D,$M$2,IF(LEFT($M$11,1)="N",NwID,OrgID),$M$11) -> 83 | N25: =IF(AND(M$23*0.95-M25<1,(M$23*0.95-M25>0)),1,IF(M$23*0.95-M25<=0,"",M$23*0.95-M25)) -> 21.5 | P25: =IFERROR(ROUND(Q25/Q$23,3),"") -> 0.91 | Q25: =SUMIFS(OFFSET(REL_D,,MATCH(B25,IND,0)-1),REL_D,$M$2,IF(LEFT($Q$11,1)="N",NwID,OrgID),$Q$11) -> 61 | R25: =IF(AND(Q$23*0.95-Q25<1,(Q$23*0.95-Q25>0)),1,IF(Q$23*0.95-Q25<=0,"",Q$23*0.95-Q25)) -> 2.65 | T25: =IFERROR(ROUND(U25/U$23,3),"") -> 0.415 | U25: =SUMIFS(OFFSET(REL_D,,MATCH(B25,IND,0)-1),REL_D,$M$2,IF(LEFT($U$11,1)="N",NwID,OrgID),$U$11) -> 100 | V25: =IF(AND(U$23*0.95-U25<1,(U$23*0.95-U25>0)),1,IF(U$23*0.95-U25<=0,"",U$23*0.95-U25)) -> 128.95 | X25: =IFERROR(ROUND(Y25/Y$23,3),"") -> 0.53 | Y25: =SUMIFS(OFFSET(REL_D,,MATCH(B25,IND,0)-1),REL_D,$M$2,IF(LEFT($Y$11,1)="N",NwID,OrgID),$Y$11) -> 62 | Z25: =IF(AND(Y$23*0.95-Y25<1,(Y$23*0.95-Y25>0)),1,IF(Y$23*0.95-Y25<=0,"",Y$23*0.95-Y25)) -> 49.15 | AB25: =IFERROR(ROUND(AC25/AC$23,3),"") -> 0.854 | AC25: =SUMIFS(OFFSET(REL_D,,MATCH(B25,IND,0)-1),REL_D,$M$2,IF(LEFT($AC$11,1)="S",NwID,OrgID),$AC$11) -> 76 | AD25: =IF(AND(AC$23*0.95-AC25<1,(AC$23*0.95-AC25>0)),1,IF(AC$23*0.95-AC25<=0,"",AC$23*0.95-AC25)) -> 8.55 | AF25: =IFERROR(ROUND(AG25/AG$23,3),"") -> 0.873 | AG25: =SUMIFS(OFFSET(REL_D,,MATCH(B25,IND,0)-1),REL_D,$M$2,IF(LEFT($AG$11,1)="s",NwID,OrgID),$AG$11) -> 69 | AH25: =IF(AND(AG$23*0.95-AG25<1,(AG$23*0.95-AG25>0)),1,IF(AG$23*0.95-AG25<=0,"",AG$23*0.95-AG25)) -> 6.05 | AJ25: =IFERROR(ROUND(AK25/AK$23,3),"") -> 0.95 | AK25: =SUMIFS(OFFSET(REL_D,,MATCH(B25,IND,0)-1),REL_D,$M$2,IF(LEFT($AK$11,1)="s",NwID,OrgID),$AK$11) -> 114 | AL25: =IF(AND(AK$23*0.95-AK25<1,(AK$23*0.95-AK25>0)),1,IF(AK$23*0.95-AK25<=0,"",AK$23*0.95-AK25)) ->  | AN25: =IFERROR(ROUND(AO25/AO$23,3),"") -> 0.944 | AO25: =SUMIFS(OFFSET(REL_D,,MATCH(B25,IND,0)-1),REL_D,$M$2,IF(LEFT($AO$11,1)="s",NwID,OrgID),$AO$11) -> 84 | AP25: =IF(AND(AO$23*0.95-AO25<1,(AO$23*0.95-AO25>0)),1,IF(AO$23*0.95-AO25<=0,"",AO$23*0.95-AO25)) -> 1 | AR25: =IFERROR(ROUND(AS25/AS$23,3),"") -> 0.786 | AS25: =SUMIFS(OFFSET(REL_D,,MATCH(B25,IND,0)-1),REL_D,$M$2,IF(LEFT($AS$11,1)="c",NwID,OrgID),$AS$11) -> 11 | AT25: =IF(AND(AS$23*0.95-AS25<1,(AS$23*0.95-AS25>0)),1,IF(AS$23*0.95-AS25<=0,"",AS$23*0.95-AS25)) -> 2.3
B26: (02.02) MMR | F26: MMR | I26: =IFERROR(ROUND(J26/J$23,3),"") -> 0.835 | J26: =M26+Q26+AC26+AG26+AK26+AO26+AS26 -> 474 | L26: =IFERROR(ROUND(M26/M$23,3),"") -> 0.673 | M26: =SUMIFS(OFFSET(REL_D,,MATCH(B26,IND,0)-1),REL_D,$M$2,IF(LEFT($M$11,1)="N",NwID,OrgID),$M$11) -> 74 | N26: =IF(AND(M$23*0.95-M26<1,(M$23*0.95-M26>0)),1,IF(M$23*0.95-M26<=0,"",M$23*0.95-M26)) -> 30.5 | P26: =IFERROR(ROUND(Q26/Q$23,3),"") -> 0.91 | Q26: =SUMIFS(OFFSET(REL_D,,MATCH(B26,IND,0)-1),REL_D,$M$2,IF(LEFT($Q$11,1)="N",NwID,OrgID),$Q$11) -> 61 | R26: =IF(AND(Q$23*0.95-Q26<1,(Q$23*0.95-Q26>0)),1,IF(Q$23*0.95-Q26<=0,"",Q$23*0.95-Q26)) -> 2.65 | T26: =IFERROR(ROUND(U26/U$23,3),"") -> 0.419 | U26: =SUMIFS(OFFSET(REL_D,,MATCH(B26,IND,0)-1),REL_D,$M$2,IF(LEFT($U$11,1)="N",NwID,OrgID),$U$11) -> 101 | V26: =IF(AND(U$23*0.95-U26<1,(U$23*0.95-U26>0)),1,IF(U$23*0.95-U26<=0,"",U$23*0.95-U26)) -> 127.95 | X26: =IFERROR(ROUND(Y26/Y$23,3),"") -> 0.564 | Y26: =SUMIFS(OFFSET(REL_D,,MATCH(B26,IND,0)-1),REL_D,$M$2,IF(LEFT($Y$11,1)="N",NwID,OrgID),$Y$11) -> 66 | Z26: =IF(AND(Y$23*0.95-Y26<1,(Y$23*0.95-Y26>0)),1,IF(Y$23*0.95-Y26<=0,"",Y$23*0.95-Y26)) -> 45.15 | AB26: =IFERROR(ROUND(AC26/AC$23,3),"") -> 0.876 | AC26: =SUMIFS(OFFSET(REL_D,,MATCH(B26,IND,0)-1),REL_D,$M$2,IF(LEFT($AC$11,1)="S",NwID,OrgID),$AC$11) -> 78 | AD26: =IF(AND(AC$23*0.95-AC26<1,(AC$23*0.95-AC26>0)),1,IF(AC$23*0.95-AC26<=0,"",AC$23*0.95-AC26)) -> 6.55 | AF26: =IFERROR(ROUND(AG26/AG$23,3),"") -> 0.848 | AG26: =SUMIFS(OFFSET(REL_D,,MATCH(B26,IND,0)-1),REL_D,$M$2,IF(LEFT($AG$11,1)="s",NwID,OrgID),$AG$11) -> 67 | AH26: =IF(AND(AG$23*0.95-AG26<1,(AG$23*0.95-AG26>0)),1,IF(AG$23*0.95-AG26<=0,"",AG$23*0.95-AG26)) -> 8.05 | AJ26: =IFERROR(ROUND(AK26/AK$23,3),"") -> 0.875 | AK26: =SUMIFS(OFFSET(REL_D,,MATCH(B26,IND,0)-1),REL_D,$M$2,IF(LEFT($AK$11,1)="s",NwID,OrgID),$AK$11) -> 105 | AL26: =IF(AND(AK$23*0.95-AK26<1,(AK$23*0.95-AK26>0)),1,IF(AK$23*0.95-AK26<=0,"",AK$23*0.95-AK26)) -> 9 | AN26: =IFERROR(ROUND(AO26/AO$23,3),"") -> 0.876 | AO26: =SUMIFS(OFFSET(REL_D,,MATCH(B26,IND,0)-1),REL_D,$M$2,IF(LEFT($AO$11,1)="s",NwID,OrgID),$AO$11) -> 78 | AP26: =IF(AND(AO$23*0.95-AO26<1,(AO$23*0.95-AO26>0)),1,IF(AO$23*0.95-AO26<=0,"",AO$23*0.95-AO26)) -> 6.55 | AR26: =IFERROR(ROUND(AS26/AS$23,3),"") -> 0.786 | AS26: =SUMIFS(OFFSET(REL_D,,MATCH(B26,IND,0)-1),REL_D,$M$2,IF(LEFT($AS$11,1)="c",NwID,OrgID),$AS$11) -> 11 | AT26: =IF(AND(AS$23*0.95-AS26<1,(AS$23*0.95-AS26>0)),1,IF(AS$23*0.95-AS26<=0,"",AS$23*0.95-AS26)) -> 2.3
B27: (02.03) HiB/Men C | F27: HiB/Men C | I27: 0.833 | J27: =M27+Q27+AC27+AG27+AK27+AO27+AS27 -> 473 | L27: 0.645 | M27: =SUMIFS(OFFSET(REL_D,,MATCH(B27,IND,0)-1),REL_D,$M$2,IF(LEFT($M$11,1)="N",NwID,OrgID),$M$11) -> 71 | N27: 33.5 | P27: 0.94 | Q27: =SUMIFS(OFFSET(REL_D,,MATCH(B27,IND,0)-1),REL_D,$M$2,IF(LEFT($Q$11,1)="N",NwID,OrgID),$Q$11) -> 63 | R27: 1 | T27: 0.328 | U27: =SUMIFS(OFFSET(REL_D,,MATCH(B27,IND,0)-1),REL_D,$M$2,IF(LEFT($U$11,1)="N",NwID,OrgID),$U$11) -> 79 | V27: 149.95 | X27: 0.521 | Y27: =SUMIFS(OFFSET(REL_D,,MATCH(B27,IND,0)-1),REL_D,$M$2,IF(LEFT($Y$11,1)="N",NwID,OrgID),$Y$11) -> 61 | Z27: 50.15 | AB27: 0.876 | AC27: =SUMIFS(OFFSET(REL_D,,MATCH(B27,IND,0)-1),REL_D,$M$2,IF(LEFT($AC$11,1)="S",NwID,OrgID),$AC$11) -> 78 | AD27: 6.55 | AF27: 0.835 | AG27: =SUMIFS(OFFSET(REL_D,,MATCH(B27,IND,0)-1),REL_D,$M$2,IF(LEFT($AG$11,1)="s",NwID,OrgID),$AG$11) -> 66 | AH27: 9.05 | AJ27: 0.875 | AK27: =SUMIFS(OFFSET(REL_D,,MATCH(B27,IND,0)-1),REL_D,$M$2,IF(LEFT($AK$11,1)="s",NwID,OrgID),$AK$11) -> 105 | AL27: 9 | AN27: 0.888 | AO27: =SUMIFS(OFFSET(REL_D,,MATCH(B27,IND,0)-1),REL_D,$M$2,IF(LEFT($AO$11,1)="s",NwID,OrgID),$AO$11) -> 79 | AP27: 5.55 | AR27: 0.786 | AS27: =SUMIFS(OFFSET(REL_D,,MATCH(B27,IND,0)-1),REL_D,$M$2,IF(LEFT($AS$11,1)="c",NwID,OrgID),$AS$11) -> 11 | AT27: 2.3
B28: (02.04) PCV (Booster) | F28: PCV (Booster) | I28: 0.824 | J28: =M28+Q28+AC28+AG28+AK28+AO28+AS28 -> 468 | L28: 0.664 | M28: =SUMIFS(OFFSET(REL_D,,MATCH(B28,IND,0)-1),REL_D,$M$2,IF(LEFT($M$11,1)="N",NwID,OrgID),$M$11) -> 73 | N28: 31.5 | P28: 0.91 | Q28: =SUMIFS(OFFSET(REL_D,,MATCH(B28,IND,0)-1),REL_D,$M$2,IF(LEFT($Q$11,1)="N",NwID,OrgID),$Q$11) -> 61 | R28: 2.65 | T28: 0.419 | U28: =SUMIFS(OFFSET(REL_D,,MATCH(B28,IND,0)-1),REL_D,$M$2,IF(LEFT($U$11,1)="N",NwID,OrgID),$U$11) -> 101 | V28: 127.95 | X28: 0.521 | Y28: =SUMIFS(OFFSET(REL_D,,MATCH(B28,IND,0)-1),REL_D,$M$2,IF(LEFT($Y$11,1)="N",NwID,OrgID),$Y$11) -> 61 | Z28: 50.15 | AB28: 0.865 | AC28: =SUMIFS(OFFSET(REL_D,,MATCH(B28,IND,0)-1),REL_D,$M$2,IF(LEFT($AC$11,1)="S",NwID,OrgID),$AC$11) -> 77 | AD28: 7.55 | AF28: 0.823 | AG28: =SUMIFS(OFFSET(REL_D,,MATCH(B28,IND,0)-1),REL_D,$M$2,IF(LEFT($AG$11,1)="s",NwID,OrgID),$AG$11) -> 65 | AH28: 10.05 | AJ28: 0.867 | AK28: =SUMIFS(OFFSET(REL_D,,MATCH(B28,IND,0)-1),REL_D,$M$2,IF(LEFT($AK$11,1)="s",NwID,OrgID),$AK$11) -> 104 | AL28: 10 | AN28: 0.865 | AO28: =SUMIFS(OFFSET(REL_D,,MATCH(B28,IND,0)-1),REL_D,$M$2,IF(LEFT($AO$11,1)="s",NwID,OrgID),$AO$11) -> 77 | AP28: 7.55 | AR28: 0.786 | AS28: =SUMIFS(OFFSET(REL_D,,MATCH(B28,IND,0)-1),REL_D,$M$2,IF(LEFT($AS$11,1)="c",NwID,OrgID),$AS$11) -> 11 | AT28: 2.3
B29: (02.05) Men B (Booster) | F29: Men B (Booster) | I29: 0.827 | J29: =M29+Q29+AC29+AG29+AK29+AO29+AS29 -> 470 | L29: 0.655 | M29: =SUMIFS(OFFSET(REL_D,,MATCH(B29,IND,0)-1),REL_D,$M$2,IF(LEFT($M$11,1)="N",NwID,OrgID),$M$11) -> 72 | N29: =IF(AND(M$23*0.95-M29<1,(M$23*0.95-M29>0)),1,IF(M$23*0.95-M29<=0,"",M$23*0.95-M29)) -> 32.5 | P29: 0.925 | Q29: =SUMIFS(OFFSET(REL_D,,MATCH(B29,IND,0)-1),REL_D,$M$2,IF(LEFT($Q$11,1)="N",NwID,OrgID),$Q$11) -> 62 | R29: =IF(AND(Q$23*0.95-Q29<1,(Q$23*0.95-Q29>0)),1,IF(Q$23*0.95-Q29<=0,"",Q$23*0.95-Q29)) -> 1.65 | T29: 0.382 | U29: =SUMIFS(OFFSET(REL_D,,MATCH(B29,IND,0)-1),REL_D,$M$2,IF(LEFT($U$11,1)="N",NwID,OrgID),$U$11) -> 92 | V29: =IF(AND(U$23*0.95-U29<1,(U$23*0.95-U29>0)),1,IF(U$23*0.95-U29<=0,"",U$23*0.95-U29)) -> 136.95 | X29: 0.496 | Y29: =SUMIFS(OFFSET(REL_D,,MATCH(B29,IND,0)-1),REL_D,$M$2,IF(LEFT($Y$11,1)="N",NwID,OrgID),$Y$11) -> 58 | Z29: =IF(AND(Y$23*0.95-Y29<1,(Y$23*0.95-Y29>0)),1,IF(Y$23*0.95-Y29<=0,"",Y$23*0.95-Y29)) -> 53.15 | AB29: 0.865 | AC29: =SUMIFS(OFFSET(REL_D,,MATCH(B29,IND,0)-1),REL_D,$M$2,IF(LEFT($AC$11,1)="S",NwID,OrgID),$AC$11) -> 77 | AD29: =IF(AND(AC$23*0.95-AC29<1,(AC$23*0.95-AC29>0)),1,IF(AC$23*0.95-AC29<=0,"",AC$23*0.95-AC29)) -> 7.55 | AF29: 0.823 | AG29: =SUMIFS(OFFSET(REL_D,,MATCH(B29,IND,0)-1),REL_D,$M$2,IF(LEFT($AG$11,1)="s",NwID,OrgID),$AG$11) -> 65 | AH29: =IF(AND(AG$23*0.95-AG29<1,(AG$23*0.95-AG29>0)),1,IF(AG$23*0.95-AG29<=0,"",AG$23*0.95-AG29)) -> 10.05 | AJ29: 0.883 | AK29: =SUMIFS(OFFSET(REL_D,,MATCH(B29,IND,0)-1),REL_D,$M$2,IF(LEFT($AK$11,1)="s",NwID,OrgID),$AK$11) -> 106 | AL29: =IF(AND(AK$23*0.95-AK29<1,(AK$23*0.95-AK29>0)),1,IF(AK$23*0.95-AK29<=0,"",AK$23*0.95-AK29)) -> 8 | AN29: 0.865 | AO29: =SUMIFS(OFFSET(REL_D,,MATCH(B29,IND,0)-1),REL_D,$M$2,IF(LEFT($AO$11,1)="s",NwID,OrgID),$AO$11) -> 77 | AP29: =IF(AND(AO$23*0.95-AO29<1,(AO$23*0.95-AO29>0)),1,IF(AO$23*0.95-AO29<=0,"",AO$23*0.95-AO29)) -> 7.55 | AR29: 0.786 | AS29: =SUMIFS(OFFSET(REL_D,,MATCH(B29,IND,0)-1),REL_D,$M$2,IF(LEFT($AS$11,1)="c",NwID,OrgID),$AS$11) -> 11 | AT29: =IF(AND(AS$23*0.95-AS29<1,(AS$23*0.95-AS29>0)),1,IF(AS$23*0.95-AS29<=0,"",AS$23*0.95-AS29)) -> 2.3
B31: (03) 5 YEAR COHORT | D31: ="Patients becoming 5y within "&'Control Panel'!$B$1 -> Patients becoming 5y within Q4 | J31: =M31+Q31+AC31+AG31+AK31+AO31+AS31 -> 578 | M31: =SUMIFS(OFFSET(REL_D,,MATCH(B31,IND,0)-1),REL_D,$M$2,IF(LEFT($M$11,1)="N",NwID,OrgID),$M$11) -> 77 | Q31: =SUMIFS(OFFSET(REL_D,,MATCH(B31,IND,0)-1),REL_D,$M$2,IF(LEFT($Q$11,1)="N",NwID,OrgID),$Q$11) -> 84 | U31: =SUMIFS(OFFSET(REL_D,,MATCH(B31,IND,0)-1),REL_D,$M$2,IF(LEFT($U$11,1)="N",NwID,OrgID),$U$11) -> 249 | Y31: =SUMIFS(OFFSET(REL_D,,MATCH(B31,IND,0)-1),REL_D,$M$2,IF(LEFT($Y$11,1)="N",NwID,OrgID),$Y$11) -> 137 | AC31: =SUMIFS(OFFSET(REL_D,,MATCH(B31,IND,0)-1),REL_D,$M$2,IF(LEFT($AC$11,1)="S",NwID,OrgID),$AC$11) -> 117 | AG31: =SUMIFS(OFFSET(REL_D,,MATCH(B31,IND,0)-1),REL_D,$M$2,IF(LEFT($AG$11,1)="s",NwID,OrgID),$AG$11) -> 96 | AK31: =SUMIFS(OFFSET(REL_D,,MATCH(B31,IND,0)-1),REL_D,$M$2,IF(LEFT($AK$11,1)="s",NwID,OrgID),$AK$11) -> 92 | AO31: =SUMIFS(OFFSET(REL_D,,MATCH(B31,IND,0)-1),REL_D,$M$2,IF(LEFT($AO$11,1)="s",NwID,OrgID),$AO$11) -> 99 | AS31: =SUMIFS(OFFSET(REL_D,,MATCH(B31,IND,0)-1),REL_D,$M$2,IF(LEFT($AS$11,1)="c",NwID,OrgID),$AS$11) -> 13
I32: Coverage | J32: Activty | L32: Coverage | M32: Activty | N32: Required | P32: Coverage | Q32: Activty | R32: Required | T32: Coverage | U32: Activty | V32: Required | X32: Coverage | Y32: Activty | Z32: Required | AB32: Coverage | AC32: Activty | AD32: Required | AF32: Coverage | AG32: Activty | AH32: Required | AJ32: Coverage | AK32: Activty | AL32: Required | AN32: Coverage | AO32: Activty | AP32: Required | AR32: Coverage | AS32: Activty | AT32: Required
B33: (03.01) DTaP/IPV/Hib | F33: DTaP/IPV (Booster) | I33: =IFERROR(ROUND(J33/J$31,3),"") -> 0.936 | J33: =M33+Q33+AC33+AG33+AK33+AO33+AS33 -> 541 | L33: =IFERROR(ROUND(M33/M$31,3),"") -> 0.896 | M33: =SUMIFS(OFFSET(REL_D,,MATCH(B33,IND,0)-1),REL_D,$M$2,IF(LEFT($M$11,1)="N",NwID,OrgID),$M$11) -> 69 | N33: =IF(AND(M$31*0.95-M33<1,(M$31*0.95-M33>0)),1,IF(M$31*0.95-M33<=0,"",M$31*0.95-M33)) -> 4.15 | P33: =IFERROR(ROUND(Q33/Q$31,3),"") -> 0.952 | Q33: =SUMIFS(OFFSET(REL_D,,MATCH(B33,IND,0)-1),REL_D,$M$2,IF(LEFT($Q$11,1)="N",NwID,OrgID),$Q$11) -> 80 | R33: =IF(AND(Q$31*0.95-Q33<1,(Q$31*0.95-Q33>0)),1,IF(Q$31*0.95-Q33<=0,"",Q$31*0.95-Q33)) ->  | T33: =IFERROR(ROUND(U33/U$31,3),"") -> 0.598 | U33: =SUMIFS(OFFSET(REL_D,,MATCH(B33,IND,0)-1),REL_D,$M$2,IF(LEFT($U$11,1)="N",NwID,OrgID),$U$11) -> 149 | V33: =IF(AND(U$31*0.95-U33<1,(U$31*0.95-U33>0)),1,IF(U$31*0.95-U33<=0,"",U$31*0.95-U33)) -> 87.55 | X33: =IFERROR(ROUND(Y33/Y$31,3),"") -> 0.693 | Y33: =SUMIFS(OFFSET(REL_D,,MATCH(B33,IND,0)-1),REL_D,$M$2,IF(LEFT($Y$11,1)="N",NwID,OrgID),$Y$11) -> 95 | Z33: =IF(AND(Y$31*0.95-Y33<1,(Y$31*0.95-Y33>0)),1,IF(Y$31*0.95-Y33<=0,"",Y$31*0.95-Y33)) -> 35.15 | AB33: =IFERROR(ROUND(AC33/AC$31,3),"") -> 0.94 | AC33: =SUMIFS(OFFSET(REL_D,,MATCH(B33,IND,0)-1),REL_D,$M$2,IF(LEFT($AC$11,1)="S",NwID,OrgID),$AC$11) -> 110 | AD33: =IF(AND(AC$31*0.95-AC33<1,(AC$31*0.95-AC33>0)),1,IF(AC$31*0.95-AC33<=0,"",AC$31*0.95-AC33)) -> 1.15 | AF33: =IFERROR(ROUND(AG33/AG$31,3),"") -> 0.958 | AG33: =SUMIFS(OFFSET(REL_D,,MATCH(B33,IND,0)-1),REL_D,$M$2,IF(LEFT($AG$11,1)="s",NwID,OrgID),$AG$11) -> 92 | AH33: =IF(AND(AG$31*0.95-AG33<1,(AG$31*0.95-AG33>0)),1,IF(AG$31*0.95-AG33<=0,"",AG$31*0.95-AG33)) ->  | AJ33: =IFERROR(ROUND(AK33/AK$31,3),"") -> 0.946 | AK33: =SUMIFS(OFFSET(REL_D,,MATCH(B33,IND,0)-1),REL_D,$M$2,IF(LEFT($AK$11,1)="s",NwID,OrgID),$AK$11) -> 87 | AL33: =IF(AND(AK$31*0.95-AK33<1,(AK$31*0.95-AK33>0)),1,IF(AK$31*0.95-AK33<=0,"",AK$31*0.95-AK33)) -> 1 | AN33: =IFERROR(ROUND(AO33/AO$31,3),"") -> 0.939 | AO33: =SUMIFS(OFFSET(REL_D,,MATCH(B33,IND,0)-1),REL_D,$M$2,IF(LEFT($AO$11,1)="s",NwID,OrgID),$AO$11) -> 93 | AP33: =IF(AND(AO$31*0.95-AO33<1,(AO$31*0.95-AO33>0)),1,IF(AO$31*0.95-AO33<=0,"",AO$31*0.95-AO33)) -> 1.05 | AR33: =IFERROR(ROUND(AS33/AS$31,3),"") -> 0.769 | AS33: =SUMIFS(OFFSET(REL_D,,MATCH(B33,IND,0)-1),REL_D,$M$2,IF(LEFT($AS$11,1)="c",NwID,OrgID),$AS$11) -> 10 | AT33: =IF(AND(AS$31*0.95-AS33<1,(AS$31*0.95-AS33>0)),1,IF(AS$31*0.95-AS33<=0,"",AS$31*0.95-AS33)) -> 2.35
B34: (03.02) MMR (Primary) | F34: MMR (Primary) | I34: =IFERROR(ROUND(J34/J$31,3),"") -> 0.889 | J34: =M34+Q34+AC34+AG34+AK34+AO34+AS34 -> 514 | L34: =IFERROR(ROUND(M34/M$31,3),"") -> 0.844 | M34: =SUMIFS(OFFSET(REL_D,,MATCH(B34,IND,0)-1),REL_D,$M$2,IF(LEFT($M$11,1)="N",NwID,OrgID),$M$11) -> 65 | N34: =IF(AND(M$31*0.95-M34<1,(M$31*0.95-M34>0)),1,IF(M$31*0.95-M34<=0,"",M$31*0.95-M34)) -> 8.15 | P34: =IFERROR(ROUND(Q34/Q$31,3),"") -> 0.905 | Q34: =SUMIFS(OFFSET(REL_D,,MATCH(B34,IND,0)-1),REL_D,$M$2,IF(LEFT($Q$11,1)="N",NwID,OrgID),$Q$11) -> 76 | R34: =IF(AND(Q$31*0.95-Q34<1,(Q$31*0.95-Q34>0)),1,IF(Q$31*0.95-Q34<=0,"",Q$31*0.95-Q34)) -> 3.8 | T34: =IFERROR(ROUND(U34/U$31,3),"") -> 0.699 | U34: =SUMIFS(OFFSET(REL_D,,MATCH(B34,IND,0)-1),REL_D,$M$2,IF(LEFT($U$11,1)="N",NwID,OrgID),$U$11) -> 174 | V34: =IF(AND(U$31*0.95-U34<1,(U$31*0.95-U34>0)),1,IF(U$31*0.95-U34<=0,"",U$31*0.95-U34)) -> 62.55 | X34: =IFERROR(ROUND(Y34/Y$31,3),"") -> 0.737 | Y34: =SUMIFS(OFFSET(REL_D,,MATCH(B34,IND,0)-1),REL_D,$M$2,IF(LEFT($Y$11,1)="N",NwID,OrgID),$Y$11) -> 101 | Z34: =IF(AND(Y$31*0.95-Y34<1,(Y$31*0.95-Y34>0)),1,IF(Y$31*0.95-Y34<=0,"",Y$31*0.95-Y34)) -> 29.15 | AB34: =IFERROR(ROUND(AC34/AC$31,3),"") -> 0.906 | AC34: =SUMIFS(OFFSET(REL_D,,MATCH(B34,IND,0)-1),REL_D,$M$2,IF(LEFT($AC$11,1)="S",NwID,OrgID),$AC$11) -> 106 | AD34: =IF(AND(AC$31*0.95-AC34<1,(AC$31*0.95-AC34>0)),1,IF(AC$31*0.95-AC34<=0,"",AC$31*0.95-AC34)) -> 5.15 | AF34: =IFERROR(ROUND(AG34/AG$31,3),"") -> 0.865 | AG34: =SUMIFS(OFFSET(REL_D,,MATCH(B34,IND,0)-1),REL_D,$M$2,IF(LEFT($AG$11,1)="s",NwID,OrgID),$AG$11) -> 83 | AH34: =IF(AND(AG$31*0.95-AG34<1,(AG$31*0.95-AG34>0)),1,IF(AG$31*0.95-AG34<=0,"",AG$31*0.95-AG34)) -> 8.2 | AJ34: =IFERROR(ROUND(AK34/AK$31,3),"") -> 0.924 | AK34: =SUMIFS(OFFSET(REL_D,,MATCH(B34,IND,0)-1),REL_D,$M$2,IF(LEFT($AK$11,1)="s",NwID,OrgID),$AK$11) -> 85 | AL34: =IF(AND(AK$31*0.95-AK34<1,(AK$31*0.95-AK34>0)),1,IF(AK$31*0.95-AK34<=0,"",AK$31*0.95-AK34)) -> 2.4 | AN34: =IFERROR(ROUND(AO34/AO$31,3),"") -> 0.899 | AO34: =SUMIFS(OFFSET(REL_D,,MATCH(B34,IND,0)-1),REL_D,$M$2,IF(LEFT($AO$11,1)="s",NwID,OrgID),$AO$11) -> 89 | AP34: =IF(AND(AO$31*0.95-AO34<1,(AO$31*0.95-AO34>0)),1,IF(AO$31*0.95-AO34<=0,"",AO$31*0.95-AO34)) -> 5.05 | AR34: =IFERROR(ROUND(AS34/AS$31,3),"") -> 0.769 | AS34: =SUMIFS(OFFSET(REL_D,,MATCH(B34,IND,0)-1),REL_D,$M$2,IF(LEFT($AS$11,1)="c",NwID,OrgID),$AS$11) -> 10 | AT34: =IF(AND(AS$31*0.95-AS34<1,(AS$31*0.95-AS34>0)),1,IF(AS$31*0.95-AS34<=0,"",AS$31*0.95-AS34)) -> 2.35
B35: (03.03) DTaP/IPV (Booster) | F35: DTaP/IPV/Hib | I35: 0.766 | J35: =M35+Q35+AC35+AG35+AK35+AO35+AS35 -> 443 | L35: 0.675 | M35: =SUMIFS(OFFSET(REL_D,,MATCH(B35,IND,0)-1),REL_D,$M$2,IF(LEFT($M$11,1)="N",NwID,OrgID),$M$11) -> 52 | N35: 21.15 | P35: =IFERROR(ROUND(Q35/Q$31,3),"") -> 0.833 | Q35: =SUMIFS(OFFSET(REL_D,,MATCH(B35,IND,0)-1),REL_D,$M$2,IF(LEFT($Q$11,1)="N",NwID,OrgID),$Q$11) -> 70 | R35: 9.8 | T35: 0.289 | U35: =SUMIFS(OFFSET(REL_D,,MATCH(B35,IND,0)-1),REL_D,$M$2,IF(LEFT($U$11,1)="N",NwID,OrgID),$U$11) -> 72 | V35: 164.55 | X35: 0.46 | Y35: =SUMIFS(OFFSET(REL_D,,MATCH(B35,IND,0)-1),REL_D,$M$2,IF(LEFT($Y$11,1)="N",NwID,OrgID),$Y$11) -> 63 | Z35: 67.15 | AB35: 0.803 | AC35: =SUMIFS(OFFSET(REL_D,,MATCH(B35,IND,0)-1),REL_D,$M$2,IF(LEFT($AC$11,1)="S",NwID,OrgID),$AC$11) -> 94 | AD35: 17.15 | AF35: 0.729 | AG35: =SUMIFS(OFFSET(REL_D,,MATCH(B35,IND,0)-1),REL_D,$M$2,IF(LEFT($AG$11,1)="s",NwID,OrgID),$AG$11) -> 70 | AH35: 21.2 | AJ35: 0.826 | AK35: =SUMIFS(OFFSET(REL_D,,MATCH(B35,IND,0)-1),REL_D,$M$2,IF(LEFT($AK$11,1)="s",NwID,OrgID),$AK$11) -> 76 | AL35: 11.4 | AN35: 0.727 | AO35: =SUMIFS(OFFSET(REL_D,,MATCH(B35,IND,0)-1),REL_D,$M$2,IF(LEFT($AO$11,1)="s",NwID,OrgID),$AO$11) -> 72 | AP35: 22.05 | AR35: 0.692 | AS35: =SUMIFS(OFFSET(REL_D,,MATCH(B35,IND,0)-1),REL_D,$M$2,IF(LEFT($AS$11,1)="c",NwID,OrgID),$AS$11) -> 9 | AT35: 3.35
B36: (03.05) MMR (Booster) | F36: MMR (Booster) | I36: 0.777 | J36: =M36+Q36+AC36+AG36+AK36+AO36+AS36 -> 449 | L36: 0.662 | M36: =SUMIFS(OFFSET(REL_D,,MATCH(B36,IND,0)-1),REL_D,$M$2,IF(LEFT($M$11,1)="N",NwID,OrgID),$M$11) -> 51 | N36: 22.15 | P36: =IFERROR(ROUND(Q36/Q$31,3),"") -> 0.845 | Q36: =SUMIFS(OFFSET(REL_D,,MATCH(B36,IND,0)-1),REL_D,$M$2,IF(LEFT($Q$11,1)="N",NwID,OrgID),$Q$11) -> 71 | R36: 8.8 | T36: 0.313 | U36: =SUMIFS(OFFSET(REL_D,,MATCH(B36,IND,0)-1),REL_D,$M$2,IF(LEFT($U$11,1)="N",NwID,OrgID),$U$11) -> 78 | V36: 158.55 | X36: 0.496 | Y36: =SUMIFS(OFFSET(REL_D,,MATCH(B36,IND,0)-1),REL_D,$M$2,IF(LEFT($Y$11,1)="N",NwID,OrgID),$Y$11) -> 68 | Z36: 62.15 | AB36: 0.795 | AC36: =SUMIFS(OFFSET(REL_D,,MATCH(B36,IND,0)-1),REL_D,$M$2,IF(LEFT($AC$11,1)="S",NwID,OrgID),$AC$11) -> 93 | AD36: 18.15 | AF36: 0.771 | AG36: =SUMIFS(OFFSET(REL_D,,MATCH(B36,IND,0)-1),REL_D,$M$2,IF(LEFT($AG$11,1)="s",NwID,OrgID),$AG$11) -> 74 | AH36: 17.2 | AJ36: 0.848 | AK36: =SUMIFS(OFFSET(REL_D,,MATCH(B36,IND,0)-1),REL_D,$M$2,IF(LEFT($AK$11,1)="s",NwID,OrgID),$AK$11) -> 78 | AL36: 9.4 | AN36: 0.737 | AO36: =SUMIFS(OFFSET(REL_D,,MATCH(B36,IND,0)-1),REL_D,$M$2,IF(LEFT($AO$11,1)="s",NwID,OrgID),$AO$11) -> 73 | AP36: 21.05 | AR36: 0.692 | AS36: =SUMIFS(OFFSET(REL_D,,MATCH(B36,IND,0)-1),REL_D,$M$2,IF(LEFT($AS$11,1)="c",NwID,OrgID),$AS$11) -> 9 | AT36: 3.35
B37: (03.04) HiB/Men C | F37: HiB/Men C | I37: 0.884 | J37: =M37+Q37+AC37+AG37+AK37+AO37+AS37 -> 511 | L37: 0.857 | M37: =SUMIFS(OFFSET(REL_D,,MATCH(B37,IND,0)-1),REL_D,$M$2,IF(LEFT($M$11,1)="N",NwID,OrgID),$M$11) -> 66 | N37: 7.15 | P37: =IFERROR(ROUND(Q37/Q$31,3),"") -> 0.869 | Q37: =SUMIFS(OFFSET(REL_D,,MATCH(B37,IND,0)-1),REL_D,$M$2,IF(LEFT($Q$11,1)="N",NwID,OrgID),$Q$11) -> 73 | R37: 6.8 | T37: 0.578 | U37: =SUMIFS(OFFSET(REL_D,,MATCH(B37,IND,0)-1),REL_D,$M$2,IF(LEFT($U$11,1)="N",NwID,OrgID),$U$11) -> 144 | V37: 92.55 | X37: 0.664 | Y37: =SUMIFS(OFFSET(REL_D,,MATCH(B37,IND,0)-1),REL_D,$M$2,IF(LEFT($Y$11,1)="N",NwID,OrgID),$Y$11) -> 91 | Z37: 39.15 | AB37: 0.889 | AC37: =SUMIFS(OFFSET(REL_D,,MATCH(B37,IND,0)-1),REL_D,$M$2,IF(LEFT($AC$11,1)="S",NwID,OrgID),$AC$11) -> 104 | AD37: 7.15 | AF37: 0.885 | AG37: =SUMIFS(OFFSET(REL_D,,MATCH(B37,IND,0)-1),REL_D,$M$2,IF(LEFT($AG$11,1)="s",NwID,OrgID),$AG$11) -> 85 | AH37: 6.2 | AJ37: 0.924 | AK37: =SUMIFS(OFFSET(REL_D,,MATCH(B37,IND,0)-1),REL_D,$M$2,IF(LEFT($AK$11,1)="s",NwID,OrgID),$AK$11) -> 85 | AL37: 2.4 | AN37: 0.889 | AO37: =SUMIFS(OFFSET(REL_D,,MATCH(B37,IND,0)-1),REL_D,$M$2,IF(LEFT($AO$11,1)="s",NwID,OrgID),$AO$11) -> 88 | AP37: 6.05 | AR37: 0.769 | AS37: =SUMIFS(OFFSET(REL_D,,MATCH(B37,IND,0)-1),REL_D,$M$2,IF(LEFT($AS$11,1)="c",NwID,OrgID),$AS$11) -> 10 | AT37: 2.35

Sheet Patients becoming 12m
D2: City and Hackney Childhood Immunisations Dashboard: Metric Details
D3: Patients becoming 12m | F3: =E15 -> 609
C4: 2019-07-01
C5: 2019-10-01
C6: March 2022 | D6: All Patients | E6: (01) 12 MONTH COHORT | F6: (01.01) DTaP/IPV/Hib | G6: DTaP/IPV/Hib(%) | H6: Patients required to achieve CCG Target (95%) | I6: (01.02) Men B (1st and 2nd) | J6: Men B(%) | K6: Patients required to achieve CCG Target (95%) | L6: (01.03) PCV | M6: PCV(%) | N6: Patients required to achieve CCG Target (95%) | O6: (01.04) Rotavirus | P6: Rotavirus(%)
B7: Home | C7: =VLOOKUP(C6,'Control Panel'!I2:J13,2,FALSE) -> 2022-03-01 | D7: Listsize | E7: Patients becoming 12m within Q1 | F7: DTaP/IPV/Hib/HepB | G7: DTaP/IPV/Hib/HepB(%) | H7: Patients required to achieve CCG Target (95%) | I7: Men C / Men B | J7: Men C / Men B(%) | K7: Patients required to achieve CCG Target (95%) | L7: PCV | M7: PCV(%) | N7: Patients required to achieve CCG Target (95%) | O7: Rotavirus | P7: Rotavirus(%)
A8: Cluster
A9: ='Control Panel'!B3 -> NW1 | B9: ='Control Panel'!C3 -> Woodberry Wetlands (NW1) | D9: =SUM(IF($A9=$A$22:$A$61,D$22:D$61)) -> 34217 | E9: =SUM(IF($A9=$A$22:$A$61,E$22:E$61)) -> 136 | F9: =SUM(IF($A9=$A$22:$A$61,F$22:F$61)) -> 105 | G9: =IF(OR(ISTEXT($E9),$E9=0),"N/A",F9/$E9) -> 0.7720588235 | I9: =SUM(IF($A9=$A$22:$A$61,I$22:I$61)) -> 104 | J9: =IF(OR(ISTEXT($E9),$E9=0),"N/A",I9/$E9) -> 0.7647058824 | L9: =SUM(IF($A9=$A$22:$A$61,L$22:L$61)) -> 114 | M9: =IF(OR(ISTEXT($E9),$E9=0),"N/A",L9/$E9) -> 0.8382352941 | O9: =SUM(IF($A9=$A$22:$A$61,O$22:O$61)) -> 105 | P9: =IF(OR(ISTEXT($E9),$E9=0),"N/A",O9/$E9) -> 0.7720588235
A10: ='Control Panel'!B4 -> NW2 | B10: ='Control Panel'!C4 -> Clissold Park (NW2) | D10: =SUM(IF($A10=$A$22:$A$61,D$22:D$61)) -> 35379 | E10: =SUM(IF($A10=$A$22:$A$61,E$22:E$61)) -> 79 | F10: =SUM(IF($A10=$A$22:$A$61,F$22:F$61)) -> 70 | G10: =IF(OR(ISTEXT($E10),$E10=0),"N/A",F10/$E10) -> 0.8860759494 | I10: =SUM(IF($A10=$A$22:$A$61,I$22:I$61)) -> 69 | J10: =IF(OR(ISTEXT($E10),$E10=0),"N/A",I10/$E10) -> 0.8734177215 | L10: =SUM(IF($A10=$A$22:$A$61,L$22:L$61)) -> 71 | M10: =IF(OR(ISTEXT($E10),$E10=0),"N/A",L10/$E10) -> 0.8987341772 | O10: =SUM(IF($A10=$A$22:$A$61,O$22:O$61)) -> 69 | P10: =IF(OR(ISTEXT($E10),$E10=0),"N/A",O10/$E10) -> 0.8734177215
A11: ='Control Panel'!B7 -> SE1 | B11: ='Control Panel'!C7 -> Hackney Marshes (SE1) | D11: =SUM(IF($A11=$A$22:$A$61,D$22:D$61)) -> 42589 | E11: =SUM(IF($A11=$A$22:$A$61,E$22:E$61)) -> 99 | F11: =SUM(IF($A11=$A$22:$A$61,F$22:F$61)) -> 84 | G11: =IF(OR(ISTEXT($E11),$E11=0),"N/A",F11/$E11) -> 0.8484848485 | I11: =SUM(IF($A11=$A$22:$A$61,I$22:I$61)) -> 83 | J11: =IF(OR(ISTEXT($E11),$E11=0),"N/A",I11/$E11) -> 0.8383838384 | L11: =SUM(IF($A11=$A$22:$A$61,L$22:L$61)) -> 85 | M11: =IF(OR(ISTEXT($E11),$E11=0),"N/A",L11/$E11) -> 0.8585858586 | O11: =SUM(IF($A11=$A$22:$A$61,O$22:O$61)) -> 78 | P11: =IF(OR(ISTEXT($E11),$E11=0),"N/A",O11/$E11) -> 0.7878787879
A12: ='Control Panel'!B8 -> SE2 | B12: ='Control Panel'!C8 -> Well Street Common (SE2) | D12: =SUM(IF($A12=$A$22:$A$61,D$22:D$61)) -> 38319 | E12: =SUM(IF($A12=$A$22:$A$61,E$22:E$61)) -> 81 | F12: =SUM(IF($A12=$A$22:$A$61,F$22:F$61)) -> 62 | G12: 0.7654320988 | I12: =SUM(IF($A12=$A$22:$A$61,I$22:I$61)) -> 63 | J12: 0.7777777778 | L12: =SUM(IF($A12=$A$22:$A$61,L$22:L$61)) -> 68 | M12: 0.8395061728 | O12: =SUM(IF($A12=$A$22:$A$61,O$22:O$61)) -> 65 | P12: 0.8024691358
A13: ='Control Panel'!B9 -> SW1 | B13: ='Control Panel'!C9 -> London Fields (SW1) | D13: =SUM(IF($A13=$A$22:$A$61,D$22:D$61)) -> 51272 | E13: =SUM(IF($A13=$A$22:$A$61,E$22:E$61)) -> 100 | F13: =SUM(IF($A13=$A$22:$A$61,F$22:F$61)) -> 87 | G13: 0.87 | I13: =SUM(IF($A13=$A$22:$A$61,I$22:I$61)) -> 85 | J13: 0.85 | L13: =SUM(IF($A13=$A$22:$A$61,L$22:L$61)) -> 92 | M13: 0.92 | O13: =SUM(IF($A13=$A$22:$A$61,O$22:O$61)) -> 89 | P13: 0.89
A14: ='Control Panel'!B10 -> SW2 | B14: ='Control Panel'!C10 -> Shoreditch Park & City (SW2) | D14: =SUM(IF($A14=$A$22:$A$61,D$22:D$61)) -> 57131 | E14: =SUM(IF($A14=$A$22:$A$61,E$22:E$61)) -> 114 | F14: =SUM(IF($A14=$A$22:$A$61,F$22:F$61)) -> 99 | G14: 0.8684210526 | I14: =SUM(IF($A14=$A$22:$A$61,I$22:I$61)) -> 100 | J14: 0.8771929825 | L14: =SUM(IF($A14=$A$22:$A$61,L$22:L$61)) -> 102 | M14: 0.8947368421 | O14: =SUM(IF($A14=$A$22:$A$61,O$22:O$61)) -> 98 | P14: 0.8596491228
A15: Total (Not including North East) | D15: =SUM(D9:D14) -> 258907 | E15: =SUM(E9:E14) -> 609 | F15: =SUM(F9:F14) -> 507 | G15: =IF(OR(ISTEXT($E15),$E15=0),"N/A",F15/$E15) -> 0.8325123153 | I15: =SUM(I9:I14) -> 504 | J15: =IF(OR(ISTEXT($E15),$E15=0),"N/A",I15/$E15) -> 0.8275862069 | L15: =SUM(L9:L14) -> 532 | M15: =IF(OR(ISTEXT($E15),$E15=0),"N/A",L15/$E15) -> 0.8735632184 | O15: =SUM(O9:O14) -> 504 | P15: =IF(OR(ISTEXT($E15),$E15=0),"N/A",O15/$E15) -> 0.8275862069
A16: ='Control Panel'!B5 -> NE1 | B16: ='Control Panel'!C5 -> Springfield Park (NE1) | D16: =SUM(IF($A16=$A$22:$A$61,D$22:D$61)) -> 39842 | E16: =SUM(IF($A16=$A$22:$A$61,E$22:E$61)) -> 290 | F16: =SUM(IF($A16=$A$22:$A$61,F$22:F$61)) -> 72 | G16: =IF(OR(ISTEXT($E16),$E16=0),"N/A",F16/$E16) -> 0.2482758621 | I16: =SUM(IF($A16=$A$22:$A$61,I$22:I$61)) -> 73 | J16: =IF(OR(ISTEXT($E16),$E16=0),"N/A",I16/$E16) -> 0.2517241379 | L16: =SUM(IF($A16=$A$22:$A$61,L$22:L$61)) -> 110 | M16: =IF(OR(ISTEXT($E16),$E16=0),"N/A",L16/$E16) -> 0.3793103448 | O16: =SUM(IF($A16=$A$22:$A$61,O$22:O$61)) -> 63 | P16: =IF(OR(ISTEXT($E16),$E16=0),"N/A",O16/$E16) -> 0.2172413793
A17: ='Control Panel'!B6 -> NE2 | B17: ='Control Panel'!C6 -> Hackney Downs (NE2) | D17: =SUM(IF($A17=$A$22:$A$61,D$22:D$61)) -> 39040 | E17: =SUM(IF($A17=$A$22:$A$61,E$22:E$61)) -> 138 | F17: =SUM(IF($A17=$A$22:$A$61,F$22:F$61)) -> 78 | G17: =IF(OR(ISTEXT($E17),$E17=0),"N/A",F17/$E17) -> 0.5652173913 | I17: =SUM(IF($A17=$A$22:$A$61,I$22:I$61)) -> 79 | J17: =IF(OR(ISTEXT($E17),$E17=0),"N/A",I17/$E17) -> 0.5724637681 | L17: =SUM(IF($A17=$A$22:$A$61,L$22:L$61)) -> 91 | M17: =IF(OR(ISTEXT($E17),$E17=0),"N/A",L17/$E17) -> 0.6594202899 | O17: =SUM(IF($A17=$A$22:$A$61,O$22:O$61)) -> 77 | P17: =IF(OR(ISTEXT($E17),$E17=0),"N/A",O17/$E17) -> 0.5579710145
A18: Total | D18: =SUM(D9:D14,D16:D17) -> 337789 | E18: =SUM(E9:E14,E16:E17) -> 1037 | F18: =SUM(F9:F14,F16:F17) -> 657 | G18: =IF(OR(ISTEXT($E18),$E18=0),"N/A",F18/$E18) -> 0.6335583414 | I18: =SUM(I9:I14,I16:I17) -> 656 | J18: =IF(OR(ISTEXT($E18),$E18=0),"N/A",I18/$E18) -> 0.6325940212 | L18: =SUM(L9:L14,L16:L17) -> 733 | M18: =IF(OR(ISTEXT($E18),$E18=0),"N/A",L18/$E18) -> 0.7068466731 | O18: =SUM(O9:O14,O16:O17) -> 644 | P18: =IF(OR(ISTEXT($E18),$E18=0),"N/A",O18/$E18) -> 0.6210221794
A19: Minimum and Maximum % | F19: Min | G19: Max | I19: Min | J19: Max | L19: Min | M19: Max | O19: Min | P19: Max
F20: =SMALL(G22:G59,COUNTIF(G22:G59,0)+1) -> 0.1648351648 | G20: =MAX(G22:G59) -> 0.9642857143 | I20: =SMALL(J22:J59,COUNTIF(J22:J59,0)+1) -> 0.1758241758 | J20: =MAX(J22:J59) -> 0.9444444444 | L20: =SMALL(M22:M59,COUNTIF(M22:M59,0)+1) -> 0.2992125984 | M20: =MAX(M22:M59) -> 1 | O20: =SMALL(P22:P59,COUNTIF(P22:P59,0)+1) -> 0.1023622047 | P20: =MAX(P22:P59) -> 1
A21: Practices
A22: ='Control Panel'!A14 -> NW1 | B22: ='Control Panel'!B14 -> Allerton Road Surgery | C22: ='Control Panel'!C14 -> F84716 | D22: =SUMIFS(OFFSET(REL_D,,MATCH(D$6,IND,0)-1),REL_D,$C$7,OrgID,$C22) -> 5829 | E22: 34 | F22: 19 | G22: =IF(OR(ISTEXT($E22),$E22=0),"N/A",F22/$E22) -> 0.5588235294 | H22: =IFERROR(ROUNDUP(IF($E22*0.95-F22>=0,$E22*0.95-F22,""),0),"") -> 14 | I22: =SUMIFS(OFFSET(REL_D,,MATCH(I$6,IND,0)-1),REL_D,$C$7,OrgID,$C22) -> 19 | J22: =IF(OR(ISTEXT($E22),$E22=0),"N/A",I22/$E22) -> 0.5588235294 | K22: =IFERROR(ROUNDUP(IF($E22*0.95-I22>=0,$E22*0.95-I22,""),0),"") -> 14 | L22: =SUMIFS(OFFSET(REL_D,,MATCH(L$6,IND,0)-1),REL_D,$C$7,OrgID,$C22) -> 24 | M22: =IF(OR(ISTEXT($E22),$E22=0),"N/A",L22/$E22) -> 0.7058823529 | N22: =IFERROR(ROUNDUP(IF($E22*0.95-L22>=0,$E22*0.95-L22,""),0),"") -> 9 | O22: =SUMIFS(OFFSET(REL_D,,MATCH(O$6,IND,0)-1),REL_D,$C$7,OrgID,$C22) -> 20 | P22: =IF(OR(ISTEXT($E22),$E22=0),"N/A",O22/$E22) -> 0.5882352941
A23: ='Control Panel'!A15 -> NW1 | B23: ='Control Panel'!B15 -> Cedar Practice | C23: ='Control Panel'!C15 -> F84036 | D23: 7779 | E23: 15 | F23: 14 | G23: =IF(OR(ISTEXT($E23),$E23=0),"N/A",F23/$E23) -> 0.9333333333 | H23: 1 | I23: 14 | J23: =IF(OR(ISTEXT($E23),$E23=0),"N/A",I23/$E23) -> 0.9333333333 | K23: 1 | L23: 13 | M23: =IF(OR(ISTEXT($E23),$E23=0),"N/A",L23/$E23) -> 0.8666666667 | N23: 2 | O23: 14 | P23: =IF(OR(ISTEXT($E23),$E23=0),"N/A",O23/$E23) -> 0.9333333333
A24: ='Control Panel'!A16 -> NW1 | B24: ='Control Panel'!B16 -> Heron Practice | C24: ='Control Panel'!C16 -> F84119 | D24: 12175 | E24: 62 | F24: 51 | G24: 0.8225806452 | H24: 8 | I24: 51 | J24: 0.8225806452 | K24: 8 | L24: 54 | M24: 0.8709677419 | N24: 5 | O24: 50 | P24: 0.8064516129
A25: ='Control Panel'!A17 -> NW1 | B25: ='Control Panel'!B17 -> Statham Grove Surgery | C25: ='Control Panel'!C17 -> F84115 | D25: 8434 | E25: 25 | F25: 21 | G25: 0.84 | H25: 3 | I25: 20 | J25: 0.8 | K25: 4 | L25: 23 | M25: 0.92 | N25: 1 | O25: 21 | P25: 0.84
A26: ='Control Panel'!A18 -> NW2 | B26: ='Control Panel'!B18 -> Barretts Grove Surgery | C26: ='Control Panel'!C18 -> F84636 | D26: 6610 | E26: 20 | F26: 18 | G26: 0.9 | H26: 1 | I26: 18 | J26: 0.9 | K26: 1 | L26: 18 | M26: 0.9 | N26: 1 | O26: 18 | P26: 0.9
A27: ='Control Panel'!A19 -> NW2 | B27: ='Control Panel'!B19 -> Barton House Health Centre | C27: ='Control Panel'!C19 -> F84008 | D27: 12199 | E27: 28 | F27: 27 | G27: 0.9642857143 | I27: 26 | J27: 0.9285714286 | K27: 1 | L27: 27 | M27: 0.9642857143 | O27: 27 | P27: 0.9642857143
A28: ='Control Panel'!A20 -> NW2 | B28: ='Control Panel'!B20 -> Brooke Road Surgery | C28: ='Control Panel'!C20 -> F84694 | D28: 4620 | E28: 5 | F28: 4 | G28: =IF(OR(ISTEXT($E28),$E28=0),"N/A",F28/$E28) -> 0.8 | H28: 1 | I28: 4 | J28: =IF(OR(ISTEXT($E28),$E28=0),"N/A",I28/$E28) -> 0.8 | K28: 1 | L28: 5 | M28: =IF(OR(ISTEXT($E28),$E28=0),"N/A",L28/$E28) -> 1 | O28: 4 | P28: =IF(OR(ISTEXT($E28),$E28=0),"N/A",O28/$E28) -> 0.8
A29: ='Control Panel'!A21 -> NW2 | B29: ='Control Panel'!B21 -> Somerford Grove Health Centre | C29: ='Control Panel'!C21 -> F84033 | D29: 11950 | E29: 26 | F29: 21 | G29: 0.8076923077 | H29: 4 | I29: 21 | J29: 0.8076923077 | K29: 4 | L29: 21 | M29: 0.8076923077 | N29: 4 | O29: 20 | P29: 0.7692307692
A30: ='Control Panel'!A22 -> NE1 | B30: ='Control Panel'!B22 -> Cranwich Road Surgery | C30: ='Control Panel'!C22 -> F84686 | D30: 8438 | E30: 91 | F30: 15 | G30: 0.1648351648 | H30: 72 | I30: 16 | J30: 0.1758241758 | K30: 71 | L30: 31 | M30: 0.3406593407 | N30: 56 | O30: 19 | P30: 0.2087912088
A31: ='Control Panel'!A23 -> NE1 | B31: ='Control Panel'!B23 -> Spring Hill Practice | C31: ='Control Panel'!C23 -> Y03049 | D31: 14787 | E31: 72 | F31: 31 | G31: 0.4305555556 | H31: 38 | I31: 32 | J31: 0.4444444444 | K31: 37 | L31: 41 | M31: 0.5694444444 | N31: 28 | O31: 31 | P31: 0.4305555556
A32: ='Control Panel'!A24 -> NE1 | B32: ='Control Panel'!B24 -> Stamford Hill Group Practice | C32: ='Control Panel'!C24 -> F84013 | D32: 16617 | E32: 127 | F32: 26 | G32: 0.2047244094 | H32: 95 | I32: 25 | J32: 0.1968503937 | K32: 96 | L32: 38 | M32: 0.2992125984 | N32: 83 | O32: 13 | P32: 0.1023622047
A33: ='Control Panel'!A25 -> NE2 | B33: ='Control Panel'!B25 -> Clapton Surgery | C33: ='Control Panel'!C25 -> F84668 | D33: 6384 | E33: 37 | F33: 10 | G33: 0.2702702703 | H33: 26 | I33: 11 | J33: 0.2972972973 | K33: 25 | L33: 15 | M33: 0.4054054054 | N33: 21 | O33: 8 | P33: 0.2162162162
A34: ='Control Panel'!A26 -> NE2 | B34: ='Control Panel'!B26 -> Elm Practice | C34: ='Control Panel'!C26 -> F84685 | D34: 3054 | E34: 8 | F34: 5 | G34: 0.625 | H34: 3 | I34: 5 | J34: 0.625 | K34: 3 | L34: 5 | M34: 0.625 | N34: 3 | O34: 5 | P34: 0.625
A35: ='Control Panel'!A27 -> NE2 | B35: ='Control Panel'!B27 -> Gadvhi Practice | C35: ='Control Panel'!C27 -> F84080 | D35: 5173 | E35: 17 | F35: 7 | G35: 0.4117647059 | H35: 10 | I35: 7 | J35: 0.4117647059 | K35: 10 | L35: 9 | M35: 0.5294117647 | N35: 8 | O35: 8 | P35: 0.4705882353
A36: ='Control Panel'!A28 -> NE2 | B36: ='Control Panel'!B28 -> Healy Medical Centre | C36: ='Control Panel'!C28 -> F84720 | D36: 5695 | E36: 14 | F36: 6 | G36: 0.4285714286 | H36: 8 | I36: 6 | J36: 0.4285714286 | K36: 8 | L36: 8 | M36: 0.5714285714 | N36: 6 | O36: 7 | P36: 0.5
A37: ='Control Panel'!A29 -> NE2 | B37: ='Control Panel'!B29 -> Nightingale Practice | C37: ='Control Panel'!C29 -> F84018 | D37: 12007 | E37: 41 | F37: 33 | G37: 0.8048780488 | H37: 6 | I37: 33 | J37: 0.8048780488 | K37: 6 | L37: 37 | M37: 0.9024390244 | N37: 2 | O37: 32 | P37: 0.7804878049
A38: ='Control Panel'!A30 -> NE2 | B38: ='Control Panel'!B30 -> Riverside Practice | C38: ='Control Panel'!C30 -> F84619 | D38: 4871 | E38: 19 | F38: 16 | G38: 0.8421052632 | H38: 3 | I38: 16 | J38: 0.8421052632 | K38: 3 | L38: 16 | M38: 0.8421052632 | N38: 3 | O38: 16 | P38: 0.8421052632
A39: ='Control Panel'!A31 -> NE2 | B39: ='Control Panel'!B31 -> Rosewood Practice | C39: ='Control Panel'!C31 -> F84711 | D39: 1856 | E39: 2 | F39: 1 | G39: 0.5 | H39: 1 | I39: 1 | J39: 0.5 | K39: 1 | L39: 1 | M39: 0.5 | N39: 1 | O39: 1 | P39: 0.5
A40: ='Control Panel'!A32 -> SE1 | B40: ='Control Panel'!B32 -> Athena Medical Centre | C40: ='Control Panel'!C32 -> F84060 | D40: 4858 | E40: 11 | F40: 9 | G40: 0.8181818182 | H40: 2 | I40: 8 | J40: 0.7272727273 | K40: 3 | L40: 8 | M40: 0.7272727273 | N40: 3 | O40: 7 | P40: 0.6363636364
A41: ='Control Panel'!A33 -> SE1 | B41: ='Control Panel'!B33 -> Latimer Health Centre | C41: ='Control Panel'!C33 -> F84719 | D41: 5324 | E41: 14 | F41: 9 | G41: 0.6428571429 | H41: 5 | I41: 9 | J41: 0.6428571429 | K41: 5 | L41: 11 | M41: 0.7857142857 | N41: 3 | O41: 10 | P41: 0.7142857143
A42: ='Control Panel'!A34 -> SE1 | B42: ='Control Panel'!B34 -> Lea Surgery | C42: ='Control Panel'!C34 -> F84105 | D42: 11954 | E42: 28 | F42: 25 | G42: 0.8928571429 | H42: 2 | I42: 25 | J42: 0.8928571429 | K42: 2 | L42: 25 | M42: 0.8928571429 | N42: 2 | O42: 25 | P42: 0.8928571429
A43: ='Control Panel'!A35 -> SE1 | B43: ='Control Panel'!B35 -> Lower Clapton Health Centre | C43: ='Control Panel'!C35 -> F84003 | D43: 15043 | E43: 36 | F43: 34 | G43: 0.9444444444 | H43: 1 | I43: 34 | J43: 0.9444444444 | K43: 1 | L43: 34 | M43: 0.9444444444 | N43: 1 | O43: 30 | P43: 0.8333333333
A44: ='Control Panel'!A36 -> SE1 | B44: ='Control Panel'!B36 -> Kingsmead Healthcare | C44: ='Control Panel'!C36 -> F84015 | D44: =SUMIFS(OFFSET(REL_D,,MATCH(D$6,IND,0)-1),REL_D,$C$7,OrgID,$C44) -> 5410 | E44: 10 | F44: 7 | G44: 0.7 | H44: 3 | I44: =SUMIFS(OFFSET(REL_D,,MATCH(I$6,IND,0)-1),REL_D,$C$7,OrgID,$C44) -> 7 | J44: 0.7 | K44: 3 | L44: =SUMIFS(OFFSET(REL_D,,MATCH(L$6,IND,0)-1),REL_D,$C$7,OrgID,$C44) -> 7 | M44: 0.7 | N44: 3 | O44: =SUMIFS(OFFSET(REL_D,,MATCH(O$6,IND,0)-1),REL_D,$C$7,OrgID,$C44) -> 6 | P44: 0.6
A45: ='Control Panel'!A37 -> SE2 | B45: ='Control Panel'!B37 -> Elsdale Street Surgery | C45: ='Control Panel'!C37 -> F84601 | D45: 7478 | E45: 19 | F45: 9 | G45: 0.4736842105 | H45: 10 | I45: 10 | J45: 0.5263157895 | K45: 9 | L45: 14 | M45: 0.7368421053 | N45: 5 | O45: 13 | P45: 0.6842105263
A46: ='Control Panel'!A38 -> SE2 | B46: ='Control Panel'!B38 -> Greenhouse Health Centre | C46: ='Control Panel'!C38 -> F84632 | D46: 1269 | E46: 0 | F46: 0 | G46: N/A | H46: 0 | I46: 0 | J46: N/A | K46: 0 | L46: 0 | M46: N/A | N46: 0 | O46: 0 | P46: N/A
A47: ='Control Panel'!A39 -> SE2 | B47: ='Control Panel'!B39 -> Trowbridge Practice | C47: ='Control Panel'!C39 -> Y00403 | D47: 7655 | E47: 26 | F47: 22 | G47: 0.8461538462 | H47: 3 | I47: 22 | J47: 0.8461538462 | K47: 3 | L47: 23 | M47: 0.8846153846 | N47: 2 | O47: 22 | P47: 0.8461538462
A48: ='Control Panel'!A40 -> SE2 | B48: ='Control Panel'!B40 -> Well Street Surgery | C48: ='Control Panel'!C40 -> F84069 | D48: 14343 | E48: 26 | F48: 22 | G48: 0.8461538462 | H48: 3 | I48: 22 | J48: 0.8461538462 | K48: 3 | L48: 22 | M48: 0.8461538462 | N48: 3 | O48: 21 | P48: 0.8076923077
A49: ='Control Panel'!A41 -> SE2 | B49: ='Control Panel'!B41 -> Wick Health Centre | C49: ='Control Panel'!C41 -> F84620 | D49: 7574 | E49: 10 | F49: 9 | G49: 0.9 | H49: 1 | I49: 9 | J49: 0.9 | K49: 1 | L49: 9 | M49: 0.9 | N49: 1 | O49: 9 | P49: 0.9
A50: ='Control Panel'!A42 -> SW1 | B50: ='Control Panel'!B42 -> Beechwood Medical Centre | C50: ='Control Panel'!C42 -> F84038 | D50: 3961 | E50: 8 | F50: 6 | G50: 0.75 | H50: 2 | I50: 6 | J50: 0.75 | K50: 2 | L50: 8 | M50: 1 | O50: 8 | P50: 1
A51: ='Control Panel'!A43 -> SW1 | B51: ='Control Panel'!B43 -> Dalston Practice | C51: ='Control Panel'!C43 -> F84063 | D51: 6026 | E51: 4 | F51: 3 | G51: 0.75 | H51: 1 | I51: 3 | J51: 0.75 | K51: 1 | L51: 4 | M51: 1 | O51: 4 | P51: 1
A52: ='Control Panel'!A44 -> SW1 | B52: ='Control Panel'!B44 -> London Fields Medical Centre | C52: ='Control Panel'!C44 -> F84021 | D52: 10825 | E52: 22 | F52: 20 | G52: 0.9090909091 | H52: 1 | I52: 19 | J52: 0.8636363636 | K52: 2 | L52: 20 | M52: 0.9090909091 | N52: 1 | O52: 19 | P52: 0.8636363636
A53: ='Control Panel'!A45 -> SW1 | B53: ='Control Panel'!B45 -> Queensbridge Group Practice | C53: ='Control Panel'!C45 -> F84117 | D53: 10509 | E53: 18 | F53: 17 | G53: 0.9444444444 | H53: 1 | I53: 16 | J53: 0.8888888889 | K53: 2 | L53: 18 | M53: 1 | O53: 17 | P53: 0.9444444444
A54: ='Control Panel'!A46 -> SW1 | B54: ='Control Panel'!B46 -> Richmond Road Medical Center | C54: ='Control Panel'!C46 -> F84035 | D54: 15601 | E54: 39 | F54: 34 | G54: 0.8717948718 | H54: 4 | I54: 34 | J54: 0.8717948718 | K54: 4 | L54: 35 | M54: 0.8974358974 | N54: 3 | O54: 34 | P54: 0.8717948718
A55: ='Control Panel'!A47 -> SW1 | B55: ='Control Panel'!B47 -> Sandringham Road Practice | C55: ='Control Panel'!C47 -> F84621 | D55: 4350 | E55: 9 | F55: 7 | G55: 0.7777777778 | H55: 2 | I55: 7 | J55: 0.7777777778 | K55: 2 | L55: 7 | M55: 0.7777777778 | N55: 2 | O55: 7 | P55: 0.7777777778
A56: ='Control Panel'!A48 -> SW2 | B56: ='Control Panel'!B48 -> De Beauvoir Surgery | C56: ='Control Panel'!C48 -> F84072 | D56: 12136 | E56: 40 | F56: 34 | G56: 0.85 | H56: 4 | I56: 35 | J56: 0.875 | K56: 3 | L56: 36 | M56: 0.9 | N56: 2 | O56: 34 | P56: 0.85
A57: ='Control Panel'!A49 -> SW2 | B57: ='Control Panel'!B49 -> Hoxton Surgery | C57: ='Control Panel'!C49 -> F84692 | D57: 7886 | E57: 12 | F57: 9 | G57: 0.75 | H57: 3 | I57: 9 | J57: 0.75 | K57: 3 | L57: 9 | M57: 0.75 | N57: 3 | O57: 9 | P57: 0.75
A58: ='Control Panel'!A50 -> SW2 | B58: ='Control Panel'!B50 -> Lawson Practice | C58: ='Control Panel'!C50 -> F84096 | D58: 15081 | E58: 29 | F58: 26 | G58: 0.8965517241 | H58: 2 | I58: 26 | J58: 0.8965517241 | K58: 2 | L58: 26 | M58: 0.8965517241 | N58: 2 | O58: 27 | P58: 0.9310344828
A59: ='Control Panel'!A51 -> SW2 | B59: ='Control Panel'!B51 -> Shoreditch Park Surgery | C59: ='Control Panel'!C51 -> F84635 | D59: 10071 | E59: 19 | F59: 16 | G59: 0.8421052632 | H59: 3 | I59: 16 | J59: 0.8421052632 | K59: 3 | L59: 17 | M59: 0.8947368421 | N59: 2 | O59: 15 | P59: 0.7894736842
A60: ='Control Panel'!A52 -> SW2 | B60: ='Control Panel'!B52 -> Southgate Rd MC & Whiston Rd Surgery | C60: ='Control Panel'!C52 -> F84041 | D60: 1986 | E60: 0 | F60: 0 | G60: =IF(OR(ISTEXT($E60),$E60=0),"N/A",F60/$E60) -> N/A | H60: 0 | I60: 0 | J60: =IF(OR(ISTEXT($E60),$E60=0),"N/A",I60/$E60) -> N/A | K60: 0 | L60: 0 | M60: =IF(OR(ISTEXT($E60),$E60=0),"N/A",L60/$E60) -> N/A | N60: 0 | O60: 0 | P60: =IF(OR(ISTEXT($E60),$E60=0),"N/A",O60/$E60) -> N/A
A61: ='Control Panel'!A53 -> SW2 | B61: ='Control Panel'!B53 -> Neaman Practice | C61: ='Control Panel'!C53 -> F84640 | D61: =SUMIFS(OFFSET(REL_D,,MATCH(D$6,IND,0)-1),REL_D,$C$7,OrgID,$C61) -> 9971 | E61: 14 | F61: 14 | G61: 1 | I61: 14 | J61: 1 | L61: 14 | M61: 1 | O61: 13 | P61: 0.9285714286

Sheet Patients becoming 24m
D2: City and Hackney Childhood Immunisations Dashboard: Metric Details
D3: Patients becoming 24m | F3: =E15 -> 568
C4: 2019-07-01
C5: 2019-10-01
C6: March 2022 | D6: All Patients | E6: (02) 24 MONTH COHORT | F6: (02.01) DTaP/IPV/Hib | G6: DTaP/IPV/Hib(%) | H6: (02.02) MMR | I6: MMR(%) | J6: Patients required to achieve CCG Target (95%) | K6: (02.03) HiB/Men C | L6: HiB/Men C (%) | M6: Patients required to achieve CCG Target (95%) | N6: (02.04) PCV (Booster) | O6: PCV (Booster)(%) | P6: Patients required to achieve CCG Target (95%) | Q6: (02.05) Men B (Booster) | R6: Men B (Booster)(%)
B7: Home | C7: =VLOOKUP(C6,'Control Panel'!I2:J13,2,FALSE) -> 2022-03-01 | D7: Listsize | E7: Patients becoming 24m within Q1 | F7: DTaP/IPV/Hib/HepB | G7: DTaP/IPV/Hib/HepB (%) | H7: MMR | I7: MMR(%) | J7: Patients required to achieve CCG Target (95%) | K7: HiB/Men C | L7: HiB/Men C (%) | M7: Patients required to achieve CCG Target (95%) | N7: PCV (Booster) | O7: PCV (Booster)(%) | P7: Patients required to achieve CCG Target (95%) | Q7: Men B (Booster) | R7: Men B (Booster)(%)
A8: Cluster
A9: ='Control Panel'!B3 -> NW1 | B9: Woodberry Wetlands (NW1) | D9: =SUM(IF($A9=$A$22:$A$61,D$22:D$61)) -> 34217 | E9: =SUM(IF($A9=$A$22:$A$61,E$22:E$61)) -> 110 | F9: =SUM(IF($A9=$A$22:$A$61,F$22:F$61)) -> 83 | G9: =IF(OR(ISTEXT($E9),$E9=0),"N/A",F9/$E9) -> 0.7545454545 | H9: =SUM(IF($A9=$A$22:$A$61,H$22:H$61)) -> 74 | I9: =IF(OR(ISTEXT($E9),$E9=0),"N/A",H9/$E9) -> 0.6727272727 | K9: =SUM(IF($A9=$A$22:$A$61,K$22:K$61)) -> 71 | L9: =IF(OR(ISTEXT($E9),$E9=0),"N/A",K9/$E9) -> 0.6454545455 | N9: =SUM(IF($A9=$A$22:$A$61,N$22:N$61)) -> 73 | O9: =IF(OR(ISTEXT($E9),$E9=0),"N/A",N9/$E9) -> 0.6636363636 | Q9: =SUM(IF($A9=$A$22:$A$61,Q$22:Q$61)) -> 72 | R9: =IF(OR(ISTEXT($E9),$E9=0),"N/A",Q9/$E9) -> 0.6545454545
A10: ='Control Panel'!B4 -> NW2 | B10: Clissold Park (NW2) | D10: =SUM(IF($A10=$A$22:$A$61,D$22:D$61)) -> 35379 | E10: =SUM(IF($A10=$A$22:$A$61,E$22:E$61)) -> 67 | F10: =SUM(IF($A10=$A$22:$A$61,F$22:F$61)) -> 61 | G10: =IF(OR(ISTEXT($E10),$E10=0),"N/A",F10/$E10) -> 0.9104477612 | H10: =SUM(IF($A10=$A$22:$A$61,H$22:H$61)) -> 61 | I10: 0.9104477612 | K10: =SUM(IF($A10=$A$22:$A$61,K$22:K$61)) -> 63 | L10: 0.9402985075 | N10: =SUM(IF($A10=$A$22:$A$61,N$22:N$61)) -> 61 | O10: 0.9104477612 | Q10: =SUM(IF($A10=$A$22:$A$61,Q$22:Q$61)) -> 62 | R10: 0.9253731343
A11: ='Control Panel'!B7 -> SE1 | B11: Hackney Marshes (SE1) | D11: =SUM(IF($A11=$A$22:$A$61,D$22:D$61)) -> 42589 | E11: =SUM(IF($A11=$A$22:$A$61,E$22:E$61)) -> 89 | F11: =SUM(IF($A11=$A$22:$A$61,F$22:F$61)) -> 76 | G11: =IF(OR(ISTEXT($E11),$E11=0),"N/A",F11/$E11) -> 0.8539325843 | H11: =SUM(IF($A11=$A$22:$A$61,H$22:H$61)) -> 78 | I11: 0.8764044944 | K11: =SUM(IF($A11=$A$22:$A$61,K$22:K$61)) -> 78 | L11: 0.8764044944 | N11: =SUM(IF($A11=$A$22:$A$61,N$22:N$61)) -> 77 | O11: 0.8651685393 | Q11: =SUM(IF($A11=$A$22:$A$61,Q$22:Q$61)) -> 77 | R11: 0.8651685393
A12: ='Control Panel'!B8 -> SE2 | B12: Well Street Common (SE2) | D12: =SUM(IF($A12=$A$22:$A$61,D$22:D$61)) -> 38319 | E12: =SUM(IF($A12=$A$22:$A$61,E$22:E$61)) -> 79 | F12: =SUM(IF($A12=$A$22:$A$61,F$22:F$61)) -> 69 | G12: 0.8734177215 | H12: =SUM(IF($A12=$A$22:$A$61,H$22:H$61)) -> 67 | I12: 0.8481012658 | K12: =SUM(IF($A12=$A$22:$A$61,K$22:K$61)) -> 66 | L12: 0.835443038 | N12: =SUM(IF($A12=$A$22:$A$61,N$22:N$61)) -> 65 | O12: 0.8227848101 | Q12: =SUM(IF($A12=$A$22:$A$61,Q$22:Q$61)) -> 65 | R12: 0.8227848101
A13: ='Control Panel'!B9 -> SW1 | B13: London Fields (SW1) | D13: =SUM(IF($A13=$A$22:$A$61,D$22:D$61)) -> 51272 | E13: =SUM(IF($A13=$A$22:$A$61,E$22:E$61)) -> 120 | F13: =SUM(IF($A13=$A$22:$A$61,F$22:F$61)) -> 114 | G13: 0.95 | H13: =SUM(IF($A13=$A$22:$A$61,H$22:H$61)) -> 105 | I13: 0.875 | K13: =SUM(IF($A13=$A$22:$A$61,K$22:K$61)) -> 105 | L13: 0.875 | N13: =SUM(IF($A13=$A$22:$A$61,N$22:N$61)) -> 104 | O13: 0.8666666667 | Q13: =SUM(IF($A13=$A$22:$A$61,Q$22:Q$61)) -> 106 | R13: 0.8833333333
A14: ='Control Panel'!B10 -> SW2 | B14: Shoreditch Park & City (SW2) | D14: =SUM(IF($A14=$A$22:$A$61,D$22:D$61)) -> 57131 | E14: =SUM(IF($A14=$A$22:$A$61,E$22:E$61)) -> 103 | F14: =SUM(IF($A14=$A$22:$A$61,F$22:F$61)) -> 95 | G14: 0.9223300971 | H14: =SUM(IF($A14=$A$22:$A$61,H$22:H$61)) -> 89 | I14: 0.8640776699 | K14: =SUM(IF($A14=$A$22:$A$61,K$22:K$61)) -> 90 | L14: 0.8737864078 | N14: =SUM(IF($A14=$A$22:$A$61,N$22:N$61)) -> 88 | O14: 0.854368932 | Q14: =SUM(IF($A14=$A$22:$A$61,Q$22:Q$61)) -> 88 | R14: 0.854368932
A15: Total (Not including North East) | D15: =SUM(D9:D14) -> 258907 | E15: =SUM(E9:E14) -> 568 | F15: =SUM(F9:F14) -> 498 | G15: 0.8767605634 | H15: =SUM(H9:H14) -> 474 | I15: 0.8345070423 | K15: =SUM(K9:K14) -> 473 | L15: 0.8327464789 | N15: =SUM(N9:N14) -> 468 | O15: 0.823943662 | Q15: =SUM(Q9:Q14) -> 470 | R15: 0.8274647887
A16: ='Control Panel'!B5 -> NE1 | B16: Springfield Park (NE1) | D16: =SUM(IF($A16=$A$22:$A$61,D$22:D$61)) -> 39842 | E16: =SUM(IF($A16=$A$22:$A$61,E$22:E$61)) -> 241 | F16: =SUM(IF($A16=$A$22:$A$61,F$22:F$61)) -> 100 | G16: =IF(OR(ISTEXT($E16),$E16=0),"N/A",F16/$E16) -> 0.4149377593 | H16: =SUM(IF($A16=$A$22:$A$61,H$22:H$61)) -> 101 | I16: =IF(OR(ISTEXT($E16),$E16=0),"N/A",H16/$E16) -> 0.4190871369 | K16: =SUM(IF($A16=$A$22:$A$61,K$22:K$61)) -> 79 | L16: =IF(OR(ISTEXT($E16),$E16=0),"N/A",K16/$E16) -> 0.3278008299 | N16: =SUM(IF($A16=$A$22:$A$61,N$22:N$61)) -> 101 | O16: =IF(OR(ISTEXT($E16),$E16=0),"N/A",N16/$E16) -> 0.4190871369 | Q16: =SUM(IF($A16=$A$22:$A$61,Q$22:Q$61)) -> 92 | R16: =IF(OR(ISTEXT($E16),$E16=0),"N/A",Q16/$E16) -> 0.3817427386
A17: ='Control Panel'!B6 -> NE2 | B17: Hackney Downs (NE2) | D17: =SUM(IF($A17=$A$22:$A$61,D$22:D$61)) -> 39040 | E17: =SUM(IF($A17=$A$22:$A$61,E$22:E$61)) -> 117 | F17: =SUM(IF($A17=$A$22:$A$61,F$22:F$61)) -> 62 | G17: 0.5299145299 | H17: =SUM(IF($A17=$A$22:$A$61,H$22:H$61)) -> 66 | I17: 0.5641025641 | K17: =SUM(IF($A17=$A$22:$A$61,K$22:K$61)) -> 61 | L17: 0.5213675214 | N17: =SUM(IF($A17=$A$22:$A$61,N$22:N$61)) -> 61 | O17: 0.5213675214 | Q17: =SUM(IF($A17=$A$22:$A$61,Q$22:Q$61)) -> 58 | R17: 0.4957264957
A18: Total | D18: =SUM(D9:D14,D16:D17) -> 337789 | E18: =SUM(E9:E14,E16:E17) -> 926 | F18: =SUM(F9:F14,F16:F17) -> 660 | G18: 0.7127429806 | H18: =SUM(H9:H14,H16:H17) -> 641 | I18: 0.692224622 | K18: =SUM(K9:K14,K16:K17) -> 613 | L18: 0.661987041 | N18: =SUM(N9:N14,N16:N17) -> 630 | O18: 0.6803455724 | Q18: =SUM(Q9:Q14,Q16:Q17) -> 620 | R18: 0.6695464363
A19: Minimum and Maximum % | F19: Min | G19: Max | H19: Min | I19: Max | K19: Min | L19: Max | N19: Min | O19: Max | Q19: Min | R19: Max
F20: =SMALL(G22:G61,COUNTIF(G22:G61,0)+1) -> 0.2857142857 | G20: =MAX(G22:G61) -> 1 | H20: =SMALL(I22:I61,COUNTIF(I22:I61,0)+1) -> 0.275862069 | I20: =MAX(I22:I61) -> 1 | K20: =SMALL(L22:L61,COUNTIF(L22:L61,0)+1) -> 0.1724137931 | L20: =MAX(L22:L61) -> 1 | N20: =SMALL(O22:O61,COUNTIF(O22:O61,0)+1) -> 0.275862069 | O20: =MAX(O22:O61) -> 1 | Q20: =SMALL(R22:R61,COUNTIF(R22:R61,0)+1) -> 0.25 | R20: =MAX(R22:R61) -> 1
A21: Practices
A22: ='Control Panel'!A14 -> NW1 | B22: ='Control Panel'!B14 -> Allerton Road Surgery | C22: ='Control Panel'!C14 -> F84716 | D22: =SUMIFS(OFFSET(REL_D,,MATCH($D$6,IND,0)-1),REL_D,$C$6,OrgID,$C22) -> 5829 | E22: =SUMIFS(OFFSET(REL_D,,MATCH($E$6,IND,0)-1),REL_D,$C$6,IF(LEFT($C22,1)="N",NwID,OrgID),$C22) -> 30 | F22: =SUMIFS(OFFSET(REL_D,,MATCH($F$6,IND,0)-1),REL_D,$C$6,IF(LEFT($C22,1)="N",NwID,OrgID),$C22) -> 13 | G22: =IF(OR(ISTEXT($E22),$E22=0),"N/A",F22/$E22) -> 0.4333333333 | H22: =SUMIFS(OFFSET(REL_D,,MATCH($H$6,IND,0)-1),REL_D,$C$6,OrgID,$C22) -> 10 | I22: =IF(OR(ISTEXT($E22),$E22=0),"N/A",H22/$E22) -> 0.3333333333 | J22: =IFERROR(ROUNDUP(IF($E22*0.95-H22>=0,$E22*0.95-H22,""),0),"") -> 19 | K22: =SUMIFS(OFFSET(REL_D,,MATCH($K$6,IND,0)-1),REL_D,$C$6,OrgID,$C22) -> 9 | L22: =IF(OR(ISTEXT($E22),$E22=0),"N/A",K22/$E22) -> 0.3 | M22: =IFERROR(ROUNDUP(IF($E22*0.95-K22>=0,$E22*0.95-K22,""),0),"") -> 20 | N22: =SUMIFS(OFFSET(REL_D,,MATCH($N$6,IND,0)-1),REL_D,$C$6,OrgID,$C22) -> 10 | O22: =IF(OR(ISTEXT($E22),$E22=0),"N/A",N22/$E22) -> 0.3333333333 | P22: =IFERROR(ROUNDUP(IF($E22*0.95-N22>=0,$E22*0.95-N22,""),0),"") -> 19 | Q22: =SUMIFS(OFFSET(REL_D,,MATCH($Q$6,IND,0)-1),REL_D,$C$6,OrgID,$C22) -> 11 | R22: =IF(OR(ISTEXT($E22),$E22=0),"N/A",Q22/$E22) -> 0.3666666667
A23: ='Control Panel'!A15 -> NW1 | B23: ='Control Panel'!B15 -> Cedar Practice | C23: ='Control Panel'!C15 -> F84036 | D23: 7779 | E23: 15 | F23: 13 | G23: =IF(OR(ISTEXT($E23),$E23=0),"N/A",F23/$E23) -> 0.8666666667 | H23: 11 | I23: =IF(OR(ISTEXT($E23),$E23=0),"N/A",H23/$E23) -> 0.7333333333 | J23: 4 | K23: 10 | L23: =IF(OR(ISTEXT($E23),$E23=0),"N/A",K23/$E23) -> 0.6666666667 | M23: 5 | N23: 11 | O23: =IF(OR(ISTEXT($E23),$E23=0),"N/A",N23/$E23) -> 0.7333333333 | P23: 4 | Q23: 10 | R23: =IF(OR(ISTEXT($E23),$E23=0),"N/A",Q23/$E23) -> 0.6666666667
A24: ='Control Panel'!A16 -> NW1 | B24: ='Control Panel'!B16 -> Heron Practice | C24: ='Control Panel'!C16 -> F84119 | D24: 12175 | E24: 43 | F24: 35 | G24: 0.8139534884 | H24: 33 | I24: 0.7674418605 | J24: 8 | K24: 32 | L24: 0.7441860465 | M24: 9 | N24: 32 | O24: 0.7441860465 | P24: 9 | Q24: 31 | R24: 0.7209302326
A25: ='Control Panel'!A17 -> NW1 | B25: ='Control Panel'!B17 -> Statham Grove Surgery | C25: ='Control Panel'!C17 -> F84115 | D25: 8434 | E25: 22 | F25: 22 | G25: 1 | H25: 20 | I25: 0.9090909091 | J25: 1 | K25: 20 | L25: 0.9090909091 | M25: 1 | N25: 20 | O25: 0.9090909091 | P25: 1 | Q25: 20 | R25: 0.9090909091
A26: ='Control Panel'!A18 -> NW2 | B26: ='Control Panel'!B18 -> Barretts Grove Surgery | C26: ='Control Panel'!C18 -> F84636 | D26: 6610 | E26: 12 | F26: 12 | G26: 1 | H26: 11 | I26: 0.9166666667 | J26: 1 | K26: 12 | L26: 1 | N26: 12 | O26: 1 | Q26: 12 | R26: 1
A27: ='Control Panel'!A19 -> NW2 | B27: ='Control Panel'!B19 -> Barton House Health Centre | C27: ='Control Panel'!C19 -> F84008 | D27: 12199 | E27: 23 | F27: 22 | G27: 0.9565217391 | H27: 21 | I27: 0.9130434783 | J27: 1 | K27: 22 | L27: 0.9565217391 | N27: 20 | O27: 0.8695652174 | P27: 2 | Q27: 22 | R27: 0.9565217391
A28: ='Control Panel'!A20 -> NW2 | B28: ='Control Panel'!B20 -> Brooke Road Surgery | C28: ='Control Panel'!C20 -> F84694 | D28: 4620 | E28: 13 | F28: 12 | G28: =IF(OR(ISTEXT($E28),$E28=0),"N/A",F28/$E28) -> 0.9230769231 | H28: 13 | I28: 1 | K28: 13 | L28: 1 | N28: 13 | O28: 1 | Q28: 12 | R28: 0.9230769231
A29: ='Control Panel'!A21 -> NW2 | B29: ='Control Panel'!B21 -> Somerford Grove Health Centre | C29: ='Control Panel'!C21 -> F84033 | D29: 11950 | E29: 19 | F29: 15 | G29: 0.7894736842 | H29: 16 | I29: 0.8421052632 | J29: 3 | K29: 16 | L29: 0.8421052632 | M29: 3 | N29: 16 | O29: 0.8421052632 | P29: 3 | Q29: 16 | R29: 0.8421052632
A30: ='Control Panel'!A22 -> NE1 | B30: ='Control Panel'!B22 -> Cranwich Road Surgery | C30: ='Control Panel'!C22 -> F84686 | D30: 8438 | E30: 58 | F30: 19 | G30: =IF(OR(ISTEXT($E30),$E30=0),"N/A",F30/$E30) -> 0.3275862069 | H30: 16 | I30: 0.275862069 | J30: 40 | K30: 10 | L30: 0.1724137931 | M30: 46 | N30: 16 | O30: 0.275862069 | P30: 40 | Q30: 15 | R30: 0.2586206897
A31: ='Control Panel'!A23 -> NE1 | B31: ='Control Panel'!B23 -> Spring Hill Practice | C31: ='Control Panel'!C23 -> Y03049 | D31: 14787 | E31: 63 | F31: 35 | G31: 0.5555555556 | H31: 39 | I31: 0.619047619 | J31: 21 | K31: 33 | L31: 0.5238095238 | M31: 27 | N31: 34 | O31: 0.5396825397 | P31: 26 | Q31: 30 | R31: 0.4761904762
A32: ='Control Panel'!A24 -> NE1 | B32: ='Control Panel'!B24 -> Stamford Hill Group Practice | C32: ='Control Panel'!C24 -> F84013 | D32: 16617 | E32: 120 | F32: 46 | G32: 0.3833333333 | H32: 46 | I32: 0.3833333333 | J32: 68 | K32: 36 | L32: 0.3 | M32: 78 | N32: 51 | O32: 0.425 | P32: 63 | Q32: 47 | R32: 0.3916666667
A33: ='Control Panel'!A25 -> NE2 | B33: ='Control Panel'!B25 -> Clapton Surgery | C33: ='Control Panel'!C25 -> F84668 | D33: 6384 | E33: 29 | F33: 13 | G33: =IF(OR(ISTEXT($E33),$E33=0),"N/A",F33/$E33) -> 0.4482758621 | H33: 15 | I33: 0.5172413793 | J33: 13 | K33: 13 | L33: 0.4482758621 | M33: 15 | N33: 13 | O33: 0.4482758621 | P33: 15 | Q33: 13 | R33: 0.4482758621
A34: ='Control Panel'!A26 -> NE2 | B34: ='Control Panel'!B26 -> Elm Practice | C34: ='Control Panel'!C26 -> F84685 | D34: 3054 | E34: 12 | F34: 6 | G34: 0.5 | H34: 7 | I34: 0.5833333333 | J34: 5 | K34: 3 | L34: 0.25 | M34: 9 | N34: 4 | O34: 0.3333333333 | P34: 8 | Q34: 3 | R34: 0.25
A35: ='Control Panel'!A27 -> NE2 | B35: ='Control Panel'!B27 -> Gadvhi Practice | C35: ='Control Panel'!C27 -> F84080 | D35: 5173 | E35: 17 | F35: 8 | G35: 0.4705882353 | H35: 8 | I35: 0.4705882353 | J35: 9 | K35: 8 | L35: 0.4705882353 | M35: 9 | N35: 9 | O35: 0.5294117647 | P35: 8 | Q35: 7 | R35: 0.4117647059
A36: ='Control Panel'!A28 -> NE2 | B36: ='Control Panel'!B28 -> Healy Medical Centre | C36: ='Control Panel'!C28 -> F84720 | D36: 5695 | E36: 16 | F36: 5 | G36: 0.3125 | H36: 5 | I36: 0.3125 | J36: 11 | K36: 5 | L36: 0.3125 | M36: 11 | N36: 5 | O36: 0.3125 | P36: 11 | Q36: 5 | R36: 0.3125
A37: ='Control Panel'!A29 -> NE2 | B37: ='Control Panel'!B29 -> Nightingale Practice | C37: ='Control Panel'!C29 -> F84018 | D37: 12007 | E37: 31 | F37: 22 | G37: 0.7096774194 | H37: 23 | I37: 0.7419354839 | J37: 7 | K37: 24 | L37: 0.7741935484 | M37: 6 | N37: 22 | O37: 0.7096774194 | P37: 8 | Q37: 22 | R37: 0.7096774194
A38: ='Control Panel'!A30 -> NE2 | B38: ='Control Panel'!B30 -> Riverside Practice | C38: ='Control Panel'!C30 -> F84619 | D38: 4871 | E38: 9 | F38: 6 | G38: 0.6666666667 | H38: 6 | I38: 0.6666666667 | J38: 3 | K38: 6 | L38: 0.6666666667 | M38: 3 | N38: 6 | O38: 0.6666666667 | P38: 3 | Q38: 6 | R38: 0.6666666667
A39: ='Control Panel'!A31 -> NE2 | B39: ='Control Panel'!B31 -> Rosewood Practice | C39: ='Control Panel'!C31 -> F84711 | D39: 1856 | E39: 3 | F39: 2 | G39: 0.6666666667 | H39: 2 | I39: 0.6666666667 | J39: 1 | K39: 2 | L39: 0.6666666667 | M39: 1 | N39: 2 | O39: 0.6666666667 | P39: 1 | Q39: 2 | R39: 0.6666666667
A40: ='Control Panel'!A32 -> SE1 | B40: ='Control Panel'!B32 -> Athena Medical Centre | C40: ='Control Panel'!C32 -> F84060 | D40: 4858 | E40: 7 | F40: 2 | G40: 0.2857142857 | H40: 4 | I40: 0.5714285714 | J40: 3 | K40: 4 | L40: 0.5714285714 | M40: 3 | N40: 4 | O40: 0.5714285714 | P40: 3 | Q40: 4 | R40: 0.5714285714
A41: ='Control Panel'!A33 -> SE1 | B41: ='Control Panel'!B33 -> Latimer Health Centre | C41: ='Control Panel'!C33 -> F84719 | D41: 5324 | E41: 9 | F41: 7 | G41: 0.7777777778 | H41: 8 | I41: 0.8888888889 | J41: 1 | K41: 8 | L41: 0.8888888889 | M41: 1 | N41: 8 | O41: 0.8888888889 | P41: 1 | Q41: 8 | R41: 0.8888888889
A42: ='Control Panel'!A34 -> SE1 | B42: ='Control Panel'!B34 -> Lea Surgery | C42: ='Control Panel'!C34 -> F84105 | D42: 11954 | E42: 31 | F42: 30 | G42: 0.9677419355 | H42: 30 | I42: 0.9677419355 | K42: 30 | L42: 0.9677419355 | N42: 30 | O42: 0.9677419355 | Q42: 29 | R42: 0.935483871
A43: ='Control Panel'!A35 -> SE1 | B43: ='Control Panel'!B35 -> Lower Clapton Health Centre | C43: ='Control Panel'!C35 -> F84003 | D43: 15043 | E43: 27 | F43: 25 | G43: 0.9259259259 | H43: 24 | I43: 0.8888888889 | J43: 2 | K43: 24 | L43: 0.8888888889 | M43: 2 | N43: 23 | O43: 0.8518518519 | P43: 3 | Q43: 24 | R43: 0.8888888889
A44: ='Control Panel'!A36 -> SE1 | B44: ='Control Panel'!B36 -> Kingsmead Healthcare | C44: ='Control Panel'!C36 -> F84015 | D44: 5410 | E44: 15 | F44: 12 | G44: 0.8 | H44: 12 | I44: 0.8 | J44: 3 | K44: 12 | L44: 0.8 | M44: 3 | N44: 12 | O44: 0.8 | P44: 3 | Q44: 12 | R44: 0.8
A45: ='Control Panel'!A37 -> SE2 | B45: ='Control Panel'!B37 -> Elsdale Street Surgery | C45: ='Control Panel'!C37 -> F84601 | D45: 7478 | E45: 19 | F45: 16 | G45: 0.8421052632 | H45: 17 | I45: 0.8947368421 | J45: 2 | K45: 17 | L45: 0.8947368421 | M45: 2 | N45: 17 | O45: 0.8947368421 | P45: 2 | Q45: 16 | R45: 0.8421052632
A46: ='Control Panel'!A38 -> SE2 | B46: ='Control Panel'!B38 -> Greenhouse Health Centre | C46: ='Control Panel'!C38 -> F84632 | D46: 1269 | E46: 0 | F46: 0 | G46: N/A | H46: 0 | I46: N/A | J46: 0 | K46: 0 | L46: N/A | M46: 0 | N46: 0 | O46: N/A | P46: 0 | Q46: 0 | R46: N/A
A47: ='Control Panel'!A39 -> SE2 | B47: ='Control Panel'!B39 -> Trowbridge Practice | C47: ='Control Panel'!C39 -> Y00403 | D47: 7655 | E47: 17 | F47: 14 | G47: 0.8235294118 | H47: 13 | I47: 0.7647058824 | J47: 4 | K47: 13 | L47: 0.7647058824 | M47: 4 | N47: 12 | O47: 0.7058823529 | P47: 5 | Q47: 12 | R47: 0.7058823529
A48: ='Control Panel'!A40 -> SE2 | B48: ='Control Panel'!B40 -> Well Street Surgery | C48: ='Control Panel'!C40 -> F84069 | D48: 14343 | E48: 27 | F48: 25 | G48: 0.9259259259 | H48: 24 | I48: 0.8888888889 | J48: 2 | K48: 24 | L48: 0.8888888889 | M48: 2 | N48: 24 | O48: 0.8888888889 | P48: 2 | Q48: 24 | R48: 0.8888888889
A49: ='Control Panel'!A41 -> SE2 | B49: ='Control Panel'!B41 -> Wick Health Centre | C49: ='Control Panel'!C41 -> F84620 | D49: 7574 | E49: 16 | F49: 14 | G49: 0.875 | H49: 13 | I49: 0.8125 | J49: 3 | K49: 12 | L49: 0.75 | M49: 4 | N49: 12 | O49: 0.75 | P49: 4 | Q49: 13 | R49: 0.8125
A50: ='Control Panel'!A42 -> SW1 | B50: ='Control Panel'!B42 -> Beechwood Medical Centre | C50: ='Control Panel'!C42 -> F84038 | D50: 3961 | E50: 5 | F50: 5 | G50: 1 | H50: 5 | I50: 1 | K50: 5 | L50: 1 | N50: 5 | O50: 1 | Q50: 5 | R50: 1
A51: ='Control Panel'!A43 -> SW1 | B51: ='Control Panel'!B43 -> Dalston Practice | C51: ='Control Panel'!C43 -> F84063 | D51: 6026 | E51: 17 | F51: 16 | G51: 0.9411764706 | H51: 13 | I51: 0.7647058824 | J51: 4 | K51: 13 | L51: 0.7647058824 | M51: 4 | N51: 13 | O51: 0.7647058824 | P51: 4 | Q51: 13 | R51: 0.7647058824
A52: ='Control Panel'!A44 -> SW1 | B52: ='Control Panel'!B44 -> London Fields Medical Centre | C52: ='Control Panel'!C44 -> F84021 | D52: 10825 | E52: 29 | F52: 26 | G52: 0.8965517241 | H52: 22 | I52: 0.7586206897 | J52: 6 | K52: 22 | L52: 0.7586206897 | M52: 6 | N52: 22 | O52: 0.7586206897 | P52: 6 | Q52: 22 | R52: 0.7586206897
A53: ='Control Panel'!A45 -> SW1 | B53: ='Control Panel'!B45 -> Queensbridge Group Practice | C53: ='Control Panel'!C45 -> F84117 | D53: 10509 | E53: 27 | F53: 27 | G53: 1 | H53: 27 | I53: 1 | K53: 27 | L53: 1 | N53: 26 | O53: 0.962962963 | Q53: 27 | R53: 1
A54: ='Control Panel'!A46 -> SW1 | B54: ='Control Panel'!B46 -> Richmond Road Medical Center | C54: ='Control Panel'!C46 -> F84035 | D54: 15601 | E54: 32 | F54: 30 | G54: 0.9375 | H54: 30 | I54: 0.9375 | J54: 1 | K54: 29 | L54: 0.90625 | M54: 2 | N54: 29 | O54: 0.90625 | P54: =IFERROR(ROUNDUP(IF($E54*0.95-N54>=0,$E54*0.95-N54,""),0),"") -> 2 | Q54: 30 | R54: 0.9375
A55: ='Control Panel'!A47 -> SW1 | B55: ='Control Panel'!B47 -> Sandringham Road Practice | C55: ='Control Panel'!C47 -> F84621 | D55: 4350 | E55: 10 | F55: 10 | G55: 1 | H55: 8 | I55: 0.8 | J55: 2 | K55: 9 | L55: 0.9 | M55: 1 | N55: 9 | O55: 0.9 | P55: 1 | Q55: 9 | R55: 0.9
A56: ='Control Panel'!A48 -> SW2 | B56: ='Control Panel'!B48 -> De Beauvoir Surgery | C56: ='Control Panel'!C48 -> F84072 | D56: 12136 | E56: 27 | F56: 25 | G56: 0.9259259259 | H56: 24 | I56: 0.8888888889 | J56: 2 | K56: 24 | L56: 0.8888888889 | M56: 2 | N56: 25 | O56: 0.9259259259 | P56: 1 | Q56: 25 | R56: 0.9259259259
A57: ='Control Panel'!A49 -> SW2 | B57: ='Control Panel'!B49 -> Hoxton Surgery | C57: ='Control Panel'!C49 -> F84692 | D57: 7886 | E57: 11 | F57: 11 | G57: 1 | H57: 9 | I57: 0.8181818182 | J57: 2 | K57: 11 | L57: 1 | N57: 10 | O57: 0.9090909091 | P57: 1 | Q57: 11 | R57: 1
A58: ='Control Panel'!A50 -> SW2 | B58: ='Control Panel'!B50 -> Lawson Practice | C58: ='Control Panel'!C50 -> F84096 | D58: 15081 | E58: 32 | F58: 31 | G58: 0.96875 | H58: 31 | I58: 0.96875 | K58: 30 | L58: 0.9375 | M58: 1 | N58: 30 | O58: 0.9375 | P58: 1 | Q58: 29 | R58: 0.90625
A59: ='Control Panel'!A51 -> SW2 | B59: ='Control Panel'!B51 -> Shoreditch Park Surgery | C59: ='Control Panel'!C51 -> F84635 | D59: 10071 | E59: 16 | F59: 14 | G59: 0.875 | H59: 12 | I59: 0.75 | J59: 4 | K59: 12 | L59: 0.75 | M59: 4 | N59: 10 | O59: 0.625 | P59: 6 | Q59: 10 | R59: 0.625
A60: ='Control Panel'!A52 -> SW2 | B60: ='Control Panel'!B52 -> Southgate Rd MC & Whiston Rd Surgery | C60: ='Control Panel'!C52 -> F84041 | D60: 1986 | E60: 3 | F60: 3 | G60: 1 | H60: 2 | I60: 0.6666666667 | J60: 1 | K60: 2 | L60: 0.6666666667 | M60: 1 | N60: 2 | O60: 0.6666666667 | P60: 1 | Q60: 2 | R60: 0.6666666667
A61: ='Control Panel'!A53 -> SW2 | B61: ='Control Panel'!B53 -> Neaman Practice | C61: ='Control Panel'!C53 -> F84640 | D61: 9971 | E61: 14 | F61: 11 | G61: 0.7857142857 | H61: 11 | I61: 0.7857142857 | J61: 3 | K61: 11 | L61: 0.7857142857 | M61: 3 | N61: 11 | O61: 0.7857142857 | P61: 3 | Q61: 11 | R61: 0.7857142857

Sheet Patients becoming 5y
AC1: `
D2: City and Hackney Childhood Immunisations Dashboard: Metric Details
D3: Patients becoming 5y | F3: =E15 -> 578
C4: 2019-07-01
C5: 2019-10-01
C6: March 2022 | D6: All Patients | E6: (03) 5 YEAR COHORT | F6: (03.01) DTaP/IPV/Hib | G6: DTaP/IPV/Hib(%) | H6: (03.02) MMR (Primary) | I6: MMR (Primary)(%) | J6: (03.03) DTaP/IPV (Booster) | K6: DTaP/IPV (Booster)(%) | L6: Patients required to achieve CCG Target (95%) | M6: (03.05) MMR (Booster) | N6: MMR (Booster)(%) | O6: Patients required to achieve CCG Target (95%) | P6: (03.04) HiB/Men C | Q6: HiB/Men C(%)
B7: Home | C7: =VLOOKUP(C6,'Control Panel'!I2:J13,2,FALSE) -> 2022-03-01 | D7: Listsize | E7: Patients becoming 5y within Q1 | F7: DTaP/IPV/Hib | G7: DTaP/IPV/Hib(%) | H7: MMR (Primary) | I7: MMR (Primary)(%) | J7: DTaP/IPV (Booster) | K7: DTaP/IPV (Booster)(%) | L7: Patients required to achieve CCG Target (95%) | M7: MMR (Booster) | N7: MMR (Booster)(%) | O7: Patients required to achieve CCG Target (95%) | P7: HiB/Men C | Q7: HiB/Men C(%)
A8: Cluster
A9: ='Control Panel'!B3 -> NW1 | B9: Woodberry Wetlands (NW1) | D9: =SUM(IF($A9=$A$22:$A$61,D$22:D$61)) -> 34217 | E9: =SUM(IF($A9=$A$22:$A$61,E$22:E$61)) -> 77 | F9: =SUM(IF($A9=$A$22:$A$61,F$22:F$61)) -> 69 | G9: =IF(OR(ISTEXT($E9),$E9=0),"N/A",F9/$E9) -> 0.8961038961 | H9: =SUM(IF($A9=$A$22:$A$61,H$22:H$61)) -> 65 | I9: =IF(OR(ISTEXT($E9),$E9=0),"N/A",H9/$E9) -> 0.8441558442 | J9: =SUM(IF($A9=$A$22:$A$61,J$22:J$61)) -> 52 | K9: =IF(OR(ISTEXT($E9),$E9=0),"N/A",J9/$E9) -> 0.6753246753 | M9: =SUM(IF($A9=$A$22:$A$61,M$22:M$61)) -> 51 | N9: =IF(OR(ISTEXT($E9),$E9=0),"N/A",M9/$E9) -> 0.6623376623 | P9: =SUM(IF($A9=$A$22:$A$61,P$22:P$61)) -> 66 | Q9: =IF(OR(ISTEXT($E9),$E9=0),"N/A",P9/$E9) -> 0.8571428571
A10: ='Control Panel'!B4 -> NW2 | B10: Clissold Park (NW2) | D10: =SUM(IF($A10=$A$22:$A$61,D$22:D$61)) -> 35379 | E10: =SUM(IF($A10=$A$22:$A$61,E$22:E$61)) -> 84 | F10: =SUM(IF($A10=$A$22:$A$61,F$22:F$61)) -> 80 | G10: =IF(OR(ISTEXT($E10),$E10=0),"N/A",F10/$E10) -> 0.9523809524 | H10: =SUM(IF($A10=$A$22:$A$61,H$22:H$61)) -> 76 | I10: =IF(OR(ISTEXT($E10),$E10=0),"N/A",H10/$E10) -> 0.9047619048 | J10: =SUM(IF($A10=$A$22:$A$61,J$22:J$61)) -> 70 | K10: =IF(OR(ISTEXT($E10),$E10=0),"N/A",J10/$E10) -> 0.8333333333 | M10: =SUM(IF($A10=$A$22:$A$61,M$22:M$61)) -> 71 | N10: =IF(OR(ISTEXT($E10),$E10=0),"N/A",M10/$E10) -> 0.8452380952 | P10: =SUM(IF($A10=$A$22:$A$61,P$22:P$61)) -> 73 | Q10: =IF(OR(ISTEXT($E10),$E10=0),"N/A",P10/$E10) -> 0.869047619
A11: ='Control Panel'!B7 -> SE1 | B11: Hackney Marshes (SE1) | D11: =SUM(IF($A11=$A$22:$A$61,D$22:D$61)) -> 42589 | E11: =SUM(IF($A11=$A$22:$A$61,E$22:E$61)) -> 117 | F11: =SUM(IF($A11=$A$22:$A$61,F$22:F$61)) -> 110 | G11: =IF(OR(ISTEXT($E11),$E11=0),"N/A",F11/$E11) -> 0.9401709402 | H11: =SUM(IF($A11=$A$22:$A$61,H$22:H$61)) -> 106 | I11: =IF(OR(ISTEXT($E11),$E11=0),"N/A",H11/$E11) -> 0.905982906 | J11: =SUM(IF($A11=$A$22:$A$61,J$22:J$61)) -> 94 | K11: =IF(OR(ISTEXT($E11),$E11=0),"N/A",J11/$E11) -> 0.8034188034 | M11: =SUM(IF($A11=$A$22:$A$61,M$22:M$61)) -> 93 | N11: =IF(OR(ISTEXT($E11),$E11=0),"N/A",M11/$E11) -> 0.7948717949 | P11: =SUM(IF($A11=$A$22:$A$61,P$22:P$61)) -> 104 | Q11: =IF(OR(ISTEXT($E11),$E11=0),"N/A",P11/$E11) -> 0.8888888889
A12: ='Control Panel'!B8 -> SE2 | B12: Well Street Common (SE2) | D12: =SUM(IF($A12=$A$22:$A$61,D$22:D$61)) -> 38319 | E12: =SUM(IF($A12=$A$22:$A$61,E$22:E$61)) -> 96 | F12: =SUM(IF($A12=$A$22:$A$61,F$22:F$61)) -> 92 | G12: 0.9583333333 | H12: =SUM(IF($A12=$A$22:$A$61,H$22:H$61)) -> 83 | I12: 0.8645833333 | J12: =SUM(IF($A12=$A$22:$A$61,J$22:J$61)) -> 70 | K12: 0.7291666667 | M12: =SUM(IF($A12=$A$22:$A$61,M$22:M$61)) -> 74 | N12: 0.7708333333 | P12: =SUM(IF($A12=$A$22:$A$61,P$22:P$61)) -> 85 | Q12: 0.8854166667
A13: ='Control Panel'!B9 -> SW1 | B13: London Fields (SW1) | D13: =SUM(IF($A13=$A$22:$A$61,D$22:D$61)) -> 51272 | E13: =SUM(IF($A13=$A$22:$A$61,E$22:E$61)) -> 92 | F13: =SUM(IF($A13=$A$22:$A$61,F$22:F$61)) -> 87 | G13: 0.9456521739 | H13: =SUM(IF($A13=$A$22:$A$61,H$22:H$61)) -> 85 | I13: 0.9239130435 | J13: =SUM(IF($A13=$A$22:$A$61,J$22:J$61)) -> 76 | K13: 0.8260869565 | M13: =SUM(IF($A13=$A$22:$A$61,M$22:M$61)) -> 78 | N13: 0.847826087 | P13: =SUM(IF($A13=$A$22:$A$61,P$22:P$61)) -> 85 | Q13: 0.9239130435
A14: ='Control Panel'!B10 -> SW2 | B14: Shoreditch Park & City (SW2) | D14: =SUM(IF($A14=$A$22:$A$61,D$22:D$61)) -> 57131 | E14: =SUM(IF($A14=$A$22:$A$61,E$22:E$61)) -> 112 | F14: =SUM(IF($A14=$A$22:$A$61,F$22:F$61)) -> 103 | G14: 0.9196428571 | H14: =SUM(IF($A14=$A$22:$A$61,H$22:H$61)) -> 99 | I14: 0.8839285714 | J14: =SUM(IF($A14=$A$22:$A$61,J$22:J$61)) -> 81 | K14: 0.7232142857 | M14: =SUM(IF($A14=$A$22:$A$61,M$22:M$61)) -> 82 | N14: 0.7321428571 | P14: =SUM(IF($A14=$A$22:$A$61,P$22:P$61)) -> 98 | Q14: 0.875
A15: Total (Not including North East) | D15: =SUM(D9:D14) -> 258907 | E15: =SUM(E9:E14) -> 578 | F15: =SUM(F9:F14) -> 541 | G15: 0.9359861592 | H15: =SUM(H9:H14) -> 514 | I15: 0.8892733564 | J15: =SUM(J9:J14) -> 443 | K15: 0.7664359862 | M15: =SUM(M9:M14) -> 449 | N15: 0.776816609 | P15: =SUM(P9:P14) -> 511 | Q15: 0.884083045
A16: ='Control Panel'!B5 -> NE1 | B16: Springfield Park (NE1) | D16: =SUM(IF($A16=$A$22:$A$61,D$22:D$61)) -> 39842 | E16: =SUM(IF($A16=$A$22:$A$61,E$22:E$61)) -> 249 | F16: =SUM(IF($A16=$A$22:$A$61,F$22:F$61)) -> 149 | G16: =IF(OR(ISTEXT($E16),$E16=0),"N/A",F16/$E16) -> 0.5983935743 | H16: =SUM(IF($A16=$A$22:$A$61,H$22:H$61)) -> 174 | I16: =IF(OR(ISTEXT($E16),$E16=0),"N/A",H16/$E16) -> 0.6987951807 | J16: =SUM(IF($A16=$A$22:$A$61,J$22:J$61)) -> 72 | K16: =IF(OR(ISTEXT($E16),$E16=0),"N/A",J16/$E16) -> 0.2891566265 | M16: =SUM(IF($A16=$A$22:$A$61,M$22:M$61)) -> 78 | N16: =IF(OR(ISTEXT($E16),$E16=0),"N/A",M16/$E16) -> 0.313253012 | P16: =SUM(IF($A16=$A$22:$A$61,P$22:P$61)) -> 144 | Q16: =IF(OR(ISTEXT($E16),$E16=0),"N/A",P16/$E16) -> 0.578313253
A17: ='Control Panel'!B6 -> NE2 | B17: Hackney Downs (NE2) | D17: =SUM(IF($A17=$A$22:$A$61,D$22:D$61)) -> 39040 | E17: =SUM(IF($A17=$A$22:$A$61,E$22:E$61)) -> 137 | F17: =SUM(IF($A17=$A$22:$A$61,F$22:F$61)) -> 95 | G17: 0.6934306569 | H17: =SUM(IF($A17=$A$22:$A$61,H$22:H$61)) -> 101 | I17: 0.7372262774 | J17: =SUM(IF($A17=$A$22:$A$61,J$22:J$61)) -> 63 | K17: 0.4598540146 | M17: =SUM(IF($A17=$A$22:$A$61,M$22:M$61)) -> 68 | N17: 0.496350365 | P17: =SUM(IF($A17=$A$22:$A$61,P$22:P$61)) -> 91 | Q17: 0.6642335766
A18: Total | D18: =SUM(D9:D14,D16:D17) -> 337789 | E18: =SUM(E9:E14,E16:E17) -> 964 | F18: =SUM(F9:F14,F16:F17) -> 785 | G18: 0.8143153527 | H18: =SUM(H9:H14,H16:H17) -> 789 | I18: 0.8184647303 | J18: =SUM(J9:J14,J16:J17) -> 578 | K18: 0.5995850622 | M18: =SUM(M9:M14,M16:M17) -> 595 | N18: 0.617219917 | P18: =SUM(P9:P14,P16:P17) -> 746 | Q18: 0.7738589212
A19: Minimum and Maximum % | F19: Min | G19: Max | H19: Min | I19: Max | J19: Min | K19: Max | M19: Min | N19: Max | P19: Min | Q19: Max
F20: =SMALL(G22:G61,COUNTIF(G22:G61,0)+1) -> 0.5652173913 | G20: =MAX(G22:G61) -> 1 | H20: =SMALL(I22:I61,COUNTIF(I22:I61,0)+1) -> 0.5 | I20: =MAX(I22:I61) -> 1 | J20: =SMALL(K22:K61,COUNTIF(K22:K61,0)+1) -> 0.1375 | K20: =MAX(K22:K61) -> 1 | M20: =SMALL(N22:N61,COUNTIF(N22:N61,0)+1) -> 0.1875 | N20: =MAX(N22:N61) -> 1 | P20: =SMALL(Q22:Q61,COUNTIF(Q22:Q61,0)+1) -> 0.4166666667 | Q20: =MAX(Q22:Q61) -> 1
A21: Practices
A22: ='Control Panel'!A14 -> NW1 | B22: ='Control Panel'!B14 -> Allerton Road Surgery | C22: ='Control Panel'!C14 -> F84716 | D22: =SUMIFS(OFFSET(REL_D,,MATCH($D$6,IND,0)-1),REL_D,$C$6,OrgID,$C22) -> 5829 | E22: =SUMIFS(OFFSET(REL_D,,MATCH($E$6,IND,0)-1),REL_D,$C$6,OrgID,$C22) -> 15 | F22: =SUMIFS(OFFSET(REL_D,,MATCH($F$6,IND,0)-1),REL_D,$C$6,OrgID,$C22) -> 12 | G22: =IF(OR(ISTEXT($E22),$E22=0),"N/A",F22/$E22) -> 0.8 | H22: =SUMIFS(OFFSET(REL_D,,MATCH($H$6,IND,0)-1),REL_D,$C$6,OrgID,$C22) -> 12 | I22: =IF(OR(ISTEXT($E22),$E22=0),"N/A",H22/$E22) -> 0.8 | J22: =SUMIFS(OFFSET(REL_D,,MATCH($J$6,IND,0)-1),REL_D,$C$6,OrgID,$C22) -> 8 | K22: =IF(OR(ISTEXT($E22),$E22=0),"N/A",J22/$E22) -> 0.5333333333 | L22: =IFERROR(ROUNDUP(IF($E22*0.95-J22>=0,$E22*0.95-J22,""),0),"") -> 7 | M22: =SUMIFS(OFFSET(REL_D,,MATCH($M$6,IND,0)-1),REL_D,$C$6,OrgID,$C22) -> 8 | N22: =IF(OR(ISTEXT($E22),$E22=0),"N/A",M22/$E22) -> 0.5333333333 | O22: =IFERROR(ROUNDUP(IF($E22*0.95-M22>=0,$E22*0.95-M22,""),0),"") -> 7 | P22: =SUMIFS(OFFSET(REL_D,,MATCH($P$6,IND,0)-1),REL_D,$C$6,OrgID,$C22) -> 12 | Q22: =IF(OR(ISTEXT($E22),$E22=0),"N/A",P22/$E22) -> 0.8
A23: ='Control Panel'!A15 -> NW1 | B23: ='Control Panel'!B15 -> Cedar Practice | C23: ='Control Panel'!C15 -> F84036 | D23: 7779 | E23: 15 | F23: 14 | G23: =IF(OR(ISTEXT($E23),$E23=0),"N/A",F23/$E23) -> 0.9333333333 | H23: 13 | I23: =IF(OR(ISTEXT($E23),$E23=0),"N/A",H23/$E23) -> 0.8666666667 | J23: 12 | K23: =IF(OR(ISTEXT($E23),$E23=0),"N/A",J23/$E23) -> 0.8 | L23: 3 | M23: 11 | N23: =IF(OR(ISTEXT($E23),$E23=0),"N/A",M23/$E23) -> 0.7333333333 | O23: 4 | P23: 15 | Q23: =IF(OR(ISTEXT($E23),$E23=0),"N/A",P23/$E23) -> 1
A24: ='Control Panel'!A16 -> NW1 | B24: ='Control Panel'!B16 -> Heron Practice | C24: ='Control Panel'!C16 -> F84119 | D24: 12175 | E24: 34 | F24: 31 | G24: 0.9117647059 | H24: 28 | I24: 0.8235294118 | J24: 20 | K24: 0.5882352941 | L24: 13 | M24: 20 | N24: 0.5882352941 | O24: 13 | P24: 27 | Q24: 0.7941176471
A25: ='Control Panel'!A17 -> NW1 | B25: ='Control Panel'!B17 -> Statham Grove Surgery | C25: ='Control Panel'!C17 -> F84115 | D25: 8434 | E25: 13 | F25: 12 | G25: 0.9230769231 | H25: 12 | I25: 0.9230769231 | J25: 12 | K25: 0.9230769231 | L25: 1 | M25: 12 | N25: 0.9230769231 | O25: 1 | P25: 12 | Q25: 0.9230769231
A26: ='Control Panel'!A18 -> NW2 | B26: ='Control Panel'!B18 -> Barretts Grove Surgery | C26: ='Control Panel'!C18 -> F84636 | D26: 6610 | E26: 11 | F26: 11 | G26: 1 | H26: 11 | I26: 1 | J26: 10 | K26: 0.9090909091 | L26: 1 | M26: 11 | N26: 1 | P26: 11 | Q26: 1
A27: ='Control Panel'!A19 -> NW2 | B27: ='Control Panel'!B19 -> Barton House Health Centre | C27: ='Control Panel'!C19 -> F84008 | D27: 12199 | E27: 29 | F27: 28 | G27: 0.9655172414 | H27: 27 | I27: 0.9310344828 | J27: 27 | K27: 0.9310344828 | L27: 1 | M27: 27 | N27: 0.9310344828 | O27: 1 | P27: 26 | Q27: 0.8965517241
A28: ='Control Panel'!A20 -> NW2 | B28: ='Control Panel'!B20 -> Brooke Road Surgery | C28: ='Control Panel'!C20 -> F84694 | D28: 4620 | E28: 9 | F28: 9 | G28: =IF(OR(ISTEXT($E28),$E28=0),"N/A",F28/$E28) -> 1 | H28: 8 | I28: =IF(OR(ISTEXT($E28),$E28=0),"N/A",H28/$E28) -> 0.8888888889 | J28: 8 | K28: =IF(OR(ISTEXT($E28),$E28=0),"N/A",J28/$E28) -> 0.8888888889 | L28: 1 | M28: 8 | N28: =IF(OR(ISTEXT($E28),$E28=0),"N/A",M28/$E28) -> 0.8888888889 | O28: 1 | P28: 8 | Q28: =IF(OR(ISTEXT($E28),$E28=0),"N/A",P28/$E28) -> 0.8888888889
A29: ='Control Panel'!A21 -> NW2 | B29: ='Control Panel'!B21 -> Somerford Grove Health Centre | C29: ='Control Panel'!C21 -> F84033 | D29: 11950 | E29: 35 | F29: 32 | G29: 0.9142857143 | H29: 30 | I29: 0.8571428571 | J29: 25 | K29: 0.7142857143 | L29: 9 | M29: 25 | N29: 0.7142857143 | O29: 9 | P29: 28 | Q29: 0.8
A30: ='Control Panel'!A22 -> NE1 | B30: ='Control Panel'!B22 -> Cranwich Road Surgery | C30: ='Control Panel'!C22 -> F84686 | D30: 8438 | E30: 80 | F30: 49 | G30: 0.6125 | H30: 60 | I30: 0.75 | J30: 11 | K30: 0.1375 | L30: 65 | M30: 15 | N30: 0.1875 | O30: 61 | P30: 51 | Q30: 0.6375
A31: ='Control Panel'!A23 -> NE1 | B31: ='Control Panel'!B23 -> Spring Hill Practice | C31: ='Control Panel'!C23 -> Y03049 | D31: 14787 | E31: 65 | F31: 38 | G31: 0.5846153846 | H31: 43 | I31: 0.6615384615 | J31: 34 | K31: 0.5230769231 | L31: 28 | M31: 35 | N31: 0.5384615385 | O31: 27 | P31: 37 | Q31: 0.5692307692
A32: ='Control Panel'!A24 -> NE1 | B32: ='Control Panel'!B24 -> Stamford Hill Group Practice | C32: ='Control Panel'!C24 -> F84013 | D32: 16617 | E32: 104 | F32: 62 | G32: 0.5961538462 | H32: 71 | I32: 0.6826923077 | J32: 27 | K32: 0.2596153846 | L32: 72 | M32: 28 | N32: 0.2692307692 | O32: 71 | P32: 56 | Q32: 0.5384615385
A33: ='Control Panel'!A25 -> NE2 | B33: ='Control Panel'!B25 -> Clapton Surgery | C33: ='Control Panel'!C25 -> F84668 | D33: 6384 | E33: 42 | F33: 28 | G33: 0.6666666667 | H33: 34 | I33: 0.8095238095 | J33: 13 | K33: 0.3095238095 | L33: 27 | M33: 15 | N33: 0.3571428571 | O33: 25 | P33: 30 | Q33: 0.7142857143
A34: ='Control Panel'!A26 -> NE2 | B34: ='Control Panel'!B26 -> Elm Practice | C34: ='Control Panel'!C26 -> F84685 | D34: 3054 | E34: 15 | F34: 10 | G34: 0.6666666667 | H34: 10 | I34: 0.6666666667 | J34: 7 | K34: 0.4666666667 | L34: 8 | M34: 7 | N34: 0.4666666667 | O34: 8 | P34: 9 | Q34: 0.6
A35: ='Control Panel'!A27 -> NE2 | B35: ='Control Panel'!B27 -> Gadvhi Practice | C35: ='Control Panel'!C27 -> F84080 | D35: 5173 | E35: 23 | F35: 13 | G35: 0.5652173913 | H35: 15 | I35: 0.652173913 | J35: 9 | K35: 0.3913043478 | L35: 13 | M35: 10 | N35: 0.4347826087 | O35: 12 | P35: 11 | Q35: 0.4782608696
A36: ='Control Panel'!A28 -> NE2 | B36: ='Control Panel'!B28 -> Healy Medical Centre | C36: ='Control Panel'!C28 -> F84720 | D36: 5695 | E36: 12 | F36: 7 | G36: 0.5833333333 | H36: 6 | I36: 0.5 | J36: 3 | K36: 0.25 | L36: 9 | M36: 4 | N36: 0.3333333333 | O36: 8 | P36: 5 | Q36: 0.4166666667
A37: ='Control Panel'!A29 -> NE2 | B37: ='Control Panel'!B29 -> Nightingale Practice | C37: ='Control Panel'!C29 -> F84018 | D37: 12007 | E37: 32 | F37: 26 | G37: 0.8125 | H37: 26 | I37: 0.8125 | J37: 21 | K37: 0.65625 | L37: 10 | M37: 22 | N37: 0.6875 | O37: 9 | P37: 26 | Q37: 0.8125
A38: ='Control Panel'!A30 -> NE2 | B38: ='Control Panel'!B30 -> Riverside Practice | C38: ='Control Panel'!C30 -> F84619 | D38: 4871 | E38: 9 | F38: 8 | G38: 0.8888888889 | H38: 7 | I38: 0.7777777778 | J38: 7 | K38: 0.7777777778 | L38: 2 | M38: 7 | N38: 0.7777777778 | O38: 2 | P38: 8 | Q38: 0.8888888889
A39: ='Control Panel'!A31 -> NE2 | B39: ='Control Panel'!B31 -> Rosewood Practice | C39: ='Control Panel'!C31 -> F84711 | D39: 1856 | E39: 4 | F39: 3 | G39: 0.75 | H39: 3 | I39: 0.75 | J39: 3 | K39: 0.75 | L39: 1 | M39: 3 | N39: 0.75 | O39: 1 | P39: 2 | Q39: 0.5
A40: ='Control Panel'!A32 -> SE1 | B40: ='Control Panel'!B32 -> Athena Medical Centre | C40: ='Control Panel'!C32 -> F84060 | D40: 4858 | E40: 8 | F40: 6 | G40: 0.75 | H40: 6 | I40: 0.75 | J40: 3 | K40: 0.375 | L40: 5 | M40: 3 | N40: 0.375 | O40: 5 | P40: 6 | Q40: 0.75
A41: ='Control Panel'!A33 -> SE1 | B41: ='Control Panel'!B33 -> Latimer Health Centre | C41: ='Control Panel'!C33 -> F84719 | D41: 5324 | E41: 10 | F41: 10 | G41: 1 | H41: 10 | I41: 1 | J41: 6 | K41: 0.6 | L41: 4 | M41: 6 | N41: 0.6 | O41: 4 | P41: 8 | Q41: 0.8
A42: ='Control Panel'!A34 -> SE1 | B42: ='Control Panel'!B34 -> Lea Surgery | C42: ='Control Panel'!C34 -> F84105 | D42: 11954 | E42: 35 | F42: 34 | G42: 0.9714285714 | H42: 33 | I42: 0.9428571429 | J42: 33 | K42: 0.9428571429 | L42: 1 | M42: 33 | N42: 0.9428571429 | O42: 1 | P42: 34 | Q42: 0.9714285714
A43: ='Control Panel'!A35 -> SE1 | B43: ='Control Panel'!B35 -> Lower Clapton Health Centre | C43: ='Control Panel'!C35 -> F84003 | D43: 15043 | E43: 49 | F43: 48 | G43: 0.9795918367 | H43: 46 | I43: 0.9387755102 | J43: 44 | K43: 0.8979591837 | L43: 3 | M43: 43 | N43: 0.8775510204 | O43: 4 | P43: 45 | Q43: 0.9183673469
A44: ='Control Panel'!A36 -> SE1 | B44: ='Control Panel'!B36 -> Kingsmead Healthcare | C44: ='Control Panel'!C36 -> F84015 | D44: 5410 | E44: 15 | F44: 12 | G44: 0.8 | H44: 11 | I44: 0.7333333333 | J44: 8 | K44: 0.5333333333 | L44: 7 | M44: 8 | N44: 0.5333333333 | O44: 7 | P44: 11 | Q44: 0.7333333333
A45: ='Control Panel'!A37 -> SE2 | B45: ='Control Panel'!B37 -> Elsdale Street Surgery | C45: ='Control Panel'!C37 -> F84601 | D45: 7478 | E45: 18 | F45: 17 | G45: 0.9444444444 | H45: 14 | I45: 0.7777777778 | J45: 10 | K45: 0.5555555556 | L45: 8 | M45: 11 | N45: 0.6111111111 | O45: 7 | P45: 16 | Q45: 0.8888888889
A46: ='Control Panel'!A38 -> SE2 | B46: ='Control Panel'!B38 -> Greenhouse Health Centre | C46: ='Control Panel'!C38 -> F84632 | D46: 1269 | E46: 0 | F46: 0 | G46: N/A | H46: 0 | I46: N/A | J46: 0 | K46: N/A | L46: 0 | M46: 0 | N46: N/A | O46: 0 | P46: 0 | Q46: N/A
A47: ='Control Panel'!A39 -> SE2 | B47: ='Control Panel'!B39 -> Trowbridge Practice | C47: ='Control Panel'!C39 -> Y00403 | D47: 7655 | E47: 11 | F47: 10 | G47: 0.9090909091 | H47: 8 | I47: 0.7272727273 | J47: 9 | K47: 0.8181818182 | L47: 2 | M47: 9 | N47: 0.8181818182 | O47: 2 | P47: 10 | Q47: 0.9090909091
A48: ='Control Panel'!A40 -> SE2 | B48: ='Control Panel'!B40 -> Well Street Surgery | C48: ='Control Panel'!C40 -> F84069 | D48: 14343 | E48: 51 | F48: 50 | G48: 0.9803921569 | H48: 47 | I48: 0.9215686275 | J48: 38 | K48: 0.7450980392 | L48: 11 | M48: 41 | N48: 0.8039215686 | O48: 8 | P48: 45 | Q48: 0.8823529412
A49: ='Control Panel'!A41 -> SE2 | B49: ='Control Panel'!B41 -> Wick Health Centre | C49: ='Control Panel'!C41 -> F84620 | D49: 7574 | E49: 16 | F49: 15 | G49: 0.9375 | H49: 14 | I49: 0.875 | J49: 13 | K49: 0.8125 | L49: 3 | M49: 13 | N49: 0.8125 | O49: 3 | P49: 14 | Q49: 0.875
A50: ='Control Panel'!A42 -> SW1 | B50: ='Control Panel'!B42 -> Beechwood Medical Centre | C50: ='Control Panel'!C42 -> F84038 | D50: 3961 | E50: 10 | F50: 10 | G50: 1 | H50: 9 | I50: 0.9 | J50: 8 | K50: 0.8 | L50: 2 | M50: 9 | N50: 0.9 | O50: 1 | P50: 8 | Q50: 0.8
A51: ='Control Panel'!A43 -> SW1 | B51: ='Control Panel'!B43 -> Dalston Practice | C51: ='Control Panel'!C43 -> F84063 | D51: 6026 | E51: 11 | F51: 11 | G51: 1 | H51: 9 | I51: 0.8181818182 | J51: 6 | K51: 0.5454545455 | L51: 5 | M51: 8 | N51: 0.7272727273 | O51: 3 | P51: 9 | Q51: 0.8181818182
A52: ='Control Panel'!A44 -> SW1 | B52: ='Control Panel'!B44 -> London Fields Medical Centre | C52: ='Control Panel'!C44 -> F84021 | D52: 10825 | E52: 19 | F52: 19 | G52: 1 | H52: 19 | I52: 1 | J52: 19 | K52: 1 | M52: 18 | N52: 0.9473684211 | O52: 1 | P52: 19 | Q52: 1
A53: ='Control Panel'!A45 -> SW1 | B53: ='Control Panel'!B45 -> Queensbridge Group Practice | C53: ='Control Panel'!C45 -> F84117 | D53: 10509 | E53: 29 | F53: 28 | G53: 0.9655172414 | H53: 28 | I53: 0.9655172414 | J53: 27 | K53: 0.9310344828 | L53: 1 | M53: 26 | N53: 0.8965517241 | O53: 2 | P53: 29 | Q53: 1
A54: ='Control Panel'!A46 -> SW1 | B54: ='Control Panel'!B46 -> Richmond Road Medical Center | C54: ='Control Panel'!C46 -> F84035 | D54: 15601 | E54: 15 | F54: 14 | G54: 0.9333333333 | H54: 14 | I54: 0.9333333333 | J54: 11 | K54: 0.7333333333 | L54: 4 | M54: 12 | N54: 0.8 | O54: =IFERROR(ROUNDUP(IF($E54*0.95-M54>=0,$E54*0.95-M54,""),0),"") -> 3 | P54: 14 | Q54: 0.9333333333
A55: ='Control Panel'!A47 -> SW1 | B55: ='Control Panel'!B47 -> Sandringham Road Practice | C55: ='Control Panel'!C47 -> F84621 | D55: 4350 | E55: 8 | F55: 5 | G55: 0.625 | H55: 6 | I55: 0.75 | J55: 5 | K55: 0.625 | L55: 3 | M55: 5 | N55: 0.625 | O55: 3 | P55: 6 | Q55: 0.75
A56: ='Control Panel'!A48 -> SW2 | B56: ='Control Panel'!B48 -> De Beauvoir Surgery | C56: ='Control Panel'!C48 -> F84072 | D56: 12136 | E56: 28 | F56: 28 | G56: 1 | H56: 27 | I56: 0.9642857143 | J56: 24 | K56: 0.8571428571 | L56: 3 | M56: 25 | N56: 0.8928571429 | O56: 2 | P56: 26 | Q56: 0.9285714286
A57: ='Control Panel'!A49 -> SW2 | B57: ='Control Panel'!B49 -> Hoxton Surgery | C57: ='Control Panel'!C49 -> F84692 | D57: 7886 | E57: 15 | F57: 13 | G57: 0.8666666667 | H57: 12 | I57: 0.8 | J57: 13 | K57: 0.8666666667 | L57: 2 | M57: 12 | N57: 0.8 | O57: 3 | P57: 11 | Q57: 0.7333333333
A58: ='Control Panel'!A50 -> SW2 | B58: ='Control Panel'!B50 -> Lawson Practice | C58: ='Control Panel'!C50 -> F84096 | D58: 15081 | E58: 26 | F58: 26 | G58: 1 | H58: 25 | I58: 0.9615384615 | J58: 23 | K58: 0.8846153846 | L58: 2 | M58: 23 | N58: 0.8846153846 | O58: 2 | P58: 25 | Q58: 0.9615384615
A59: ='Control Panel'!A51 -> SW2 | B59: ='Control Panel'!B51 -> Shoreditch Park Surgery | C59: ='Control Panel'!C51 -> F84635 | D59: 10071 | E59: 23 | F59: 20 | G59: 0.8695652174 | H59: 18 | I59: 0.7826086957 | J59: 10 | K59: 0.4347826087 | L59: 12 | M59: 10 | N59: 0.4347826087 | O59: 12 | P59: 19 | Q59: 0.8260869565
A60: ='Control Panel'!A52 -> SW2 | B60: ='Control Panel'!B52 -> Southgate Rd MC & Whiston Rd Surgery | C60: ='Control Panel'!C52 -> F84041 | D60: 1986 | E60: 7 | F60: 6 | G60: 0.8571428571 | H60: 7 | I60: 1 | J60: 2 | K60: 0.2857142857 | L60: 5 | M60: 3 | N60: 0.4285714286 | O60: 4 | P60: 7 | Q60: 1
A61: ='Control Panel'!A53 -> SW2 | B61: ='Control Panel'!B53 -> Neaman Practice | C61: ='Control Panel'!C53 -> F84640 | D61: 9971 | E61: 13 | F61: 10 | G61: 0.7692307692 | H61: 10 | I61: 0.7692307692 | J61: 9 | K61: 0.6923076923 | L61: 4 | M61: 9 | N61: 0.6923076923 | O61: 4 | P61: 10 | Q61: 0.7692307692

Sheet Trending
D1: City and Hackney - Childhood Immunisations | M1: ="'"&K3&"'!$C$9:$AT$71" -> '1st April 2016'!$C$9:$AT$71
G2: City and Hackney (Without NE)
B3: 2015/16 Q1 | D3: =VLOOKUP(G2,'Control Panel'!B12:C55,2,0) -> Total (without NE) | G3: FHV | K3: 1st April 2016
G4: Patient becoming 12m | H4: Control Panel'!J34:J36
B6: =INDEX(INDIRECT(VLOOKUP($G$4,'Control Panel'!$E$78:$F$80,2,FALSE)),COLUMN(Rows!A1)) -> (01) 12 MONTH COHORT | C6: =INDEX(INDIRECT(VLOOKUP($G$4,'Control Panel'!$E$78:$F$80,2,FALSE)),COLUMN(Rows!B1)) -> (01.01) DTaP/IPV/Hib | D6: =INDEX(INDIRECT(VLOOKUP($G$4,'Control Panel'!$E$78:$F$80,2,FALSE)),COLUMN(Rows!C1)) -> (01.02) Men B (1st and 2nd) | E6: =INDEX(INDIRECT(VLOOKUP($G$4,'Control Panel'!$E$78:$F$80,2,FALSE)),COLUMN(Rows!D1)) -> (01.03) PCV
A7: Time Stamp | B7: =IFERROR(INDEX(INDIRECT(VLOOKUP($G$4,'Control Panel'!$E$73:$G$75,3,FALSE)),COLUMN(Rows!A17)),"") -> DTaP/IPV/Hib % | C7: =IFERROR(INDEX(INDIRECT(VLOOKUP($G$4,'Control Panel'!$E$73:$G$75,3,FALSE)),COLUMN(Rows!B17)),"") -> Men C / Men B % | D7: =IFERROR(INDEX(INDIRECT(VLOOKUP($G$4,'Control Panel'!$E$73:$G$75,3,FALSE)),COLUMN(Rows!C17)),"") -> PCV %
A8: 2015/16 Q1 | B8: =IFERROR(C36/B36,"") -> 0.8406961178 | C8: =IFERROR(D36/B36,"") -> 0.8795180723 | D8: =IFERROR(E36/B36,NA()) -> 0.8567603748
A9: 2015/16 Q2 | B9: 0.8324324324 | C9: 0.8743243243 | D9: =IFERROR(E37/B37,NA()) -> 0.8378378378
A10: 2015/16 Q3 | B10: 0.793255132 | C10: 0.8416422287 | D10: 0.8079178886
A11: 2015/16 Q4 | B11: 0.8143884892 | C11: 0.8690647482 | D11: 0.8258992806
A12: 2016/17 Q1 | B12: 0.8131101813 | C12: 0.8591352859 | D12: 0.8228730823
A13: 2016/17 Q2 | B13: 0.8680738786 | C13: 0.8852242744 | D13: 0.8680738786
A14: 2016/17 Q3 | B14: 0.897039897 | C14: 0.87001287 | D14: 0.9021879022
A15: 2016/17 Q4 | B15: 0.8832630098 | C15: 0.8846694796 | D15: 0.9071729958
A16: 2017/18 Q1 | B16: 0.867114094 | C16: 0.8496644295 | D16: 0.8697986577
A17: 2017/18 Q2 | B17: 0.874180865 | C17: 0.8597640891 | D17: 0.874180865
A18: 2017/18 Q3 | B18: 0.8655462185 | C18: 0.8585434174 | D18: 0.8781512605
A19: 2017/18 Q4 | B19: 0.8832630098 | C19: 0.8846694796 | D19: 0.9071729958
A20: 2018/19 Q1 | B20: 0.8685714286 | C20: 0.8514285714 | D20: 0.8828571429
A21: 2018/19 Q2 | B21: 0.8561151079 | C21: 0.8633093525 | D21: 0.871942446
A22: 2018/19 Q3 | B22: 0.8554744526 | C22: 0.8525547445 | D22: 0.8700729927
A23: 2018/19 Q4 | B23: 0.8622222222 | C23: 0.8607407407 | D23: 0.8725925926
A24: 2019/20 Q1 | B24: =IFERROR(C52/B52,"") -> 0.8732394366 | C24: 0.8633802817 | D24: 0.8774647887
A25: 2019/20 Q2 | B25: =IFERROR(C53/B53,"") -> 0.8862359551 | C25: 0.8848314607 | D25: 0.9030898876
A26: 2019/20 Q3 | B26: 0.8703956344 | C26: 0.8594815825 | D26: 0.8840381992
A27: 2019/20 Q4 | B27: 0.8761329305 | C27: 0.8821752266 | D27: 0.8882175227
A28: 2020/21 Q1 | B28: =IFERROR(C56/B56,"") -> 0.8707280832 | C28: =IFERROR(D56/B56,"") -> 0.8692421991 | D28: =IFERROR(E56/B56,NA()) -> 0.882615156
A29: 2020/21 Q2 | B29: =IFERROR(C57/B57,"") -> 0.8636363636 | C29: =IFERROR(D57/B57,"") -> 0.857771261 | D29: =IFERROR(E57/B57,NA()) -> 0.8592375367 | E29: PCV
A30: 2020/21 Q3 | B30: =IFERROR(C58/B58,"") -> 0.834384858 | C30: =IFERROR(D58/B58,"") -> 0.8264984227 | D30: =IFERROR(E58/B58,NA()) -> 0.8059936909
A31: 2020/21 Q4 | B31: =IFERROR(C59/B59,"") -> 0.8416666667 | C31: =IFERROR(D59/B59,"") -> 0.8383333333 | D31: =IFERROR(E59/B59,NA()) -> 0.885
A32: 2021/22 Q1 | B32: =IFERROR(C60/B60,"") -> 0.8477237049 | C32: =IFERROR(D60/B60,"") -> 0.84144427 | D32: =IFERROR(E60/B60,NA()) -> 0.874411303
A33: 2021/22 Q2 | B33: =IFERROR(C61/B61,"") -> 0.8242811502 | C33: =IFERROR(D61/B61,"") -> 0.8226837061 | D33: =IFERROR(E61/B61,NA()) -> 0.8674121406
A34: 2021/22 Q3 | B34: =IFERROR(C62/B62,"") -> 0.8564102564 | C34: =IFERROR(D62/B62,"") -> 0.852991453 | D34: =IFERROR(E62/B62,NA()) -> 0.8871794872
A35: 2021/22 Q4 | B35: =IFERROR(C63/B63,"") -> 0.8325123153 | C35: =IFERROR(D63/B63,"") -> 0.8275862069 | D35: =IFERROR(E63/B63,NA()) -> 0.8735632184
A36: 2015/16 Q1 | B36: =IF($D$3="Total (without NE)",VLOOKUP($A$36,'Total (Without NE)'!$B$1:$W$17,MATCH(B6,'Total (Without NE)'!$B$1:$W$1,0),FALSE),SUMIFS(OFFSET(REL_D,,MATCH($B$6,IND,0)-1),REL_D,$A36,OrgID,$D$3)) -> 747 | C36: =IF($D$3="Total (without NE)",VLOOKUP($A$36,'Total (Without NE)'!$B$1:$W$17,MATCH(C6,'Total (Without NE)'!$B$1:$W$1,0),FALSE),SUMIFS(OFFSET(REL_D,,MATCH($C$6,IND,0)-1),REL_D,$A36,OrgID,$D$3)) -> 628 | D36: =IF($D$3="Total (without NE)",VLOOKUP($A36,'Total (Without NE)'!$B$1:$W$17,MATCH($D$6,'Total (Without NE)'!$B$1:$W$1,0),FALSE),SUMIFS(OFFSET(REL_D,,MATCH($D$6,IND,0)-1),REL_D,$A36,OrgID,$D$3)) -> 657 | E36: =IF($D$3="Total (without NE)",VLOOKUP($A36,'Total (Without NE)'!$B$1:$W$17,MATCH($E$6,'Total (Without NE)'!$B$1:$W$1,0),FALSE),SUMIFS(OFFSET(REL_D,,MATCH($E$6,IND,0)-1),REL_D,$A36,OrgID,$D$3)) -> 640
A37: 2015/16 Q2 | B37: =IF($D$3="Total (without NE)",VLOOKUP($A37,'Total (Without NE)'!$B$1:$W$17,MATCH(B6,'Total (Without NE)'!$B$1:$W$1,0),FALSE),SUMIFS(OFFSET(REL_D,,MATCH($B$6,IND,0)-1),REL_D,$A37,OrgID,$D$3)) -> 740 | C37: =IF($D$3="Total (without NE)",VLOOKUP($A37,'Total (Without NE)'!$B$1:$W$17,MATCH($C$6,'Total (Without NE)'!$B$1:$W$1,0),FALSE),SUMIFS(OFFSET(REL_D,,MATCH($C$6,IND,0)-1),REL_D,$A37,OrgID,$D$3)) -> 616 | D37: =IF($D$3="Total (without NE)",VLOOKUP($A37,'Total (Without NE)'!$B$1:$W$17,MATCH($D$6,'Total (Without NE)'!$B$1:$W$1,0),FALSE),SUMIFS(OFFSET(REL_D,,MATCH($D$6,IND,0)-1),REL_D,$A37,OrgID,$D$3)) -> 647 | E37: =IF($D$3="Total (without NE)",VLOOKUP($A37,'Total (Without NE)'!$B$1:$W$17,MATCH($E$6,'Total (Without NE)'!$B$1:$W$1,0),FALSE),SUMIFS(OFFSET(REL_D,,MATCH($E$6,IND,0)-1),REL_D,$A37,OrgID,$D$3)) -> 620
A38: 2015/16 Q3 | B38: =IF($D$3="Total (without NE)",VLOOKUP($A38,'Total (Without NE)'!$B$1:$W$17,MATCH($B$6,'Total (Without NE)'!$B$1:$W$1,0),FALSE),SUMIFS(OFFSET(REL_D,,MATCH($B$6,IND,0)-1),REL_D,$A38,OrgID,$D$3)) -> 682 | C38: =IF($D$3="Total (without NE)",VLOOKUP($A38,'Total (Without NE)'!$B$1:$W$17,MATCH($C$6,'Total (Without NE)'!$B$1:$W$1,0),FALSE),SUMIFS(OFFSET(REL_D,,MATCH($C$6,IND,0)-1),REL_D,$A38,OrgID,$D$3)) -> 541 | D38: =IF($D$3="Total (without NE)",VLOOKUP($A38,'Total (Without NE)'!$B$1:$W$17,MATCH($D$6,'Total (Without NE)'!$B$1:$W$1,0),FALSE),SUMIFS(OFFSET(REL_D,,MATCH($D$6,IND,0)-1),REL_D,$A38,OrgID,$D$3)) -> 574 | E38: =IF($D$3="Total (without NE)",VLOOKUP($A38,'Total (Without NE)'!$B$1:$W$17,MATCH($E$6,'Total (Without NE)'!$B$1:$W$1,0),FALSE),SUMIFS(OFFSET(REL_D,,MATCH($E$6,IND,0)-1),REL_D,$A38,OrgID,$D$3)) -> 551
A39: 2015/16 Q4 | B39: =IF($D$3="Total (without NE)",VLOOKUP($A39,'Total (Without NE)'!$B$1:$W$17,MATCH($B$6,'Total (Without NE)'!$B$1:$W$1,0),FALSE),SUMIFS(OFFSET(REL_D,,MATCH($B$6,IND,0)-1),REL_D,$A39,OrgID,$D$3)) -> 695 | C39: =IF($D$3="Total (without NE)",VLOOKUP($A39,'Total (Without NE)'!$B$1:$W$17,MATCH($C$6,'Total (Without NE)'!$B$1:$W$1,0),FALSE),SUMIFS(OFFSET(REL_D,,MATCH($C$6,IND,0)-1),REL_D,$A39,OrgID,$D$3)) -> 566 | D39: =IF($D$3="Total (without NE)",VLOOKUP($A39,'Total (Without NE)'!$B$1:$W$17,MATCH($D$6,'Total (Without NE)'!$B$1:$W$1,0),FALSE),SUMIFS(OFFSET(REL_D,,MATCH($D$6,IND,0)-1),REL_D,$A39,OrgID,$D$3)) -> 604 | E39: =IF($D$3="Total (without NE)",VLOOKUP($A39,'Total (Without NE)'!$B$1:$W$17,MATCH($E$6,'Total (Without NE)'!$B$1:$W$1,0),FALSE),SUMIFS(OFFSET(REL_D,,MATCH($E$6,IND,0)-1),REL_D,$A39,OrgID,$D$3)) -> 574
A40: 2016/17 Q1 | B40: =IF($D$3="Total (without NE)",VLOOKUP($A40,'Total (Without NE)'!$B$1:$W$17,MATCH($B$6,'Total (Without NE)'!$B$1:$W$1,0),FALSE),SUMIFS(OFFSET(REL_D,,MATCH($B$6,IND,0)-1),REL_D,$A40,OrgID,$D$3)) -> 717 | C40: =IF($D$3="Total (without NE)",VLOOKUP($A40,'Total (Without NE)'!$B$1:$W$17,MATCH($C$6,'Total (Without NE)'!$B$1:$W$1,0),FALSE),SUMIFS(OFFSET(REL_D,,MATCH($C$6,IND,0)-1),REL_D,$A40,OrgID,$D$3)) -> 583 | D40: =IF($D$3="Total (without NE)",VLOOKUP($A40,'Total (Without NE)'!$B$1:$W$17,MATCH($D$6,'Total (Without NE)'!$B$1:$W$1,0),FALSE),SUMIFS(OFFSET(REL_D,,MATCH($D$6,IND,0)-1),REL_D,$A40,OrgID,$D$3)) -> 616 | E40: =IF($D$3="Total (without NE)",VLOOKUP($A40,'Total (Without NE)'!$B$1:$W$17,MATCH($E$6,'Total (Without NE)'!$B$1:$W$1,0),FALSE),SUMIFS(OFFSET(REL_D,,MATCH($E$6,IND,0)-1),REL_D,$A40,OrgID,$D$3)) -> 590
A41: 2016/17 Q2 | B41: =IF($D$3="Total (without NE)",VLOOKUP($A41,'Total (Without NE)'!$B$1:$W$17,MATCH($B$6,'Total (Without NE)'!$B$1:$W$1,0),FALSE),SUMIFS(OFFSET(REL_D,,MATCH($B$6,IND,0)-1),REL_D,$A41,OrgID,$D$3)) -> 758 | C41: =IF($D$3="Total (without NE)",VLOOKUP($A41,'Total (Without NE)'!$B$1:$W$17,MATCH($C$6,'Total (Without NE)'!$B$1:$W$1,0),FALSE),SUMIFS(OFFSET(REL_D,,MATCH($C$6,IND,0)-1),REL_D,$A41,OrgID,$D$3)) -> 658 | D41: =IF($D$3="Total (without NE)",VLOOKUP($A41,'Total (Without NE)'!$B$1:$W$17,MATCH($D$6,'Total (Without NE)'!$B$1:$W$1,0),FALSE),SUMIFS(OFFSET(REL_D,,MATCH($D$6,IND,0)-1),REL_D,$A41,OrgID,$D$3)) -> 671 | E41: =IF($D$3="Total (without NE)",VLOOKUP($A41,'Total (Without NE)'!$B$1:$W$17,MATCH($E$6,'Total (Without NE)'!$B$1:$W$1,0),FALSE),SUMIFS(OFFSET(REL_D,,MATCH($E$6,IND,0)-1),REL_D,$A41,OrgID,$D$3)) -> 658
A42: 2016/17 Q3 | B42: =IF($D$3="Total (without NE)",VLOOKUP($A42,'Total (Without NE)'!$B$1:$W$17,MATCH($B$6,'Total (Without NE)'!$B$1:$W$1,0),FALSE),SUMIFS(OFFSET(REL_D,,MATCH($B$6,IND,0)-1),REL_D,$A42,OrgID,$D$3)) -> 777 | C42: =IF($D$3="Total (without NE)",VLOOKUP($A42,'Total (Without NE)'!$B$1:$W$17,MATCH($C$6,'Total (Without NE)'!$B$1:$W$1,0),FALSE),SUMIFS(OFFSET(REL_D,,MATCH($C$6,IND,0)-1),REL_D,$A42,OrgID,$D$3)) -> 697 | D42: =IF($D$3="Total (without NE)",VLOOKUP($A42,'Total (Without NE)'!$B$1:$W$17,MATCH($D$6,'Total (Without NE)'!$B$1:$W$1,0),FALSE),SUMIFS(OFFSET(REL_D,,MATCH($D$6,IND,0)-1),REL_D,$A42,OrgID,$D$3)) -> 676 | E42: =IF($D$3="Total (without NE)",VLOOKUP($A42,'Total (Without NE)'!$B$1:$W$17,MATCH($E$6,'Total (Without NE)'!$B$1:$W$1,0),FALSE),SUMIFS(OFFSET(REL_D,,MATCH($E$6,IND,0)-1),REL_D,$A42,OrgID,$D$3)) -> 701
A43: 2016/17 Q4 | B43: =IF($D$3="Total (without NE)",VLOOKUP($A43,'Total (Without NE)'!$B$1:$W$17,MATCH($B$6,'Total (Without NE)'!$B$1:$W$1,0),FALSE),SUMIFS(OFFSET(REL_D,,MATCH($B$6,IND,0)-1),REL_D,$A43,OrgID,$D$3)) -> 711 | C43: =IF($D$3="Total (without NE)",VLOOKUP($A43,'Total (Without NE)'!$B$1:$W$17,MATCH($C$6,'Total (Without NE)'!$B$1:$W$1,0),FALSE),SUMIFS(OFFSET(REL_D,,MATCH($C$6,IND,0)-1),REL_D,$A43,OrgID,$D$3)) -> 628 | D43: =IF($D$3="Total (without NE)",VLOOKUP($A43,'Total (Without NE)'!$B$1:$W$17,MATCH($D$6,'Total (Without NE)'!$B$1:$W$1,0),FALSE),SUMIFS(OFFSET(REL_D,,MATCH($D$6,IND,0)-1),REL_D,$A43,OrgID,$D$3)) -> 629 | E43: =IF($D$3="Total (without NE)",VLOOKUP($A43,'Total (Without NE)'!$B$1:$W$17,MATCH($E$6,'Total (Without NE)'!$B$1:$W$1,0),FALSE),SUMIFS(OFFSET(REL_D,,MATCH($E$6,IND,0)-1),REL_D,$A43,OrgID,$D$3)) -> 645
A44: 2017/18 Q1 | B44: =IF($D$3="Total (without NE)",VLOOKUP($A44,'Total (Without NE)'!$B$1:$W$17,MATCH($B$6,'Total (Without NE)'!$B$1:$W$1,0),FALSE),SUMIFS(OFFSET(REL_D,,MATCH($B$6,IND,0)-1),REL_D,$A44,OrgID,$D$3)) -> 745 | C44: =IF($D$3="Total (without NE)",VLOOKUP($A44,'Total (Without NE)'!$B$1:$W$17,MATCH($C$6,'Total (Without NE)'!$B$1:$W$1,0),FALSE),SUMIFS(OFFSET(REL_D,,MATCH($C$6,IND,0)-1),REL_D,$A44,OrgID,$D$3)) -> 646 | D44: =IF($D$3="Total (without NE)",VLOOKUP($A44,'Total (Without NE)'!$B$1:$W$17,MATCH($D$6,'Total (Without NE)'!$B$1:$W$1,0),FALSE),SUMIFS(OFFSET(REL_D,,MATCH($D$6,IND,0)-1),REL_D,$A44,OrgID,$D$3)) -> 633 | E44: =IF($D$3="Total (without NE)",VLOOKUP($A44,'Total (Without NE)'!$B$1:$W$17,MATCH($E$6,'Total (Without NE)'!$B$1:$W$1,0),FALSE),SUMIFS(OFFSET(REL_D,,MATCH($E$6,IND,0)-1),REL_D,$A44,OrgID,$D$3)) -> 648
A45: 2017/18 Q2 | B45: =IF($D$3="Total (without NE)",VLOOKUP($A45,'Total (Without NE)'!$B$1:$W$17,MATCH($B$6,'Total (Without NE)'!$B$1:$W$1,0),FALSE),SUMIFS(OFFSET(REL_D,,MATCH($B$6,IND,0)-1),REL_D,$A45,OrgID,$D$3)) -> 763 | C45: =IF($D$3="Total (without NE)",VLOOKUP($A45,'Total (Without NE)'!$B$1:$W$17,MATCH($C$6,'Total (Without NE)'!$B$1:$W$1,0),FALSE),SUMIFS(OFFSET(REL_D,,MATCH($C$6,IND,0)-1),REL_D,$A45,OrgID,$D$3)) -> 667 | D45: =IF($D$3="Total (without NE)",VLOOKUP($A45,'Total (Without NE)'!$B$1:$W$17,MATCH($D$6,'Total (Without NE)'!$B$1:$W$1,0),FALSE),SUMIFS(OFFSET(REL_D,,MATCH($D$6,IND,0)-1),REL_D,$A45,OrgID,$D$3)) -> 656 | E45: =IF($D$3="Total (without NE)",VLOOKUP($A45,'Total (Without NE)'!$B$1:$W$17,MATCH($E$6,'Total (Without NE)'!$B$1:$W$1,0),FALSE),SUMIFS(OFFSET(REL_D,,MATCH($E$6,IND,0)-1),REL_D,$A45,OrgID,$D$3)) -> 667
A46: 2017/18 Q3 | B46: =IF($D$3="Total (without NE)",VLOOKUP($A46,'Total (Without NE)'!$B$1:$W$17,MATCH($B$6,'Total (Without NE)'!$B$1:$W$1,0),FALSE),SUMIFS(OFFSET(REL_D,,MATCH($B$6,IND,0)-1),REL_D,$A46,OrgID,$D$3)) -> 714 | C46: =IF($D$3="Total (without NE)",VLOOKUP($A46,'Total (Without NE)'!$B$1:$W$17,MATCH($C$6,'Total (Without NE)'!$B$1:$W$1,0),FALSE),SUMIFS(OFFSET(REL_D,,MATCH($C$6,IND,0)-1),REL_D,$A46,OrgID,$D$3)) -> 618 | D46: =IF($D$3="Total (without NE)",VLOOKUP($A46,'Total (Without NE)'!$B$1:$W$17,MATCH($D$6,'Total (Without NE)'!$B$1:$W$1,0),FALSE),SUMIFS(OFFSET(REL_D,,MATCH($D$6,IND,0)-1),REL_D,$A46,OrgID,$D$3)) -> 613 | E46: =IF($D$3="Total (without NE)",VLOOKUP($A46,'Total (Without NE)'!$B$1:$W$17,MATCH($E$6,'Total (Without NE)'!$B$1:$W$1,0),FALSE),SUMIFS(OFFSET(REL_D,,MATCH($E$6,IND,0)-1),REL_D,$A46,OrgID,$D$3)) -> 627
A47: 2017/18 Q4 | B47: =IF($D$3="Total (without NE)",VLOOKUP($A47,'Total (Without NE)'!$B$1:$W$17,MATCH($B$6,'Total (Without NE)'!$B$1:$W$1,0),FALSE),SUMIFS(OFFSET(REL_D,,MATCH($B$6,IND,0)-1),REL_D,$A47,OrgID,$D$3)) -> 711 | C47: =IF($D$3="Total (without NE)",VLOOKUP($A47,'Total (Without NE)'!$B$1:$W$17,MATCH($C$6,'Total (Without NE)'!$B$1:$W$1,0),FALSE),SUMIFS(OFFSET(REL_D,,MATCH($C$6,IND,0)-1),REL_D,$A47,OrgID,$D$3)) -> 628 | D47: =IF($D$3="Total (without NE)",VLOOKUP($A47,'Total (Without NE)'!$B$1:$W$17,MATCH($D$6,'Total (Without NE)'!$B$1:$W$1,0),FALSE),SUMIFS(OFFSET(REL_D,,MATCH($D$6,IND,0)-1),REL_D,$A47,OrgID,$D$3)) -> 629 | E47: =IF($D$3="Total (without NE)",VLOOKUP($A47,'Total (Without NE)'!$B$1:$W$17,MATCH($E$6,'Total (Without NE)'!$B$1:$W$1,0),FALSE),SUMIFS(OFFSET(REL_D,,MATCH($E$6,IND,0)-1),REL_D,$A47,OrgID,$D$3)) -> 645
A48: 2018-06-01 | B48: =IF($D$3="Total (without NE)",VLOOKUP($A48,'Total (Without NE)'!$B$1:$W$17,MATCH($B$6,'Total (Without NE)'!$B$1:$W$1,0),FALSE),SUMIFS(OFFSET(REL_D,,MATCH($B$6,IND,0)-1),REL_D,$A48,OrgID,$D$3)) -> 700 | C48: =IF($D$3="Total (without NE)",VLOOKUP($A48,'Total (Without NE)'!$B$1:$W$17,MATCH($C$6,'Total (Without NE)'!$B$1:$W$1,0),FALSE),SUMIFS(OFFSET(REL_D,,MATCH($C$6,IND,0)-1),REL_D,$A48,OrgID,$D$3)) -> 608 | D48: =IF($D$3="Total (without NE)",VLOOKUP($A48,'Total (Without NE)'!$B$1:$W$17,MATCH($D$6,'Total (Without NE)'!$B$1:$W$1,0),FALSE),SUMIFS(OFFSET(REL_D,,MATCH($D$6,IND,0)-1),REL_D,$A48,OrgID,$D$3)) -> 596 | E48: =IF($D$3="Total (without NE)",VLOOKUP($A48,'Total (Without NE)'!$B$1:$W$17,MATCH($E$6,'Total (Without NE)'!$B$1:$W$1,0),FALSE),SUMIFS(OFFSET(REL_D,,MATCH($E$6,IND,0)-1),REL_D,$A48,OrgID,$D$3)) -> 618
A49: 2018-09-01 | B49: =IF($D$3="Total (without NE)",VLOOKUP($A49,'Total (Without NE)'!$B$1:$W$17,MATCH($B$6,'Total (Without NE)'!$B$1:$W$1,0),FALSE),SUMIFS(OFFSET(REL_D,,MATCH($B$6,IND,0)-1),REL_D,$A49,OrgID,$D$3)) -> 695 | C49: =IF($D$3="Total (without NE)",VLOOKUP($A49,'Total (Without NE)'!$B$1:$W$17,MATCH($C$6,'Total (Without NE)'!$B$1:$W$1,0),FALSE),SUMIFS(OFFSET(REL_D,,MATCH($C$6,IND,0)-1),REL_D,$A49,OrgID,$D$3)) -> 595 | D49: =IF($D$3="Total (without NE)",VLOOKUP($A49,'Total (Without NE)'!$B$1:$W$17,MATCH($D$6,'Total (Without NE)'!$B$1:$W$1,0),FALSE),SUMIFS(OFFSET(REL_D,,MATCH($D$6,IND,0)-1),REL_D,$A49,OrgID,$D$3)) -> 600 | E49: =IF($D$3="Total (without NE)",VLOOKUP($A49,'Total (Without NE)'!$B$1:$W$17,MATCH($E$6,'Total (Without NE)'!$B$1:$W$1,0),FALSE),SUMIFS(OFFSET(REL_D,,MATCH($E$6,IND,0)-1),REL_D,$A49,OrgID,$D$3)) -> 606
A50: 2018-12-01 | B50: =IF($D$3="Total (without NE)",VLOOKUP($A50,'Total (Without NE)'!$B$1:$W$17,MATCH($B$6,'Total (Without NE)'!$B$1:$W$1,0),FALSE),SUMIFS(OFFSET(REL_D,,MATCH($B$6,IND,0)-1),REL_D,$A50,OrgID,$D$3)) -> 685 | C50: =IF($D$3="Total (without NE)",VLOOKUP($A50,'Total (Without NE)'!$B$1:$W$17,MATCH($C$6,'Total (Without NE)'!$B$1:$W$1,0),FALSE),SUMIFS(OFFSET(REL_D,,MATCH($C$6,IND,0)-1),REL_D,$A50,OrgID,$D$3)) -> 586 | D50: =IF($D$3="Total (without NE)",VLOOKUP($A50,'Total (Without NE)'!$B$1:$W$17,MATCH($D$6,'Total (Without NE)'!$B$1:$W$1,0),FALSE),SUMIFS(OFFSET(REL_D,,MATCH($D$6,IND,0)-1),REL_D,$A50,OrgID,$D$3)) -> 584 | E50: =IF($D$3="Total (without NE)",VLOOKUP($A50,'Total (Without NE)'!$B$1:$W$17,MATCH($E$6,'Total (Without NE)'!$B$1:$W$1,0),FALSE),SUMIFS(OFFSET(REL_D,,MATCH($E$6,IND,0)-1),REL_D,$A50,OrgID,$D$3)) -> 596
A51: 2019-03-01 | B51: =IF($D$3="Total (without NE)",VLOOKUP($A51,'Total (Without NE)'!$B$1:$W$17,MATCH($B$6,'Total (Without NE)'!$B$1:$W$1,0),FALSE),SUMIFS(OFFSET(REL_D,,MATCH($B$6,IND,0)-1),REL_D,$A51,OrgID,$D$3)) -> 675 | C51: =IF($D$3="Total (without NE)",VLOOKUP($A51,'Total (Without NE)'!$B$1:$W$17,MATCH($C$6,'Total (Without NE)'!$B$1:$W$1,0),FALSE),SUMIFS(OFFSET(REL_D,,MATCH($C$6,IND,0)-1),REL_D,$A51,OrgID,$D$3)) -> 582 | D51: =IF($D$3="Total (without NE)",VLOOKUP($A51,'Total (Without NE)'!$B$1:$W$17,MATCH($D$6,'Total (Without NE)'!$B$1:$W$1,0),FALSE),SUMIFS(OFFSET(REL_D,,MATCH($D$6,IND,0)-1),REL_D,$A51,OrgID,$D$3)) -> 581 | E51: =IF($D$3="Total (without NE)",VLOOKUP($A51,'Total (Without NE)'!$B$1:$W$17,MATCH($E$6,'Total (Without NE)'!$B$1:$W$1,0),FALSE),SUMIFS(OFFSET(REL_D,,MATCH($E$6,IND,0)-1),REL_D,$A51,OrgID,$D$3)) -> 589
A52: 2019-06-01 | B52: =IF($D$3="Total (without NE)",VLOOKUP($A52,'Total (Without NE)'!$B$1:$W$20,MATCH($B$6,'Total (Without NE)'!$B$1:$W$1,0),FALSE),SUMIFS(OFFSET(REL_D,,MATCH($B$6,IND,0)-1),REL_D,$A52,OrgID,$D$3)) -> 710 | C52: =IF($D$3="Total (without NE)",VLOOKUP($A52,'Total (Without NE)'!$B$1:$W$20,MATCH($C$6,'Total (Without NE)'!$B$1:$W$1,0),FALSE),SUMIFS(OFFSET(REL_D,,MATCH($C$6,IND,0)-1),REL_D,$A52,OrgID,$D$3)) -> 620 | D52: =IF($D$3="Total (without NE)",VLOOKUP($A52,'Total (Without NE)'!$B$1:$W$20,MATCH($D$6,'Total (Without NE)'!$B$1:$W$1,0),FALSE),SUMIFS(OFFSET(REL_D,,MATCH($D$6,IND,0)-1),REL_D,$A52,OrgID,$D$3)) -> 613 | E52: =IF($D$3="Total (without NE)",VLOOKUP($A52,'Total (Without NE)'!$B$1:$W$20,MATCH($E$6,'Total (Without NE)'!$B$1:$W$1,0),FALSE),SUMIFS(OFFSET(REL_D,,MATCH($E$6,IND,0)-1),REL_D,$A52,OrgID,$D$3)) -> 623
A53: 2019-09-01 | B53: =IF($D$3="Total (without NE)",VLOOKUP($A53,'Total (Without NE)'!$B$1:$W$19,MATCH($B$6,'Total (Without NE)'!$B$1:$W$1,0),FALSE),SUMIFS(OFFSET(REL_D,,MATCH($B$6,IND,0)-1),REL_D,$A53,OrgID,$D$3)) -> 712 | C53: =IF($D$3="Total (without NE)",VLOOKUP($A53,'Total (Without NE)'!$B$1:$W$19,MATCH($C$6,'Total (Without NE)'!$B$1:$W$1,0),FALSE),SUMIFS(OFFSET(REL_D,,MATCH($C$6,IND,0)-1),REL_D,$A53,OrgID,$D$3)) -> 631 | D53: =IF($D$3="Total (without NE)",VLOOKUP($A53,'Total (Without NE)'!$B$1:$W$19,MATCH($D$6,'Total (Without NE)'!$B$1:$W$1,0),FALSE),SUMIFS(OFFSET(REL_D,,MATCH($D$6,IND,0)-1),REL_D,$A53,OrgID,$D$3)) -> 630 | E53: =IF($D$3="Total (without NE)",VLOOKUP($A53,'Total (Without NE)'!$B$1:$W$19,MATCH($E$6,'Total (Without NE)'!$B$1:$W$1,0),FALSE),SUMIFS(OFFSET(REL_D,,MATCH($E$6,IND,0)-1),REL_D,$A53,OrgID,$D$3)) -> 643
A54: 2019-12-01 | B54: =IF($D$3="Total (without NE)",VLOOKUP($A54,'Total (Without NE)'!$B$1:$W$21,MATCH($B$6,'Total (Without NE)'!$B$1:$W$1,0),FALSE),SUMIFS(OFFSET(REL_D,,MATCH($B$6,IND,0)-1),REL_D,$A54,OrgID,$D$3)) -> 733 | C54: =IF($D$3="Total (without NE)",VLOOKUP($A54,'Total (Without NE)'!$B$1:$W$21,MATCH($C$6,'Total (Without NE)'!$B$1:$W$1,0),FALSE),SUMIFS(OFFSET(REL_D,,MATCH($C$6,IND,0)-1),REL_D,$A54,OrgID,$D$3)) -> 638 | D54: =IF($D$3="Total (without NE)",VLOOKUP($A54,'Total (Without NE)'!$B$1:$W$21,MATCH($D$6,'Total (Without NE)'!$B$1:$W$1,0),FALSE),SUMIFS(OFFSET(REL_D,,MATCH($D$6,IND,0)-1),REL_D,$A54,OrgID,$D$3)) -> 630 | E54: =IF($D$3="Total (without NE)",VLOOKUP($A54,'Total (Without NE)'!$B$1:$W$21,MATCH($E$6,'Total (Without NE)'!$B$1:$W$1,0),FALSE),SUMIFS(OFFSET(REL_D,,MATCH($E$6,IND,0)-1),REL_D,$A54,OrgID,$D$3)) -> 648
A55: 2020-03-01 | B55: =IF($D$3="Total (without NE)",VLOOKUP($A55,'Total (Without NE)'!$B$1:$W$21,MATCH($B$6,'Total (Without NE)'!$B$1:$W$1,0),FALSE),SUMIFS(OFFSET(REL_D,,MATCH($B$6,IND,0)-1),REL_D,$A55,OrgID,$D$3)) -> 662 | C55: =IF($D$3="Total (without NE)",VLOOKUP($A55,'Total (Without NE)'!$B$1:$W$21,MATCH($C$6,'Total (Without NE)'!$B$1:$W$1,0),FALSE),SUMIFS(OFFSET(REL_D,,MATCH($C$6,IND,0)-1),REL_D,$A55,OrgID,$D$3)) -> 580 | D55: =IF($D$3="Total (without NE)",VLOOKUP($A55,'Total (Without NE)'!$B$1:$W$21,MATCH($D$6,'Total (Without NE)'!$B$1:$W$1,0),FALSE),SUMIFS(OFFSET(REL_D,,MATCH($D$6,IND,0)-1),REL_D,$A55,OrgID,$D$3)) -> 584 | E55: =IF($D$3="Total (without NE)",VLOOKUP($A55,'Total (Without NE)'!$B$1:$W$21,MATCH($E$6,'Total (Without NE)'!$B$1:$W$1,0),FALSE),SUMIFS(OFFSET(REL_D,,MATCH($E$6,IND,0)-1),REL_D,$A55,OrgID,$D$3)) -> 588
A56: 2020-06-01 | B56: =_xlfn.SINGLE(IF($D$3="Total (without NE)",VLOOKUP($A56,'Total (Without NE)'!$B$1:$W$22,MATCH($B$6,'Total (Without NE)'!$B$1:$W$1,0),FALSE),SUMIFS(OFFSET(REL_D,,MATCH($B$6,IND,0)-1),REL_D,$A56,OrgID,$D$3))) -> 673 | C56: =_xlfn.SINGLE(IF($D$3="Total (without NE)",VLOOKUP($A56,'Total (Without NE)'!$B$1:$W$22,MATCH($C$6,'Total (Without NE)'!$B$1:$W$1,0),FALSE),SUMIFS(OFFSET(REL_D,,MATCH($C$6,IND,0)-1),REL_D,$A56,OrgID,$D$3))) -> 586 | D56: =_xlfn.SINGLE(IF($D$3="Total (without NE)",VLOOKUP($A56,'Total (Without NE)'!$B$1:$W$22,MATCH($D$6,'Total (Without NE)'!$B$1:$W$1,0),FALSE),SUMIFS(OFFSET(REL_D,,MATCH($D$6,IND,0)-1),REL_D,$A56,OrgID,$D$3))) -> 585 | E56: =_xlfn.SINGLE(IF($D$3="Total (without NE)",VLOOKUP($A56,'Total (Without NE)'!$B$1:$W$22,MATCH($E$6,'Total (Without NE)'!$B$1:$W$1,0),FALSE),SUMIFS(OFFSET(REL_D,,MATCH($E$6,IND,0)-1),REL_D,$A56,OrgID,$D$3))) -> 594
A57: 2020-09-01 | B57: =_xlfn.SINGLE(IF($D$3="Total (without NE)",VLOOKUP($A57,'Total (Without NE)'!$B$1:$W$23,MATCH($B$6,'Total (Without NE)'!$B$1:$W$1,0),FALSE),SUMIFS(OFFSET(REL_D,,MATCH($B$6,IND,0)-1),REL_D,$A57,OrgID,$D$3))) -> 682 | C57: =_xlfn.SINGLE(IF($D$3="Total (without NE)",VLOOKUP($A57,'Total (Without NE)'!$B$1:$W$23,MATCH($C$6,'Total (Without NE)'!$B$1:$W$1,0),FALSE),SUMIFS(OFFSET(REL_D,,MATCH($C$6,IND,0)-1),REL_D,$A57,OrgID,$D$3))) -> 589 | D57: =_xlfn.SINGLE(IF($D$3="Total (without NE)",VLOOKUP($A57,'Total (Without NE)'!$B$1:$W$23,MATCH($D$6,'Total (Without NE)'!$B$1:$W$1,0),FALSE),SUMIFS(OFFSET(REL_D,,MATCH($D$6,IND,0)-1),REL_D,$A57,OrgID,$D$3))) -> 585 | E57: =_xlfn.SINGLE(IF($D$3="Total (without NE)",VLOOKUP($A57,'Total (Without NE)'!$B$1:$W$23,MATCH($E$6,'Total (Without NE)'!$B$1:$W$1,0),FALSE),SUMIFS(OFFSET(REL_D,,MATCH($E$6,IND,0)-1),REL_D,$A57,OrgID,$D$3))) -> 586
A58: 2020-12-01 | B58: =_xlfn.SINGLE(IF($D$3="Total (without NE)",VLOOKUP($A58,'Total (Without NE)'!$B$1:$W$24,MATCH($B$6,'Total (Without NE)'!$B$1:$W$1,0),FALSE),SUMIFS(OFFSET(REL_D,,MATCH($B$6,IND,0)-1),REL_D,$A58,OrgID,$D$3))) -> 634 | C58: =_xlfn.SINGLE(IF($D$3="Total (without NE)",VLOOKUP($A58,'Total (Without NE)'!$B$1:$W$24,MATCH($C$6,'Total (Without NE)'!$B$1:$W$1,0),FALSE),SUMIFS(OFFSET(REL_D,,MATCH($C$6,IND,0)-1),REL_D,$A58,OrgID,$D$3))) -> 529 | D58: =_xlfn.SINGLE(IF($D$3="Total (without NE)",VLOOKUP($A58,'Total (Without NE)'!$B$1:$W$24,MATCH($D$6,'Total (Without NE)'!$B$1:$W$1,0),FALSE),SUMIFS(OFFSET(REL_D,,MATCH($D$6,IND,0)-1),REL_D,$A58,OrgID,$D$3))) -> 524 | E58: =_xlfn.SINGLE(IF($D$3="Total (without NE)",VLOOKUP($A58,'Total (Without NE)'!$B$1:$W$24,MATCH($E$6,'Total (Without NE)'!$B$1:$W$1,0),FALSE),SUMIFS(OFFSET(REL_D,,MATCH($E$6,IND,0)-1),REL_D,$A58,OrgID,$D$3))) -> 511
A59: 2021-03-01 | B59: =_xlfn.SINGLE(IF($D$3="Total (without NE)",VLOOKUP($A59,'Total (Without NE)'!$B$1:$W$30,MATCH($B$6,'Total (Without NE)'!$B$1:$W$1,0),FALSE),SUMIFS(OFFSET(REL_D,,MATCH($B$6,IND,0)-1),REL_D,$A59,OrgID,$D$3))) -> 600 | C59: =_xlfn.SINGLE(IF($D$3="Total (without NE)",VLOOKUP($A59,'Total (Without NE)'!$B$1:$W$30,MATCH($C$6,'Total (Without NE)'!$B$1:$W$1,0),FALSE),SUMIFS(OFFSET(REL_D,,MATCH($C$6,IND,0)-1),REL_D,$A59,OrgID,$D$3))) -> 505 | D59: =_xlfn.SINGLE(IF($D$3="Total (without NE)",VLOOKUP($A59,'Total (Without NE)'!$B$1:$W$30,MATCH($D$6,'Total (Without NE)'!$B$1:$W$1,0),FALSE),SUMIFS(OFFSET(REL_D,,MATCH($D$6,IND,0)-1),REL_D,$A59,OrgID,$D$3))) -> 503 | E59: =_xlfn.SINGLE(IF($D$3="Total (without NE)",VLOOKUP($A59,'Total (Without NE)'!$B$1:$W$30,MATCH($E$6,'Total (Without NE)'!$B$1:$W$1,0),FALSE),SUMIFS(OFFSET(REL_D,,MATCH($E$6,IND,0)-1),REL_D,$A59,OrgID,$D$3))) -> 531
A60: 2021-06-01 | B60: =_xlfn.SINGLE(IF($D$3="Total (without NE)",VLOOKUP($A60,'Total (Without NE)'!$B$1:$W$30,MATCH($B$6,'Total (Without NE)'!$B$1:$W$1,0),FALSE),SUMIFS(OFFSET(REL_D,,MATCH($B$6,IND,0)-1),REL_D,$A60,OrgID,$D$3))) -> 637 | C60: =_xlfn.SINGLE(IF($D$3="Total (without NE)",VLOOKUP($A60,'Total (Without NE)'!$B$1:$W$30,MATCH($C$6,'Total (Without NE)'!$B$1:$W$1,0),FALSE),SUMIFS(OFFSET(REL_D,,MATCH($C$6,IND,0)-1),REL_D,$A60,OrgID,$D$3))) -> 540 | D60: =_xlfn.SINGLE(IF($D$3="Total (without NE)",VLOOKUP($A60,'Total (Without NE)'!$B$1:$W$30,MATCH($D$6,'Total (Without NE)'!$B$1:$W$1,0),FALSE),SUMIFS(OFFSET(REL_D,,MATCH($D$6,IND,0)-1),REL_D,$A60,OrgID,$D$3))) -> 536 | E60: =_xlfn.SINGLE(IF($D$3="Total (without NE)",VLOOKUP($A60,'Total (Without NE)'!$B$1:$W$30,MATCH($E$6,'Total (Without NE)'!$B$1:$W$1,0),FALSE),SUMIFS(OFFSET(REL_D,,MATCH($E$6,IND,0)-1),REL_D,$A60,OrgID,$D$3))) -> 557
A61: 2021-09-01 | B61: =_xlfn.SINGLE(IF($D$3="Total (without NE)",VLOOKUP($A61,'Total (Without NE)'!$B$1:$W$30,MATCH($B$6,'Total (Without NE)'!$B$1:$W$1,0),FALSE),SUMIFS(OFFSET(REL_D,,MATCH($B$6,IND,0)-1),REL_D,$A61,OrgID,$D$3))) -> 626 | C61: =_xlfn.SINGLE(IF($D$3="Total (without NE)",VLOOKUP($A61,'Total (Without NE)'!$B$1:$W$30,MATCH($C$6,'Total (Without NE)'!$B$1:$W$1,0),FALSE),SUMIFS(OFFSET(REL_D,,MATCH($C$6,IND,0)-1),REL_D,$A61,OrgID,$D$3))) -> 516 | D61: =_xlfn.SINGLE(IF($D$3="Total (without NE)",VLOOKUP($A61,'Total (Without NE)'!$B$1:$W$30,MATCH($D$6,'Total (Without NE)'!$B$1:$W$1,0),FALSE),SUMIFS(OFFSET(REL_D,,MATCH($D$6,IND,0)-1),REL_D,$A61,OrgID,$D$3))) -> 515 | E61: =_xlfn.SINGLE(IF($D$3="Total (without NE)",VLOOKUP($A61,'Total (Without NE)'!$B$1:$W$30,MATCH($E$6,'Total (Without NE)'!$B$1:$W$1,0),FALSE),SUMIFS(OFFSET(REL_D,,MATCH($E$6,IND,0)-1),REL_D,$A61,OrgID,$D$3))) -> 543
A62: 2021-12-01 | B62: =_xlfn.SINGLE(IF($D$3="Total (without NE)",VLOOKUP($A62,'Total (Without NE)'!$B$1:$W$30,MATCH($B$6,'Total (Without NE)'!$B$1:$W$1,0),FALSE),SUMIFS(OFFSET(REL_D,,MATCH($B$6,IND,0)-1),REL_D,$A62,OrgID,$D$3))) -> 585 | C62: =_xlfn.SINGLE(IF($D$3="Total (without NE)",VLOOKUP($A62,'Total (Without NE)'!$B$1:$W$30,MATCH($C$6,'Total (Without NE)'!$B$1:$W$1,0),FALSE),SUMIFS(OFFSET(REL_D,,MATCH($C$6,IND,0)-1),REL_D,$A62,OrgID,$D$3))) -> 501 | D62: =_xlfn.SINGLE(IF($D$3="Total (without NE)",VLOOKUP($A62,'Total (Without NE)'!$B$1:$W$30,MATCH($D$6,'Total (Without NE)'!$B$1:$W$1,0),FALSE),SUMIFS(OFFSET(REL_D,,MATCH($D$6,IND,0)-1),REL_D,$A62,OrgID,$D$3))) -> 499 | E62: =_xlfn.SINGLE(IF($D$3="Total (without NE)",VLOOKUP($A62,'Total (Without NE)'!$B$1:$W$30,MATCH($E$6,'Total (Without NE)'!$B$1:$W$1,0),FALSE),SUMIFS(OFFSET(REL_D,,MATCH($E$6,IND,0)-1),REL_D,$A62,OrgID,$D$3))) -> 519
A63: 2022-03-01 | B63: =_xlfn.SINGLE(IF($D$3="Total (without NE)",VLOOKUP($A63,'Total (Without NE)'!$B$1:$W$30,MATCH($B$6,'Total (Without NE)'!$B$1:$W$1,0),FALSE),SUMIFS(OFFSET(REL_D,,MATCH($B$6,IND,0)-1),REL_D,$A63,OrgID,$D$3))) -> 609 | C63: =_xlfn.SINGLE(IF($D$3="Total (without NE)",VLOOKUP($A63,'Total (Without NE)'!$B$1:$W$30,MATCH($C$6,'Total (Without NE)'!$B$1:$W$1,0),FALSE),SUMIFS(OFFSET(REL_D,,MATCH($C$6,IND,0)-1),REL_D,$A63,OrgID,$D$3))) -> 507 | D63: =_xlfn.SINGLE(IF($D$3="Total (without NE)",VLOOKUP($A63,'Total (Without NE)'!$B$1:$W$30,MATCH($D$6,'Total (Without NE)'!$B$1:$W$1,0),FALSE),SUMIFS(OFFSET(REL_D,,MATCH($D$6,IND,0)-1),REL_D,$A63,OrgID,$D$3))) -> 504 | E63: =_xlfn.SINGLE(IF($D$3="Total (without NE)",VLOOKUP($A63,'Total (Without NE)'!$B$1:$W$30,MATCH($E$6,'Total (Without NE)'!$B$1:$W$1,0),FALSE),SUMIFS(OFFSET(REL_D,,MATCH($E$6,IND,0)-1),REL_D,$A63,OrgID,$D$3))) -> 532

Sheet Rows (hidden)

Sheet Control Panel (hidden)
A1: 2018-11-30 | B1: Q4 | E1: Search Title | F1: Report Title
E2: All Patients | F2: Listsize | I2: April 2021 | J2: 2021-04-01 | K2: Q1: April 2017 - June 2017 | N2: OrgID | O2: 10 | P2: =$O$6&ADDRESS(1,O2)&":"&ADDRESS($O$7,O2) -> 'Data'!$J$1:$J$3000
A3: 1 | B3: NW1 | C3: Woodberry Wetlands (NW1) | E3: (01) 12 MONTH COHORT | F3: Patients becoming 12m within Q1 | I3: May 2021 | J3: 2021-05-01 | K3: Q1: April 2017 - June 2017 | N3: REL_D | O3: 1 | P3: =$O$6&ADDRESS(1,O3)&":"&ADDRESS($O$7,O3) -> 'Data'!$A$1:$A$3000
A4: 2 | B4: NW2 | C4: Clissold Park (NW2) | E4: (01.01) DTaP/IPV/Hib | F4: DTaP/IPV/Hib/HepB | I4: June 2021 | J4: 2021-06-01 | K4: Q1: April 2017 - June 2017 | N4: IND | O4: - | P4: =$O$6&ADDRESS(O11,1)&":"&ADDRESS(O11,O8) -> 'Data'!$A$1:$AD$1
A5: 3 | B5: NE1 | C5: Springfield Park (NE1) | E5: DTaP/IPV/Hib(%) | F5: DTaP/IPV/Hib/HepB(%) | I5: July 2021 | J5: 2021-07-01 | K5: Q2: July 2017 - September 2017 | N5: NwID | O5: 2 | P5: =$O$6&ADDRESS(1,O5)&":"&ADDRESS($O$7,O5) -> 'Data'!$B$1:$B$3000
A6: 4 | B6: NE2 | C6: Hackney Downs (NE2) | E6: Patients required to achieve NHSE Target (90%) | F6: Patients required to achieve NHSE Target (90%) | I6: August 2021 | J6: 2021-08-01 | K6: Q2: July 2017 - September 2017 | N6: Data | O6: =IF(O9="N","BLANK!","'"&O10&"'!") -> 'Data'!
A7: 5 | B7: SE1 | C7: Hackney Marshes (SE1) | E7: Patients required to achieve CCG Target (95%) | F7: Patients required to achieve CCG Target (95%) | I7: September 2021 | J7: 2021-09-01 | K7: Q2: July 2017 - September 2017 | N7: Rows | O7: 3000
A8: 6 | B8: SE2 | C8: Well Street Common (SE2) | E8: (01.02) Men B (1st and 2nd) | F8: Men C / Men B | I8: October 2021 | J8: 2021-10-01 | K8: Q3: October 2017 - December 2017 | N8: Columns | O8: 30
A9: 7 | B9: SW1 | C9: London Fields (SW1) | E9: Men B(%) | F9: Men C / Men B(%) | I9: November 2021 | J9: 2021-11-01 | K9: Q3: October 2017 - December 2017 | N9: Data (Y/N) | O9: Y
A10: 8 | B10: SW2 | C10: Shoreditch Park & City (SW2) | E10: Patients required to achieve NHSE Target (90%) | F10: Patients required to achieve NHSE Target (90%) | I10: December 2021 | J10: 2021-12-01 | K10: Q3: October 2017 - December 2017 | N10: Q Work Sheet | O10: Data | P10: =$O$6&ADDRESS(1,1)&":"&ADDRESS(O7,O8) -> 'Data'!$A$1:$AD$3000
A11: 9 | B11: City | E11: Patients required to achieve CCG Target (95%) | F11: Patients required to achieve CCG Target (95%) | I11: January 2022 | J11: 2022-01-01 | K11: Q4: January 2018 - March 2018 | N11: Header Row | O11: 1
B12: City and Hackney (Without NE) | C12: Total (without NE) | E12: (01.03) PCV | F12: PCV | I12: February 2022 | J12: 2022-02-01 | K12: Q4: January 2018 - March 2018 | N12: Header Row 2 | O12: 3
B13: City and Hackney | C13: Total | E13: PCV(%) | F13: PCV(%) | I13: March 2022 | J13: 2022-03-01 | K13: Q4: January 2018 - March 2018
A14: NW1 | B14: Allerton Road Surgery | C14: F84716 | E14: Patients required to achieve NHSE Target (90%) | F14: Patients required to achieve NHSE Target (90%)
A15: NW1 | B15: Cedar Practice | C15: F84036 | E15: Patients required to achieve CCG Target (95%) | F15: Patients required to achieve CCG Target (95%)
A16: NW1 | B16: Heron Practice | C16: F84119 | E16: (01.04) Rotavirus | F16: Rotavirus
A17: NW1 | B17: Statham Grove Surgery | C17: F84115 | E17: Rotavirus(%) | F17: Rotavirus(%)
A18: NW2 | B18: Barretts Grove Surgery | C18: F84636 | E18: Patients required to achieve NHSE Target (90%) | F18: Patients required to achieve NHSE Target (90%)
A19: NW2 | B19: Barton House Health Centre | C19: F84008 | E19: Patients required to achieve CCG Target (95%) | F19: Patients required to achieve CCG Target (95%)
A20: NW2 | B20: Brooke Road Surgery | C20: F84694 | E20: (01.05) BCG | F20: BCG
A21: NW2 | B21: Somerford Grove Health Centre | C21: F84033 | E21: BCG(%) | F21: BCG(%)
A22: NE1 | B22: Cranwich Road Surgery | C22: F84686 | E22: Patients required to achieve NHSE Target (90%) | F22: Patients required to achieve NHSE Target (90%)
A23: NE1 | B23: Spring Hill Practice | C23: Y03049 | E23: Patients required to achieve CCG Target (95%) | F23: Patients required to achieve CCG Target (95%)
A24: NE1 | B24: Stamford Hill Group Practice | C24: F84013
A25: NE2 | B25: Clapton Surgery | C25: F84668 | E25: All Patients | F25: Listsize | I25: Neighbourhood | J25: 2020-04-01 | K25: Practice | M25: Neighbourhood | N25: Practice | P25: 2015/16 Q1
A26: NE2 | B26: Elm Practice | C26: F84685 | E26: (02) 24 MONTH COHORT | F26: Patients becoming 24m within Q1 | M26: NORTH WEST | P26: 2015/16 Q2
A27: NE2 | B27: Gadvhi Practice | C27: F84080 | E27: (02.01) DTaP/IPV/Hib | F27: DTaP/IPV/Hib | I27: F84716 | J27: NW1 | K27: Allerton Road Surgery | M27: NW1 | N27: Allerton Road Surgery | P27: 2015/16 Q3
A28: NE2 | B28: Healy Medical Centre | C28: F84720 | E28: DTaP/IPV/Hib(%) | F28: DTaP/IPV/Hib(%) | I28: F84036 | J28: NW1 | K28: Cedar Practice | N28: Cedar Practice | P28: 2015/16 Q4
A29: NE2 | B29: Nightingale Practice | C29: F84018 | E29: (02.02) MMR | F29: MMR | I29: F84119 | J29: NW1 | K29: Heron Practice | N29: Heron Practice | P29: 2016/17 Q1
A30: NE2 | B30: Riverside Practice | C30: F84619 | E30: MMR(%) | F30: MMR(%) | I30: F84115 | J30: NW1 | K30: Statham Grove Surgery | N30: Statham Grove Surgery | P30: 2016/17 Q2
A31: NE2 | B31: Rosewood Practice | C31: F84711 | E31: Patients required to achieve NHSE Target (90%) | F31: Patients required to achieve NHSE Target (90%) | I31: F84624 | J31: NW2 | K31: Abney House Medical Centre | M31: NW2 | N31: Abney House Medical Centre | P31: 2016/17 Q3
A32: SE1 | B32: Athena Medical Centre | C32: F84060 | E32: Patients required to achieve CCG Target (95%) | F32: Patients required to achieve CCG Target (95%) | I32: F84636 | J32: NW2 | K32: Barretts Grove Surgery | N32: Barretts Grove Surgery | P32: 2016/17 Q4
A33: SE1 | B33: Latimer Health Centre | C33: F84719 | E33: (02.03) HiB/Men C | F33: HiB/Men C | I33: F84008 | J33: NW2 | K33: Barton House Health Centre | N33: Barton House Health Centre | P33: 2017/18 Q1
A34: SE1 | B34: Lea Surgery | C34: F84105 | E34: HiB/Men C (%) | F34: HiB/Men C (%) | I34: F84694 | J34: NW2 | K34: Brooke Road Surgery | N34: Brooke Road Surgery | P34: 2017/18 Q2
A35: SE1 | B35: Lower Clapton Health Centre | C35: F84003 | E35: Patients required to achieve NHSE Target (90%) | F35: Patients required to achieve NHSE Target (90%) | I35: F84033 | J35: NW2 | K35: Somerford Grove Health Centre | N35: Somerford Grove Health Centre | P35: 2017/18 Q3
A36: SE1 | B36: Kingsmead Healthcare | C36: F84015 | E36: Patients required to achieve CCG Target (95%) | F36: Patients required to achieve CCG Target (95%) | I36: F84686 | J36: NE1 | K36: Cranwich Road Surgery | M36: NORTH EAST | P36: 2017/18 Q4
A37: SE2 | B37: Elsdale Street Surgery | C37: F84601 | E37: (02.04) PCV (Booster) | F37: PCV (Booster) | I37: Y03049 | J37: NE1 | K37: Springfield Tollgate Practice | M37: NE1 | N37: Cranwich Road Surgery | P37: 2018/19 Q1
A38: SE2 | B38: Greenhouse Health Centre | C38: F84632 | E38: PCV (Booster)(%) | F38: PCV (Booster)(%) | I38: F84013 | J38: NE1 | K38: Stamford Hill Group Practice | N38: Springfield Tollgate Practice | P38: 2018/19 Q2
A39: SE2 | B39: Trowbridge Practice | C39: Y00403 | E39: Patients required to achieve NHSE Target (90%) | F39: Patients required to achieve NHSE Target (90%) | I39: F84668 | J39: NE2 | K39: Clapton Surgery | N39: Stamford Hill Group Practice | P39: 2018/19 Q3
A40: SE2 | B40: Well Street Surgery | C40: F84069 | E40: Patients required to achieve CCG Target (95%) | F40: Patients required to achieve CCG Target (95%) | I40: F84685 | J40: NE2 | K40: Elm Practice | M40: NE2 | N40: Clapton Surgery | P40: 2018/19 Q4
A41: SE2 | B41: Wick Health Centre | C41: F84620 | E41: (02.05) Men B (Booster) | F41: Men B (Booster) | I41: F84080 | J41: NE2 | K41: Gadvhi Practice | N41: Elm Practice
A42: SW1 | B42: Beechwood Medical Centre | C42: F84038 | E42: Men B (Booster)(%) | F42: Men B (Booster)(%) | I42: F84720 | J42: NE2 | K42: Healy Medical Centre | N42: Gadvhi Practice
A43: SW1 | B43: Dalston Practice | C43: F84063 | I43: F84018 | J43: NE2 | K43: Nightingale Practice | N43: Healy Medical Centre
A44: SW1 | B44: London Fields Medical Centre | C44: F84021 | E44: All Patients | F44: Listsize | I44: F84619 | J44: NE2 | K44: Riverside Practice | N44: Nightingale Practice
A45: SW1 | B45: Queensbridge Group Practice | C45: F84117 | E45: (03) 5 YEAR COHORT | F45: Patients becoming 5y within Q1 | I45: F84711 | J45: NE2 | K45: Rosewood Practice | N45: Riverside Practice
A46: SW1 | B46: Richmond Road Medical Center | C46: F84035 | E46: (03.01) DTaP/IPV/Hib | F46: DTaP/IPV/Hib | I46: F84060 | J46: SE1 | K46: Athena Medical Centre | N46: Rosewood Practice
A47: SW1 | B47: Sandringham Road Practice | C47: F84621 | E47: DTaP/IPV/Hib(%) | F47: DTaP/IPV/Hib(%) | I47: F84719 | J47: SE1 | K47: Latimer Health Centre | M47: SOUTH EAST
A48: SW2 | B48: De Beauvoir Surgery | C48: F84072 | E48: (03.02) MMR (Primary) | F48: MMR (Primary) | I48: F84105 | J48: SE1 | K48: Lea Surgery | M48: SE1 | N48: Athena Medical Centre
A49: SW2 | B49: Hoxton Surgery | C49: F84692 | E49: MMR (Primary)(%) | F49: MMR (Primary)(%) | I49: F84003 | J49: SE1 | K49: Lower Clapton Health Centre | N49: Latimer Health Centre
A50: SW2 | B50: Lawson Practice | C50: F84096 | E50: (03.03) DTaP/IPV (Booster) | F50: DTaP/IPV (Booster) | I50: F84043 | J50: SE1 | K50: Sorsby Health Centre | N50: Lea Surgery
A51: SW2 | B51: Shoreditch Park Surgery | C51: F84635 | E51: DTaP/IPV (Booster)(%) | F51: DTaP/IPV (Booster)(%) | I51: F84601 | J51: SE2 | K51: Elsdale Street Surgery | N51: Lower Clapton Health Centre
A52: SW2 | B52: Southgate Rd MC & Whiston Rd Surgery | C52: F84041 | E52: Patients required to achieve NHSE Target (90%) | F52: Patients required to achieve NHSE Target (90%) | I52: F84632 | J52: SE2 | K52: Greenhouse Health Centre | N52: Sorsby Health Centre
A53: SW2 | B53: Neaman Practice | C53: F84640 | E53: Patients required to achieve CCG Target (95%) | F53: Patients required to achieve CCG Target (95%) | I53: F84015 | J53: SE1 | K53: Kingsmead Healthcare | M53: SE2 | N53: Elsdale Street Surgery
E54: (03.05) MMR (Booster) | F54: MMR (Booster) | I54: Y00403 | J54: SE2 | K54: Trowbridge Practice | N54: Greenhouse Health Centre
E55: MMR (Booster)(%) | F55: MMR (Booster)(%) | I55: F84069 | J55: SE2 | K55: Well Street Surgery | N55: Kingsmead Healthcare
E56: Patients required to achieve NHSE Target (90%) | F56: Patients required to achieve NHSE Target (90%) | I56: F84620 | J56: SE2 | K56: Wick Health Centre | N56: Trowbridge Practice
E57: Patients required to achieve CCG Target (95%) | F57: Patients required to achieve CCG Target (95%) | I57: F84038 | J57: SW1 | K57: Beechwood Medical Centre | N57: Well Street Surgery
E58: (03.04) HiB/Men C | F58: HiB/Men C | I58: F84063 | J58: SW1 | K58: Dalston Practice | N58: Wick Health Centre
E59: HiB/Men C(%) | F59: HiB/Men C(%) | I59: F84021 | J59: SW1 | K59: London Fields Medical Centre | M59: SOUTH WEST AND CITY
I60: F84117 | J60: SW1 | K60: Queensbridge Group Practice | M60: SW1 | N60: Beechwood Medical Centre
I61: F84035 | J61: SW1 | K61: Richmond Road Medical Center | N61: Dalston Practice
I62: F84621 | J62: SW1 | K62: Sandringham Road Practice | N62: London Fields Medical Centre
I63: F84072 | J63: SW2 | K63: De Beauvoir Surgery | N63: Queensbridge Group Practice
I64: F84692 | J64: SW2 | K64: Hoxton Surgery | N64: Richmond Road Medical Centre
I65: F84096 | J65: SW2 | K65: Lawson Practice | N65: Sandringham Road Practice
I66: F84635 | J66: SW2 | K66: Shoreditch Park Surgery | M66: SW2 | N66: De Beauvoir Surgery
I67: F84041 | J67: SW2 | K67: Southgate Rd MC & Whiston Rd Surgery | N67: Hoxton Surgery
I68: F84640 | J68: City | K68: Neaman Practice | N68: Lawson Practice
N69: Shoreditch Park Surgery
N70: Southgate Rd MC & Whiston Rd Surgery
M71: City | N71: Neaman Practice
E73: Patient becoming 12m | F73: 'Control Panel'!$i$73:$i$76 | G73: 'Control Panel'!$k$74:$k$76 | I73: Patients becoming 12m | K73: Patients becoming 12m
E74: Patient becoming 24m | F74: 'Control Panel'!$i$78:$i$81 | G74: 'Control Panel'!$k$79:$k$81 | I74: DTaP/IPV/Hib | K74: DTaP/IPV/Hib %
E75: Patient becoming 5y | F75: 'Control Panel'!$i$83:$i$85 | G75: 'Control Panel'!$k$84:$k$85 | I75: Men C / Men B | K75: Men C / Men B %
I76: PCV | K76: PCV %
E78: Patient becoming 12m | F78: 'Control Panel'!$i$87:$i$90 | I78: Patients becoming 24m | K78: Patients becoming 24m
E79: Patient becoming 24m | F79: 'Control Panel'!$i$92:$i$95 | I79: MMR | K79: MMR %
E80: Patient becoming 5y | F80: 'Control Panel'!$i$97:$i$99 | I80: HiB/Men C | K80: HiB/Men C %
I81: PCV (Booster) | K81: PCV (Booster) %
I83: Patients becoming 5y | K83: Patients becoming 5y
I84: DTaP/IPV (Booster)(%) | K84: DTaP/IPV (Booster)(%)
I85: MMR (Booster)(%) | K85: MMR (Booster)(%)
I87: (01) 12 MONTH COHORT
I88: (01.01) DTaP/IPV/Hib
I89: (01.02) Men B (1st and 2nd)
I90: (01.03) PCV
I92: (02) 24 MONTH COHORT
I93: (02.02) MMR
I94: (02.03) HiB/Men C
I95: (02.04) PCV (Booster)
I97: (03) 5 YEAR COHORT
I98: (03.03) DTaP/IPV (Booster)
I99: (03.05) MMR (Booster)

Sheet Data (hidden)
A1: 2015/16 Q1 | B1: =VLOOKUP(J1,'Control Panel'!$I$27:$K$68,2,FALSE) ->  | C1: =IF(LEFT(B1,2)="NE",0,1) ->  | E1: Parent Population | F1: Author | G1: Last Run | K1: Search | L1: All Patients | M1: (01) 12 MONTH COHORT | N1: (01.01) DTaP/IPV/Hib | O1: (01.02) Men B (1st and 2nd) | P1: (01.03) PCV | Q1: (01.04) Rotavirus | R1: (01.05) BCG | S1: (02) 24 MONTH COHORT | T1: (02.01) DTaP/IPV/Hib | U1: (02.02) MMR | V1: (02.03) HiB/Men C | W1: (02.04) PCV (Booster) | X1: (03) 5 YEAR COHORT | Y1: (03.01) DTaP/IPV/Hib | Z1: (03.02) MMR (Primary) | AA1: (03.03) DTaP/IPV (Booster) | AB1: (03.04) HiB/Men C | AC1: (03.05) MMR (Booster) | AD1: (02.05) Men B (Booster)
A2: 2015/16 Q1 | B2: =VLOOKUP(J2,'Control Panel'!$I$27:$K$68,2,FALSE) -> NW2 | C2: =IF(LEFT(B2,2)="NE",0,1) -> 1 | E2: Currently registered patients | F2: DUNNE, Jack (Mr) | G2: 2015-10-02T09:46:00 | I2: =IF(J2="Total",0,1) -> 1 | J2: F84624 | L2: 2905 | M2: 9 | N2: 0 | O2: 6 | P2: 6 | Q2: 6 | R2: 4 | S2: 7 | T2: 0 | U2: 0 | V2: 0 | W2: 5 | X2: 6 | Y2: 1 | Z2: 1 | AA2: 0 | AB2: 1 | AC2: 1
A3: 2015/16 Q1 | B3: =VLOOKUP(J3,'Control Panel'!$I$27:$K$68,2,FALSE) -> NW1 | C3: 1 | I3: =IF(J3="Total",0,1) -> 1 | J3: F84716 | L3: 4795 | M3: 23 | N3: 6 | O3: 12 | P3: 6 | Q3: 8 | R3: 0 | S3: 25 | T3: 20 | U3: 19 | V3: 19 | W3: 20 | X3: 26 | Y3: 17 | Z3: 19 | AA3: 13 | AB3: 16 | AC3: 13
A4: 2015/16 Q1 | B4: =VLOOKUP(J4,'Control Panel'!$I$27:$K$68,2,FALSE) -> SE1 | C4: 1 | F4: Date Modified | G4: Relative Date | I4: 1 | J4: F84060 | L4: 4994 | M4: 20 | N4: 17 | O4: 18 | P4: 17 | Q4: 18 | R4: 11 | S4: 15 | T4: 13 | U4: 12 | V4: 12 | W4: 12 | X4: 19 | Y4: 16 | Z4: 15 | AA4: 16 | AB4: 16 | AC4: 14
A5: 2015/16 Q1 | B5: =VLOOKUP(J5,'Control Panel'!$I$27:$K$68,2,FALSE) -> NW2 | C5: 1 | G5: 2015-07-01 | I5: 1 | J5: F84636 | L5: 3398 | M5: 7 | N5: 7 | O5: 7 | P5: 7 | Q5: 7 | R5: 4 | S5: 6 | T5: 6 | U5: 6 | V5: 6 | W5: 5 | X5: 11 | Y5: 9 | Z5: 8 | AA5: 10 | AB5: 11 | AC5: 8
A6: 2015/16 Q1 | B6: =VLOOKUP(J6,'Control Panel'!$I$27:$K$68,2,FALSE) -> NW2 | C6: 1 | I6: 1 | J6: F84008 | L6: 12294 | M6: 52 | N6: 50 | O6: 51 | P6: 50 | Q6: 49 | R6: 49 | S6: 33 | T6: 32 | U6: 28 | V6: 29 | W6: 28 | X6: 37 | Y6: 36 | Z6: 31 | AA6: 28 | AB6: 29 | AC6: 33
A7: 2015/16 Q1 | B7: =VLOOKUP(J7,'Control Panel'!$I$27:$K$68,2,FALSE) -> SW1 | C7: 1 | I7: 1 | J7: F84038 | L7: 3725 | M7: 15 | N7: 9 | O7: 14 | P7: 11 | Q7: 11 | R7: 3 | S7: 11 | T7: 10 | U7: 6 | V7: 7 | W7: 6 | X7: 7 | Y7: 6 | Z7: 6 | AA7: 2 | AB7: 5 | AC7: 6
A8: 2015/16 Q1 | B8: =VLOOKUP(J8,'Control Panel'!$I$27:$K$68,2,FALSE) -> NW2 | C8: 1 | I8: 1 | J8: F84694 | L8: 2789 | M8: 12 | N8: 10 | O8: 10 | P8: 10 | Q8: 9 | R8: 11 | S8: 6 | T8: 5 | U8: 5 | V8: 5 | W8: 5 | X8: 7 | Y8: 7 | Z8: 7 | AA8: 6 | AB8: 6 | AC8: 7
A9: 2015/16 Q1 | B9: =VLOOKUP(J9,'Control Panel'!$I$27:$K$68,2,FALSE) -> NW1 | C9: 1 | I9: 1 | J9: F84036 | L9: 6984 | M9: 20 | N9: 15 | O9: 16 | P9: 15 | Q9: 16 | R9: 16 | S9: 21 | T9: 7 | U9: 3 | V9: 4 | W9: 4 | X9: 16 | Y9: 15 | Z9: 13 | AA9: 7 | AB9: 9 | AC9: 14
A10: 2015/16 Q1 | B10: =VLOOKUP(J10,'Control Panel'!$I$27:$K$68,2,FALSE) -> NE2 | C10: 0 | I10: 1 | J10: F84668 | L10: 6522 | M10: 40 | N10: 23 | O10: 29 | P10: 23 | Q10: 18 | R10: 5 | S10: 47 | T10: 38 | U10: 34 | V10: 32 | W10: 38 | X10: 34 | Y10: 29 | Z10: 30 | AA10: 23 | AB10: 26 | AC10: 27
A11: 2015/16 Q1 | B11: =VLOOKUP(J11,'Control Panel'!$I$27:$K$68,2,FALSE) -> NE1 | C11: 0 | I11: 1 | J11: F84686 | L11: 6816 | M11: 51 | N11: 21 | O11: 35 | P11: 20 | Q11: 11 | R11: 0 | S11: 68 | T11: 42 | U11: 35 | V11: 30 | W11: 42 | X11: 56 | Y11: 41 | Z11: 42 | AA11: 30 | AB11: 34 | AC11: 29
A12: 2015/16 Q1 | B12: =VLOOKUP(J12,'Control Panel'!$I$27:$K$68,2,FALSE) -> SW2 | C12: 1 | I12: 1 | J12: F84072 | L12: 8473 | M12: 28 | N12: 25 | O12: 26 | P12: 24 | Q12: 24 | R12: 20 | S12: 29 | T12: 26 | U12: 25 | V12: 23 | W12: 23 | X12: 22 | Y12: 19 | Z12: 19 | AA12: 13 | AB12: 15 | AC12: 17
A13: 2015/16 Q1 | B13: =VLOOKUP(J13,'Control Panel'!$I$27:$K$68,2,FALSE) -> NE2 | C13: 0 | I13: 1 | J13: F84080 | L13: 4789 | M13: 15 | N13: 12 | O13: 13 | P13: 12 | Q13: 9 | R13: 1 | S13: 22 | T13: 19 | U13: 17 | V13: 16 | W13: 17 | X13: 12 | Y13: 10 | Z13: 7 | AA13: 8 | AB13: 8 | AC13: 6
A14: 2015/16 Q1 | B14: =VLOOKUP(J14,'Control Panel'!$I$27:$K$68,2,FALSE) -> NE2 | C14: 0 | I14: 1 | J14: F84685 | L14: 3000 | M14: 11 | N14: 9 | O14: 10 | P14: 9 | Q14: 7 | R14: 1 | S14: 6 | T14: 4 | U14: 4 | V14: 4 | W14: 4 | X14: 9 | Y14: 8 | Z14: 7 | AA14: 6 | AB14: 6 | AC14: 7
A15: 2015/16 Q1 | B15: =VLOOKUP(J15,'Control Panel'!$I$27:$K$68,2,FALSE) -> SE2 | C15: 1 | I15: 1 | J15: F84601 | L15: 5673 | M15: 29 | N15: 24 | O15: 23 | P15: 24 | Q15: 22 | R15: 23 | S15: 17 | T15: 15 | U15: 14 | V15: 14 | W15: 14 | X15: 24 | Y15: 20 | Z15: 22 | AA15: 17 | AB15: 20 | AC15: 22
A16: 2015/16 Q1 | B16: =VLOOKUP(J16,'Control Panel'!$I$27:$K$68,2,FALSE) -> SE2 | C16: 1 | I16: 1 | J16: F84632 | L16: 846 | M16: 0 | N16: 0 | O16: 0 | P16: 0 | Q16: 0 | R16: 0 | S16: 0 | T16: 0 | U16: 0 | V16: 0 | W16: 0 | X16: 0 | Y16: 0 | Z16: 0 | AA16: 0 | AB16: 0 | AC16: 0
A17: 2015/16 Q1 | B17: =VLOOKUP(J17,'Control Panel'!$I$27:$K$68,2,FALSE) -> NE2 | C17: 0 | I17: 1 | J17: F84720 | L17: 5270 | M17: 21 | N17: 15 | O17: 16 | P17: 15 | Q17: 15 | R17: 11 | S17: 22 | T17: 21 | U17: 14 | V17: 15 | W17: 16 | X17: 21 | Y17: 18 | Z17: 17 | AA17: 14 | AB17: 15 | AC17: 18
A18: 2015/16 Q1 | B18: =VLOOKUP(J18,'Control Panel'!$I$27:$K$68,2,FALSE) -> SW2 | C18: 1 | I18: 1 | J18: F84692 | L18: 5830 | M18: 18 | N18: 16 | O18: 17 | P18: 16 | Q18: 15 | R18: 16 | S18: 14 | T18: 13 | U18: 12 | V18: 12 | W18: 11 | X18: 16 | Y18: 16 | Z18: 16 | AA18: 14 | AB18: 14 | AC18: 16
A19: 2015/16 Q1 | B19: =VLOOKUP(J19,'Control Panel'!$I$27:$K$68,2,FALSE) -> SE1 | C19: 1 | I19: 1 | J19: F84015 | L19: 5373 | M19: 13 | N19: 8 | O19: 7 | P19: 8 | Q19: 6 | R19: 9 | S19: 17 | T19: 14 | U19: 12 | V19: 12 | W19: 12 | X19: 18 | Y19: 15 | Z19: 15 | AA19: 14 | AB19: 14 | AC19: 16
A20: 2015/16 Q1 | B20: =VLOOKUP(J20,'Control Panel'!$I$27:$K$68,2,FALSE) -> SE1 | C20: 1 | I20: 1 | J20: F84719 | L20: 4497 | M20: 12 | N20: 12 | O20: 12 | P20: 12 | Q20: 12 | R20: 12 | S20: 18 | T20: 18 | U20: 16 | V20: 17 | W20: 16 | X20: 14 | Y20: 12 | Z20: 12 | AA20: 11 | AB20: 13 | AC20: 12
A21: 2015/16 Q1 | B21: =VLOOKUP(J21,'Control Panel'!$I$27:$K$68,2,FALSE) -> SE1 | C21: 1 | I21: 1 | J21: F84105 | L21: 10564 | M21: 47 | N21: 43 | O21: 44 | P21: 43 | Q21: 42 | R21: 43 | S21: 43 | T21: 41 | U21: 36 | V21: 37 | W21: 37 | X21: 34 | Y21: 33 | Z21: 32 | AA21: 31 | AB21: 32 | AC21: 32
A22: 2015/16 Q1 | B22: =VLOOKUP(J22,'Control Panel'!$I$27:$K$68,2,FALSE) -> SW1 | C22: 1 | I22: 1 | J22: F84021 | L22: 9777 | M22: 42 | N22: 41 | O22: 41 | P22: 41 | Q22: 37 | R22: 35 | S22: 26 | T22: 23 | U22: 19 | V22: 20 | W22: 20 | X22: 31 | Y22: 30 | Z22: 28 | AA22: 28 | AB22: 28 | AC22: 26
A23: 2015/16 Q1 | B23: =VLOOKUP(J23,'Control Panel'!$I$27:$K$68,2,FALSE) -> SE1 | C23: 1 | I23: 1 | J23: F84003 | L23: 11956 | M23: 51 | N23: 47 | O23: 45 | P23: 48 | Q23: 45 | R23: 43 | S23: 44 | T23: 35 | U23: 34 | V23: 33 | W23: 33 | X23: 39 | Y23: 35 | Z23: 33 | AA23: 29 | AB23: 31 | AC23: 31
A24: 2015/16 Q1 | B24: =VLOOKUP(J24,'Control Panel'!$I$27:$K$68,2,FALSE) -> City | C24: 1 | I24: 1 | J24: F84640 | L24: 8557 | M24: 18 | N24: 12 | O24: 13 | P24: 12 | Q24: 13 | R24: 10 | S24: 24 | T24: 20 | U24: 21 | V24: 21 | W24: 21 | X24: 17 | Y24: 14 | Z24: 14 | AA24: 13 | AB24: 14 | AC24: 15
A25: 2015/16 Q1 | B25: =VLOOKUP(J25,'Control Panel'!$I$27:$K$68,2,FALSE) -> NE2 | C25: 0 | I25: 1 | J25: F84018 | L25: 10128 | M25: 39 | N25: 30 | O25: 33 | P25: 31 | Q25: 31 | R25: 34 | S25: 44 | T25: 39 | U25: 33 | V25: 33 | W25: 33 | X25: 40 | Y25: 33 | Z25: 33 | AA25: 21 | AB25: 26 | AC25: 32
A26: 2015/16 Q1 | B26: =VLOOKUP(J26,'Control Panel'!$I$27:$K$68,2,FALSE) -> SW1 | C26: 1 | I26: 1 | J26: F84117 | L26: 9377 | M26: 29 | N26: 27 | O26: 27 | P26: 27 | Q26: 14 | R26: 22 | S26: 20 | T26: 18 | U26: 17 | V26: 18 | W26: 19 | X26: 27 | Y26: 27 | Z26: 27 | AA26: 21 | AB26: 22 | AC26: 27
A27: 2015/16 Q1 | B27: =VLOOKUP(J27,'Control Panel'!$I$27:$K$68,2,FALSE) -> SW1 | C27: 1 | I27: 1 | J27: F84035 | L27: 3719 | M27: 9 | N27: 7 | O27: 7 | P27: 7 | Q27: 7 | R27: 6 | S27: 10 | T27: 7 | U27: 7 | V27: 7 | W27: 7 | X27: 6 | Y27: 5 | Z27: 6 | AA27: 4 | AB27: 6 | AC27: 5
A28: 2015/16 Q1 | B28: =VLOOKUP(J28,'Control Panel'!$I$27:$K$68,2,FALSE) -> NE2 | C28: 0 | I28: 1 | J28: F84619 | L28: 4067 | M28: 18 | N28: 17 | O28: 17 | P28: 17 | Q28: 16 | R28: 7 | S28: 17 | T28: 15 | U28: 14 | V28: 14 | W28: 14 | X28: 11 | Y28: 10 | Z28: 10 | AA28: 9 | AB28: 9 | AC28: 11
A29: 2015/16 Q1 | B29: =VLOOKUP(J29,'Control Panel'!$I$27:$K$68,2,FALSE) -> NE2 | C29: 0 | I29: 1 | J29: F84711 | L29: 2183 | M29: 7 | N29: 6 | O29: 6 | P29: 6 | Q29: 5 | R29: 2 | S29: 9 | T29: 9 | U29: 4 | V29: 5 | W29: 7 | X29: 3 | Y29: 0 | Z29: 0 | AA29: 0 | AB29: 2 | AC29: 0
A30: 2015/16 Q1 | B30: =VLOOKUP(J30,'Control Panel'!$I$27:$K$68,2,FALSE) -> SW1 | C30: 1 | I30: 1 | J30: F84621 | L30: 3949 | M30: 12 | N30: 10 | O30: 11 | P30: 10 | Q30: 11 | R30: 8 | S30: 9 | T30: 9 | U30: 8 | V30: 9 | W30: 8 | X30: 11 | Y30: 7 | Z30: 8 | AA30: 7 | AB30: 9 | AC30: 7
A31: 2015/16 Q1 | B31: =VLOOKUP(J31,'Control Panel'!$I$27:$K$68,2,FALSE) -> SW2 | C31: 1 | I31: 1 | J31: F84635 | L31: 7606 | M31: 19 | N31: 17 | O31: 16 | P31: 17 | Q31: 15 | R31: 18 | S31: 21 | T31: 20 | U31: 18 | V31: 18 | W31: 17 | X31: 20 | Y31: 20 | Z31: 20 | AA31: 19 | AB31: 20 | AC31: 19
A32: 2015/16 Q1 | B32: =VLOOKUP(J32,'Control Panel'!$I$27:$K$68,2,FALSE) -> NW2 | C32: 1 | I32: 1 | J32: F84033 | L32: 12152 | M32: 43 | N32: 42 | O32: 43 | P32: 42 | Q32: 40 | R32: 42 | S32: 32 | T32: 31 | U32: 30 | V32: 30 | W32: 30 | X32: 28 | Y32: 28 | Z32: 28 | AA32: 27 | AB32: 28 | AC32: 27
A33: 2015/16 Q1 | B33: =VLOOKUP(J33,'Control Panel'!$I$27:$K$68,2,FALSE) -> SE1 | C33: 1 | I33: 1 | J33: F84043 | L33: 4637 | M33: 16 | N33: 13 | O33: 13 | P33: 13 | Q33: 11 | R33: 8 | S33: 16 | T33: 14 | U33: 12 | V33: 12 | W33: 12 | X33: 19 | Y33: 16 | Z33: 12 | AA33: 16 | AB33: 17 | AC33: 10
A34: 2015/16 Q1 | B34: =VLOOKUP(J34,'Control Panel'!$I$27:$K$68,2,FALSE) -> SW2 | C34: 1 | I34: 1 | J34: F84041 | L34: 7219 | M34: 16 | N34: 8 | O34: 9 | P34: 8 | Q34: 9 | R34: 5 | S34: 22 | T34: 22 | U34: 15 | V34: 15 | W34: 15 | X34: 9 | Y34: 8 | Z34: 8 | AA34: 7 | AB34: 8 | AC34: 8
A35: 2015/16 Q1 | B35: =VLOOKUP(J35,'Control Panel'!$I$27:$K$68,2,FALSE) -> NE1 | C35: 0 | I35: 1 | J35: Y03049 | L35: 7157 | M35: 50 | N35: 35 | O35: 39 | P35: 35 | Q35: 24 | R35: 23 | S35: 52 | T35: 44 | U35: 39 | V35: 36 | W35: 42 | X35: 31 | Y35: 26 | Z35: 27 | AA35: 22 | AB35: 23 | AC35: 20
A36: 2015/16 Q1 | B36: =VLOOKUP(J36,'Control Panel'!$I$27:$K$68,2,FALSE) -> NE1 | C36: 0 | I36: 1 | J36: F84013 | L36: 13727 | M36: 89 | N36: 48 | O36: 60 | P36: 47 | Q36: 33 | R36: 25 | S36: 97 | T36: 75 | U36: 76 | V36: 61 | W36: 73 | X36: 97 | Y36: 90 | Z36: 90 | AA36: 73 | AB36: 70 | AC36: 56
A37: 2015/16 Q1 | B37: =VLOOKUP(J37,'Control Panel'!$I$27:$K$68,2,FALSE) -> NW1 | C37: 1 | I37: 1 | J37: F84115 | L37: 8150 | M37: 22 | N37: 17 | O37: 18 | P37: 17 | Q37: 15 | R37: 16 | S37: 27 | T37: 26 | U37: 23 | V37: 23 | W37: 23 | X37: 22 | Y37: 22 | Z37: 22 | AA37: 19 | AB37: 19 | AC37: 22
A38: 2015/16 Q1 | B38: =VLOOKUP(J38,'Control Panel'!$I$27:$K$68,2,FALSE) -> SW1 | C38: 1 | I38: 1 | J38: F84063 | L38: 0 | M38: 0 | N38: 0 | O38: 0 | P38: 0 | Q38: 0 | R38: 0 | S38: 0 | T38: 0 | U38: 0 | V38: 0 | W38: 0 | X38: 0 | Y38: 0 | Z38: 0 | AA38: 0 | AB38: 0 | AC38: 0
A39: 2015/16 Q1 | B39: =VLOOKUP(J39,'Control Panel'!$I$27:$K$68,2,FALSE) -> NW1 | C39: 1 | I39: 1 | J39: F84119 | L39: 10732 | M39: 36 | N39: 29 | O39: 29 | P39: 29 | Q39: 27 | R39: 31 | S39: 48 | T39: 41 | U39: 40 | V39: 40 | W39: 39 | X39: 26 | Y39: 22 | Z39: 21 | AA39: 18 | AB39: 18 | AC39: 21
A40: 2015/16 Q1 | B40: =VLOOKUP(J40,'Control Panel'!$I$27:$K$68,2,FALSE) -> SW2 | C40: 1 | I40: 1 | J40: F84096 | L40: 13057 | M40: 39 | N40: 34 | O40: 36 | P40: 36 | Q40: 32 | R40: 33 | S40: 34 | T40: 32 | U40: 31 | V40: 31 | W40: 31 | X40: 38 | Y40: 34 | Z40: 34 | AA40: 33 | AB40: 33 | AC40: 32
A41: 2015/16 Q1 | B41: =VLOOKUP(J41,'Control Panel'!$I$27:$K$68,2,FALSE) ->  | I41: 1 | J41: Y01177 | L41: 7887 | M41: 31 | N41: 15 | O41: 28 | P41: 25 | Q41: 23 | R41: 7 | S41: 17 | T41: 17 | U41: 4 | V41: 15 | W41: 15 | X41: 16 | Y41: 4 | Z41: 4 | AA41: 13 | AB41: 15 | AC41: 4
A42: 2015/16 Q1 | B42: =VLOOKUP(J42,'Control Panel'!$I$27:$K$68,2,FALSE) -> SE2 | C42: 1 | I42: 1 | J42: Y00403 | L42: 5317 | M42: 16 | N42: 14 | O42: 16 | P42: 14 | Q42: 15 | R42: 3 | S42: 14 | T42: 13 | U42: 11 | V42: 11 | W42: 11 | X42: 15 | Y42: 14 | Z42: 14 | AA42: 9 | AB42: 12 | AC42: 13
A43: 2015/16 Q1 | B43: =VLOOKUP(J43,'Control Panel'!$I$27:$K$68,2,FALSE) -> SE2 | C43: 1 | I43: 1 | J43: F84069 | L43: 13320 | M43: 58 | N43: 54 | O43: 57 | P43: 56 | Q43: 53 | R43: 55 | S43: 51 | T43: 45 | U43: 40 | V43: 40 | W43: 40 | X43: 55 | Y43: 50 | Z43: 48 | AA43: 45 | AB43: 50 | AC43: 49
A44: 2015/16 Q1 | B44: =VLOOKUP(J44,'Control Panel'!$I$27:$K$68,2,FALSE) -> SE2 | C44: 1 | I44: 1 | J44: F84620 | L44: 5902 | M44: 16 | N44: 14 | O44: 13 | P44: 14 | Q44: 11 | R44: 13 | S44: 27 | T44: 26 | U44: 21 | V44: 21 | W44: 21 | X44: 11 | Y44: 9 | Z44: 9 | AA44: 9 | AB44: 9 | AC44: 8
A45: 2015/16 Q1 | B45: =VLOOKUP(J45,'Control Panel'!$I$27:$K$68,2,FALSE) ->  | I45: 0 | J45: Total | L45: 290113 | M45: 1119 | N45: 859 | O45: 943 | P45: 880 | Q45: 792 | R45: 685 | S45: 1088 | T45: 925 | U45: 815 | V45: 807 | W45: 846 | X45: 961 | Y45: 832 | Z45: 815 | AA45: 705 | AB45: 759 | AC45: 741
A46: 2015/16 Q2 | B46: =VLOOKUP(J46,'Control Panel'!$I$27:$K$68,2,FALSE) ->  | E46: Parent Population | F46: Author | G46: Last Run | I46: 1 | K46: Search | L46: All Patients | M46: (01) 12 MONTH COHORT | N46: (01.01) DTaP/IPV/Hib | O46: (01.02) Men B (1st and 2nd) | P46: (01.03) PCV | Q46: (01.04) Rotavirus | R46: (01.05) BCG | S46: (02) 24 MONTH COHORT | T46: (02.01) DTaP/IPV/Hib | U46: (02.02) MMR | V46: (02.03) HiB/Men C | W46: (02.04) PCV (Booster) | X46: (03) 5 YEAR COHORT | Y46: (03.01) DTaP/IPV/Hib | Z46: (03.02) MMR (Primary) | AA46: (03.03) DTaP/IPV (Booster) | AB46: (03.04) HiB/Men C | AC46: (03.05) MMR (Booster) | AD46: (02.05) Men B (Booster)
A47: 2015/16 Q2 | B47: =VLOOKUP(J47,'Control Panel'!$I$27:$K$68,2,FALSE) -> NE1 | C47: 0 | E47: Currently registered patients | F47: DUNNE, Jack (Mr) | G47: 2015-10-02T09:46:00 | I47: 1 | J47: F84013 | L47: 13937 | M47: 92 | N47: 49 | O47: 63 | P47: 49 | Q47: 35 | R47: 31 | S47: 112 | T47: 86 | U47: 79 | V47: 60 | W47: 80 | X47: 105 | Y47: 85 | Z47: 92 | AA47: 61 | AB47: 56 | AC47: 60
A48: 2015/16 Q2 | B48: =VLOOKUP(J48,'Control Panel'!$I$27:$K$68,2,FALSE) -> SW1 | C48: 1 | I48: 1 | J48: F84117 | L48: 9533 | M48: 31 | N48: 28 | O48: 30 | P48: 30 | Q48: 22 | R48: 22 | S48: 30 | T48: 28 | U48: 29 | V48: 29 | W48: 29 | X48: 26 | Y48: 25 | Z48: 24 | AA48: 21 | AB48: 23 | AC48: 23
A49: 2015/16 Q2 | B49: =VLOOKUP(J49,'Control Panel'!$I$27:$K$68,2,FALSE) -> SE1 | C49: 1 | F49: Date Modified | G49: Relative Date | I49: 1 | J49: F84060 | L49: 5016 | M49: 16 | N49: 14 | O49: 15 | P49: 14 | Q49: 13 | R49: 11 | S49: 12 | T49: 10 | U49: 11 | V49: 11 | W49: 11 | X49: 13 | Y49: 11 | Z49: 12 | AA49: 10 | AB49: 11 | AC49: 10
A50: 2015/16 Q2 | B50: =VLOOKUP(J50,'Control Panel'!$I$27:$K$68,2,FALSE) -> SE1 | C50: 1 | F50: 2015-10-02 | G50: 2015-10-01 | I50: 1 | J50: F84003 | L50: 12254 | M50: 45 | N50: 39 | O50: 42 | P50: 39 | Q50: 39 | R50: 42 | S50: 39 | T50: 32 | U50: 30 | V50: 30 | W50: 30 | X50: 57 | Y50: 46 | Z50: 47 | AA50: 40 | AB50: 47 | AC50: 43
A51: 2015/16 Q2 | B51: =VLOOKUP(J51,'Control Panel'!$I$27:$K$68,2,FALSE) -> NW2 | C51: 1 | I51: 1 | J51: F84008 | L51: 12449 | M51: 48 | N51: 46 | O51: 47 | P51: 46 | Q51: 43 | R51: 41 | S51: 58 | T51: 51 | U51: 47 | V51: 47 | W51: 47 | X51: 47 | Y51: 45 | Z51: 43 | AA51: 37 | AB51: 41 | AC51: 39
A52: 2015/16 Q2 | B52: =VLOOKUP(J52,'Control Panel'!$I$27:$K$68,2,FALSE) -> NE2 | C52: 0 | I52: 1 | J52: F84685 | L52: 3039 | M52: 14 | N52: 10 | O52: 11 | P52: 10 | Q52: 11 | R52: 5 | S52: 11 | T52: 11 | U52: 10 | V52: 10 | W52: 10 | X52: 16 | Y52: 11 | Z52: 10 | AA52: 11 | AB52: 8 | AC52: 12
A53: 2015/16 Q2 | B53: =VLOOKUP(J53,'Control Panel'!$I$27:$K$68,2,FALSE) -> NE2 | C53: 0 | I53: 1 | J53: F84720 | L53: 5260 | M53: 23 | N53: 17 | O53: 21 | P53: 17 | Q53: 21 | R53: 16 | S53: 19 | T53: 16 | U53: 13 | V53: 11 | W53: 13 | X53: 28 | Y53: 26 | Z53: 25 | AA53: 17 | AB53: 22 | AC53: 17
A54: 2015/16 Q2 | B54: =VLOOKUP(J54,'Control Panel'!$I$27:$K$68,2,FALSE) -> NW1 | C54: 1 | I54: 1 | J54: F84115 | L54: 8331 | M54: 17 | N54: 15 | O54: 16 | P54: 15 | Q54: 16 | R54: 15 | S54: 26 | T54: 24 | U54: 24 | V54: 25 | W54: 25 | X54: 25 | Y54: 20 | Z54: 18 | AA54: 21 | AB54: 19 | AC54: 21
A55: 2015/16 Q2 | B55: =VLOOKUP(J55,'Control Panel'!$I$27:$K$68,2,FALSE) -> NW2 | C55: 1 | I55: 1 | J55: F84033 | L55: 12260 | M55: 31 | N55: 30 | O55: 30 | P55: 30 | Q55: 26 | R55: 27 | S55: 24 | T55: 18 | U55: 19 | V55: 19 | W55: 18 | X55: 37 | Y55: 35 | Z55: 34 | AA55: 33 | AB55: 34 | AC55: 33
A56: 2015/16 Q2 | B56: =VLOOKUP(J56,'Control Panel'!$I$27:$K$68,2,FALSE) -> SW1 | C56: 1 | I56: 1 | J56: F84621 | L56: 3821 | M56: 11 | N56: 10 | O56: 10 | P56: 10 | Q56: 10 | R56: 4 | S56: 17 | T56: 15 | U56: 14 | V56: 14 | W56: 14 | X56: 11 | Y56: 10 | Z56: 9 | AA56: 8 | AB56: 10 | AC56: 9
A57: 2015/16 Q2 | B57: =VLOOKUP(J57,'Control Panel'!$I$27:$K$68,2,FALSE) -> SW2 | C57: 1 | I57: 1 | J57: F84635 | L57: 7701 | M57: 16 | N57: 12 | O57: 14 | P57: 12 | Q57: 12 | R57: 13 | S57: 25 | T57: 20 | U57: 19 | V57: 18 | W57: 17 | X57: 21 | Y57: 21 | Z57: 21 | AA57: 20 | AB57: 19 | AC57: 20
A58: 2015/16 Q2 | B58: =VLOOKUP(J58,'Control Panel'!$I$27:$K$68,2,FALSE) -> NE1 | C58: 0 | I58: 1 | J58: F84686 | L58: 6900 | M58: 57 | N58: 24 | O58: 31 | P58: 25 | Q58: 14 | R58: 0 | S58: 66 | T58: 44 | U58: 34 | V58: 31 | W58: 37 | X58: 60 | Y58: 52 | Z58: 54 | AA58: 37 | AB58: 39 | AC58: 37
A59: 2015/16 Q2 | B59: =VLOOKUP(J59,'Control Panel'!$I$27:$K$68,2,FALSE) -> City | C59: 1 | I59: 1 | J59: F84640 | L59: 8691 | M59: 14 | N59: 12 | O59: 10 | P59: 11 | Q59: 11 | R59: 6 | S59: 20 | T59: 17 | U59: 17 | V59: 17 | W59: 18 | X59: 19 | Y59: 17 | Z59: 16 | AA59: 16 | AB59: 17 | AC59: 16
A60: 2015/16 Q2 | B60: =VLOOKUP(J60,'Control Panel'!$I$27:$K$68,2,FALSE) -> NW2 | C60: 1 | I60: 1 | J60: F84694 | L60: 2827 | M60: 10 | N60: 9 | O60: 9 | P60: 8 | Q60: 8 | R60: 10 | S60: 9 | T60: 8 | U60: 7 | V60: 6 | W60: 7 | X60: 6 | Y60: 6 | Z60: 6 | AA60: 4 | AB60: 5 | AC60: 5
A61: 2015/16 Q2 | B61: =VLOOKUP(J61,'Control Panel'!$I$27:$K$68,2,FALSE) -> SW2 | C61: 1 | I61: 1 | J61: F84096 | L61: 13181 | M61: 41 | N61: 37 | O61: 37 | P61: 37 | Q61: 34 | R61: 37 | S61: 46 | T61: 43 | U61: 43 | V61: 42 | W61: 43 | X61: 42 | Y61: 42 | Z61: 41 | AA61: 38 | AB61: 42 | AC61: 40
A62: 2015/16 Q2 | B62: =VLOOKUP(J62,'Control Panel'!$I$27:$K$68,2,FALSE) -> NW1 | C62: 1 | I62: 1 | J62: F84119 | L62: 10884 | M62: 48 | N62: 34 | O62: 39 | P62: 35 | Q62: 35 | R62: 36 | S62: 46 | T62: 40 | U62: 27 | V62: 26 | W62: 27 | X62: 30 | Y62: 24 | Z62: 26 | AA62: 17 | AB62: 24 | AC62: 18
A63: 2015/16 Q2 | B63: =VLOOKUP(J63,'Control Panel'!$I$27:$K$68,2,FALSE) -> NE2 | C63: 0 | I63: 1 | J63: F84711 | L63: 2148 | M63: 9 | N63: 7 | O63: 8 | P63: 7 | Q63: 6 | R63: 4 | S63: 6 | T63: 4 | U63: 4 | V63: 5 | W63: 5 | X63: 7 | Y63: 5 | Z63: 5 | AA63: 5 | AB63: 4 | AC63: 5
A64: 2015/16 Q2 | B64: =VLOOKUP(J64,'Control Panel'!$I$27:$K$68,2,FALSE) -> NE2 | C64: 0 | I64: 1 | J64: F84080 | L64: 4793 | M64: 22 | N64: 16 | O64: 18 | P64: 17 | Q64: 14 | R64: 0 | S64: 20 | T64: 19 | U64: 18 | V64: 17 | W64: 19 | X64: 33 | Y64: 24 | Z64: 22 | AA64: 17 | AB64: 20 | AC64: 17
A65: 2015/16 Q2 | B65: =VLOOKUP(J65,'Control Panel'!$I$27:$K$68,2,FALSE) -> SE2 | C65: 1 | I65: 1 | J65: F84601 | L65: 5735 | M65: 27 | N65: 23 | O65: 23 | P65: 23 | Q65: 21 | R65: 20 | S65: 22 | T65: 14 | U65: 13 | V65: 16 | W65: 15 | X65: 16 | Y65: 15 | Z65: 11 | AA65: 8 | AB65: 12 | AC65: 9
A66: 2015/16 Q2 | B66: =VLOOKUP(J66,'Control Panel'!$I$27:$K$68,2,FALSE) -> SE2 | C66: =IF(LEFT(B66,2)="NE",0,1) -> 1 | I66: 1 | J66: F84620 | L66: 5932 | M66: 23 | N66: 22 | O66: 22 | P66: 22 | Q66: 18 | R66: 15 | S66: 23 | T66: 21 | U66: 19 | V66: 18 | W66: 20 | X66: 11 | Y66: 10 | Z66: 11 | AA66: 8 | AB66: 11 | AC66: 9
A67: 2015/16 Q2 | B67: =VLOOKUP(J67,'Control Panel'!$I$27:$K$68,2,FALSE) -> SW2 | C67: 1 | I67: =IF(J67="Total",0,1) -> 1 | J67: F84072 | L67: 8836 | M67: 36 | N67: 33 | O67: 34 | P67: 33 | Q67: 32 | R67: 28 | S67: 21 | T67: 21 | U67: 18 | V67: 18 | W67: 18 | X67: 27 | Y67: 24 | Z67: 21 | AA67: 18 | AB67: 24 | AC67: 21
A68: 2015/16 Q2 | B68: =VLOOKUP(J68,'Control Panel'!$I$27:$K$68,2,FALSE) -> NW2 | C68: 1 | I68: 1 | J68: F84636 | L68: 3378 | M68: 12 | N68: 7 | O68: 8 | P68: 7 | Q68: 7 | R68: 1 | S68: 7 | T68: 6 | U68: 7 | V68: 7 | W68: 7 | X68: 8 | Y68: 6 | Z68: 6 | AA68: 6 | AB68: 6 | AC68: 6
A69: 2015/16 Q2 | B69: =VLOOKUP(J69,'Control Panel'!$I$27:$K$68,2,FALSE) -> SW1 | C69: 1 | I69: 1 | J69: F84038 | L69: 3708 | M69: 12 | N69: 9 | O69: 9 | P69: 9 | Q69: 7 | R69: 0 | S69: 8 | T69: 7 | U69: 6 | V69: 6 | W69: 7 | X69: 13 | Y69: 11 | Z69: 11 | AA69: 10 | AB69: 12 | AC69: 11
A70: 2015/16 Q2 | B70: =VLOOKUP(J70,'Control Panel'!$I$27:$K$68,2,FALSE) -> SE1 | C70: 1 | I70: 1 | J70: F84105 | L70: 10787 | M70: 35 | N70: 32 | O70: 32 | P70: 32 | Q70: 31 | R70: 34 | S70: 35 | T70: 30 | U70: 29 | V70: 29 | W70: 28 | X70: 36 | Y70: 34 | Z70: 31 | AA70: 27 | AB70: 32 | AC70: 26
A71: 2015/16 Q2 | B71: =VLOOKUP(J71,'Control Panel'!$I$27:$K$68,2,FALSE) -> NE2 | C71: 0 | I71: 1 | J71: F84619 | L71: 4118 | M71: 15 | N71: 14 | O71: 15 | P71: 14 | Q71: 11 | R71: 5 | S71: 15 | T71: 13 | U71: 11 | V71: 12 | W71: 12 | X71: 21 | Y71: 21 | Z71: 21 | AA71: 21 | AB71: 21 | AC71: 21
A72: 2015/16 Q2 | B72: =VLOOKUP(J72,'Control Panel'!$I$27:$K$68,2,FALSE) -> SE1 | C72: 1 | I72: 1 | J72: F84043 | L72: 4647 | M72: 15 | N72: 13 | O72: 14 | P72: 11 | Q72: 12 | R72: 5 | S72: 10 | T72: 10 | U72: 9 | V72: 9 | W72: 9 | X72: 16 | Y72: 15 | Z72: 13 | AA72: 12 | AB72: 14 | AC72: 11
A73: 2015/16 Q2 | B73: =VLOOKUP(J73,'Control Panel'!$I$27:$K$68,2,FALSE) -> NW1 | C73: 1 | I73: 1 | J73: F84716 | L73: 4850 | M73: 28 | N73: 16 | O73: 17 | P73: 16 | Q73: 14 | R73: 1 | S73: 28 | T73: 19 | U73: 14 | V73: 14 | W73: 14 | X73: 28 | Y73: 21 | Z73: 25 | AA73: 15 | AB73: 18 | AC73: 18
A74: 2015/16 Q2 | B74: =VLOOKUP(J74,'Control Panel'!$I$27:$K$68,2,FALSE) -> NE2 | C74: 0 | I74: 1 | J74: F84668 | L74: 6538 | M74: 49 | N74: 30 | O74: 39 | P74: 29 | Q74: 19 | R74: 2 | S74: 45 | T74: 35 | U74: 34 | V74: 30 | W74: 35 | X74: 37 | Y74: 29 | Z74: 29 | AA74: 20 | AB74: 25 | AC74: 28
A75: 2015/16 Q2 | B75: =VLOOKUP(J75,'Control Panel'!$I$27:$K$68,2,FALSE) -> SE1 | C75: 1 | I75: 1 | J75: F84015 | L75: 5377 | M75: 15 | N75: 14 | O75: 14 | P75: 14 | Q75: 13 | R75: 10 | S75: 19 | T75: 14 | U75: 8 | V75: 8 | W75: 8 | X75: 27 | Y75: 21 | Z75: 24 | AA75: 18 | AB75: 24 | AC75: 18
A76: 2015/16 Q2 | B76: =VLOOKUP(J76,'Control Panel'!$I$27:$K$68,2,FALSE) -> NW1 | C76: 1 | I76: 1 | J76: F84036 | L76: 7029 | M76: 19 | N76: 9 | O76: 10 | P76: 9 | Q76: 9 | R76: 13 | S76: 17 | T76: 10 | U76: 9 | V76: 9 | W76: 10 | X76: 23 | Y76: 22 | Z76: 21 | AA76: 10 | AB76: 17 | AC76: 11
A77: 2015/16 Q2 | B77: =VLOOKUP(J77,'Control Panel'!$I$27:$K$68,2,FALSE) -> NW2 | C77: 1 | I77: 1 | J77: F84624 | L77: 2899 | M77: 6 | N77: 1 | O77: 5 | P77: 5 | Q77: 5 | R77: 4 | S77: 9 | T77: 0 | U77: 0 | V77: 0 | W77: 6 | X77: 6 | Y77: 0 | Z77: 0 | AA77: 0 | AB77: 0 | AC77: 0
A78: 2015/16 Q2 | B78: =VLOOKUP(J78,'Control Panel'!$I$27:$K$68,2,FALSE) ->  | I78: 1 | J78: Y01177 | L78: 8003 | M78: 21 | N78: 15 | O78: 16 | P78: 15 | Q78: 14 | R78: 6 | S78: 29 | T78: 28 | U78: 9 | V78: 26 | W78: 27 | X78: 29 | Y78: 7 | Z78: 8 | AA78: 22 | AB78: 5 | AC78: 25
A79: 2015/16 Q2 | B79: =VLOOKUP(J79,'Control Panel'!$I$27:$K$68,2,FALSE) -> SW1 | C79: 1 | I79: 1 | J79: F84035 | L79: 3706 | M79: 17 | N79: 14 | O79: 15 | P79: 14 | Q79: 14 | R79: 13 | S79: 8 | T79: 7 | U79: 7 | V79: 7 | W79: 7 | X79: 12 | Y79: 12 | Z79: 10 | AA79: 11 | AB79: 12 | AC79: 12
A80: 2015/16 Q2 | B80: =VLOOKUP(J80,'Control Panel'!$I$27:$K$68,2,FALSE) -> SW2 | C80: 1 | I80: 1 | J80: F84692 | L80: 5963 | M80: 17 | N80: 13 | O80: 14 | P80: 13 | Q80: 13 | R80: 13 | S80: 16 | T80: 13 | U80: 12 | V80: 12 | W80: 13 | X80: 11 | Y80: 11 | Z80: 11 | AA80: 10 | AB80: 11 | AC80: 10
A81: 2015/16 Q2 | B81: =VLOOKUP(J81,'Control Panel'!$I$27:$K$68,2,FALSE) -> SW1 | C81: 1 | I81: 1 | J81: F84021 | L81: 9885 | M81: 38 | N81: 31 | O81: 32 | P81: 31 | Q81: 32 | R81: 35 | S81: 28 | T81: 26 | U81: 26 | V81: 26 | W81: 26 | X81: 34 | Y81: 34 | Z81: 32 | AA81: 34 | AB81: 33 | AC81: 32
A82: 2015/16 Q2 | B82: =VLOOKUP(J82,'Control Panel'!$I$27:$K$68,2,FALSE) -> NE2 | C82: 0 | I82: 1 | J82: F84018 | L82: 10445 | M82: 52 | N82: 37 | O82: 40 | P82: 37 | Q82: 33 | R82: 46 | S82: 43 | T82: 39 | U82: 39 | V82: 38 | W82: 38 | X82: 33 | Y82: 29 | Z82: 29 | AA82: 26 | AB82: 27 | AC82: 26
A83: 2015/16 Q2 | B83: =VLOOKUP(J83,'Control Panel'!$I$27:$K$68,2,FALSE) -> SE1 | C83: 1 | I83: 1 | J83: F84719 | L83: 4531 | M83: 12 | N83: 11 | O83: 11 | P83: 11 | Q83: 11 | R83: 12 | S83: 13 | T83: 12 | U83: 9 | V83: 11 | W83: 11 | X83: 16 | Y83: 15 | Z83: 15 | AA83: 15 | AB83: 14 | AC83: 16
A84: 2015/16 Q2 | B84: =VLOOKUP(J84,'Control Panel'!$I$27:$K$68,2,FALSE) -> SW2 | C84: 1 | I84: 1 | J84: F84041 | L84: 7343 | M84: 24 | N84: 14 | O84: 16 | P84: 14 | Q84: 16 | R84: 14 | S84: 11 | T84: 5 | U84: 4 | V84: 4 | W84: 5 | X84: 20 | Y84: 17 | Z84: 17 | AA84: 12 | AB84: 17 | AC84: 16
A85: 2015/16 Q2 | B85: =VLOOKUP(J85,'Control Panel'!$I$27:$K$68,2,FALSE) -> SE2 | C85: 1 | I85: 1 | J85: F84632 | L85: 856 | M85: 0 | N85: 0 | O85: 0 | P85: 0 | Q85: 0 | R85: 0 | S85: 0 | T85: 0 | U85: 0 | V85: 0 | W85: 0 | X85: 0 | Y85: 0 | Z85: 0 | AA85: 0 | AB85: 0 | AC85: 0
A86: 2015/16 Q2 | B86: =VLOOKUP(J86,'Control Panel'!$I$27:$K$68,2,FALSE) -> NE1 | C86: 0 | I86: 1 | J86: Y03049 | L86: 7255 | M86: 55 | N86: 34 | O86: 42 | P86: 35 | Q86: 25 | R86: 28 | S86: 47 | T86: 39 | U86: 36 | V86: 35 | W86: 36 | X86: 27 | Y86: 23 | Z86: 21 | AA86: 17 | AB86: 19 | AC86: 18
A87: 2015/16 Q2 | B87: =VLOOKUP(J87,'Control Panel'!$I$27:$K$68,2,FALSE) -> SE2 | C87: 1 | I87: 1 | J87: Y00403 | L87: 5412 | M87: 21 | N87: 16 | O87: 18 | P87: 16 | Q87: 18 | R87: 4 | S87: 21 | T87: 17 | U87: 15 | V87: 15 | W87: 14 | X87: 12 | Y87: 12 | Z87: 12 | AA87: 9 | AB87: 12 | AC87: 10
A88: 2015/16 Q2 | B88: =VLOOKUP(J88,'Control Panel'!$I$27:$K$68,2,FALSE) -> SE2 | C88: 1 | I88: 1 | J88: F84069 | L88: 13572 | M88: 55 | N88: 52 | O88: 54 | P88: 53 | Q88: 52 | R88: 52 | S88: 46 | T88: 40 | U88: 39 | V88: 39 | W88: 38 | X88: 47 | Y88: 44 | Z88: 44 | AA88: 38 | AB88: 44 | AC88: 39
A89: 2015/16 Q2 | B89: =VLOOKUP(J89,'Control Panel'!$I$27:$K$68,2,FALSE) ->  | I89: 0 | J89: Total | L89: 293830 | M89: 1149 | N89: 869 | O89: 951 | P89: 875 | Q89: 797 | R89: 681 | S89: 1107 | T89: 912 | U89: 818 | V89: 807 | W89: 854 | X89: 1093 | Y89: 938 | Z89: 928 | AA89: 780 | AB89: 851 | AC89: 818
A90: 2015/16 Q3 | B90: =VLOOKUP(J90,'Control Panel'!$I$27:$K$68,2,FALSE) ->  | E90: Parent Population | F90: Author | G90: Last Run | I90: 1 | K90: Search | L90: All Patients | M90: (01) 12 MONTH COHORT | N90: (01.01) DTaP/IPV/Hib | O90: (01.02) Men B (1st and 2nd) | P90: (01.03) PCV | Q90: (01.04) Rotavirus | R90: (01.05) BCG | S90: (02) 24 MONTH COHORT | T90: (02.01) DTaP/IPV/Hib | U90: (02.02) MMR | V90: (02.03) HiB/Men C | W90: (02.04) PCV (Booster) | X90: (03) 5 YEAR COHORT | Y90: (03.01) DTaP/IPV/Hib | Z90: (03.02) MMR (Primary) | AA90: (03.03) DTaP/IPV (Booster) | AB90: (03.04) HiB/Men C | AC90: (03.05) MMR (Booster) | AD90: (02.05) Men B (Booster)
A91: 2015/16 Q3 | B91: =VLOOKUP(J91,'Control Panel'!$I$27:$K$68,2,FALSE) -> NE1 | C91: 0 | E91: Currently registered patients | F91: DUNNE, Jack (Mr) | G91: 2016-01-04T12:00:00 | I91: 1 | J91: F84013 | L91: 14108 | M91: 97 | N91: 42 | O91: 60 | P91: 44 | Q91: 23 | R91: 26 | S91: 105 | T91: 70 | U91: 64 | V91: 48 | W91: 62 | X91: 94 | Y91: 86 | Z91: 83 | AA91: 55 | AB91: 58 | AC91: 57
A92: 2015/16 Q3 | B92: =VLOOKUP(J92,'Control Panel'!$I$27:$K$68,2,FALSE) -> SW1 | C92: 1 | I92: 1 | J92: F84117 | L92: 9511 | M92: 26 | N92: 26 | O92: 25 | P92: 26 | Q92: 25 | R92: 21 | S92: 28 | T92: 28 | U92: 27 | V92: 27 | W92: 27 | X92: 22 | Y92: 22 | Z92: 21 | AA92: 17 | AB92: 21 | AC92: 19
A93: 2015/16 Q3 | B93: =VLOOKUP(J93,'Control Panel'!$I$27:$K$68,2,FALSE) -> SE1 | C93: 1 | F93: Date Modified | G93: Relative Date | I93: 1 | J93: F84060 | L93: 4946 | M93: 18 | N93: 11 | O93: 14 | P93: 11 | Q93: 12 | R93: 8 | S93: 14 | T93: 11 | U93: 10 | V93: 10 | W93: 10 | X93: 9 | Y93: 6 | Z93: 6 | AA93: 6 | AB93: 7 | AC93: 5
A94: 2015/16 Q3 | B94: =VLOOKUP(J94,'Control Panel'!$I$27:$K$68,2,FALSE) -> SE1 | C94: 1 | F94: 2015-11-02 | G94: 2016-01-01 | I94: 1 | J94: F84003 | L94: 12488 | M94: 48 | N94: 40 | O94: 42 | P94: 40 | Q94: 37 | R94: 42 | S94: 48 | T94: 43 | U94: 42 | V94: 42 | W94: 42 | X94: 32 | Y94: 29 | Z94: 27 | AA94: 21 | AB94: 27 | AC94: 22
A95: 2015/16 Q3 | B95: =VLOOKUP(J95,'Control Panel'!$I$27:$K$68,2,FALSE) -> NW2 | C95: 1 | I95: 1 | J95: F84008 | L95: 12518 | M95: 37 | N95: 35 | O95: 33 | P95: 34 | Q95: 30 | R95: 33 | S95: 45 | T95: 40 | U95: 40 | V95: 40 | W95: 39 | X95: 36 | Y95: 36 | Z95: 34 | AA95: 29 | AB95: 33 | AC95: 30
A96: 2015/16 Q3 | B96: =VLOOKUP(J96,'Control Panel'!$I$27:$K$68,2,FALSE) -> NE2 | C96: 0 | I96: 1 | J96: F84685 | L96: 3063 | M96: 10 | N96: 7 | O96: 7 | P96: 7 | Q96: 7 | R96: 3 | S96: 14 | T96: 11 | U96: 8 | V96: 9 | W96: 9 | X96: 12 | Y96: 11 | Z96: 8 | AA96: 10 | AB96: 10 | AC96: 10
A97: 2015/16 Q3 | B97: =VLOOKUP(J97,'Control Panel'!$I$27:$K$68,2,FALSE) -> NE2 | C97: 0 | I97: 1 | J97: F84720 | L97: 5224 | M97: 22 | N97: 15 | O97: 17 | P97: 15 | Q97: 15 | R97: 14 | S97: 18 | T97: 16 | U97: 16 | V97: 16 | W97: 15 | X97: 33 | Y97: 29 | Z97: 30 | AA97: 21 | AB97: 27 | AC97: 24
A98: 2015/16 Q3 | B98: =VLOOKUP(J98,'Control Panel'!$I$27:$K$68,2,FALSE) -> NW1 | C98: 1 | I98: 1 | J98: F84115 | L98: 8406 | M98: 26 | N98: 25 | O98: 26 | P98: 25 | Q98: 26 | R98: 24 | S98: 30 | T98: 25 | U98: 23 | V98: 23 | W98: 23 | X98: 22 | Y98: 22 | Z98: 21 | AA98: 17 | AB98: 19 | AC98: 18
A99: 2015/16 Q3 | B99: =VLOOKUP(J99,'Control Panel'!$I$27:$K$68,2,FALSE) -> NW2 | C99: 1 | I99: 1 | J99: F84033 | L99: 12279 | M99: 40 | N99: 34 | O99: 34 | P99: 34 | Q99: 31 | R99: 35 | S99: 31 | T99: 29 | U99: 27 | V99: 29 | W99: 29 | X99: 35 | Y99: 32 | Z99: 32 | AA99: 32 | AB99: 32 | AC99: 32
A100: 2015/16 Q3 | B100: =VLOOKUP(J100,'Control Panel'!$I$27:$K$68,2,FALSE) -> SW1 | C100: 1 | I100: 1 | J100: F84621 | L100: 3632 | M100: 7 | N100: 4 | O100: 6 | P100: 4 | Q100: 6 | R100: 4 | S100: 10 | T100: 8 | U100: 6 | V100: 6 | W100: 6 | X100: 7 | Y100: 7 | Z100: 7 | AA100: 6 | AB100: 7 | AC100: 5
A101: 2015/16 Q3 | B101: =VLOOKUP(J101,'Control Panel'!$I$27:$K$68,2,FALSE) -> SW2 | C101: 1 | I101: 1 | J101: F84635 | L101: 7738 | M101: 19 | N101: 15 | O101: 15 | P101: 15 | Q101: 15 | R101: 18 | S101: 21 | T101: 20 | U101: 18 | V101: 19 | W101: 19 | X101: 22 | Y101: 22 | Z101: 22 | AA101: 21 | AB101: 22 | AC101: 21
A102: 2015/16 Q3 | B102: =VLOOKUP(J102,'Control Panel'!$I$27:$K$68,2,FALSE) -> NE1 | C102: 0 | I102: 1 | J102: F84686 | L102: 7034 | M102: 68 | N102: 28 | O102: 44 | P102: 28 | Q102: 27 | R102: 1 | S102: 67 | T102: 46 | U102: 36 | V102: 32 | W102: 37 | X102: 69 | Y102: 58 | Z102: 56 | AA102: 32 | AB102: 44 | AC102: 32
A103: 2015/16 Q3 | B103: =VLOOKUP(J103,'Control Panel'!$I$27:$K$68,2,FALSE) -> City | C103: 1 | I103: 1 | J103: F84640 | L103: 8819 | M103: 11 | N103: 11 | O103: 11 | P103: 11 | Q103: 11 | R103: 2 | S103: 18 | T103: 16 | U103: 17 | V103: 17 | W103: 17 | X103: 15 | Y103: 12 | Z103: 11 | AA103: 12 | AB103: 10 | AC103: 12
A104: 2015/16 Q3 | B104: =VLOOKUP(J104,'Control Panel'!$I$27:$K$68,2,FALSE) -> NW2 | C104: 1 | I104: 1 | J104: F84694 | L104: 2806 | M104: 7 | N104: 6 | O104: 6 | P104: 6 | Q104: 6 | R104: 5 | S104: 8 | T104: 7 | U104: 7 | V104: 7 | W104: 7 | X104: 6 | Y104: 6 | Z104: 6 | AA104: 5 | AB104: 6 | AC104: 5
A105: 2015/16 Q3 | B105: =VLOOKUP(J105,'Control Panel'!$I$27:$K$68,2,FALSE) -> SW2 | C105: 1 | I105: 1 | J105: F84096 | L105: 13214 | M105: 35 | N105: 32 | O105: 33 | P105: 32 | Q105: 31 | R105: 32 | S105: 30 | T105: 29 | U105: 29 | V105: 28 | W105: 29 | X105: 40 | Y105: 38 | Z105: 36 | AA105: 34 | AB105: 36 | AC105: 36
A106: 2015/16 Q3 | B106: =VLOOKUP(J106,'Control Panel'!$I$27:$K$68,2,FALSE) -> NW1 | C106: 1 | I106: 1 | J106: F84119 | L106: 10982 | M106: 38 | N106: 27 | O106: 28 | P106: 27 | Q106: 26 | R106: 28 | S106: 33 | T106: 27 | U106: 22 | V106: 23 | W106: 23 | X106: 33 | Y106: 29 | Z106: 27 | AA106: 23 | AB106: 26 | AC106: 25
A107: 2015/16 Q3 | B107: =VLOOKUP(J107,'Control Panel'!$I$27:$K$68,2,FALSE) -> NE2 | C107: 0 | I107: 1 | J107: F84711 | L107: 2124 | M107: 5 | N107: 3 | O107: 5 | P107: 3 | Q107: 4 | R107: 3 | S107: 6 | T107: 5 | U107: 5 | V107: 5 | W107: 5 | X107: 6 | Y107: 3 | Z107: 4 | AA107: 2 | AB107: 4 | AC107: 2
A108: 2015/16 Q3 | B108: =VLOOKUP(J108,'Control Panel'!$I$27:$K$68,2,FALSE) -> NE2 | C108: 0 | I108: 1 | J108: F84080 | L108: 4869 | M108: 21 | N108: 12 | O108: 15 | P108: 12 | Q108: 9 | R108: 1 | S108: 9 | T108: 9 | U108: 8 | V108: 8 | W108: 9 | X108: 17 | Y108: 14 | Z108: 14 | AA108: 12 | AB108: 14 | AC108: 12
A109: 2015/16 Q3 | B109: =VLOOKUP(J109,'Control Panel'!$I$27:$K$68,2,FALSE) -> SE2 | C109: 1 | I109: 1 | J109: F84601 | L109: 5864 | M109: 22 | N109: 17 | O109: 17 | P109: 17 | Q109: 16 | R109: 18 | S109: 14 | T109: 13 | U109: 13 | V109: 13 | W109: 13 | X109: 20 | Y109: 12 | Z109: 13 | AA109: 11 | AB109: 12 | AC109: 12
A110: 2015/16 Q3 | B110: =VLOOKUP(J110,'Control Panel'!$I$27:$K$68,2,FALSE) -> SE2 | C110: 1 | I110: 1 | J110: F84620 | L110: 5967 | M110: 10 | N110: 9 | O110: 10 | P110: 9 | Q110: 10 | R110: 8 | S110: 20 | T110: 20 | U110: 20 | V110: 20 | W110: 20 | X110: 19 | Y110: 19 | Z110: 19 | AA110: 14 | AB110: 17 | AC110: 15
A111: 2015/16 Q3 | B111: =VLOOKUP(J111,'Control Panel'!$I$27:$K$68,2,FALSE) -> SW2 | C111: 1 | I111: 1 | J111: F84072 | L111: 9113 | M111: 32 | N111: 16 | O111: 20 | P111: 15 | Q111: 20 | R111: 27 | S111: 23 | T111: 21 | U111: 20 | V111: 19 | W111: 19 | X111: 23 | Y111: 18 | Z111: 17 | AA111: 17 | AB111: 15 | AC111: 19
A112: 2015/16 Q3 | B112: =VLOOKUP(J112,'Control Panel'!$I$27:$K$68,2,FALSE) -> NW2 | C112: 1 | I112: 1 | J112: F84636 | L112: 3400 | M112: 13 | N112: 9 | O112: 11 | P112: 9 | Q112: 11 | R112: 0 | S112: 11 | T112: 9 | U112: 6 | V112: 7 | W112: 6 | X112: 12 | Y112: 12 | Z112: 12 | AA112: 7 | AB112: 12 | AC112: 9
A113: 2015/16 Q3 | B113: =VLOOKUP(J113,'Control Panel'!$I$27:$K$68,2,FALSE) -> SW1 | C113: 1 | I113: 1 | J113: F84038 | L113: 3692 | M113: 7 | N113: 2 | O113: 2 | P113: 2 | Q113: 2 | R113: 0 | S113: 10 | T113: 7 | U113: 6 | V113: 6 | W113: 5 | X113: 12 | Y113: 10 | Z113: 10 | AA113: 7 | AB113: 10 | AC113: 8
A114: 2015/16 Q3 | B114: =VLOOKUP(J114,'Control Panel'!$I$27:$K$68,2,FALSE) -> SE1 | C114: 1 | I114: 1 | J114: F84105 | L114: 10849 | M114: 33 | N114: 33 | O114: 33 | P114: 33 | Q114: 32 | R114: 30 | S114: 41 | T114: 37 | U114: 36 | V114: 37 | W114: 37 | X114: 47 | Y114: 47 | Z114: 46 | AA114: 44 | AB114: 45 | AC114: 44
A115: 2015/16 Q3 | B115: =VLOOKUP(J115,'Control Panel'!$I$27:$K$68,2,FALSE) -> NE2 | C115: 0 | I115: 1 | J115: F84619 | L115: 4095 | M115: 16 | N115: 15 | O115: 14 | P115: 14 | Q115: 10 | R115: 5 | S115: 14 | T115: 14 | U115: 13 | V115: 13 | W115: 13 | X115: 17 | Y115: 17 | Z115: 16 | AA115: 16 | AB115: 16 | AC115: 16
A116: 2015/16 Q3 | B116: =VLOOKUP(J116,'Control Panel'!$I$27:$K$68,2,FALSE) -> SE1 | C116: 1 | I116: 1 | J116: F84043 | L116: 4625 | M116: 21 | N116: 14 | O116: 16 | P116: 14 | Q116: 14 | R116: 13 | S116: 18 | T116: 17 | U116: 16 | V116: 16 | W116: 16 | X116: 16 | Y116: 14 | Z116: 13 | AA116: 12 | AB116: 15 | AC116: 12
A117: 2015/16 Q3 | B117: =VLOOKUP(J117,'Control Panel'!$I$27:$K$68,2,FALSE) -> NW1 | C117: 1 | I117: 1 | J117: F84716 | L117: 4855 | M117: 27 | N117: 18 | O117: 16 | P117: 18 | Q117: 14 | R117: 0 | S117: 35 | T117: 27 | U117: 24 | V117: 23 | W117: 24 | X117: 22 | Y117: 16 | Z117: 18 | AA117: 13 | AB117: 16 | AC117: 15
A118: 2015/16 Q3 | B118: =VLOOKUP(J118,'Control Panel'!$I$27:$K$68,2,FALSE) -> NE2 | C118: 0 | I118: 1 | J118: F84668 | L118: 6538 | M118: 52 | N118: 32 | O118: 37 | P118: 32 | Q118: 21 | R118: 0 | S118: 40 | T118: 26 | U118: 25 | V118: 19 | W118: 23 | X118: 47 | Y118: 37 | Z118: 40 | AA118: 29 | AB118: 37 | AC118: 34
A119: 2015/16 Q3 | B119: =VLOOKUP(J119,'Control Panel'!$I$27:$K$68,2,FALSE) -> SE1 | C119: 1 | I119: 1 | J119: F84015 | L119: 5367 | M119: 24 | N119: 21 | O119: 22 | P119: 21 | Q119: 22 | R119: 21 | S119: 13 | T119: 12 | U119: 11 | V119: 12 | W119: 12 | X119: 22 | Y119: 19 | Z119: 19 | AA119: 12 | AB119: 19 | AC119: 14
A120: 2015/16 Q3 | B120: =VLOOKUP(J120,'Control Panel'!$I$27:$K$68,2,FALSE) -> NW1 | C120: 1 | I120: 1 | J120: F84036 | L120: 7018 | M120: 18 | N120: 9 | O120: 11 | P120: 9 | Q120: 9 | R120: 12 | S120: 21 | T120: 9 | U120: 7 | V120: 7 | W120: 7 | X120: 21 | Y120: 19 | Z120: 20 | AA120: 11 | AB120: 20 | AC120: 11
A121: 2015/16 Q3 | B121: =VLOOKUP(J121,'Control Panel'!$I$27:$K$68,2,FALSE) -> NW2 | C121: 1 | I121: 1 | J121: F84624 | L121: 2905 | M121: 10 | N121: 1 | O121: 7 | P121: 7 | Q121: 7 | R121: 9 | S121: 10 | T121: 0 | U121: 0 | V121: 0 | W121: 3 | X121: 13 | Y121: 0 | Z121: 1 | AA121: 1 | AB121: 0 | AC121: 1
A122: 2015/16 Q3 | B122: =VLOOKUP(J122,'Control Panel'!$I$27:$K$68,2,FALSE) ->  | I122: 1 | J122: Y01177 | L122: 8038 | M122: 27 | N122: 23 | O122: 24 | P122: 23 | Q122: 22 | R122: 14 | S122: 28 | T122: 22 | U122: 18 | V122: 23 | W122: 24 | X122: 38 | Y122: 6 | Z122: 6 | AA122: 23 | AB122: 2 | AC122: 26
A123: 2015/16 Q3 | B123: =VLOOKUP(J123,'Control Panel'!$I$27:$K$68,2,FALSE) -> SW1 | C123: 1 | I123: 1 | J123: F84063 | L123: 5967 | M123: 9 | N123: 1 | O123: 9 | P123: 9 | Q123: 7 | R123: 9 | S123: 20 | T123: 0 | U123: 0 | V123: 0 | W123: 1 | X123: 22 | Y123: 0 | Z123: 0 | AA123: 0 | AB123: 0 | AC123: 0
A124: 2015/16 Q3 | B124: =VLOOKUP(J124,'Control Panel'!$I$27:$K$68,2,FALSE) -> SW1 | C124: 1 | I124: 1 | J124: F84035 | L124: 3688 | M124: 5 | N124: 4 | O124: 4 | P124: 4 | Q124: 4 | R124: 4 | S124: 11 | T124: 10 | U124: 10 | V124: 10 | W124: 10 | X124: 12 | Y124: 12 | Z124: 12 | AA124: 10 | AB124: 11 | AC124: 11
A125: 2015/16 Q3 | B125: =VLOOKUP(J125,'Control Panel'!$I$27:$K$68,2,FALSE) -> SW2 | C125: 1 | I125: 1 | J125: F84692 | L125: 6069 | M125: 11 | N125: 11 | O125: 11 | P125: 11 | Q125: 11 | R125: 11 | S125: 12 | T125: 11 | U125: 9 | V125: 10 | W125: 9 | X125: 15 | Y125: 14 | Z125: 13 | AA125: 11 | AB125: 13 | AC125: 11
A126: 2015/16 Q3 | B126: =VLOOKUP(J126,'Control Panel'!$I$27:$K$68,2,FALSE) -> SW1 | C126: 1 | I126: 1 | J126: F84021 | L126: 9911 | M126: 35 | N126: 31 | O126: 31 | P126: 31 | Q126: 27 | R126: 31 | S126: 32 | T126: 30 | U126: 29 | V126: 27 | W126: 29 | X126: 26 | Y126: 24 | Z126: 24 | AA126: 23 | AB126: 25 | AC126: 24
A127: 2015/16 Q3 | B127: =VLOOKUP(J127,'Control Panel'!$I$27:$K$68,2,FALSE) -> NE2 | C127: 0 | I127: 1 | J127: F84018 | L127: 10608 | M127: 48 | N127: 37 | O127: 41 | P127: 37 | Q127: 38 | R127: 41 | S127: 44 | T127: 37 | U127: 37 | V127: 37 | W127: 37 | X127: 41 | Y127: 36 | Z127: 34 | AA127: 33 | AB127: 34 | AC127: 32
A128: 2015/16 Q3 | B128: =VLOOKUP(J128,'Control Panel'!$I$27:$K$68,2,FALSE) -> SE1 | C128: 1 | I128: 1 | J128: F84719 | L128: 4558 | M128: 10 | N128: 10 | O128: 10 | P128: 10 | Q128: 10 | R128: 10 | S128: 7 | T128: 7 | U128: 6 | V128: 7 | W128: 6 | X128: 12 | Y128: 11 | Z128: 10 | AA128: 8 | AB128: 10 | AC128: 11
A129: 2015/16 Q3 | B129: =VLOOKUP(J129,'Control Panel'!$I$27:$K$68,2,FALSE) -> SW2 | C129: 1 | I129: 1 | J129: F84041 | L129: 7455 | M129: 13 | N129: 8 | O129: 9 | P129: 8 | Q129: 9 | R129: 7 | S129: 15 | T129: 9 | U129: 9 | V129: 8 | W129: 9 | X129: 22 | Y129: 20 | Z129: 20 | AA129: 18 | AB129: 20 | AC129: 17
A130: 2015/16 Q3 | B130: =VLOOKUP(J130,'Control Panel'!$I$27:$K$68,2,FALSE) -> SE2 | C130: =IF(LEFT(B130,2)="NE",0,1) -> 1 | I130: 1 | J130: F84632 | L130: 893 | M130: 0 | N130: 0 | O130: 0 | P130: 0 | Q130: 0 | R130: 0 | S130: 0 | T130: 0 | U130: 0 | V130: 0 | W130: 0 | X130: 0 | Y130: 0 | Z130: 0 | AA130: 0 | AB130: 0 | AC130: 0
A131: 2015/16 Q3 | B131: =VLOOKUP(J131,'Control Panel'!$I$27:$K$68,2,FALSE) -> NE1 | C131: 0 | I131: =IF(J131="Total",0,1) -> 1 | J131: Y03049 | L131: 7297 | M131: 40 | N131: 27 | O131: 31 | P131: 27 | Q131: 24 | R131: 25 | S131: 59 | T131: 45 | U131: 43 | V131: 39 | W131: 44 | X131: 42 | Y131: 39 | Z131: 40 | AA131: 28 | AB131: 36 | AC131: 33
A132: 2015/16 Q3 | B132: =VLOOKUP(J132,'Control Panel'!$I$27:$K$68,2,FALSE) -> SE2 | C132: 1 | I132: 1 | J132: Y00403 | L132: 5552 | M132: 22 | N132: 18 | O132: 18 | P132: 18 | Q132: 18 | R132: 6 | S132: 14 | T132: 14 | U132: 12 | V132: 13 | W132: 13 | X132: 25 | Y132: 22 | Z132: 22 | AA132: 17 | AB132: 22 | AC132: 18
A133: 2015/16 Q3 | B133: =VLOOKUP(J133,'Control Panel'!$I$27:$K$68,2,FALSE) -> SE2 | C133: 1 | I133: 1 | J133: F84069 | L133: 13653 | M133: 48 | N133: 43 | O133: 44 | P133: 41 | Q133: 40 | R133: 41 | S133: 52 | T133: 47 | U133: 42 | V133: 41 | W133: 41 | X133: 55 | Y133: 50 | Z133: 51 | AA133: 43 | AB133: 49 | AC133: 43
A134: 2015/16 Q3 | B134: =VLOOKUP(J134,'Control Panel'!$I$27:$K$68,2,FALSE) ->  | I134: 0 | J134: Total | L134: 301738 | M134: 1088 | N134: 782 | O134: 869 | P134: 793 | Q134: 739 | R134: 642 | S134: 1099 | T134: 884 | U134: 817 | V134: 796 | W134: 829 | X134: 1111 | Y134: 936 | Z134: 921 | AA134: 763 | AB134: 859 | AC134: 803
A135: 2015/16 Q4 | B135: =VLOOKUP(J135,'Control Panel'!$I$27:$K$68,2,FALSE) ->  | E135: Parent Population | F135: Author | G135: Last Run | I135: 1 | K135: Search | L135: All Patients | M135: (01) 12 MONTH COHORT | N135: (01.01) DTaP/IPV/Hib | O135: (01.02) Men B (1st and 2nd) | P135: (01.03) PCV | Q135: (01.04) Rotavirus | R135: (01.05) BCG | S135: (02) 24 MONTH COHORT | T135: (02.01) DTaP/IPV/Hib | U135: (02.02) MMR | V135: (02.03) HiB/Men C | W135: (02.04) PCV (Booster) | X135: (03) 5 YEAR COHORT | Y135: (03.01) DTaP/IPV/Hib | Z135: (03.02) MMR (Primary) | AA135: (03.03) DTaP/IPV (Booster) | AB135: (03.04) HiB/Men C | AC135: (03.05) MMR (Booster) | AD135: (02.05) Men B (Booster)
A136: 2015/16 Q4 | B136: =VLOOKUP(J136,'Control Panel'!$I$27:$K$68,2,FALSE) -> NE1 | C136: 0 | E136: Currently registered patients | F136: DUNNE, Jack (Mr) | G136: 2016-04-05T10:42:00 | I136: 1 | J136: F84013 | L136: 14259 | M136: 92 | N136: 39 | O136: 55 | P136: 39 | Q136: 27 | R136: 27 | S136: 102 | T136: 63 | U136: 59 | V136: 52 | W136: 60 | X136: 100 | Y136: 89 | Z136: 90 | AA136: 59 | AB136: 61 | AC136: 77
A137: 2015/16 Q4 | B137: =VLOOKUP(J137,'Control Panel'!$I$27:$K$68,2,FALSE) -> SW1 | C137: 1 | I137: 1 | J137: F84117 | L137: 9510 | M137: 26 | N137: 24 | O137: 25 | P137: 24 | Q137: 22 | R137: 22 | S137: 26 | T137: 25 | U137: 22 | V137: 25 | W137: 25 | X137: 32 | Y137: 32 | Z137: 32 | AA137: 31 | AB137: 31 | AC137: 31
A138: 2015/16 Q4 | B138: =VLOOKUP(J138,'Control Panel'!$I$27:$K$68,2,FALSE) -> SE1 | C138: 1 | F138: Date Modified | G138: Relative Date | I138: 1 | J138: F84060 | L138: 4979 | M138: 10 | N138: 6 | O138: 7 | P138: 6 | Q138: 7 | R138: 4 | S138: 16 | T138: 12 | U138: 11 | V138: 11 | W138: 11 | X138: 15 | Y138: 12 | Z138: 11 | AA138: 14 | AB138: 14 | AC138: 11
A139: 2015/16 Q4 | B139: =VLOOKUP(J139,'Control Panel'!$I$27:$K$68,2,FALSE) -> SE1 | C139: 1 | F139: 2016-01-14 | G139: 2016-04-01 | I139: 1 | J139: F84003 | L139: 12600 | M139: 38 | N139: 33 | O139: 36 | P139: 32 | Q139: 33 | R139: 33 | S139: 34 | T139: 31 | U139: 26 | V139: 30 | W139: 30 | X139: 39 | Y139: 35 | Z139: 33 | AA139: 27 | AB139: 28 | AC139: 34
A140: 2015/16 Q4 | B140: =VLOOKUP(J140,'Control Panel'!$I$27:$K$68,2,FALSE) -> NW2 | C140: 1 | I140: 1 | J140: F84008 | L140: 12643 | M140: 46 | N140: 39 | O140: 40 | P140: 39 | Q140: 35 | R140: 32 | S140: 55 | T140: 52 | U140: 45 | V140: 46 | W140: 47 | X140: 51 | Y140: 49 | Z140: 49 | AA140: 43 | AB140: 47 | AC140: 45
A141: 2015/16 Q4 | B141: =VLOOKUP(J141,'Control Panel'!$I$27:$K$68,2,FALSE) -> NE2 | C141: 0 | I141: 1 | J141: F84685 | L141: 3102 | M141: 11 | N141: 5 | O141: 5 | P141: 5 | Q141: 5 | R141: 1 | S141: 11 | T141: 10 | U141: 9 | V141: 9 | W141: 8 | X141: 15 | Y141: 13 | Z141: 13 | AA141: 9 | AB141: 11 | AC141: 13
A142: 2015/16 Q4 | B142: =VLOOKUP(J142,'Control Panel'!$I$27:$K$68,2,FALSE) -> NE2 | C142: 0 | I142: 1 | J142: F84720 | L142: 5181 | M142: 19 | N142: 13 | O142: 16 | P142: 13 | Q142: 14 | R142: 12 | S142: 19 | T142: 12 | U142: 12 | V142: 12 | W142: 12 | X142: 20 | Y142: 16 | Z142: 16 | AA142: 11 | AB142: 11 | AC142: 14
A143: 2015/16 Q4 | B143: =VLOOKUP(J143,'Control Panel'!$I$27:$K$68,2,FALSE) -> NW1 | C143: 1 | I143: 1 | J143: F84115 | L143: 8472 | M143: 31 | N143: 28 | O143: 28 | P143: 28 | Q143: 27 | R143: 26 | S143: 20 | T143: 19 | U143: 19 | V143: 19 | W143: 19 | X143: 28 | Y143: 24 | Z143: 27 | AA143: 23 | AB143: 24 | AC143: 24
A144: 2015/16 Q4 | B144: =VLOOKUP(J144,'Control Panel'!$I$27:$K$68,2,FALSE) -> NW2 | C144: 1 | I144: 1 | J144: F84033 | L144: 12383 | M144: 33 | N144: 32 | O144: 32 | P144: 32 | Q144: 31 | R144: 33 | S144: 30 | T144: 28 | U144: 26 | V144: 26 | W144: 26 | X144: 24 | Y144: 23 | Z144: 17 | AA144: 16 | AB144: 17 | AC144: 17
A145: 2015/16 Q4 | B145: =VLOOKUP(J145,'Control Panel'!$I$27:$K$68,2,FALSE) -> SW1 | C145: 1 | I145: 1 | J145: F84621 | L145: 3567 | M145: 7 | N145: 7 | O145: 7 | P145: 7 | Q145: 7 | R145: 6 | S145: 7 | T145: 7 | U145: 6 | V145: 6 | W145: 6 | X145: 13 | Y145: 12 | Z145: 9 | AA145: 8 | AB145: 11 | AC145: 9
A146: 2015/16 Q4 | B146: =VLOOKUP(J146,'Control Panel'!$I$27:$K$68,2,FALSE) -> SW2 | C146: 1 | I146: 1 | J146: F84635 | L146: 7755 | M146: 22 | N146: 17 | O146: 19 | P146: 17 | Q146: 18 | R146: 20 | S146: 17 | T146: 14 | U146: 13 | V146: 13 | W146: 13 | X146: 28 | Y146: 26 | Z146: 25 | AA146: 20 | AB146: 21 | AC146: 25
A147: 2015/16 Q4 | B147: =VLOOKUP(J147,'Control Panel'!$I$27:$K$68,2,FALSE) -> NE1 | C147: 0 | I147: 1 | J147: F84686 | L147: 7127 | M147: 61 | N147: 21 | O147: 34 | P147: 21 | Q147: 15 | R147: 1 | S147: 60 | T147: 40 | U147: 27 | V147: 26 | W147: 34 | X147: 44 | Y147: 39 | Z147: 42 | AA147: 21 | AB147: 21 | AC147: 35
A148: 2015/16 Q4 | B148: =VLOOKUP(J148,'Control Panel'!$I$27:$K$68,2,FALSE) -> City | C148: 1 | I148: 1 | J148: F84640 | L148: 8959 | M148: 18 | N148: 16 | O148: 16 | P148: 17 | Q148: 16 | R148: 0 | S148: 14 | T148: 12 | U148: 13 | V148: 13 | W148: 12 | X148: 11 | Y148: 11 | Z148: 10 | AA148: 8 | AB148: 9 | AC148: 10
A149: 2015/16 Q4 | B149: =VLOOKUP(J149,'Control Panel'!$I$27:$K$68,2,FALSE) -> NW2 | C149: 1 | I149: 1 | J149: F84694 | L149: 2852 | M149: 7 | N149: 7 | O149: 7 | P149: 7 | Q149: 7 | R149: 7 | S149: 9 | T149: 9 | U149: 9 | V149: 9 | W149: 9 | X149: 6 | Y149: 5 | Z149: 6 | AA149: 6 | AB149: 6 | AC149: 5
A150: 2015/16 Q4 | B150: =VLOOKUP(J150,'Control Panel'!$I$27:$K$68,2,FALSE) -> SW2 | C150: 1 | I150: 1 | J150: F84096 | L150: 13216 | M150: 44 | N150: 41 | O150: 42 | P150: 41 | Q150: 39 | R150: 39 | S150: 49 | T150: 44 | U150: 41 | V150: 42 | W150: 42 | X150: 44 | Y150: 42 | Z150: 39 | AA150: 38 | AB150: 38 | AC150: 41
A151: 2015/16 Q4 | B151: =VLOOKUP(J151,'Control Panel'!$I$27:$K$68,2,FALSE) -> NW1 | C151: 1 | I151: 1 | J151: F84119 | L151: 11177 | M151: 35 | N151: 27 | O151: 27 | P151: 27 | Q151: 25 | R151: 27 | S151: 34 | T151: 25 | U151: 19 | V151: 20 | W151: 20 | X151: 21 | Y151: 20 | Z151: 19 | AA151: 15 | AB151: 16 | AC151: 18
A152: 2015/16 Q4 | B152: =VLOOKUP(J152,'Control Panel'!$I$27:$K$68,2,FALSE) -> NE2 | C152: 0 | I152: 1 | J152: F84711 | L152: 2105 | M152: 6 | N152: 6 | O152: 6 | P152: 6 | Q152: 6 | R152: 5 | S152: 5 | T152: 4 | U152: 2 | V152: 2 | W152: 3 | X152: 2 | Y152: 2 | Z152: 2 | AA152: 2 | AB152: 2 | AC152: 2
A153: 2015/16 Q4 | B153: =VLOOKUP(J153,'Control Panel'!$I$27:$K$68,2,FALSE) -> NE2 | C153: 0 | I153: 1 | J153: F84080 | L153: 4794 | M153: 29 | N153: 21 | O153: 22 | P153: 21 | Q153: 21 | R153: 1 | S153: 22 | T153: 17 | U153: 15 | V153: 14 | W153: 15 | X153: 17 | Y153: 11 | Z153: 14 | AA153: 13 | AB153: 13 | AC153: 12
A154: 2015/16 Q4 | B154: =VLOOKUP(J154,'Control Panel'!$I$27:$K$68,2,FALSE) -> SE2 | C154: 1 | I154: 1 | J154: F84601 | L154: 5979 | M154: 14 | N154: 11 | O154: 11 | P154: 11 | Q154: 9 | R154: 8 | S154: 24 | T154: 16 | U154: 18 | V154: 17 | W154: 17 | X154: 16 | Y154: 14 | Z154: 14 | AA154: 11 | AB154: 11 | AC154: 12
A155: 2015/16 Q4 | B155: =VLOOKUP(J155,'Control Panel'!$I$27:$K$68,2,FALSE) -> SE2 | C155: 1 | I155: 1 | J155: F84620 | L155: 5958 | M155: 20 | N155: 16 | O155: 16 | P155: 15 | Q155: 14 | R155: 15 | S155: 23 | T155: 20 | U155: 19 | V155: 19 | W155: 19 | X155: 22 | Y155: 21 | Z155: 21 | AA155: 18 | AB155: 19 | AC155: 19
A156: 2015/16 Q4 | B156: =VLOOKUP(J156,'Control Panel'!$I$27:$K$68,2,FALSE) -> SW2 | C156: 1 | I156: 1 | J156: F84072 | L156: 9386 | M156: 39 | N156: 25 | O156: 29 | P156: 24 | Q156: 26 | R156: 38 | S156: 31 | T156: 27 | U156: 16 | V156: 16 | W156: 14 | X156: 21 | Y156: 21 | Z156: 20 | AA156: 18 | AB156: 18 | AC156: 20
A157: 2015/16 Q4 | B157: =VLOOKUP(J157,'Control Panel'!$I$27:$K$68,2,FALSE) -> NW2 | C157: 1 | I157: 1 | J157: F84636 | L157: 3385 | M157: 8 | N157: 8 | O157: 8 | P157: 8 | Q157: 8 | R157: 2 | S157: 4 | T157: 2 | U157: 2 | V157: 2 | W157: 2 | X157: 6 | Y157: 5 | Z157: 5 | AA157: 3 | AB157: 4 | AC157: 5
A158: 2015/16 Q4 | B158: =VLOOKUP(J158,'Control Panel'!$I$27:$K$68,2,FALSE) -> SW1 | C158: 1 | I158: 1 | J158: F84038 | L158: 3670 | M158: 12 | N158: 8 | O158: 7 | P158: 8 | Q158: 7 | R158: 0 | S158: 5 | T158: 5 | U158: 4 | V158: 5 | W158: 5 | X158: 6 | Y158: 3 | Z158: 5 | AA158: 1 | AB158: 1 | AC158: 5
A159: 2015/16 Q4 | B159: =VLOOKUP(J159,'Control Panel'!$I$27:$K$68,2,FALSE) -> SE1 | C159: 1 | I159: 1 | J159: F84105 | L159: 11035 | M159: 43 | N159: 40 | O159: 41 | P159: 40 | Q159: 37 | R159: 41 | S159: 40 | T159: 35 | U159: 34 | V159: 35 | W159: 35 | X159: 30 | Y159: 30 | Z159: 29 | AA159: 27 | AB159: 28 | AC159: 30
A160: 2015/16 Q4 | B160: =VLOOKUP(J160,'Control Panel'!$I$27:$K$68,2,FALSE) -> NE2 | C160: 0 | I160: 1 | J160: F84619 | L160: 4083 | M160: 18 | N160: 16 | O160: 17 | P160: 16 | Q160: 16 | R160: 2 | S160: 13 | T160: 12 | U160: 11 | V160: 12 | W160: 12 | X160: 12 | Y160: 12 | Z160: 12 | AA160: 12 | AB160: 12 | AC160: 12
A161: 2015/16 Q4 | B161: =VLOOKUP(J161,'Control Panel'!$I$27:$K$68,2,FALSE) -> SE1 | C161: 1 | I161: 1 | J161: F84043 | L161: 4539 | M161: 12 | N161: 5 | O161: 8 | P161: 5 | Q161: 7 | R161: 2 | S161: 9 | T161: 7 | U161: 8 | V161: 8 | W161: 8 | X161: 11 | Y161: 10 | Z161: 9 | AA161: 10 | AB161: 10 | AC161: 8
A162: 2015/16 Q4 | B162: =VLOOKUP(J162,'Control Panel'!$I$27:$K$68,2,FALSE) -> NW1 | C162: 1 | I162: 1 | J162: F84716 | L162: 4805 | M162: 21 | N162: 17 | O162: 18 | P162: 17 | Q162: 14 | R162: 1 | S162: 20 | T162: 13 | U162: 9 | V162: 8 | W162: 9 | X162: 25 | Y162: 21 | Z162: 20 | AA162: 10 | AB162: 12 | AC162: 18
A163: 2015/16 Q4 | B163: =VLOOKUP(J163,'Control Panel'!$I$27:$K$68,2,FALSE) -> NE2 | C163: 0 | I163: 1 | J163: F84668 | L163: 6493 | M163: 40 | N163: 15 | O163: 18 | P163: 16 | Q163: 15 | R163: 2 | S163: 40 | T163: 24 | U163: 27 | V163: 21 | W163: 27 | X163: 29 | Y163: 25 | Z163: 25 | AA163: 16 | AB163: 18 | AC163: 24
A164: 2015/16 Q4 | B164: =VLOOKUP(J164,'Control Panel'!$I$27:$K$68,2,FALSE) -> SE1 | C164: 1 | I164: 1 | J164: F84015 | L164: 5346 | M164: 9 | N164: 6 | O164: 6 | P164: 5 | Q164: 6 | R164: 6 | S164: 18 | T164: 11 | U164: 15 | V164: 15 | W164: 15 | X164: 27 | Y164: 20 | Z164: 23 | AA164: 14 | AB164: 17 | AC164: 23
A165: 2015/16 Q4 | B165: =VLOOKUP(J165,'Control Panel'!$I$27:$K$68,2,FALSE) -> NW1 | C165: 1 | I165: 1 | J165: F84036 | L165: 6984 | M165: 24 | N165: 13 | O165: 15 | P165: 12 | Q165: 14 | R165: 18 | S165: 26 | T165: 18 | U165: 9 | V165: 9 | W165: 9 | X165: 18 | Y165: 15 | Z165: 16 | AA165: 10 | AB165: 12 | AC165: 15
A166: 2015/16 Q4 | B166: =VLOOKUP(J166,'Control Panel'!$I$27:$K$68,2,FALSE) -> NW2 | C166: 1 | I166: 1 | J166: F84624 | L166: 2884 | M166: 7 | N166: 6 | O166: 6 | P166: 6 | Q166: 6 | R166: 5 | S166: 7 | T166: 1 | U166: 1 | V166: 0 | W166: 6 | X166: 9 | Y166: 1 | Z166: 2 | AA166: 3 | AB166: 3 | AC166: 1
A167: 2015/16 Q4 | B167: =VLOOKUP(J167,'Control Panel'!$I$27:$K$68,2,FALSE) ->  | I167: 1 | J167: Y01177 | L167: 8069 | M167: 26 | N167: 17 | O167: 22 | P167: 17 | Q167: 20 | R167: 13 | S167: 19 | T167: 10 | U167: 15 | V167: 15 | W167: 15 | X167: 29 | Y167: 5 | Z167: 7 | AA167: 7 | AB167: 7 | AC167: 5
A168: 2015/16 Q4 | B168: =VLOOKUP(J168,'Control Panel'!$I$27:$K$68,2,FALSE) -> SW1 | C168: 1 | I168: 1 | J168: F84063 | L168: 5953 | M168: 13 | N168: 0 | O168: 12 | P168: 12 | Q168: 12 | R168: 12 | S168: 18 | T168: 1 | U168: 1 | V168: 1 | W168: 3 | X168: 18 | Y168: 3 | Z168: 3 | AA168: 4 | AB168: 4 | AC168: 3
A169: 2015/16 Q4 | B169: =VLOOKUP(J169,'Control Panel'!$I$27:$K$68,2,FALSE) -> SW1 | C169: 1 | I169: 1 | J169: F84035 | L169: 3765 | M169: 8 | N169: 6 | O169: 7 | P169: 6 | Q169: 6 | R169: 5 | S169: 6 | T169: 6 | U169: 6 | V169: 6 | W169: 6 | X169: 13 | Y169: 12 | Z169: 11 | AA169: 9 | AB169: 11 | AC169: 10
A170: 2015/16 Q4 | B170: =VLOOKUP(J170,'Control Panel'!$I$27:$K$68,2,FALSE) -> SW2 | C170: 1 | I170: 1 | J170: F84692 | L170: 6312 | M170: 17 | N170: 15 | O170: 17 | P170: 15 | Q170: 14 | R170: 14 | S170: 8 | T170: 6 | U170: 4 | V170: 5 | W170: 5 | X170: 10 | Y170: 8 | Z170: 8 | AA170: 8 | AB170: 8 | AC170: 8
A171: 2015/16 Q4 | B171: =VLOOKUP(J171,'Control Panel'!$I$27:$K$68,2,FALSE) -> SW1 | C171: 1 | I171: 1 | J171: F84021 | L171: 10061 | M171: 32 | N171: 29 | O171: 30 | P171: 29 | Q171: 25 | R171: 27 | S171: 24 | T171: 19 | U171: 18 | V171: 18 | W171: 18 | X171: 30 | Y171: 27 | Z171: 29 | AA171: 26 | AB171: 28 | AC171: 26
A172: 2015/16 Q4 | B172: =VLOOKUP(J172,'Control Panel'!$I$27:$K$68,2,FALSE) -> NE2 | C172: 0 | I172: 1 | J172: F84018 | L172: 10775 | M172: 30 | N172: 25 | O172: 25 | P172: 25 | Q172: 21 | R172: 23 | S172: 40 | T172: 37 | U172: 33 | V172: 34 | W172: 33 | X172: 47 | Y172: 45 | Z172: 44 | AA172: 37 | AB172: 38 | AC172: 45
A173: 2015/16 Q4 | B173: =VLOOKUP(J173,'Control Panel'!$I$27:$K$68,2,FALSE) -> SE1 | C173: 1 | I173: 1 | J173: F84719 | L173: 4545 | M173: 15 | N173: 15 | O173: 15 | P173: 15 | Q173: 15 | R173: 15 | S173: 10 | T173: 10 | U173: 9 | V173: 9 | W173: 9 | X173: 10 | Y173: 8 | Z173: 5 | AA173: 7 | AB173: 10 | AC173: 3
A174: 2015/16 Q4 | B174: =VLOOKUP(J174,'Control Panel'!$I$27:$K$68,2,FALSE) -> SW2 | C174: 1 | I174: 1 | J174: F84041 | L174: 7395 | M174: 18 | N174: 17 | O174: 16 | P174: 17 | Q174: 17 | R174: 12 | S174: 20 | T174: 12 | U174: 12 | V174: 11 | W174: 12 | X174: 12 | Y174: 10 | Z174: 10 | AA174: 6 | AB174: 6 | AC174: 10
A175: 2015/16 Q4 | B175: =VLOOKUP(J175,'Control Panel'!$I$27:$K$68,2,FALSE) -> SE2 | C175: 1 | I175: 1 | J175: F84632 | L175: 852 | M175: 0 | N175: 0 | O175: 0 | P175: 0 | Q175: 0 | R175: 0 | S175: 0 | T175: 0 | U175: 0 | V175: 0 | W175: 0 | X175: 0 | Y175: 0 | Z175: 0 | AA175: 0 | AB175: 0 | AC175: 0
A176: 2015/16 Q4 | B176: =VLOOKUP(J176,'Control Panel'!$I$27:$K$68,2,FALSE) -> NE1 | C176: 0 | I176: 1 | J176: Y03049 | L176: 7373 | M176: 38 | N176: 22 | O176: 27 | P176: 23 | Q176: 15 | R176: 12 | S176: 47 | T176: 40 | U176: 32 | V176: 32 | W176: 36 | X176: 49 | Y176: 45 | Z176: 43 | AA176: 31 | AB176: 35 | AC176: 35
A177: 2015/16 Q4 | B177: =VLOOKUP(J177,'Control Panel'!$I$27:$K$68,2,FALSE) -> SE2 | C177: 1 | I177: 1 | J177: Y00403 | L177: 5653 | M177: 21 | N177: 16 | O177: 18 | P177: 16 | Q177: 16 | R177: 6 | S177: 15 | T177: 13 | U177: 11 | V177: 11 | W177: 11 | X177: 22 | Y177: 19 | Z177: 17 | AA177: 15 | AB177: 17 | AC177: 19
A178: 2015/16 Q4 | B178: =VLOOKUP(J178,'Control Panel'!$I$27:$K$68,2,FALSE) -> SE2 | C178: 1 | I178: 1 | J178: F84069 | L178: 13825 | M178: 45 | N178: 36 | O178: 38 | P178: 36 | Q178: 31 | R178: 36 | S178: 43 | T178: 42 | U178: 40 | V178: 40 | W178: 41 | X178: 41 | Y178: 36 | Z178: 36 | AA178: 30 | AB178: 31 | AC178: 37
A179: 2015/16 Q4 | B179: =VLOOKUP(J179,'Control Panel'!$I$27:$K$68,2,FALSE) ->  | I179: 0 | J179: Total | L179: 303806 | M179: 1065 | N179: 766 | O179: 851 | P179: 776 | Q179: 726 | R179: 611 | S179: 1040 | T179: 811 | U179: 728 | V179: 724 | W179: 759 | X179: 1023 | Y179: 877 | Z179: 868 | AA179: 697 | AB179: 741 | AC179: 816
A180: 2016/17 Q1 | B180: =VLOOKUP(J180,'Control Panel'!$I$27:$K$68,2,FALSE) ->  | E180: Last Run: | G180: Patient Count | H180: 320334 | I180: 1 | K180: Search | L180: All Patients | M180: (01) 12 MONTH COHORT | N180: (01.01) DTaP/IPV/Hib | O180: (01.02) Men C | P180: (01.03) PCV | Q180: (01.04) Rotavirus | R180: (01.05) BCG | S180: (02) 24 MONTH COHORT | T180: (02.01) DTaP/IPV/Hib | U180: (02.02) MMR | V180: (02.03) HiB/Men C | W180: (02.04) PCV (Booster) | X180: (03) 5 YEAR COHORT | Y180: (03.01) DTaP/IPV/Hib | Z180: (03.02) MMR (Primary) | AA180: (03.03) DTaP/IPV (Booster) | AB180: (03.04) HiB/Men C | AC180: (03.05) MMR (Booster) | AD180: (02.05) Men B (Booster)
A181: 2016/17 Q1 | B181: =VLOOKUP(J181,'Control Panel'!$I$27:$K$68,2,FALSE) ->  | E181: 2016-11-11T16:05:00 | G181: Males | H181: 158674 | I181: 1 | J181: Organisation Code
A182: 2016/17 Q1 | B182: =VLOOKUP(J182,'Control Panel'!$I$27:$K$68,2,FALSE) -> SE1 | C182: 1 | E182: Relative Date: | G182: Females | H182: 161660 | I182: 1 | J182: F84003 | L182: 12821 | M182: 53 | N182: 41 | O182: 47 | P182: 42 | Q182: 43 | R182: 44 | S182: 50 | T182: 48 | U182: 41 | V182: 42 | W182: 42 | X182: 44 | Y182: 38 | Z182: 36 | AA182: 33 | AB182: 33 | AC182: 33
A183: 2016/17 Q1 | B183: =VLOOKUP(J183,'Control Panel'!$I$27:$K$68,2,FALSE) -> NW2 | C183: 1 | E183: 2016-07-01 | I183: 1 | J183: F84008 | L183: 12775 | M183: 42 | N183: 36 | O183: 36 | P183: 36 | Q183: 34 | R183: 35 | S183: 55 | T183: 54 | U183: 53 | V183: 53 | W183: 49 | X183: 35 | Y183: 34 | Z183: 33 | AA183: 27 | AB183: 31 | AC183: 29
A184: 2016/17 Q1 | B184: =VLOOKUP(J184,'Control Panel'!$I$27:$K$68,2,FALSE) -> NE1 | C184: 0 | I184: 1 | J184: F84013 | L184: 14432 | M184: 89 | N184: 39 | O184: 53 | P184: 40 | Q184: 17 | R184: 24 | S184: 92 | T184: 62 | U184: 54 | V184: 40 | W184: 54 | X184: 92 | Y184: 78 | Z184: 88 | AA184: 62 | AB184: 64 | AC184: 63
A185: 2016/17 Q1 | B185: =VLOOKUP(J185,'Control Panel'!$I$27:$K$68,2,FALSE) -> SE1 | C185: 1 | I185: 1 | J185: F84015 | L185: 5350 | M185: 18 | N185: 15 | O185: 15 | P185: 15 | Q185: 14 | R185: 15 | S185: 15 | T185: 10 | U185: 12 | V185: 12 | W185: 12 | X185: 12 | Y185: 10 | Z185: 10 | AA185: 9 | AB185: 9 | AC185: 9
A186: 2016/17 Q1 | B186: =VLOOKUP(J186,'Control Panel'!$I$27:$K$68,2,FALSE) -> NE2 | C186: 0 | I186: 1 | J186: F84018 | L186: 10946 | M186: 45 | N186: 39 | O186: 40 | P186: 38 | Q186: 36 | R186: 32 | S186: 40 | T186: 36 | U186: 32 | V186: 33 | W186: 33 | X186: 37 | Y186: 36 | Z186: 32 | AA186: 27 | AB186: 33 | AC186: 29
A187: 2016/17 Q1 | B187: =VLOOKUP(J187,'Control Panel'!$I$27:$K$68,2,FALSE) -> SW1 | C187: 1 | I187: 1 | J187: F84021 | L187: 10099 | M187: 31 | N187: 27 | O187: 29 | P187: 27 | Q187: 28 | R187: 26 | S187: 41 | T187: 41 | U187: 39 | V187: 40 | W187: 39 | X187: 29 | Y187: 28 | Z187: 27 | AA187: 25 | AB187: 27 | AC187: 26
A188: 2016/17 Q1 | B188: =VLOOKUP(J188,'Control Panel'!$I$27:$K$68,2,FALSE) -> NW2 | C188: 1 | I188: 1 | J188: F84033 | L188: 12393 | M188: 40 | N188: 35 | O188: 36 | P188: 35 | Q188: 34 | R188: 37 | S188: 43 | T188: 40 | U188: 36 | V188: 35 | W188: 35 | X188: 19 | Y188: 16 | Z188: 16 | AA188: 13 | AB188: 14 | AC188: 13
A189: 2016/17 Q1 | B189: =VLOOKUP(J189,'Control Panel'!$I$27:$K$68,2,FALSE) -> SW1 | C189: 1 | I189: 1 | J189: F84035 | L189: 3794 | M189: 12 | N189: 9 | O189: 11 | P189: 9 | Q189: 10 | R189: 10 | S189: 9 | T189: 8 | U189: 6 | V189: 7 | W189: 7 | X189: 5 | Y189: 5 | Z189: 4 | AA189: 3 | AB189: 5 | AC189: 3
A190: 2016/17 Q1 | B190: =VLOOKUP(J190,'Control Panel'!$I$27:$K$68,2,FALSE) -> NW1 | C190: 1 | I190: 1 | J190: F84036 | L190: 6870 | M190: 25 | N190: 20 | O190: 21 | P190: 20 | Q190: 18 | R190: 21 | S190: 16 | T190: 14 | U190: 13 | V190: 11 | W190: 12 | X190: 15 | Y190: 15 | Z190: 15 | AA190: 5 | AB190: 15 | AC190: 7
A191: 2016/17 Q1 | B191: =VLOOKUP(J191,'Control Panel'!$I$27:$K$68,2,FALSE) -> SW1 | C191: 1 | I191: 1 | J191: F84038 | L191: 3654 | M191: 9 | N191: 9 | O191: 8 | P191: 9 | Q191: 9 | R191: 2 | S191: 14 | T191: 11 | U191: 8 | V191: 7 | W191: 9 | X191: 5 | Y191: 4 | Z191: 4 | AA191: 3 | AB191: 4 | AC191: 3
A192: 2016/17 Q1 | B192: =VLOOKUP(J192,'Control Panel'!$I$27:$K$68,2,FALSE) -> SW2 | C192: 1 | I192: 1 | J192: F84041 | L192: 7445 | M192: 22 | N192: 19 | O192: 20 | P192: 19 | Q192: 16 | R192: 18 | S192: 15 | T192: 10 | U192: 8 | V192: 8 | W192: 9 | X192: 13 | Y192: 11 | Z192: 12 | AA192: 9 | AB192: 11 | AC192: 10
A193: 2016/17 Q1 | B193: =VLOOKUP(J193,'Control Panel'!$I$27:$K$68,2,FALSE) -> SE1 | C193: 1 | I193: 1 | J193: F84043 | L193: 4574 | M193: 17 | N193: 9 | O193: 9 | P193: 8 | Q193: 8 | R193: 5 | S193: 16 | T193: 14 | U193: 11 | V193: 11 | W193: 11 | X193: 25 | Y193: 23 | Z193: 23 | AA193: 14 | AB193: 23 | AC193: 16
A194: 2016/17 Q1 | B194: =VLOOKUP(J194,'Control Panel'!$I$27:$K$68,2,FALSE) -> SE1 | C194: =IF(LEFT(B194,2)="NE",0,1) -> 1 | I194: 1 | J194: F84060 | L194: 4934 | M194: 11 | N194: 8 | O194: 9 | P194: 8 | Q194: 8 | R194: 7 | S194: 15 | T194: 13 | U194: 10 | V194: 10 | W194: 10 | X194: 16 | Y194: 11 | Z194: 12 | AA194: 7 | AB194: 13 | AC194: 7
A195: 2016/17 Q1 | B195: =VLOOKUP(J195,'Control Panel'!$I$27:$K$68,2,FALSE) -> SW1 | C195: 1 | I195: =IF(J195="Total",0,1) -> 1 | J195: F84063 | L195: 5999 | M195: 17 | N195: 2 | O195: 15 | P195: 13 | Q195: 13 | R195: 16 | S195: 11 | T195: 0 | U195: 1 | V195: 1 | W195: 1 | X195: 15 | Y195: 1 | Z195: 1 | AA195: 1 | AB195: 1 | AC195: 1
A196: 2016/17 Q1 | B196: =VLOOKUP(J196,'Control Panel'!$I$27:$K$68,2,FALSE) -> SE2 | C196: 1 | I196: 1 | J196: F84069 | L196: 14062 | M196: 41 | N196: 34 | O196: 35 | P196: 33 | Q196: 35 | R196: 37 | S196: 58 | T196: 55 | U196: 53 | V196: 53 | W196: 53 | X196: 53 | Y196: 48 | Z196: 44 | AA196: 42 | AB196: 44 | AC196: 38
A197: 2016/17 Q1 | B197: =VLOOKUP(J197,'Control Panel'!$I$27:$K$68,2,FALSE) -> SW2 | C197: 1 | I197: 1 | J197: F84072 | L197: 9572 | M197: 28 | N197: 22 | O197: 22 | P197: 22 | Q197: 22 | R197: 20 | S197: 31 | T197: 25 | U197: 19 | V197: 18 | W197: 18 | X197: 7 | Y197: 7 | Z197: 6 | AA197: 5 | AB197: 5 | AC197: 5
A198: 2016/17 Q1 | B198: =VLOOKUP(J198,'Control Panel'!$I$27:$K$68,2,FALSE) -> NE2 | C198: 0 | I198: 1 | J198: F84080 | L198: 4818 | M198: 18 | N198: 12 | O198: 14 | P198: 12 | Q198: 11 | R198: 0 | S198: 14 | T198: 13 | U198: 12 | V198: 12 | W198: 12 | X198: 17 | Y198: 14 | Z198: 16 | AA198: 6 | AB198: 14 | AC198: 7
A199: 2016/17 Q1 | B199: =VLOOKUP(J199,'Control Panel'!$I$27:$K$68,2,FALSE) -> SW2 | C199: 1 | I199: 1 | J199: F84096 | L199: 13269 | M199: 30 | N199: 29 | O199: 30 | P199: 29 | Q199: 27 | R199: 28 | S199: 38 | T199: 37 | U199: 33 | V199: 33 | W199: 34 | X199: 28 | Y199: 26 | Z199: 26 | AA199: 22 | AB199: 26 | AC199: 22
A200: 2016/17 Q1 | B200: =VLOOKUP(J200,'Control Panel'!$I$27:$K$68,2,FALSE) -> SE1 | C200: 1 | I200: 1 | J200: F84105 | L200: 11137 | M200: 46 | N200: 43 | O200: 44 | P200: 43 | Q200: 42 | R200: 36 | S200: 45 | T200: 42 | U200: 38 | V200: 38 | W200: 38 | X200: 42 | Y200: 40 | Z200: 38 | AA200: 34 | AB200: 39 | AC200: 34
... 2442 more rows

Sheet Total (Without NE) (hidden)
E1: All Patients | F1: (01) 12 MONTH COHORT | G1: (01.01) DTaP/IPV/Hib | H1: (01.02) Men B (1st and 2nd) | I1: (01.03) PCV | J1: (01.04) Rotavirus | K1: (01.05) BCG | L1: (02) 24 MONTH COHORT | M1: (02.01) DTaP/IPV/Hib Combined | N1: (02.02) MMR | O1: (02.03) HiB/Men C | P1: (02.04) PCV (Booster) | Q1: (03) 5 YEAR COHORT | R1: (03.01) DTaP/IPV/Hib Combined | S1: (03.02) MMR (Primary) | T1: (03.03) DTaP/IPV (Booster) | U1: (03.04) HiB/Men C | V1: (03.05) MMR (Booster) | W1: (02.05) Men B (Booster)
B2: 2015/16 Q1 | C2: Total (without NE) | E2: =SUMIFS(Data!L$1:L$2000,Data!$A$1:$A$2000,$B2,Data!$C$1:$C$2000,1,Data!$I$1:$I$2000,1) -> 218567 | F2: =SUMIFS(Data!M$1:M$1000,Data!$A$1:$A$1000,$B2,Data!$C$1:$C$1000,1,Data!$I$1:$I$1000,1) -> 747 | G2: =SUMIFS(Data!N$1:N$1000,Data!$A$1:$A$1000,$B2,Data!$C$1:$C$1000,1,Data!$I$1:$I$1000,1) -> 628 | H2: =SUMIFS(Data!O$1:O$1000,Data!$A$1:$A$1000,$B2,Data!$C$1:$C$1000,1,Data!$I$1:$I$1000,1) -> 657 | I2: =SUMIFS(Data!P$1:P$1000,Data!$A$1:$A$1000,$B2,Data!$C$1:$C$1000,1,Data!$I$1:$I$1000,1) -> 640 | J2: =SUMIFS(Data!Q$1:Q$1000,Data!$A$1:$A$1000,$B2,Data!$C$1:$C$1000,1,Data!$I$1:$I$1000,1) -> 600 | K2: =SUMIFS(Data!R$1:R$1000,Data!$A$1:$A$1000,$B2,Data!$C$1:$C$1000,1,Data!$I$1:$I$1000,1) -> 569 | L2: =SUMIFS(Data!S$1:S$1000,Data!$A$1:$A$1000,$B2,Data!$C$1:$C$1000,1,Data!$I$1:$I$1000,1) -> 687 | M2: =SUMIFS(Data!T$1:T$1000,Data!$A$1:$A$1000,$B2,Data!$C$1:$C$1000,1,Data!$I$1:$I$1000,1) -> 602 | N2: =SUMIFS(Data!U$1:U$1000,Data!$A$1:$A$1000,$B2,Data!$C$1:$C$1000,1,Data!$I$1:$I$1000,1) -> 541 | O2: =SUMIFS(Data!V$1:V$1000,Data!$A$1:$A$1000,$B2,Data!$C$1:$C$1000,1,Data!$I$1:$I$1000,1) -> 546 | P2: =SUMIFS(Data!W$1:W$1000,Data!$A$1:$A$1000,$B2,Data!$C$1:$C$1000,1,Data!$I$1:$I$1000,1) -> 545 | Q2: =SUMIFS(Data!X$1:X$5000,Data!$A$1:$A$5000,$B2,Data!$C$1:$C$5000,1,Data!$I$1:$I$5000,1) -> 631 | R2: =SUMIFS(Data!Y$1:Y$1000,Data!$A$1:$A$1000,$B2,Data!$C$1:$C$1000,1,Data!$I$1:$I$1000,1) -> 563 | S2: =SUMIFS(Data!Z$1:Z$1000,Data!$A$1:$A$1000,$B2,Data!$C$1:$C$1000,1,Data!$I$1:$I$1000,1) -> 548 | T2: =SUMIFS(Data!AA$1:AA$1000,Data!$A$1:$A$1000,$B2,Data!$C$1:$C$1000,1,Data!$I$1:$I$1000,1) -> 486 | U2: =SUMIFS(Data!AB$1:AB$1000,Data!$A$1:$A$1000,$B2,Data!$C$1:$C$1000,1,Data!$I$1:$I$1000,1) -> 525 | V2: =SUMIFS(Data!AC$1:AC$1000,Data!$A$1:$A$1000,$B2,Data!$C$1:$C$1000,1,Data!$I$1:$I$1000,1) -> 531 | W2: =SUMIFS(Data!AD$1:AD$2000,Data!$A$1:$A$2000,$B2,Data!$C$1:$C$2000,1,Data!$I$1:$I$2000,1) -> 0
B3: 2015/16 Q2 | C3: Total (without NE) | E3: =SUMIFS(Data!L$1:L$2000,Data!$A$1:$A$2000,$B3,Data!$C$1:$C$2000,1,Data!$I$1:$I$2000,1) -> 221394 | F3: =SUMIFS(Data!M$1:M$1000,Data!$A$1:$A$1000,$B3,Data!$C$1:$C$1000,1,Data!$I$1:$I$1000,1) -> 740 | G3: =SUMIFS(Data!N$1:N$1000,Data!$A$1:$A$1000,$B3,Data!$C$1:$C$1000,1,Data!$I$1:$I$1000,1) -> 616 | H3: =SUMIFS(Data!O$1:O$1000,Data!$A$1:$A$1000,$B3,Data!$C$1:$C$1000,1,Data!$I$1:$I$1000,1) -> 647 | I3: =SUMIFS(Data!P$1:P$1000,Data!$A$1:$A$1000,$B3,Data!$C$1:$C$1000,1,Data!$I$1:$I$1000,1) -> 620 | J3: =SUMIFS(Data!Q$1:Q$1000,Data!$A$1:$A$1000,$B3,Data!$C$1:$C$1000,1,Data!$I$1:$I$1000,1) -> 594 | K3: =SUMIFS(Data!R$1:R$1000,Data!$A$1:$A$1000,$B3,Data!$C$1:$C$1000,1,Data!$I$1:$I$1000,1) -> 538 | L3: =SUMIFS(Data!S$1:S$1000,Data!$A$1:$A$1000,$B3,Data!$C$1:$C$1000,1,Data!$I$1:$I$1000,1) -> 694 | M3: =SUMIFS(Data!T$1:T$1000,Data!$A$1:$A$1000,$B3,Data!$C$1:$C$1000,1,Data!$I$1:$I$1000,1) -> 578 | N3: =SUMIFS(Data!U$1:U$1000,Data!$A$1:$A$1000,$B3,Data!$C$1:$C$1000,1,Data!$I$1:$I$1000,1) -> 531 | O3: =SUMIFS(Data!V$1:V$1000,Data!$A$1:$A$1000,$B3,Data!$C$1:$C$1000,1,Data!$I$1:$I$1000,1) -> 532 | P3: =SUMIFS(Data!W$1:W$1000,Data!$A$1:$A$1000,$B3,Data!$C$1:$C$1000,1,Data!$I$1:$I$1000,1) -> 542 | Q3: =SUMIFS(Data!X$1:X$5000,Data!$A$1:$A$5000,$B3,Data!$C$1:$C$5000,1,Data!$I$1:$I$5000,1) -> 697 | R3: =SUMIFS(Data!Y$1:Y$1000,Data!$A$1:$A$1000,$B3,Data!$C$1:$C$1000,1,Data!$I$1:$I$1000,1) -> 626 | S3: =SUMIFS(Data!Z$1:Z$1000,Data!$A$1:$A$1000,$B3,Data!$C$1:$C$1000,1,Data!$I$1:$I$1000,1) -> 612 | T3: =SUMIFS(Data!AA$1:AA$1000,Data!$A$1:$A$1000,$B3,Data!$C$1:$C$1000,1,Data!$I$1:$I$1000,1) -> 526 | U3: =SUMIFS(Data!AB$1:AB$1000,Data!$A$1:$A$1000,$B3,Data!$C$1:$C$1000,1,Data!$I$1:$I$1000,1) -> 605 | V3: =SUMIFS(Data!AC$1:AC$1000,Data!$A$1:$A$1000,$B3,Data!$C$1:$C$1000,1,Data!$I$1:$I$1000,1) -> 552 | W3: =SUMIFS(Data!AD$1:AD$2000,Data!$A$1:$A$2000,$B3,Data!$C$1:$C$2000,1,Data!$I$1:$I$2000,1) -> 0
B4: 2015/16 Q3 | C4: Total (without NE) | E4: =SUMIFS(Data!L$1:L$2000,Data!$A$1:$A$2000,$B4,Data!$C$1:$C$2000,1,Data!$I$1:$I$2000,1) -> 228740 | F4: =SUMIFS(Data!M$1:M$1000,Data!$A$1:$A$1000,$B4,Data!$C$1:$C$1000,1,Data!$I$1:$I$1000,1) -> 682 | G4: =SUMIFS(Data!N$1:N$1000,Data!$A$1:$A$1000,$B4,Data!$C$1:$C$1000,1,Data!$I$1:$I$1000,1) -> 541 | H4: =SUMIFS(Data!O$1:O$1000,Data!$A$1:$A$1000,$B4,Data!$C$1:$C$1000,1,Data!$I$1:$I$1000,1) -> 574 | I4: =SUMIFS(Data!P$1:P$1000,Data!$A$1:$A$1000,$B4,Data!$C$1:$C$1000,1,Data!$I$1:$I$1000,1) -> 551 | J4: =SUMIFS(Data!Q$1:Q$1000,Data!$A$1:$A$1000,$B4,Data!$C$1:$C$1000,1,Data!$I$1:$I$1000,1) -> 539 | K4: =SUMIFS(Data!R$1:R$1000,Data!$A$1:$A$1000,$B4,Data!$C$1:$C$1000,1,Data!$I$1:$I$1000,1) -> 509 | L4: =SUMIFS(Data!S$1:S$1000,Data!$A$1:$A$1000,$B4,Data!$C$1:$C$1000,1,Data!$I$1:$I$1000,1) -> 695 | M4: =SUMIFS(Data!T$1:T$1000,Data!$A$1:$A$1000,$B4,Data!$C$1:$C$1000,1,Data!$I$1:$I$1000,1) -> 583 | N4: =SUMIFS(Data!U$1:U$1000,Data!$A$1:$A$1000,$B4,Data!$C$1:$C$1000,1,Data!$I$1:$I$1000,1) -> 544 | O4: =SUMIFS(Data!V$1:V$1000,Data!$A$1:$A$1000,$B4,Data!$C$1:$C$1000,1,Data!$I$1:$I$1000,1) -> 547 | P4: =SUMIFS(Data!W$1:W$1000,Data!$A$1:$A$1000,$B4,Data!$C$1:$C$1000,1,Data!$I$1:$I$1000,1) -> 551 | Q4: =SUMIFS(Data!X$1:X$5000,Data!$A$1:$A$5000,$B4,Data!$C$1:$C$5000,1,Data!$I$1:$I$5000,1) -> 695 | R4: =SUMIFS(Data!Y$1:Y$1000,Data!$A$1:$A$1000,$B4,Data!$C$1:$C$1000,1,Data!$I$1:$I$1000,1) -> 600 | S4: =SUMIFS(Data!Z$1:Z$1000,Data!$A$1:$A$1000,$B4,Data!$C$1:$C$1000,1,Data!$I$1:$I$1000,1) -> 590 | T4: =SUMIFS(Data!AA$1:AA$1000,Data!$A$1:$A$1000,$B4,Data!$C$1:$C$1000,1,Data!$I$1:$I$1000,1) -> 502 | U4: =SUMIFS(Data!AB$1:AB$1000,Data!$A$1:$A$1000,$B4,Data!$C$1:$C$1000,1,Data!$I$1:$I$1000,1) -> 577 | V4: =SUMIFS(Data!AC$1:AC$1000,Data!$A$1:$A$1000,$B4,Data!$C$1:$C$1000,1,Data!$I$1:$I$1000,1) -> 525 | W4: =SUMIFS(Data!AD$1:AD$2000,Data!$A$1:$A$2000,$B4,Data!$C$1:$C$2000,1,Data!$I$1:$I$2000,1) -> 0
B5: 2015/16 Q4 | C5: Total (without NE) | E5: =SUMIFS(Data!L$1:L$2000,Data!$A$1:$A$2000,$B5,Data!$C$1:$C$2000,1,Data!$I$1:$I$2000,1) -> 230445 | F5: =SUMIFS(Data!M$1:M$1000,Data!$A$1:$A$1000,$B5,Data!$C$1:$C$1000,1,Data!$I$1:$I$1000,1) -> 695 | G5: =SUMIFS(Data!N$1:N$1000,Data!$A$1:$A$1000,$B5,Data!$C$1:$C$1000,1,Data!$I$1:$I$1000,1) -> 566 | H5: =SUMIFS(Data!O$1:O$1000,Data!$A$1:$A$1000,$B5,Data!$C$1:$C$1000,1,Data!$I$1:$I$1000,1) -> 604 | I5: =SUMIFS(Data!P$1:P$1000,Data!$A$1:$A$1000,$B5,Data!$C$1:$C$1000,1,Data!$I$1:$I$1000,1) -> 574 | J5: =SUMIFS(Data!Q$1:Q$1000,Data!$A$1:$A$1000,$B5,Data!$C$1:$C$1000,1,Data!$I$1:$I$1000,1) -> 551 | K5: =SUMIFS(Data!R$1:R$1000,Data!$A$1:$A$1000,$B5,Data!$C$1:$C$1000,1,Data!$I$1:$I$1000,1) -> 512 | L5: =SUMIFS(Data!S$1:S$1000,Data!$A$1:$A$1000,$B5,Data!$C$1:$C$1000,1,Data!$I$1:$I$1000,1) -> 662 | M5: =SUMIFS(Data!T$1:T$1000,Data!$A$1:$A$1000,$B5,Data!$C$1:$C$1000,1,Data!$I$1:$I$1000,1) -> 542 | N5: =SUMIFS(Data!U$1:U$1000,Data!$A$1:$A$1000,$B5,Data!$C$1:$C$1000,1,Data!$I$1:$I$1000,1) -> 486 | O5: =SUMIFS(Data!V$1:V$1000,Data!$A$1:$A$1000,$B5,Data!$C$1:$C$1000,1,Data!$I$1:$I$1000,1) -> 495 | P5: =SUMIFS(Data!W$1:W$1000,Data!$A$1:$A$1000,$B5,Data!$C$1:$C$1000,1,Data!$I$1:$I$1000,1) -> 504 | Q5: =SUMIFS(Data!X$1:X$5000,Data!$A$1:$A$5000,$B5,Data!$C$1:$C$5000,1,Data!$I$1:$I$5000,1) -> 659 | R5: =SUMIFS(Data!Y$1:Y$1000,Data!$A$1:$A$1000,$B5,Data!$C$1:$C$1000,1,Data!$I$1:$I$1000,1) -> 575 | S5: =SUMIFS(Data!Z$1:Z$1000,Data!$A$1:$A$1000,$B5,Data!$C$1:$C$1000,1,Data!$I$1:$I$1000,1) -> 560 | T5: =SUMIFS(Data!AA$1:AA$1000,Data!$A$1:$A$1000,$B5,Data!$C$1:$C$1000,1,Data!$I$1:$I$1000,1) -> 479 | U5: =SUMIFS(Data!AB$1:AB$1000,Data!$A$1:$A$1000,$B5,Data!$C$1:$C$1000,1,Data!$I$1:$I$1000,1) -> 512 | V5: =SUMIFS(Data!AC$1:AC$1000,Data!$A$1:$A$1000,$B5,Data!$C$1:$C$1000,1,Data!$I$1:$I$1000,1) -> 542 | W5: =SUMIFS(Data!AD$1:AD$2000,Data!$A$1:$A$2000,$B5,Data!$C$1:$C$2000,1,Data!$I$1:$I$2000,1) -> 0
B6: 2016/17 Q1 | C6: Total (without NE) | E6: =SUMIFS(Data!L$1:L$2000,Data!$A$1:$A$2000,$B6,Data!$C$1:$C$2000,1,Data!$I$1:$I$2000,1) -> 231971 | F6: =SUMIFS(Data!M$1:M$1000,Data!$A$1:$A$1000,$B6,Data!$C$1:$C$1000,1,Data!$I$1:$I$1000,1) -> 717 | G6: =SUMIFS(Data!N$1:N$1000,Data!$A$1:$A$1000,$B6,Data!$C$1:$C$1000,1,Data!$I$1:$I$1000,1) -> 583 | H6: =SUMIFS(Data!O$1:O$1000,Data!$A$1:$A$1000,$B6,Data!$C$1:$C$1000,1,Data!$I$1:$I$1000,1) -> 616 | I6: =SUMIFS(Data!P$1:P$1000,Data!$A$1:$A$1000,$B6,Data!$C$1:$C$1000,1,Data!$I$1:$I$1000,1) -> 590 | J6: =SUMIFS(Data!Q$1:Q$1000,Data!$A$1:$A$1000,$B6,Data!$C$1:$C$1000,1,Data!$I$1:$I$1000,1) -> 577 | K6: =SUMIFS(Data!R$1:R$1000,Data!$A$1:$A$1000,$B6,Data!$C$1:$C$1000,1,Data!$I$1:$I$1000,1) -> 539 | L6: =SUMIFS(Data!S$1:S$1000,Data!$A$1:$A$1000,$B6,Data!$C$1:$C$1000,1,Data!$I$1:$I$1000,1) -> 739 | M6: =SUMIFS(Data!T$1:T$1000,Data!$A$1:$A$1000,$B6,Data!$C$1:$C$1000,1,Data!$I$1:$I$1000,1) -> 650 | N6: =SUMIFS(Data!U$1:U$1000,Data!$A$1:$A$1000,$B6,Data!$C$1:$C$1000,1,Data!$I$1:$I$1000,1) -> 587 | O6: =SUMIFS(Data!V$1:V$1000,Data!$A$1:$A$1000,$B6,Data!$C$1:$C$1000,1,Data!$I$1:$I$1000,1) -> 588 | P6: =SUMIFS(Data!W$1:W$1000,Data!$A$1:$A$1000,$B6,Data!$C$1:$C$1000,1,Data!$I$1:$I$1000,1) -> 587 | Q6: =SUMIFS(Data!X$1:X$5000,Data!$A$1:$A$5000,$B6,Data!$C$1:$C$5000,1,Data!$I$1:$I$5000,1) -> 595 | R6: =SUMIFS(Data!Y$1:Y$1000,Data!$A$1:$A$1000,$B6,Data!$C$1:$C$1000,1,Data!$I$1:$I$1000,1) -> 532 | S6: =SUMIFS(Data!Z$1:Z$1000,Data!$A$1:$A$1000,$B6,Data!$C$1:$C$1000,1,Data!$I$1:$I$1000,1) -> 513 | T6: =SUMIFS(Data!AA$1:AA$1000,Data!$A$1:$A$1000,$B6,Data!$C$1:$C$1000,1,Data!$I$1:$I$1000,1) -> 429 | U6: =SUMIFS(Data!AB$1:AB$1000,Data!$A$1:$A$1000,$B6,Data!$C$1:$C$1000,1,Data!$I$1:$I$1000,1) -> 497 | V6: =SUMIFS(Data!AC$1:AC$1000,Data!$A$1:$A$1000,$B6,Data!$C$1:$C$1000,1,Data!$I$1:$I$1000,1) -> 432 | W6: =SUMIFS(Data!AD$1:AD$2000,Data!$A$1:$A$2000,$B6,Data!$C$1:$C$2000,1,Data!$I$1:$I$2000,1) -> 0
B7: 2016/17 Q2 | C7: Total (without NE) | E7: =SUMIFS(Data!L$1:L$2000,Data!$A$1:$A$2000,$B7,Data!$C$1:$C$2000,1,Data!$I$1:$I$2000,1) -> 233793 | F7: =SUMIFS(Data!M$1:M$1000,Data!$A$1:$A$1000,$B7,Data!$C$1:$C$1000,1,Data!$I$1:$I$1000,1) -> 758 | G7: =SUMIFS(Data!N$1:N$1000,Data!$A$1:$A$1000,$B7,Data!$C$1:$C$1000,1,Data!$I$1:$I$1000,1) -> 658 | H7: =SUMIFS(Data!O$1:O$1000,Data!$A$1:$A$1000,$B7,Data!$C$1:$C$1000,1,Data!$I$1:$I$1000,1) -> 671 | I7: =SUMIFS(Data!P$1:P$1000,Data!$A$1:$A$1000,$B7,Data!$C$1:$C$1000,1,Data!$I$1:$I$1000,1) -> 658 | J7: =SUMIFS(Data!Q$1:Q$1000,Data!$A$1:$A$1000,$B7,Data!$C$1:$C$1000,1,Data!$I$1:$I$1000,1) -> 619 | K7: =SUMIFS(Data!R$1:R$1000,Data!$A$1:$A$1000,$B7,Data!$C$1:$C$1000,1,Data!$I$1:$I$1000,1) -> 579 | L7: =SUMIFS(Data!S$1:S$1000,Data!$A$1:$A$1000,$B7,Data!$C$1:$C$1000,1,Data!$I$1:$I$1000,1) -> 717 | M7: =SUMIFS(Data!T$1:T$1000,Data!$A$1:$A$1000,$B7,Data!$C$1:$C$1000,1,Data!$I$1:$I$1000,1) -> 614 | N7: =SUMIFS(Data!U$1:U$1000,Data!$A$1:$A$1000,$B7,Data!$C$1:$C$1000,1,Data!$I$1:$I$1000,1) -> 556 | O7: =SUMIFS(Data!V$1:V$1000,Data!$A$1:$A$1000,$B7,Data!$C$1:$C$1000,1,Data!$I$1:$I$1000,1) -> 555 | P7: =SUMIFS(Data!W$1:W$1000,Data!$A$1:$A$1000,$B7,Data!$C$1:$C$1000,1,Data!$I$1:$I$1000,1) -> 559 | Q7: =SUMIFS(Data!X$1:X$5000,Data!$A$1:$A$5000,$B7,Data!$C$1:$C$5000,1,Data!$I$1:$I$5000,1) -> 646 | R7: =SUMIFS(Data!Y$1:Y$1000,Data!$A$1:$A$1000,$B7,Data!$C$1:$C$1000,1,Data!$I$1:$I$1000,1) -> 576 | S7: =SUMIFS(Data!Z$1:Z$1000,Data!$A$1:$A$1000,$B7,Data!$C$1:$C$1000,1,Data!$I$1:$I$1000,1) -> 564 | T7: =SUMIFS(Data!AA$1:AA$1000,Data!$A$1:$A$1000,$B7,Data!$C$1:$C$1000,1,Data!$I$1:$I$1000,1) -> 462 | U7: =SUMIFS(Data!AB$1:AB$1000,Data!$A$1:$A$1000,$B7,Data!$C$1:$C$1000,1,Data!$I$1:$I$1000,1) -> 537 | V7: =SUMIFS(Data!AC$1:AC$1000,Data!$A$1:$A$1000,$B7,Data!$C$1:$C$1000,1,Data!$I$1:$I$1000,1) -> 470 | W7: =SUMIFS(Data!AD$1:AD$2000,Data!$A$1:$A$2000,$B7,Data!$C$1:$C$2000,1,Data!$I$1:$I$2000,1) -> 0
B8: 2016/17 Q3 | C8: Total (without NE) | E8: =SUMIFS(Data!L$1:L$2000,Data!$A$1:$A$2000,$B8,Data!$C$1:$C$2000,1,Data!$I$1:$I$2000,1) -> 235493 | F8: =SUMIFS(Data!M$1:M$1000,Data!$A$1:$A$1000,$B8,Data!$C$1:$C$1000,1,Data!$I$1:$I$1000,1) -> 777 | G8: =SUMIFS(Data!N$1:N$1000,Data!$A$1:$A$1000,$B8,Data!$C$1:$C$1000,1,Data!$I$1:$I$1000,1) -> 697 | H8: =SUMIFS(Data!O$1:O$1000,Data!$A$1:$A$1000,$B8,Data!$C$1:$C$1000,1,Data!$I$1:$I$1000,1) -> 676 | I8: =SUMIFS(Data!P$1:P$1000,Data!$A$1:$A$1000,$B8,Data!$C$1:$C$1000,1,Data!$I$1:$I$1000,1) -> 701 | J8: =SUMIFS(Data!Q$1:Q$1000,Data!$A$1:$A$1000,$B8,Data!$C$1:$C$1000,1,Data!$I$1:$I$1000,1) -> 661 | K8: =SUMIFS(Data!R$1:R$1000,Data!$A$1:$A$1000,$B8,Data!$C$1:$C$1000,1,Data!$I$1:$I$1000,1) -> 620 | L8: =SUMIFS(Data!S$1:S$1000,Data!$A$1:$A$1000,$B8,Data!$C$1:$C$1000,1,Data!$I$1:$I$1000,1) -> 659 | M8: =SUMIFS(Data!T$1:T$1000,Data!$A$1:$A$1000,$B8,Data!$C$1:$C$1000,1,Data!$I$1:$I$1000,1) -> 584 | N8: =SUMIFS(Data!U$1:U$1000,Data!$A$1:$A$1000,$B8,Data!$C$1:$C$1000,1,Data!$I$1:$I$1000,1) -> 551 | O8: =SUMIFS(Data!V$1:V$1000,Data!$A$1:$A$1000,$B8,Data!$C$1:$C$1000,1,Data!$I$1:$I$1000,1) -> 552 | P8: =SUMIFS(Data!W$1:W$1000,Data!$A$1:$A$1000,$B8,Data!$C$1:$C$1000,1,Data!$I$1:$I$1000,1) -> 546 | Q8: =SUMIFS(Data!X$1:X$5000,Data!$A$1:$A$5000,$B8,Data!$C$1:$C$5000,1,Data!$I$1:$I$5000,1) -> 627 | R8: =SUMIFS(Data!Y$1:Y$1000,Data!$A$1:$A$1000,$B8,Data!$C$1:$C$1000,1,Data!$I$1:$I$1000,1) -> 564 | S8: =SUMIFS(Data!Z$1:Z$1000,Data!$A$1:$A$1000,$B8,Data!$C$1:$C$1000,1,Data!$I$1:$I$1000,1) -> 546 | T8: =SUMIFS(Data!AA$1:AA$1000,Data!$A$1:$A$1000,$B8,Data!$C$1:$C$1000,1,Data!$I$1:$I$1000,1) -> 473 | U8: =SUMIFS(Data!AB$1:AB$1000,Data!$A$1:$A$1000,$B8,Data!$C$1:$C$1000,1,Data!$I$1:$I$1000,1) -> 531 | V8: =SUMIFS(Data!AC$1:AC$1000,Data!$A$1:$A$1000,$B8,Data!$C$1:$C$1000,1,Data!$I$1:$I$1000,1) -> 489 | W8: =SUMIFS(Data!AD$1:AD$2000,Data!$A$1:$A$2000,$B8,Data!$C$1:$C$2000,1,Data!$I$1:$I$2000,1) -> 0
B9: 2016/17 Q4 | C9: Total (without NE) | E9: =SUMIFS(Data!L$1:L$2000,Data!$A$1:$A$2000,$B9,Data!$C$1:$C$2000,1,Data!$I$1:$I$2000,1) -> 243357 | F9: =SUMIFS(Data!M$1:M$1000,Data!$A$1:$A$1000,$B9,Data!$C$1:$C$1000,1,Data!$I$1:$I$1000,1) -> 711 | G9: =SUMIFS(Data!N$1:N$1000,Data!$A$1:$A$1000,$B9,Data!$C$1:$C$1000,1,Data!$I$1:$I$1000,1) -> 628 | H9: =SUMIFS(Data!O$1:O$1000,Data!$A$1:$A$1000,$B9,Data!$C$1:$C$1000,1,Data!$I$1:$I$1000,1) -> 629 | I9: =SUMIFS(Data!P$1:P$1000,Data!$A$1:$A$1000,$B9,Data!$C$1:$C$1000,1,Data!$I$1:$I$1000,1) -> 645 | J9: =SUMIFS(Data!Q$1:Q$1000,Data!$A$1:$A$1000,$B9,Data!$C$1:$C$1000,1,Data!$I$1:$I$1000,1) -> 613 | K9: =SUMIFS(Data!R$1:R$1000,Data!$A$1:$A$1000,$B9,Data!$C$1:$C$1000,1,Data!$I$1:$I$1000,1) -> 139 | L9: =SUMIFS(Data!S$1:S$1000,Data!$A$1:$A$1000,$B9,Data!$C$1:$C$1000,1,Data!$I$1:$I$1000,1) -> 671 | M9: =SUMIFS(Data!T$1:T$1000,Data!$A$1:$A$1000,$B9,Data!$C$1:$C$1000,1,Data!$I$1:$I$1000,1) -> 608 | N9: =SUMIFS(Data!U$1:U$1000,Data!$A$1:$A$1000,$B9,Data!$C$1:$C$1000,1,Data!$I$1:$I$1000,1) -> 546 | O9: =SUMIFS(Data!V$1:V$1000,Data!$A$1:$A$1000,$B9,Data!$C$1:$C$1000,1,Data!$I$1:$I$1000,1) -> 545 | P9: =SUMIFS(Data!W$1:W$1000,Data!$A$1:$A$1000,$B9,Data!$C$1:$C$1000,1,Data!$I$1:$I$1000,1) -> 554 | Q9: =SUMIFS(Data!X$1:X$5000,Data!$A$1:$A$5000,$B9,Data!$C$1:$C$5000,1,Data!$I$1:$I$5000,1) -> 654 | R9: =SUMIFS(Data!Y$1:Y$1000,Data!$A$1:$A$1000,$B9,Data!$C$1:$C$1000,1,Data!$I$1:$I$1000,1) -> 571 | S9: =SUMIFS(Data!Z$1:Z$1000,Data!$A$1:$A$1000,$B9,Data!$C$1:$C$1000,1,Data!$I$1:$I$1000,1) -> 546 | T9: =SUMIFS(Data!AA$1:AA$1000,Data!$A$1:$A$1000,$B9,Data!$C$1:$C$1000,1,Data!$I$1:$I$1000,1) -> 454 | U9: =SUMIFS(Data!AB$1:AB$1000,Data!$A$1:$A$1000,$B9,Data!$C$1:$C$1000,1,Data!$I$1:$I$1000,1) -> 542 | V9: =SUMIFS(Data!AC$1:AC$1000,Data!$A$1:$A$1000,$B9,Data!$C$1:$C$1000,1,Data!$I$1:$I$1000,1) -> 467 | W9: =SUMIFS(Data!AD$1:AD$2000,Data!$A$1:$A$2000,$B9,Data!$C$1:$C$2000,1,Data!$I$1:$I$2000,1) -> 0
B10: 2017/18 Q1 | C10: Total (without NE) | E10: =SUMIFS(Data!L$1:L$2000,Data!$A$1:$A$2000,$B10,Data!$C$1:$C$2000,1,Data!$I$1:$I$2000,1) -> 238900 | F10: =SUMIFS(Data!M$1:M$1000,Data!$A$1:$A$1000,$B10,Data!$C$1:$C$1000,1,Data!$I$1:$I$1000,1) -> 745 | G10: =SUMIFS(Data!N$1:N$1000,Data!$A$1:$A$1000,$B10,Data!$C$1:$C$1000,1,Data!$I$1:$I$1000,1) -> 646 | H10: =SUMIFS(Data!O$1:O$1000,Data!$A$1:$A$1000,$B10,Data!$C$1:$C$1000,1,Data!$I$1:$I$1000,1) -> 633 | I10: =SUMIFS(Data!P$1:P$1000,Data!$A$1:$A$1000,$B10,Data!$C$1:$C$1000,1,Data!$I$1:$I$1000,1) -> 648 | J10: =SUMIFS(Data!Q$1:Q$1000,Data!$A$1:$A$1000,$B10,Data!$C$1:$C$1000,1,Data!$I$1:$I$1000,1) -> 632 | K10: =SUMIFS(Data!R$1:R$1000,Data!$A$1:$A$1000,$B10,Data!$C$1:$C$1000,1,Data!$I$1:$I$1000,1) -> 438 | L10: =SUMIFS(Data!S$1:S$1000,Data!$A$1:$A$1000,$B10,Data!$C$1:$C$1000,1,Data!$I$1:$I$1000,1) -> 698 | M10: =SUMIFS(Data!T$1:T$1000,Data!$A$1:$A$1000,$B10,Data!$C$1:$C$1000,1,Data!$I$1:$I$1000,1) -> 601 | N10: =SUMIFS(Data!U$1:U$1000,Data!$A$1:$A$1000,$B10,Data!$C$1:$C$1000,1,Data!$I$1:$I$1000,1) -> 566 | O10: =SUMIFS(Data!V$1:V$1000,Data!$A$1:$A$1000,$B10,Data!$C$1:$C$1000,1,Data!$I$1:$I$1000,1) -> 557 | P10: =SUMIFS(Data!W$1:W$1000,Data!$A$1:$A$1000,$B10,Data!$C$1:$C$1000,1,Data!$I$1:$I$1000,1) -> 556 | Q10: =SUMIFS(Data!X$1:X$5000,Data!$A$1:$A$5000,$B10,Data!$C$1:$C$5000,1,Data!$I$1:$I$5000,1) -> 676 | R10: =SUMIFS(Data!Y$1:Y$1000,Data!$A$1:$A$1000,$B10,Data!$C$1:$C$1000,1,Data!$I$1:$I$1000,1) -> 612 | S10: =SUMIFS(Data!Z$1:Z$1000,Data!$A$1:$A$1000,$B10,Data!$C$1:$C$1000,1,Data!$I$1:$I$1000,1) -> 597 | T10: =SUMIFS(Data!AA$1:AA$1000,Data!$A$1:$A$1000,$B10,Data!$C$1:$C$1000,1,Data!$I$1:$I$1000,1) -> 495 | U10: =SUMIFS(Data!AB$1:AB$1000,Data!$A$1:$A$1000,$B10,Data!$C$1:$C$1000,1,Data!$I$1:$I$1000,1) -> 575 | V10: =SUMIFS(Data!AC$1:AC$1000,Data!$A$1:$A$1000,$B10,Data!$C$1:$C$1000,1,Data!$I$1:$I$1000,1) -> 511 | W10: =SUMIFS(Data!AD$1:AD$2000,Data!$A$1:$A$2000,$B10,Data!$C$1:$C$2000,1,Data!$I$1:$I$2000,1) -> 0
B11: 2017/18 Q2 | C11: Total (without NE) | E11: =SUMIFS(Data!L$1:L$2000,Data!$A$1:$A$2000,$B11,Data!$C$1:$C$2000,1,Data!$I$1:$I$2000,1) -> 241156 | F11: =SUMIFS(Data!M$1:M$1000,Data!$A$1:$A$1000,$B11,Data!$C$1:$C$1000,1,Data!$I$1:$I$1000,1) -> 763 | G11: =SUMIFS(Data!N$1:N$1000,Data!$A$1:$A$1000,$B11,Data!$C$1:$C$1000,1,Data!$I$1:$I$1000,1) -> 667 | H11: =SUMIFS(Data!O$1:O$1000,Data!$A$1:$A$1000,$B11,Data!$C$1:$C$1000,1,Data!$I$1:$I$1000,1) -> 656 | I11: =SUMIFS(Data!P$1:P$1000,Data!$A$1:$A$1000,$B11,Data!$C$1:$C$1000,1,Data!$I$1:$I$1000,1) -> 667 | J11: =SUMIFS(Data!Q$1:Q$1000,Data!$A$1:$A$1000,$B11,Data!$C$1:$C$1000,1,Data!$I$1:$I$1000,1) -> 648 | K11: =SUMIFS(Data!R$1:R$1000,Data!$A$1:$A$1000,$B11,Data!$C$1:$C$1000,1,Data!$I$1:$I$1000,1) -> 142 | L11: =SUMIFS(Data!S$1:S$1000,Data!$A$1:$A$1000,$B11,Data!$C$1:$C$1000,1,Data!$I$1:$I$1000,1) -> 736 | M11: =SUMIFS(Data!T$1:T$1000,Data!$A$1:$A$1000,$B11,Data!$C$1:$C$1000,1,Data!$I$1:$I$1000,1) -> 650 | N11: =SUMIFS(Data!U$1:U$1000,Data!$A$1:$A$1000,$B11,Data!$C$1:$C$1000,1,Data!$I$1:$I$1000,1) -> 589 | O11: =SUMIFS(Data!V$1:V$1000,Data!$A$1:$A$1000,$B11,Data!$C$1:$C$1000,1,Data!$I$1:$I$1000,1) -> 589 | P11: =SUMIFS(Data!W$1:W$1000,Data!$A$1:$A$1000,$B11,Data!$C$1:$C$1000,1,Data!$I$1:$I$1000,1) -> 597 | Q11: =SUMIFS(Data!X$1:X$5000,Data!$A$1:$A$5000,$B11,Data!$C$1:$C$5000,1,Data!$I$1:$I$5000,1) -> 673 | R11: =SUMIFS(Data!Y$1:Y$1000,Data!$A$1:$A$1000,$B11,Data!$C$1:$C$1000,1,Data!$I$1:$I$1000,1) -> 601 | S11: =SUMIFS(Data!Z$1:Z$1000,Data!$A$1:$A$1000,$B11,Data!$C$1:$C$1000,1,Data!$I$1:$I$1000,1) -> 587 | T11: =SUMIFS(Data!AA$1:AA$1000,Data!$A$1:$A$1000,$B11,Data!$C$1:$C$1000,1,Data!$I$1:$I$1000,1) -> 524 | U11: =SUMIFS(Data!AB$1:AB$1000,Data!$A$1:$A$1000,$B11,Data!$C$1:$C$1000,1,Data!$I$1:$I$1000,1) -> 578 | V11: =SUMIFS(Data!AC$1:AC$1000,Data!$A$1:$A$1000,$B11,Data!$C$1:$C$1000,1,Data!$I$1:$I$1000,1) -> 545 | W11: =SUMIFS(Data!AD$1:AD$2000,Data!$A$1:$A$2000,$B11,Data!$C$1:$C$2000,1,Data!$I$1:$I$2000,1) -> 0
B12: 2017/18 Q3 | C12: Total (without NE) | E12: =SUMIFS(Data!L$1:L$2000,Data!$A$1:$A$2000,$B12,Data!$C$1:$C$2000,1,Data!$I$1:$I$2000,1) -> 242212 | F12: =SUMIFS(Data!M$1:M$1000,Data!$A$1:$A$1000,$B12,Data!$C$1:$C$1000,1,Data!$I$1:$I$1000,1) -> 714 | G12: =SUMIFS(Data!N$1:N$1000,Data!$A$1:$A$1000,$B12,Data!$C$1:$C$1000,1,Data!$I$1:$I$1000,1) -> 618 | H12: =SUMIFS(Data!O$1:O$1000,Data!$A$1:$A$1000,$B12,Data!$C$1:$C$1000,1,Data!$I$1:$I$1000,1) -> 613 | I12: =SUMIFS(Data!P$1:P$1000,Data!$A$1:$A$1000,$B12,Data!$C$1:$C$1000,1,Data!$I$1:$I$1000,1) -> 627 | J12: =SUMIFS(Data!Q$1:Q$1000,Data!$A$1:$A$1000,$B12,Data!$C$1:$C$1000,1,Data!$I$1:$I$1000,1) -> 602 | K12: =SUMIFS(Data!R$1:R$1000,Data!$A$1:$A$1000,$B12,Data!$C$1:$C$1000,1,Data!$I$1:$I$1000,1) -> 123 | L12: =SUMIFS(Data!S$1:S$1000,Data!$A$1:$A$1000,$B12,Data!$C$1:$C$1000,1,Data!$I$1:$I$1000,1) -> 763 | M12: =SUMIFS(Data!T$1:T$1000,Data!$A$1:$A$1000,$B12,Data!$C$1:$C$1000,1,Data!$I$1:$I$1000,1) -> 684 | N12: =SUMIFS(Data!U$1:U$1000,Data!$A$1:$A$1000,$B12,Data!$C$1:$C$1000,1,Data!$I$1:$I$1000,1) -> 613 | O12: =SUMIFS(Data!V$1:V$1000,Data!$A$1:$A$1000,$B12,Data!$C$1:$C$1000,1,Data!$I$1:$I$1000,1) -> 609 | P12: =SUMIFS(Data!W$1:W$1000,Data!$A$1:$A$1000,$B12,Data!$C$1:$C$1000,1,Data!$I$1:$I$1000,1) -> 616 | Q12: =SUMIFS(Data!X$1:X$5000,Data!$A$1:$A$5000,$B12,Data!$C$1:$C$5000,1,Data!$I$1:$I$5000,1) -> 674 | R12: =SUMIFS(Data!Y$1:Y$1000,Data!$A$1:$A$1000,$B12,Data!$C$1:$C$1000,1,Data!$I$1:$I$1000,1) -> 599 | S12: =SUMIFS(Data!Z$1:Z$1000,Data!$A$1:$A$1000,$B12,Data!$C$1:$C$1000,1,Data!$I$1:$I$1000,1) -> 570 | T12: =SUMIFS(Data!AA$1:AA$1000,Data!$A$1:$A$1000,$B12,Data!$C$1:$C$1000,1,Data!$I$1:$I$1000,1) -> 495 | U12: =SUMIFS(Data!AB$1:AB$1000,Data!$A$1:$A$1000,$B12,Data!$C$1:$C$1000,1,Data!$I$1:$I$1000,1) -> 559 | V12: =SUMIFS(Data!AC$1:AC$1000,Data!$A$1:$A$1000,$B12,Data!$C$1:$C$1000,1,Data!$I$1:$I$1000,1) -> 508 | W12: =SUMIFS(Data!AD$1:AD$2000,Data!$A$1:$A$2000,$B12,Data!$C$1:$C$2000,1,Data!$I$1:$I$2000,1) -> 0
B13: 2017/18 Q4 | C13: Total (without NE) | E13: =SUMIFS(Data!L$1:L$2000,Data!$A$1:$A$2000,$B13,Data!$C$1:$C$2000,1,Data!$I$1:$I$2000,1) -> 243357 | F13: =SUMIFS(Data!M$1:M$1000,Data!$A$1:$A$1000,$B13,Data!$C$1:$C$1000,1,Data!$I$1:$I$1000,1) -> 711 | G13: =SUMIFS(Data!N$1:N$1000,Data!$A$1:$A$1000,$B13,Data!$C$1:$C$1000,1,Data!$I$1:$I$1000,1) -> 628 | H13: =SUMIFS(Data!O$1:O$1000,Data!$A$1:$A$1000,$B13,Data!$C$1:$C$1000,1,Data!$I$1:$I$1000,1) -> 629 | I13: =SUMIFS(Data!P$1:P$1000,Data!$A$1:$A$1000,$B13,Data!$C$1:$C$1000,1,Data!$I$1:$I$1000,1) -> 645 | J13: =SUMIFS(Data!Q$1:Q$1000,Data!$A$1:$A$1000,$B13,Data!$C$1:$C$1000,1,Data!$I$1:$I$1000,1) -> 613 | K13: =SUMIFS(Data!R$1:R$1000,Data!$A$1:$A$1000,$B13,Data!$C$1:$C$1000,1,Data!$I$1:$I$1000,1) -> 139 | L13: =SUMIFS(Data!S$1:S$1000,Data!$A$1:$A$1000,$B13,Data!$C$1:$C$1000,1,Data!$I$1:$I$1000,1) -> 671 | M13: =SUMIFS(Data!T$1:T$1000,Data!$A$1:$A$1000,$B13,Data!$C$1:$C$1000,1,Data!$I$1:$I$1000,1) -> 608 | N13: =SUMIFS(Data!U$1:U$1000,Data!$A$1:$A$1000,$B13,Data!$C$1:$C$1000,1,Data!$I$1:$I$1000,1) -> 546 | O13: =SUMIFS(Data!V$1:V$1000,Data!$A$1:$A$1000,$B13,Data!$C$1:$C$1000,1,Data!$I$1:$I$1000,1) -> 545 | P13: =SUMIFS(Data!W$1:W$1000,Data!$A$1:$A$1000,$B13,Data!$C$1:$C$1000,1,Data!$I$1:$I$1000,1) -> 554 | Q13: =SUMIFS(Data!X$1:X$5000,Data!$A$1:$A$5000,$B13,Data!$C$1:$C$5000,1,Data!$I$1:$I$5000,1) -> 654 | R13: =SUMIFS(Data!Y$1:Y$1000,Data!$A$1:$A$1000,$B13,Data!$C$1:$C$1000,1,Data!$I$1:$I$1000,1) -> 571 | S13: =SUMIFS(Data!Z$1:Z$1000,Data!$A$1:$A$1000,$B13,Data!$C$1:$C$1000,1,Data!$I$1:$I$1000,1) -> 546 | T13: =SUMIFS(Data!AA$1:AA$1000,Data!$A$1:$A$1000,$B13,Data!$C$1:$C$1000,1,Data!$I$1:$I$1000,1) -> 454 | U13: =SUMIFS(Data!AB$1:AB$1000,Data!$A$1:$A$1000,$B13,Data!$C$1:$C$1000,1,Data!$I$1:$I$1000,1) -> 542 | V13: =SUMIFS(Data!AC$1:AC$1000,Data!$A$1:$A$1000,$B13,Data!$C$1:$C$1000,1,Data!$I$1:$I$1000,1) -> 467 | W13: =SUMIFS(Data!AD$1:AD$2000,Data!$A$1:$A$2000,$B13,Data!$C$1:$C$2000,1,Data!$I$1:$I$2000,1) -> 0
B14: 2018-06-01 | C14: Total (without NE) | E14: =SUMIFS(Data!L$1:L$2000,Data!$A$1:$A$2000,$B14,Data!$C$1:$C$2000,1,Data!$I$1:$I$2000,1) -> 244588 | F14: =SUMIFS(Data!M$1:M$1000,Data!$A$1:$A$1000,$B14,Data!$C$1:$C$1000,1,Data!$I$1:$I$1000,1) -> 700 | G14: =SUMIFS(Data!N$1:N$1000,Data!$A$1:$A$1000,$B14,Data!$C$1:$C$1000,1,Data!$I$1:$I$1000,1) -> 608 | H14: =SUMIFS(Data!O$1:O$1000,Data!$A$1:$A$1000,$B14,Data!$C$1:$C$1000,1,Data!$I$1:$I$1000,1) -> 596 | I14: =SUMIFS(Data!P$1:P$1000,Data!$A$1:$A$1000,$B14,Data!$C$1:$C$1000,1,Data!$I$1:$I$1000,1) -> 618 | J14: =SUMIFS(Data!Q$1:Q$1000,Data!$A$1:$A$1000,$B14,Data!$C$1:$C$1000,1,Data!$I$1:$I$1000,1) -> 584 | K14: =SUMIFS(Data!R$1:R$1000,Data!$A$1:$A$1000,$B14,Data!$C$1:$C$1000,1,Data!$I$1:$I$1000,1) -> 142 | L14: =SUMIFS(Data!S$1:S$1000,Data!$A$1:$A$1000,$B14,Data!$C$1:$C$1000,1,Data!$I$1:$I$1000,1) -> 709 | M14: =SUMIFS(Data!T$1:T$1000,Data!$A$1:$A$1000,$B14,Data!$C$1:$C$1000,1,Data!$I$1:$I$1000,1) -> 630 | N14: =SUMIFS(Data!U$1:U$1000,Data!$A$1:$A$1000,$B14,Data!$C$1:$C$1000,1,Data!$I$1:$I$1000,1) -> 570 | O14: =SUMIFS(Data!V$1:V$1000,Data!$A$1:$A$1000,$B14,Data!$C$1:$C$1000,1,Data!$I$1:$I$1000,1) -> 573 | P14: =SUMIFS(Data!W$1:W$1000,Data!$A$1:$A$1000,$B14,Data!$C$1:$C$1000,1,Data!$I$1:$I$1000,1) -> 571 | Q14: =SUMIFS(Data!X$1:X$5000,Data!$A$1:$A$5000,$B14,Data!$C$1:$C$5000,1,Data!$I$1:$I$5000,1) -> 648 | R14: =SUMIFS(Data!Y$1:Y$1000,Data!$A$1:$A$1000,$B14,Data!$C$1:$C$1000,1,Data!$I$1:$I$1000,1) -> 575 | S14: =SUMIFS(Data!Z$1:Z$1000,Data!$A$1:$A$1000,$B14,Data!$C$1:$C$1000,1,Data!$I$1:$I$1000,1) -> 544 | T14: =SUMIFS(Data!AA$1:AA$1000,Data!$A$1:$A$1000,$B14,Data!$C$1:$C$1000,1,Data!$I$1:$I$1000,1) -> 430 | U14: =SUMIFS(Data!AB$1:AB$1000,Data!$A$1:$A$1000,$B14,Data!$C$1:$C$1000,1,Data!$I$1:$I$1000,1) -> 542 | V14: =SUMIFS(Data!AC$1:AC$1000,Data!$A$1:$A$1000,$B14,Data!$C$1:$C$1000,1,Data!$I$1:$I$1000,1) -> 447 | W14: =SUMIFS(Data!AD$1:AD$2000,Data!$A$1:$A$2000,$B14,Data!$C$1:$C$2000,1,Data!$I$1:$I$2000,1) -> 571
B15: 2018-09-01 | C15: Total (without NE) | E15: =SUMIFS(Data!L$1:L$2000,Data!$A$1:$A$2000,$B15,Data!$C$1:$C$2000,1,Data!$I$1:$I$2000,1) -> 246505 | F15: =SUMIFS(Data!M$1:M$1000,Data!$A$1:$A$1000,$B15,Data!$C$1:$C$1000,1,Data!$I$1:$I$1000,1) -> 695 | G15: =SUMIFS(Data!N$1:N$1000,Data!$A$1:$A$1000,$B15,Data!$C$1:$C$1000,1,Data!$I$1:$I$1000,1) -> 595 | H15: =SUMIFS(Data!O$1:O$1000,Data!$A$1:$A$1000,$B15,Data!$C$1:$C$1000,1,Data!$I$1:$I$1000,1) -> 600 | I15: =SUMIFS(Data!P$1:P$1000,Data!$A$1:$A$1000,$B15,Data!$C$1:$C$1000,1,Data!$I$1:$I$1000,1) -> 606 | J15: =SUMIFS(Data!Q$1:Q$1000,Data!$A$1:$A$1000,$B15,Data!$C$1:$C$1000,1,Data!$I$1:$I$1000,1) -> 586 | K15: =SUMIFS(Data!R$1:R$1000,Data!$A$1:$A$1000,$B15,Data!$C$1:$C$1000,1,Data!$I$1:$I$1000,1) -> 153 | L15: =SUMIFS(Data!S$1:S$1000,Data!$A$1:$A$1000,$B15,Data!$C$1:$C$1000,1,Data!$I$1:$I$1000,1) -> 723 | M15: =SUMIFS(Data!T$1:T$1000,Data!$A$1:$A$1000,$B15,Data!$C$1:$C$1000,1,Data!$I$1:$I$1000,1) -> 651 | N15: =SUMIFS(Data!U$1:U$1000,Data!$A$1:$A$1000,$B15,Data!$C$1:$C$1000,1,Data!$I$1:$I$1000,1) -> 589 | O15: =SUMIFS(Data!V$1:V$1000,Data!$A$1:$A$1000,$B15,Data!$C$1:$C$1000,1,Data!$I$1:$I$1000,1) -> 584 | P15: =SUMIFS(Data!W$1:W$1000,Data!$A$1:$A$1000,$B15,Data!$C$1:$C$1000,1,Data!$I$1:$I$1000,1) -> 584 | Q15: =SUMIFS(Data!X$1:X$5000,Data!$A$1:$A$5000,$B15,Data!$C$1:$C$5000,1,Data!$I$1:$I$5000,1) -> 627 | R15: =SUMIFS(Data!Y$1:Y$1000,Data!$A$1:$A$1000,$B15,Data!$C$1:$C$1000,1,Data!$I$1:$I$1000,1) -> 541 | S15: =SUMIFS(Data!Z$1:Z$1000,Data!$A$1:$A$1000,$B15,Data!$C$1:$C$1000,1,Data!$I$1:$I$1000,1) -> 534 | T15: =SUMIFS(Data!AA$1:AA$1000,Data!$A$1:$A$1000,$B15,Data!$C$1:$C$1000,1,Data!$I$1:$I$1000,1) -> 441 | U15: =SUMIFS(Data!AB$1:AB$1000,Data!$A$1:$A$1000,$B15,Data!$C$1:$C$1000,1,Data!$I$1:$I$1000,1) -> 521 | V15: =SUMIFS(Data!AC$1:AC$1000,Data!$A$1:$A$1000,$B15,Data!$C$1:$C$1000,1,Data!$I$1:$I$1000,1) -> 455 | W15: =SUMIFS(Data!AD$1:AD$2000,Data!$A$1:$A$2000,$B15,Data!$C$1:$C$2000,1,Data!$I$1:$I$2000,1) -> 585
B16: 2018-12-01 | C16: Total (without NE) | E16: =SUMIFS(Data!L$1:L$2000,Data!$A$1:$A$2000,$B16,Data!$C$1:$C$2000,1,Data!$I$1:$I$2000,1) -> 247393 | F16: =SUMIFS(Data!M$1:M$2000,Data!$A$1:$A$2000,$B16,Data!$C$1:$C$2000,1,Data!$I$1:$I$2000,1) -> 685 | G16: =SUMIFS(Data!N$1:N$2000,Data!$A$1:$A$2000,$B16,Data!$C$1:$C$2000,1,Data!$I$1:$I$2000,1) -> 586 | H16: =SUMIFS(Data!O$1:O$2000,Data!$A$1:$A$2000,$B16,Data!$C$1:$C$2000,1,Data!$I$1:$I$2000,1) -> 584 | I16: =SUMIFS(Data!P$1:P$2000,Data!$A$1:$A$2000,$B16,Data!$C$1:$C$2000,1,Data!$I$1:$I$2000,1) -> 596 | J16: =SUMIFS(Data!Q$1:Q$2000,Data!$A$1:$A$2000,$B16,Data!$C$1:$C$2000,1,Data!$I$1:$I$2000,1) -> 574 | K16: =SUMIFS(Data!R$1:R$2000,Data!$A$1:$A$2000,$B16,Data!$C$1:$C$2000,1,Data!$I$1:$I$2000,1) -> 167 | L16: =SUMIFS(Data!S$1:S$2000,Data!$A$1:$A$2000,$B16,Data!$C$1:$C$2000,1,Data!$I$1:$I$2000,1) -> 681 | M16: =SUMIFS(Data!T$1:T$2000,Data!$A$1:$A$2000,$B16,Data!$C$1:$C$2000,1,Data!$I$1:$I$2000,1) -> 614 | N16: =SUMIFS(Data!U$1:U$2000,Data!$A$1:$A$2000,$B16,Data!$C$1:$C$2000,1,Data!$I$1:$I$2000,1) -> 555 | O16: =SUMIFS(Data!V$1:V$2000,Data!$A$1:$A$2000,$B16,Data!$C$1:$C$2000,1,Data!$I$1:$I$2000,1) -> 556 | P16: =SUMIFS(Data!W$1:W$2000,Data!$A$1:$A$2000,$B16,Data!$C$1:$C$2000,1,Data!$I$1:$I$2000,1) -> 553 | Q16: =SUMIFS(Data!X$1:X$5000,Data!$A$1:$A$5000,$B16,Data!$C$1:$C$5000,1,Data!$I$1:$I$5000,1) -> 627 | R16: =SUMIFS(Data!Y$1:Y$2000,Data!$A$1:$A$2000,$B16,Data!$C$1:$C$2000,1,Data!$I$1:$I$2000,1) -> 556 | S16: =SUMIFS(Data!Z$1:Z$2000,Data!$A$1:$A$2000,$B16,Data!$C$1:$C$2000,1,Data!$I$1:$I$2000,1) -> 535 | T16: =SUMIFS(Data!AA$1:AA$2000,Data!$A$1:$A$2000,$B16,Data!$C$1:$C$2000,1,Data!$I$1:$I$2000,1) -> 441 | U16: =SUMIFS(Data!AB$1:AB$2000,Data!$A$1:$A$2000,$B16,Data!$C$1:$C$2000,1,Data!$I$1:$I$2000,1) -> 524 | V16: =SUMIFS(Data!AC$1:AC$2000,Data!$A$1:$A$2000,$B16,Data!$C$1:$C$2000,1,Data!$I$1:$I$2000,1) -> 453 | W16: =SUMIFS(Data!AD$1:AD$2000,Data!$A$1:$A$2000,$B16,Data!$C$1:$C$2000,1,Data!$I$1:$I$2000,1) -> 547
B17: 2019-03-01 | C17: Total (without NE) | E17: =SUMIFS(Data!L$1:L$2000,Data!$A$1:$A$2000,$B17,Data!$C$1:$C$2000,1,Data!$I$1:$I$2000,1) -> 247851 | F17: =SUMIFS(Data!M$1:M$2000,Data!$A$1:$A$2000,$B17,Data!$C$1:$C$2000,1,Data!$I$1:$I$2000,1) -> 675 | G17: =SUMIFS(Data!N$1:N$2000,Data!$A$1:$A$2000,$B17,Data!$C$1:$C$2000,1,Data!$I$1:$I$2000,1) -> 582 | H17: =SUMIFS(Data!O$1:O$2000,Data!$A$1:$A$2000,$B17,Data!$C$1:$C$2000,1,Data!$I$1:$I$2000,1) -> 581 | I17: =SUMIFS(Data!P$1:P$2000,Data!$A$1:$A$2000,$B17,Data!$C$1:$C$2000,1,Data!$I$1:$I$2000,1) -> 589 | J17: =SUMIFS(Data!Q$1:Q$2000,Data!$A$1:$A$2000,$B17,Data!$C$1:$C$2000,1,Data!$I$1:$I$2000,1) -> 579 | K17: =SUMIFS(Data!R$1:R$2000,Data!$A$1:$A$2000,$B17,Data!$C$1:$C$2000,1,Data!$I$1:$I$2000,1) -> 175 | L17: =SUMIFS(Data!S$1:S$2000,Data!$A$1:$A$2000,$B17,Data!$C$1:$C$2000,1,Data!$I$1:$I$2000,1) -> 670 | M17: =SUMIFS(Data!T$1:T$2000,Data!$A$1:$A$2000,$B17,Data!$C$1:$C$2000,1,Data!$I$1:$I$2000,1) -> 630 | N17: =SUMIFS(Data!U$1:U$2000,Data!$A$1:$A$2000,$B17,Data!$C$1:$C$2000,1,Data!$I$1:$I$2000,1) -> 553 | O17: =SUMIFS(Data!V$1:V$2000,Data!$A$1:$A$2000,$B17,Data!$C$1:$C$2000,1,Data!$I$1:$I$2000,1) -> 552 | P17: =SUMIFS(Data!W$1:W$2000,Data!$A$1:$A$2000,$B17,Data!$C$1:$C$2000,1,Data!$I$1:$I$2000,1) -> 551 | Q17: =SUMIFS(Data!X$1:X$5000,Data!$A$1:$A$5000,$B17,Data!$C$1:$C$5000,1,Data!$I$1:$I$5000,1) -> 618 | R17: =SUMIFS(Data!Y$1:Y$2000,Data!$A$1:$A$2000,$B17,Data!$C$1:$C$2000,1,Data!$I$1:$I$2000,1) -> 538 | S17: =SUMIFS(Data!Z$1:Z$2000,Data!$A$1:$A$2000,$B17,Data!$C$1:$C$2000,1,Data!$I$1:$I$2000,1) -> 515 | T17: =SUMIFS(Data!AA$1:AA$2000,Data!$A$1:$A$2000,$B17,Data!$C$1:$C$2000,1,Data!$I$1:$I$2000,1) -> 420 | U17: =SUMIFS(Data!AB$1:AB$2000,Data!$A$1:$A$2000,$B17,Data!$C$1:$C$2000,1,Data!$I$1:$I$2000,1) -> 506 | V17: =SUMIFS(Data!AC$1:AC$2000,Data!$A$1:$A$2000,$B17,Data!$C$1:$C$2000,1,Data!$I$1:$I$2000,1) -> 437 | W17: =SUMIFS(Data!AD$1:AD$2000,Data!$A$1:$A$2000,$B17,Data!$C$1:$C$2000,1,Data!$I$1:$I$2000,1) -> 559
B18: 2019-06-01 | C18: Total (without NE) | E18: =SUMIFS(Data!L$1:L$2000,Data!$A$1:$A$2000,$B18,Data!$C$1:$C$2000,1,Data!$I$1:$I$2000,1) -> 248502 | F18: =SUMIFS(Data!M$1:M$2000,Data!$A$1:$A$2000,$B18,Data!$C$1:$C$2000,1,Data!$I$1:$I$2000,1) -> 710 | G18: =SUMIFS(Data!N$1:N$2000,Data!$A$1:$A$2000,$B18,Data!$C$1:$C$2000,1,Data!$I$1:$I$2000,1) -> 620 | H18: =SUMIFS(Data!O$1:O$2000,Data!$A$1:$A$2000,$B18,Data!$C$1:$C$2000,1,Data!$I$1:$I$2000,1) -> 613 | I18: =SUMIFS(Data!P$1:P$2000,Data!$A$1:$A$2000,$B18,Data!$C$1:$C$2000,1,Data!$I$1:$I$2000,1) -> 623 | J18: =SUMIFS(Data!Q$1:Q$2000,Data!$A$1:$A$2000,$B18,Data!$C$1:$C$2000,1,Data!$I$1:$I$2000,1) -> 604 | K18: =SUMIFS(Data!R$1:R$2000,Data!$A$1:$A$2000,$B18,Data!$C$1:$C$2000,1,Data!$I$1:$I$2000,1) -> 156 | L18: =SUMIFS(Data!S$1:S$2000,Data!$A$1:$A$2000,$B18,Data!$C$1:$C$2000,1,Data!$I$1:$I$2000,1) -> 680 | M18: =SUMIFS(Data!T$1:T$2000,Data!$A$1:$A$2000,$B18,Data!$C$1:$C$2000,1,Data!$I$1:$I$2000,1) -> 618 | N18: =SUMIFS(Data!U$1:U$2000,Data!$A$1:$A$2000,$B18,Data!$C$1:$C$2000,1,Data!$I$1:$I$2000,1) -> 565 | O18: =SUMIFS(Data!V$1:V$2000,Data!$A$1:$A$2000,$B18,Data!$C$1:$C$2000,1,Data!$I$1:$I$2000,1) -> 557 | P18: =SUMIFS(Data!W$1:W$2000,Data!$A$1:$A$2000,$B18,Data!$C$1:$C$2000,1,Data!$I$1:$I$2000,1) -> 564 | Q18: =SUMIFS(Data!X$1:X$5000,Data!$A$1:$A$5000,$B18,Data!$C$1:$C$5000,1,Data!$I$1:$I$5000,1) -> 630 | R18: =SUMIFS(Data!Y$1:Y$2000,Data!$A$1:$A$2000,$B18,Data!$C$1:$C$2000,1,Data!$I$1:$I$2000,1) -> 577 | S18: =SUMIFS(Data!Z$1:Z$2000,Data!$A$1:$A$2000,$B18,Data!$C$1:$C$2000,1,Data!$I$1:$I$2000,1) -> 552 | T18: =SUMIFS(Data!AA$1:AA$2000,Data!$A$1:$A$2000,$B18,Data!$C$1:$C$2000,1,Data!$I$1:$I$2000,1) -> 458 | U18: =SUMIFS(Data!AB$1:AB$2000,Data!$A$1:$A$2000,$B18,Data!$C$1:$C$2000,1,Data!$I$1:$I$2000,1) -> 543 | V18: =SUMIFS(Data!AC$1:AC$2000,Data!$A$1:$A$2000,$B18,Data!$C$1:$C$2000,1,Data!$I$1:$I$2000,1) -> 472 | W18: =SUMIFS(Data!AD$1:AD$2000,Data!$A$1:$A$2000,$B18,Data!$C$1:$C$2000,1,Data!$I$1:$I$2000,1) -> 553
B19: 2019-09-01 | C19: Total (without NE) | E19: =SUMIFS(Data!L$1:L$2000,Data!$A$1:$A$2000,$B19,Data!$C$1:$C$2000,1,Data!$I$1:$I$2000,1) -> 250255 | F19: =SUMIFS(Data!M$1:M$2000,Data!$A$1:$A$2000,$B19,Data!$C$1:$C$2000,1,Data!$I$1:$I$2000,1) -> 712 | G19: =SUMIFS(Data!N$1:N$2000,Data!$A$1:$A$2000,$B19,Data!$C$1:$C$2000,1,Data!$I$1:$I$2000,1) -> 631 | H19: =SUMIFS(Data!O$1:O$2000,Data!$A$1:$A$2000,$B19,Data!$C$1:$C$2000,1,Data!$I$1:$I$2000,1) -> 630 | I19: =SUMIFS(Data!P$1:P$2000,Data!$A$1:$A$2000,$B19,Data!$C$1:$C$2000,1,Data!$I$1:$I$2000,1) -> 643 | J19: =SUMIFS(Data!Q$1:Q$2000,Data!$A$1:$A$2000,$B19,Data!$C$1:$C$2000,1,Data!$I$1:$I$2000,1) -> 612 | K19: =SUMIFS(Data!R$1:R$2000,Data!$A$1:$A$2000,$B19,Data!$C$1:$C$2000,1,Data!$I$1:$I$2000,1) -> 188 | L19: =SUMIFS(Data!S$1:S$2000,Data!$A$1:$A$2000,$B19,Data!$C$1:$C$2000,1,Data!$I$1:$I$2000,1) -> 677 | M19: =SUMIFS(Data!T$1:T$2000,Data!$A$1:$A$2000,$B19,Data!$C$1:$C$2000,1,Data!$I$1:$I$2000,1) -> 614 | N19: =SUMIFS(Data!U$1:U$2000,Data!$A$1:$A$2000,$B19,Data!$C$1:$C$2000,1,Data!$I$1:$I$2000,1) -> 565 | O19: =SUMIFS(Data!V$1:V$2000,Data!$A$1:$A$2000,$B19,Data!$C$1:$C$2000,1,Data!$I$1:$I$2000,1) -> 566 | P19: =SUMIFS(Data!W$1:W$2000,Data!$A$1:$A$2000,$B19,Data!$C$1:$C$2000,1,Data!$I$1:$I$2000,1) -> 567 | Q19: =SUMIFS(Data!X$1:X$5000,Data!$A$1:$A$5000,$B19,Data!$C$1:$C$5000,1,Data!$I$1:$I$5000,1) -> 645 | R19: =SUMIFS(Data!Y$1:Y$2000,Data!$A$1:$A$2000,$B19,Data!$C$1:$C$2000,1,Data!$I$1:$I$2000,1) -> 582 | S19: =SUMIFS(Data!Z$1:Z$2000,Data!$A$1:$A$2000,$B19,Data!$C$1:$C$2000,1,Data!$I$1:$I$2000,1) -> 572 | T19: =SUMIFS(Data!AA$1:AA$2000,Data!$A$1:$A$2000,$B19,Data!$C$1:$C$2000,1,Data!$I$1:$I$2000,1) -> 488 | U19: =SUMIFS(Data!AB$1:AB$2000,Data!$A$1:$A$2000,$B19,Data!$C$1:$C$2000,1,Data!$I$1:$I$2000,1) -> 563 | V19: =SUMIFS(Data!AC$1:AC$2000,Data!$A$1:$A$2000,$B19,Data!$C$1:$C$2000,1,Data!$I$1:$I$2000,1) -> 508 | W19: =SUMIFS(Data!AD$1:AD$2000,Data!$A$1:$A$2000,$B19,Data!$C$1:$C$2000,1,Data!$I$1:$I$2000,1) -> 566
B20: 2019-12-01 | C20: Total (without NE) | E20: =SUMIFS(Data!L$1:L$2000,Data!$A$1:$A$2000,$B20,Data!$C$1:$C$2000,1,Data!$I$1:$I$2000,1) -> 249979 | F20: =SUMIFS(Data!M$1:M$2000,Data!$A$1:$A$2000,$B20,Data!$C$1:$C$2000,1,Data!$I$1:$I$2000,1) -> 733 | G20: =SUMIFS(Data!N$1:N$2000,Data!$A$1:$A$2000,$B20,Data!$C$1:$C$2000,1,Data!$I$1:$I$2000,1) -> 638 | H20: =SUMIFS(Data!O$1:O$2000,Data!$A$1:$A$2000,$B20,Data!$C$1:$C$2000,1,Data!$I$1:$I$2000,1) -> 630 | I20: =SUMIFS(Data!P$1:P$2000,Data!$A$1:$A$2000,$B20,Data!$C$1:$C$2000,1,Data!$I$1:$I$2000,1) -> 648 | J20: =SUMIFS(Data!Q$1:Q$2000,Data!$A$1:$A$2000,$B20,Data!$C$1:$C$2000,1,Data!$I$1:$I$2000,1) -> 619 | K20: =SUMIFS(Data!R$1:R$2000,Data!$A$1:$A$2000,$B20,Data!$C$1:$C$2000,1,Data!$I$1:$I$2000,1) -> 224 | L20: =SUMIFS(Data!S$1:S$2000,Data!$A$1:$A$2000,$B20,Data!$C$1:$C$2000,1,Data!$I$1:$I$2000,1) -> 633 | M20: =SUMIFS(Data!T$1:T$2000,Data!$A$1:$A$2000,$B20,Data!$C$1:$C$2000,1,Data!$I$1:$I$2000,1) -> 564 | N20: =SUMIFS(Data!U$1:U$2000,Data!$A$1:$A$2000,$B20,Data!$C$1:$C$2000,1,Data!$I$1:$I$2000,1) -> 526 | O20: =SUMIFS(Data!V$1:V$2000,Data!$A$1:$A$2000,$B20,Data!$C$1:$C$2000,1,Data!$I$1:$I$2000,1) -> 519 | P20: =SUMIFS(Data!W$1:W$2000,Data!$A$1:$A$2000,$B20,Data!$C$1:$C$2000,1,Data!$I$1:$I$2000,1) -> 517 | Q20: =SUMIFS(Data!X$1:X$5000,Data!$A$1:$A$5000,$B20,Data!$C$1:$C$5000,1,Data!$I$1:$I$5000,1) -> 608 | R20: =SUMIFS(Data!Y$1:Y$2000,Data!$A$1:$A$2000,$B20,Data!$C$1:$C$2000,1,Data!$I$1:$I$2000,1) -> 535 | S20: =SUMIFS(Data!Z$1:Z$2000,Data!$A$1:$A$2000,$B20,Data!$C$1:$C$2000,1,Data!$I$1:$I$2000,1) -> 527 | T20: =SUMIFS(Data!AA$1:AA$2000,Data!$A$1:$A$2000,$B20,Data!$C$1:$C$2000,1,Data!$I$1:$I$2000,1) -> 442 | U20: =SUMIFS(Data!AB$1:AB$2000,Data!$A$1:$A$2000,$B20,Data!$C$1:$C$2000,1,Data!$I$1:$I$2000,1) -> 526 | V20: =SUMIFS(Data!AC$1:AC$2000,Data!$A$1:$A$2000,$B20,Data!$C$1:$C$2000,1,Data!$I$1:$I$2000,1) -> 452 | W20: =SUMIFS(Data!AD$1:AD$2000,Data!$A$1:$A$2000,$B20,Data!$C$1:$C$2000,1,Data!$I$1:$I$2000,1) -> 518
B21: 2020-03-01 | C21: Total (without NE) | E21: =SUMIFS(Data!L$1:L$2000,Data!$A$1:$A$2000,$B21,Data!$C$1:$C$2000,1,Data!$I$1:$I$2000,1) -> 250693 | F21: =SUMIFS(Data!M$1:M$2000,Data!$A$1:$A$2000,$B21,Data!$C$1:$C$2000,1,Data!$I$1:$I$2000,1) -> 662 | G21: =SUMIFS(Data!N$1:N$2000,Data!$A$1:$A$2000,$B21,Data!$C$1:$C$2000,1,Data!$I$1:$I$2000,1) -> 580 | H21: =SUMIFS(Data!O$1:O$2000,Data!$A$1:$A$2000,$B21,Data!$C$1:$C$2000,1,Data!$I$1:$I$2000,1) -> 584 | I21: =SUMIFS(Data!P$1:P$2000,Data!$A$1:$A$2000,$B21,Data!$C$1:$C$2000,1,Data!$I$1:$I$2000,1) -> 588 | J21: =SUMIFS(Data!Q$1:Q$2000,Data!$A$1:$A$2000,$B21,Data!$C$1:$C$2000,1,Data!$I$1:$I$2000,1) -> 576 | K21: =SUMIFS(Data!R$1:R$2000,Data!$A$1:$A$2000,$B21,Data!$C$1:$C$2000,1,Data!$I$1:$I$2000,1) -> 177 | L21: =SUMIFS(Data!S$1:S$2000,Data!$A$1:$A$2000,$B21,Data!$C$1:$C$2000,1,Data!$I$1:$I$2000,1) -> 635 | M21: =SUMIFS(Data!T$1:T$2000,Data!$A$1:$A$2000,$B21,Data!$C$1:$C$2000,1,Data!$I$1:$I$2000,1) -> 563 | N21: =SUMIFS(Data!U$1:U$2000,Data!$A$1:$A$2000,$B21,Data!$C$1:$C$2000,1,Data!$I$1:$I$2000,1) -> 519 | O21: =SUMIFS(Data!V$1:V$2000,Data!$A$1:$A$2000,$B21,Data!$C$1:$C$2000,1,Data!$I$1:$I$2000,1) -> 517 | P21: =SUMIFS(Data!W$1:W$2000,Data!$A$1:$A$2000,$B21,Data!$C$1:$C$2000,1,Data!$I$1:$I$2000,1) -> 520 | Q21: =SUMIFS(Data!X$1:X$5000,Data!$A$1:$A$5000,$B21,Data!$C$1:$C$5000,1,Data!$I$1:$I$5000,1) -> 604 | R21: =SUMIFS(Data!Y$1:Y$2000,Data!$A$1:$A$2000,$B21,Data!$C$1:$C$2000,1,Data!$I$1:$I$2000,1) -> 538 | S21: =SUMIFS(Data!Z$1:Z$2000,Data!$A$1:$A$2000,$B21,Data!$C$1:$C$2000,1,Data!$I$1:$I$2000,1) -> 532 | T21: =SUMIFS(Data!AA$1:AA$2000,Data!$A$1:$A$2000,$B21,Data!$C$1:$C$2000,1,Data!$I$1:$I$2000,1) -> 444 | U21: =SUMIFS(Data!AB$1:AB$2000,Data!$A$1:$A$2000,$B21,Data!$C$1:$C$2000,1,Data!$I$1:$I$2000,1) -> 529 | V21: =SUMIFS(Data!AC$1:AC$2000,Data!$A$1:$A$2000,$B21,Data!$C$1:$C$2000,1,Data!$I$1:$I$2000,1) -> 459 | W21: =SUMIFS(Data!AD$1:AD$2000,Data!$A$1:$A$2000,$B21,Data!$C$1:$C$2000,1,Data!$I$1:$I$2000,1) -> 515
B22: 2020-06-01 | C22: Total (without NE) | E22: =SUMIFS(Data!L$1:L$2000,Data!$A$1:$A$2000,$B22,Data!$C$1:$C$2000,1,Data!$I$1:$I$2000,1) -> 250443 | F22: =SUMIFS(Data!M$1:M$2000,Data!$A$1:$A$2000,$B22,Data!$C$1:$C$2000,1,Data!$I$1:$I$2000,1) -> 673 | G22: =SUMIFS(Data!N$1:N$2000,Data!$A$1:$A$2000,$B22,Data!$C$1:$C$2000,1,Data!$I$1:$I$2000,1) -> 586 | H22: =SUMIFS(Data!O$1:O$2000,Data!$A$1:$A$2000,$B22,Data!$C$1:$C$2000,1,Data!$I$1:$I$2000,1) -> 585 | I22: =SUMIFS(Data!P$1:P$2000,Data!$A$1:$A$2000,$B22,Data!$C$1:$C$2000,1,Data!$I$1:$I$2000,1) -> 594 | J22: =SUMIFS(Data!Q$1:Q$2000,Data!$A$1:$A$2000,$B22,Data!$C$1:$C$2000,1,Data!$I$1:$I$2000,1) -> 576 | K22: =SUMIFS(Data!R$1:R$2000,Data!$A$1:$A$2000,$B22,Data!$C$1:$C$2000,1,Data!$I$1:$I$2000,1) -> 192 | L22: =SUMIFS(Data!S$1:S$2000,Data!$A$1:$A$2000,$B22,Data!$C$1:$C$2000,1,Data!$I$1:$I$2000,1) -> 674 | M22: =SUMIFS(Data!T$1:T$2000,Data!$A$1:$A$2000,$B22,Data!$C$1:$C$2000,1,Data!$I$1:$I$2000,1) -> 605 | N22: =SUMIFS(Data!U$1:U$2000,Data!$A$1:$A$2000,$B22,Data!$C$1:$C$2000,1,Data!$I$1:$I$2000,1) -> 545 | O22: =SUMIFS(Data!V$1:V$2000,Data!$A$1:$A$2000,$B22,Data!$C$1:$C$2000,1,Data!$I$1:$I$2000,1) -> 543 | P22: =SUMIFS(Data!W$1:W$2000,Data!$A$1:$A$2000,$B22,Data!$C$1:$C$2000,1,Data!$I$1:$I$2000,1) -> 543 | Q22: =SUMIFS(Data!X$1:X$5000,Data!$A$1:$A$5000,$B22,Data!$C$1:$C$5000,1,Data!$I$1:$I$5000,1) -> 596 | R22: =SUMIFS(Data!Y$1:Y$2000,Data!$A$1:$A$2000,$B22,Data!$C$1:$C$2000,1,Data!$I$1:$I$2000,1) -> 538 | S22: =SUMIFS(Data!Z$1:Z$2000,Data!$A$1:$A$2000,$B22,Data!$C$1:$C$2000,1,Data!$I$1:$I$2000,1) -> 532 | T22: =SUMIFS(Data!AA$1:AA$2000,Data!$A$1:$A$2000,$B22,Data!$C$1:$C$2000,1,Data!$I$1:$I$2000,1) -> 433 | U22: =SUMIFS(Data!AB$1:AB$2000,Data!$A$1:$A$2000,$B22,Data!$C$1:$C$2000,1,Data!$I$1:$I$2000,1) -> 525 | V22: =SUMIFS(Data!AC$1:AC$2000,Data!$A$1:$A$2000,$B22,Data!$C$1:$C$2000,1,Data!$I$1:$I$2000,1) -> 447 | W22: =SUMIFS(Data!AD$1:AD$2000,Data!$A$1:$A$2000,$B22,Data!$C$1:$C$2000,1,Data!$I$1:$I$2000,1) -> 544
B23: 2020-09-01 | C23: Total (without NE) | E23: =SUMIFS(Data!L$1:L$2000,Data!$A$1:$A$2000,$B23,Data!$C$1:$C$2000,1,Data!$I$1:$I$2000,1) -> 251358 | F23: =SUMIFS(Data!M$1:M$2000,Data!$A$1:$A$2000,$B23,Data!$C$1:$C$2000,1,Data!$I$1:$I$2000,1) -> 682 | G23: =SUMIFS(Data!N$1:N$2000,Data!$A$1:$A$2000,$B23,Data!$C$1:$C$2000,1,Data!$I$1:$I$2000,1) -> 589 | H23: =SUMIFS(Data!O$1:O$2000,Data!$A$1:$A$2000,$B23,Data!$C$1:$C$2000,1,Data!$I$1:$I$2000,1) -> 585 | I23: =SUMIFS(Data!P$1:P$2000,Data!$A$1:$A$2000,$B23,Data!$C$1:$C$2000,1,Data!$I$1:$I$2000,1) -> 586 | J23: =SUMIFS(Data!Q$1:Q$2000,Data!$A$1:$A$2000,$B23,Data!$C$1:$C$2000,1,Data!$I$1:$I$2000,1) -> 575 | K23: =SUMIFS(Data!R$1:R$2000,Data!$A$1:$A$2000,$B23,Data!$C$1:$C$2000,1,Data!$I$1:$I$2000,1) -> 192 | L23: =SUMIFS(Data!S$1:S$2000,Data!$A$1:$A$2000,$B23,Data!$C$1:$C$2000,1,Data!$I$1:$I$2000,1) -> 670 | M23: =SUMIFS(Data!T$1:T$2000,Data!$A$1:$A$2000,$B23,Data!$C$1:$C$2000,1,Data!$I$1:$I$2000,1) -> 601 | N23: =SUMIFS(Data!U$1:U$2000,Data!$A$1:$A$2000,$B23,Data!$C$1:$C$2000,1,Data!$I$1:$I$2000,1) -> 556 | O23: =SUMIFS(Data!V$1:V$2000,Data!$A$1:$A$2000,$B23,Data!$C$1:$C$2000,1,Data!$I$1:$I$2000,1) -> 555 | P23: =SUMIFS(Data!W$1:W$2000,Data!$A$1:$A$2000,$B23,Data!$C$1:$C$2000,1,Data!$I$1:$I$2000,1) -> 555 | Q23: =SUMIFS(Data!X$1:X$5000,Data!$A$1:$A$5000,$B23,Data!$C$1:$C$5000,1,Data!$I$1:$I$5000,1) -> 645 | R23: =SUMIFS(Data!Y$1:Y$2000,Data!$A$1:$A$2000,$B23,Data!$C$1:$C$2000,1,Data!$I$1:$I$2000,1) -> 586 | S23: =SUMIFS(Data!Z$1:Z$2000,Data!$A$1:$A$2000,$B23,Data!$C$1:$C$2000,1,Data!$I$1:$I$2000,1) -> 568 | T23: =SUMIFS(Data!AA$1:AA$2000,Data!$A$1:$A$2000,$B23,Data!$C$1:$C$2000,1,Data!$I$1:$I$2000,1) -> 449 | U23: =SUMIFS(Data!AB$1:AB$2000,Data!$A$1:$A$2000,$B23,Data!$C$1:$C$2000,1,Data!$I$1:$I$2000,1) -> 569 | V23: =SUMIFS(Data!AC$1:AC$2000,Data!$A$1:$A$2000,$B23,Data!$C$1:$C$2000,1,Data!$I$1:$I$2000,1) -> 458 | W23: =SUMIFS(Data!AD$1:AD$2000,Data!$A$1:$A$2000,$B23,Data!$C$1:$C$2000,1,Data!$I$1:$I$2000,1) -> 556
B24: 2020-12-01 | C24: Total (without NE) | E24: =SUMIFS(Data!L$1:L$2000,Data!$A$1:$A$2000,$B24,Data!$C$1:$C$2000,1,Data!$I$1:$I$2000,1) -> 251500 | F24: =SUMIFS(Data!M$1:M$2000,Data!$A$1:$A$2000,$B24,Data!$C$1:$C$2000,1,Data!$I$1:$I$2000,1) -> 634 | G24: =SUMIFS(Data!N$1:N$2000,Data!$A$1:$A$2000,$B24,Data!$C$1:$C$2000,1,Data!$I$1:$I$2000,1) -> 529 | H24: =SUMIFS(Data!O$1:O$2000,Data!$A$1:$A$2000,$B24,Data!$C$1:$C$2000,1,Data!$I$1:$I$2000,1) -> 524 | I24: =SUMIFS(Data!P$1:P$2000,Data!$A$1:$A$2000,$B24,Data!$C$1:$C$2000,1,Data!$I$1:$I$2000,1) -> 511 | J24: =SUMIFS(Data!Q$1:Q$2000,Data!$A$1:$A$2000,$B24,Data!$C$1:$C$2000,1,Data!$I$1:$I$2000,1) -> 520 | K24: =SUMIFS(Data!R$1:R$2000,Data!$A$1:$A$2000,$B24,Data!$C$1:$C$2000,1,Data!$I$1:$I$2000,1) -> 191 | L24: =SUMIFS(Data!S$1:S$2000,Data!$A$1:$A$2000,$B24,Data!$C$1:$C$2000,1,Data!$I$1:$I$2000,1) -> 710 | M24: =SUMIFS(Data!T$1:T$2000,Data!$A$1:$A$2000,$B24,Data!$C$1:$C$2000,1,Data!$I$1:$I$2000,1) -> 635 | N24: =SUMIFS(Data!U$1:U$2000,Data!$A$1:$A$2000,$B24,Data!$C$1:$C$2000,1,Data!$I$1:$I$2000,1) -> 570 | O24: =SUMIFS(Data!V$1:V$2000,Data!$A$1:$A$2000,$B24,Data!$C$1:$C$2000,1,Data!$I$1:$I$2000,1) -> 570 | P24: =SUMIFS(Data!W$1:W$2000,Data!$A$1:$A$2000,$B24,Data!$C$1:$C$2000,1,Data!$I$1:$I$2000,1) -> 574 | Q24: =SUMIFS(Data!X$1:X$5000,Data!$A$1:$A$5000,$B24,Data!$C$1:$C$5000,1,Data!$I$1:$I$5000,1) -> 679 | R24: =SUMIFS(Data!Y$1:Y$2000,Data!$A$1:$A$2000,$B24,Data!$C$1:$C$2000,1,Data!$I$1:$I$2000,1) -> 622 | S24: =SUMIFS(Data!Z$1:Z$2000,Data!$A$1:$A$2000,$B24,Data!$C$1:$C$2000,1,Data!$I$1:$I$2000,1) -> 597 | T24: =SUMIFS(Data!AA$1:AA$2000,Data!$A$1:$A$2000,$B24,Data!$C$1:$C$2000,1,Data!$I$1:$I$2000,1) -> 464 | U24: =SUMIFS(Data!AB$1:AB$2000,Data!$A$1:$A$2000,$B24,Data!$C$1:$C$2000,1,Data!$I$1:$I$2000,1) -> 592 | V24: =SUMIFS(Data!AC$1:AC$2000,Data!$A$1:$A$2000,$B24,Data!$C$1:$C$2000,1,Data!$I$1:$I$2000,1) -> 473 | W24: =SUMIFS(Data!AD$1:AD$2000,Data!$A$1:$A$2000,$B24,Data!$C$1:$C$2000,1,Data!$I$1:$I$2000,1) -> 568
B25: 2021-03-01 | C25: Total (without NE) | E25: =SUMIFS(Data!L$1:L$5000,Data!$A$1:$A$5000,$B25,Data!$C$1:$C$5000,1,Data!$I$1:$I$5000,1) -> 251986 | F25: =SUMIFS(Data!M$1:M$5000,Data!$A$1:$A$5000,$B25,Data!$C$1:$C$5000,1,Data!$I$1:$I$5000,1) -> 600 | G25: =SUMIFS(Data!N$1:N$5000,Data!$A$1:$A$5000,$B25,Data!$C$1:$C$5000,1,Data!$I$1:$I$5000,1) -> 505 | H25: =SUMIFS(Data!O$1:O$5000,Data!$A$1:$A$5000,$B25,Data!$C$1:$C$5000,1,Data!$I$1:$I$5000,1) -> 503 | I25: =SUMIFS(Data!P$1:P$5000,Data!$A$1:$A$5000,$B25,Data!$C$1:$C$5000,1,Data!$I$1:$I$5000,1) -> 531 | J25: =SUMIFS(Data!Q$1:Q$5000,Data!$A$1:$A$5000,$B25,Data!$C$1:$C$5000,1,Data!$I$1:$I$5000,1) -> 502 | K25: =SUMIFS(Data!R$1:R$5000,Data!$A$1:$A$5000,$B25,Data!$C$1:$C$5000,1,Data!$I$1:$I$5000,1) -> 157 | L25: =SUMIFS(Data!S$1:S$5000,Data!$A$1:$A$5000,$B25,Data!$C$1:$C$5000,1,Data!$I$1:$I$5000,1) -> 605 | M25: =SUMIFS(Data!T$1:T$5000,Data!$A$1:$A$5000,$B25,Data!$C$1:$C$5000,1,Data!$I$1:$I$5000,1) -> 536 | N25: =SUMIFS(Data!U$1:U$5000,Data!$A$1:$A$5000,$B25,Data!$C$1:$C$5000,1,Data!$I$1:$I$5000,1) -> 487 | O25: =SUMIFS(Data!V$1:V$5000,Data!$A$1:$A$5000,$B25,Data!$C$1:$C$5000,1,Data!$I$1:$I$5000,1) -> 484 | P25: =SUMIFS(Data!W$1:W$5000,Data!$A$1:$A$5000,$B25,Data!$C$1:$C$5000,1,Data!$I$1:$I$5000,1) -> 493 | Q25: =SUMIFS(Data!X$1:X$5000,Data!$A$1:$A$5000,$B25,Data!$C$1:$C$5000,1,Data!$I$1:$I$5000,1) -> 576 | R25: =SUMIFS(Data!Y$1:Y$5000,Data!$A$1:$A$5000,$B25,Data!$C$1:$C$5000,1,Data!$I$1:$I$5000,1) -> 535 | S25: =SUMIFS(Data!Z$1:Z$5000,Data!$A$1:$A$5000,$B25,Data!$C$1:$C$5000,1,Data!$I$1:$I$5000,1) -> 515 | T25: =SUMIFS(Data!AA$1:AA$5000,Data!$A$1:$A$5000,$B25,Data!$C$1:$C$5000,1,Data!$I$1:$I$5000,1) -> 406 | U25: =SUMIFS(Data!AB$1:AB$5000,Data!$A$1:$A$5000,$B25,Data!$C$1:$C$5000,1,Data!$I$1:$I$5000,1) -> 513 | V25: =SUMIFS(Data!AC$1:AC$5000,Data!$A$1:$A$5000,$B25,Data!$C$1:$C$5000,1,Data!$I$1:$I$5000,1) -> 411 | W25: =SUMIFS(Data!AD$1:AD$5000,Data!$A$1:$A$5000,$B25,Data!$C$1:$C$5000,1,Data!$I$1:$I$5000,1) -> 487
B26: 2021-06-01 | C26: Total (without NE) | E26: =SUMIFS(Data!L$1:L$5000,Data!$A$1:$A$5000,$B26,Data!$C$1:$C$5000,1,Data!$I$1:$I$5000,1) -> 254996 | F26: =SUMIFS(Data!M$1:M$5000,Data!$A$1:$A$5000,$B26,Data!$C$1:$C$5000,1,Data!$I$1:$I$5000,1) -> 637 | G26: =SUMIFS(Data!N$1:N$5000,Data!$A$1:$A$5000,$B26,Data!$C$1:$C$5000,1,Data!$I$1:$I$5000,1) -> 540 | H26: =SUMIFS(Data!O$1:O$5000,Data!$A$1:$A$5000,$B26,Data!$C$1:$C$5000,1,Data!$I$1:$I$5000,1) -> 536 | I26: =SUMIFS(Data!P$1:P$5000,Data!$A$1:$A$5000,$B26,Data!$C$1:$C$5000,1,Data!$I$1:$I$5000,1) -> 557 | J26: =SUMIFS(Data!Q$1:Q$5000,Data!$A$1:$A$5000,$B26,Data!$C$1:$C$5000,1,Data!$I$1:$I$5000,1) -> 528 | K26: =SUMIFS(Data!R$1:R$5000,Data!$A$1:$A$5000,$B26,Data!$C$1:$C$5000,1,Data!$I$1:$I$5000,1) -> 164 | L26: =SUMIFS(Data!S$1:S$5000,Data!$A$1:$A$5000,$B26,Data!$C$1:$C$5000,1,Data!$I$1:$I$5000,1) -> 620 | M26: =SUMIFS(Data!T$1:T$5000,Data!$A$1:$A$5000,$B26,Data!$C$1:$C$5000,1,Data!$I$1:$I$5000,1) -> 543 | N26: =SUMIFS(Data!U$1:U$5000,Data!$A$1:$A$5000,$B26,Data!$C$1:$C$5000,1,Data!$I$1:$I$5000,1) -> 477 | O26: =SUMIFS(Data!V$1:V$5000,Data!$A$1:$A$5000,$B26,Data!$C$1:$C$5000,1,Data!$I$1:$I$5000,1) -> 472 | P26: =SUMIFS(Data!W$1:W$5000,Data!$A$1:$A$5000,$B26,Data!$C$1:$C$5000,1,Data!$I$1:$I$5000,1) -> 471 | Q26: =SUMIFS(Data!X$1:X$5000,Data!$A$1:$A$5000,$B26,Data!$C$1:$C$5000,1,Data!$I$1:$I$5000,1) -> 607 | R26: =SUMIFS(Data!Y$1:Y$5000,Data!$A$1:$A$5000,$B26,Data!$C$1:$C$5000,1,Data!$I$1:$I$5000,1) -> 551 | S26: =SUMIFS(Data!Z$1:Z$5000,Data!$A$1:$A$5000,$B26,Data!$C$1:$C$5000,1,Data!$I$1:$I$5000,1) -> 536 | T26: =SUMIFS(Data!AA$1:AA$5000,Data!$A$1:$A$5000,$B26,Data!$C$1:$C$5000,1,Data!$I$1:$I$5000,1) -> 423 | U26: =SUMIFS(Data!AB$1:AB$5000,Data!$A$1:$A$5000,$B26,Data!$C$1:$C$5000,1,Data!$I$1:$I$5000,1) -> 532 | V26: =SUMIFS(Data!AC$1:AC$5000,Data!$A$1:$A$5000,$B26,Data!$C$1:$C$5000,1,Data!$I$1:$I$5000,1) -> 437 | W26: =SUMIFS(Data!AD$1:AD$5000,Data!$A$1:$A$5000,$B26,Data!$C$1:$C$5000,1,Data!$I$1:$I$5000,1) -> 475
B27: 2021-09-01 | C27: Total (without NE) | E27: =SUMIFS(Data!L$1:L$5000,Data!$A$1:$A$5000,$B27,Data!$C$1:$C$5000,1,Data!$I$1:$I$5000,1) -> 257501 | F27: =SUMIFS(Data!M$1:M$5000,Data!$A$1:$A$5000,$B27,Data!$C$1:$C$5000,1,Data!$I$1:$I$5000,1) -> 626 | G27: =SUMIFS(Data!N$1:N$5000,Data!$A$1:$A$5000,$B27,Data!$C$1:$C$5000,1,Data!$I$1:$I$5000,1) -> 516 | H27: =SUMIFS(Data!O$1:O$5000,Data!$A$1:$A$5000,$B27,Data!$C$1:$C$5000,1,Data!$I$1:$I$5000,1) -> 515 | I27: =SUMIFS(Data!P$1:P$5000,Data!$A$1:$A$5000,$B27,Data!$C$1:$C$5000,1,Data!$I$1:$I$5000,1) -> 543 | J27: =SUMIFS(Data!Q$1:Q$5000,Data!$A$1:$A$5000,$B27,Data!$C$1:$C$5000,1,Data!$I$1:$I$5000,1) -> 509 | K27: =SUMIFS(Data!R$1:R$5000,Data!$A$1:$A$5000,$B27,Data!$C$1:$C$5000,1,Data!$I$1:$I$5000,1) -> 160 | L27: =SUMIFS(Data!S$1:S$5000,Data!$A$1:$A$5000,$B27,Data!$C$1:$C$5000,1,Data!$I$1:$I$5000,1) -> 639 | M27: =SUMIFS(Data!T$1:T$5000,Data!$A$1:$A$5000,$B27,Data!$C$1:$C$5000,1,Data!$I$1:$I$5000,1) -> 553 | N27: =SUMIFS(Data!U$1:U$5000,Data!$A$1:$A$5000,$B27,Data!$C$1:$C$5000,1,Data!$I$1:$I$5000,1) -> 495 | O27: =SUMIFS(Data!V$1:V$5000,Data!$A$1:$A$5000,$B27,Data!$C$1:$C$5000,1,Data!$I$1:$I$5000,1) -> 495 | P27: =SUMIFS(Data!W$1:W$5000,Data!$A$1:$A$5000,$B27,Data!$C$1:$C$5000,1,Data!$I$1:$I$5000,1) -> 494 | Q27: =SUMIFS(Data!X$1:X$5000,Data!$A$1:$A$5000,$B27,Data!$C$1:$C$5000,1,Data!$I$1:$I$5000,1) -> 633 | R27: =SUMIFS(Data!Y$1:Y$5000,Data!$A$1:$A$5000,$B27,Data!$C$1:$C$5000,1,Data!$I$1:$I$5000,1) -> 576 | S27: =SUMIFS(Data!Z$1:Z$5000,Data!$A$1:$A$5000,$B27,Data!$C$1:$C$5000,1,Data!$I$1:$I$5000,1) -> 559 | T27: =SUMIFS(Data!AA$1:AA$5000,Data!$A$1:$A$5000,$B27,Data!$C$1:$C$5000,1,Data!$I$1:$I$5000,1) -> 443 | U27: =SUMIFS(Data!AB$1:AB$5000,Data!$A$1:$A$5000,$B27,Data!$C$1:$C$5000,1,Data!$I$1:$I$5000,1) -> 551 | V27: =SUMIFS(Data!AC$1:AC$5000,Data!$A$1:$A$5000,$B27,Data!$C$1:$C$5000,1,Data!$I$1:$I$5000,1) -> 453 | W27: =SUMIFS(Data!AD$1:AD$5000,Data!$A$1:$A$5000,$B27,Data!$C$1:$C$5000,1,Data!$I$1:$I$5000,1) -> 497
B28: 2021-12-01 | C28: Total (without NE) | E28: =SUMIFS(Data!L$1:L$5000,Data!$A$1:$A$5000,$B28,Data!$C$1:$C$5000,1,Data!$I$1:$I$5000,1) -> 259370 | F28: =SUMIFS(Data!M$1:M$5000,Data!$A$1:$A$5000,$B28,Data!$C$1:$C$5000,1,Data!$I$1:$I$5000,1) -> 585 | G28: =SUMIFS(Data!N$1:N$5000,Data!$A$1:$A$5000,$B28,Data!$C$1:$C$5000,1,Data!$I$1:$I$5000,1) -> 501 | H28: =SUMIFS(Data!O$1:O$5000,Data!$A$1:$A$5000,$B28,Data!$C$1:$C$5000,1,Data!$I$1:$I$5000,1) -> 499 | I28: =SUMIFS(Data!P$1:P$5000,Data!$A$1:$A$5000,$B28,Data!$C$1:$C$5000,1,Data!$I$1:$I$5000,1) -> 519 | J28: =SUMIFS(Data!Q$1:Q$5000,Data!$A$1:$A$5000,$B28,Data!$C$1:$C$5000,1,Data!$I$1:$I$5000,1) -> 489 | K28: =SUMIFS(Data!R$1:R$5000,Data!$A$1:$A$5000,$B28,Data!$C$1:$C$5000,1,Data!$I$1:$I$5000,1) -> 106 | L28: =SUMIFS(Data!S$1:S$5000,Data!$A$1:$A$5000,$B28,Data!$C$1:$C$5000,1,Data!$I$1:$I$5000,1) -> 590 | M28: =SUMIFS(Data!T$1:T$5000,Data!$A$1:$A$5000,$B28,Data!$C$1:$C$5000,1,Data!$I$1:$I$5000,1) -> 500 | N28: =SUMIFS(Data!U$1:U$5000,Data!$A$1:$A$5000,$B28,Data!$C$1:$C$5000,1,Data!$I$1:$I$5000,1) -> 454 | O28: =SUMIFS(Data!V$1:V$5000,Data!$A$1:$A$5000,$B28,Data!$C$1:$C$5000,1,Data!$I$1:$I$5000,1) -> 453 | P28: =SUMIFS(Data!W$1:W$5000,Data!$A$1:$A$5000,$B28,Data!$C$1:$C$5000,1,Data!$I$1:$I$5000,1) -> 455 | Q28: =SUMIFS(Data!X$1:X$5000,Data!$A$1:$A$5000,$B28,Data!$C$1:$C$5000,1,Data!$I$1:$I$5000,1) -> 601 | R28: =SUMIFS(Data!Y$1:Y$5000,Data!$A$1:$A$5000,$B28,Data!$C$1:$C$5000,1,Data!$I$1:$I$5000,1) -> 542 | S28: =SUMIFS(Data!Z$1:Z$5000,Data!$A$1:$A$5000,$B28,Data!$C$1:$C$5000,1,Data!$I$1:$I$5000,1) -> 527 | T28: =SUMIFS(Data!AA$1:AA$5000,Data!$A$1:$A$5000,$B28,Data!$C$1:$C$5000,1,Data!$I$1:$I$5000,1) -> 416 | U28: =SUMIFS(Data!AB$1:AB$5000,Data!$A$1:$A$5000,$B28,Data!$C$1:$C$5000,1,Data!$I$1:$I$5000,1) -> 525 | V28: =SUMIFS(Data!AC$1:AC$5000,Data!$A$1:$A$5000,$B28,Data!$C$1:$C$5000,1,Data!$I$1:$I$5000,1) -> 423 | W28: =SUMIFS(Data!AD$1:AD$5000,Data!$A$1:$A$5000,$B28,Data!$C$1:$C$5000,1,Data!$I$1:$I$5000,1) -> 455
B29: 2022-03-01 | C29: Total (without NE) | E29: =SUMIFS(Data!L$1:L$5000,Data!$A$1:$A$5000,$B29,Data!$C$1:$C$5000,1,Data!$I$1:$I$5000,1) -> 258907 | F29: =SUMIFS(Data!M$1:M$5000,Data!$A$1:$A$5000,$B29,Data!$C$1:$C$5000,1,Data!$I$1:$I$5000,1) -> 609 | G29: =SUMIFS(Data!N$1:N$5000,Data!$A$1:$A$5000,$B29,Data!$C$1:$C$5000,1,Data!$I$1:$I$5000,1) -> 507 | H29: =SUMIFS(Data!O$1:O$5000,Data!$A$1:$A$5000,$B29,Data!$C$1:$C$5000,1,Data!$I$1:$I$5000,1) -> 504 | I29: =SUMIFS(Data!P$1:P$5000,Data!$A$1:$A$5000,$B29,Data!$C$1:$C$5000,1,Data!$I$1:$I$5000,1) -> 532 | J29: =SUMIFS(Data!Q$1:Q$5000,Data!$A$1:$A$5000,$B29,Data!$C$1:$C$5000,1,Data!$I$1:$I$5000,1) -> 504 | K29: =SUMIFS(Data!R$1:R$5000,Data!$A$1:$A$5000,$B29,Data!$C$1:$C$5000,1,Data!$I$1:$I$5000,1) -> 112 | L29: =SUMIFS(Data!S$1:S$5000,Data!$A$1:$A$5000,$B29,Data!$C$1:$C$5000,1,Data!$I$1:$I$5000,1) -> 568 | M29: =SUMIFS(Data!T$1:T$5000,Data!$A$1:$A$5000,$B29,Data!$C$1:$C$5000,1,Data!$I$1:$I$5000,1) -> 498 | N29: =SUMIFS(Data!U$1:U$5000,Data!$A$1:$A$5000,$B29,Data!$C$1:$C$5000,1,Data!$I$1:$I$5000,1) -> 474 | O29: =SUMIFS(Data!V$1:V$5000,Data!$A$1:$A$5000,$B29,Data!$C$1:$C$5000,1,Data!$I$1:$I$5000,1) -> 473 | P29: =SUMIFS(Data!W$1:W$5000,Data!$A$1:$A$5000,$B29,Data!$C$1:$C$5000,1,Data!$I$1:$I$5000,1) -> 468 | Q29: =SUMIFS(Data!X$1:X$5000,Data!$A$1:$A$5000,$B29,Data!$C$1:$C$5000,1,Data!$I$1:$I$5000,1) -> 578 | R29: =SUMIFS(Data!Y$1:Y$5000,Data!$A$1:$A$5000,$B29,Data!$C$1:$C$5000,1,Data!$I$1:$I$5000,1) -> 541 | S29: =SUMIFS(Data!Z$1:Z$5000,Data!$A$1:$A$5000,$B29,Data!$C$1:$C$5000,1,Data!$I$1:$I$5000,1) -> 514 | T29: =SUMIFS(Data!AA$1:AA$5000,Data!$A$1:$A$5000,$B29,Data!$C$1:$C$5000,1,Data!$I$1:$I$5000,1) -> 443 | U29: =SUMIFS(Data!AB$1:AB$5000,Data!$A$1:$A$5000,$B29,Data!$C$1:$C$5000,1,Data!$I$1:$I$5000,1) -> 511 | V29: =SUMIFS(Data!AC$1:AC$5000,Data!$A$1:$A$5000,$B29,Data!$C$1:$C$5000,1,Data!$I$1:$I$5000,1) -> 449 | W29: =SUMIFS(Data!AD$1:AD$5000,Data!$A$1:$A$5000,$B29,Data!$C$1:$C$5000,1,Data!$I$1:$I$5000,1) -> 470
